Workbook

Sheet الدليل
A4: رئيسي | B4: عــــام | C4: مساعد | F4: فرعي
A6: 1 | E6: الأصول
B7: 11 | E7: الأصول الثابتة
B8: 11 | C8: 1101 | D8: =C8&F8 -> 1101 | E8: سيارات
C9: 1101 | D9: 11011 | E9: سيارات | F9: 1 | G9: سيارة 1
C10: 1101 | D10: 11012 | E10: سيارات | F10: 2 | G10: سيارة 2
B11: 11 | C11: 1102 | D11: 1102 | E11: اجهزة حاسب الي وملحقاتها
C12: 1102 | D12: 11021 | E12: اجهزة حاسب الي وملحقاتها | F12: 1 | G12: حاسوب 1
C13: 1102 | D13: 11022 | E13: اجهزة حاسب الي وملحقاتها | F13: 2 | G13: حاسوب 2
C14: 1102 | D14: 11023 | E14: اجهزة حاسب الي وملحقاتها | F14: 3 | G14: حاسوب 3
C15: 1102 | D15: 11024 | E15: اجهزة حاسب الي وملحقاتها | F15: 4 | G15: حاسوب 4
C16: 1102 | D16: 11025 | E16: اجهزة حاسب الي وملحقاتها | F16: 5 | G16: حاسوب 5
B17: 11 | C17: 1103 | D17: 1103 | E17: اثاث مكتبي
B18: 11 | C18: 1104 | D18: 1104 | E18: اصول اخرى
B19: 11 | C19: 1105 | D19: 1105
B20: 12 | E20: أصول متداولة
B21: 12 | C21: 1201 | D21: 1201 | E21: النقدية بالخزينة
C22: 1201 | D22: 12011 | E22: النقدية بالخزينة | F22: 1 | G22: الخزينة الرئيسية
C23: 1201 | D23: 12012 | E23: النقدية بالخزينة | F23: 2 | G23: الخزينة الفرعية
B24: 12 | C24: 1202 | D24: 1202 | E24: المصارف
C25: 1202 | D25: 12021 | E25: حسابات المصارف | F25: 1 | G25: مصرف الأمان ( دولار )
C26: 1202 | D26: 12022 | E26: حسابات المصارف | F26: 2 | G26: المصرف المتحد ( دينار )
C27: 1202 | D27: 12023 | E27: حسابات المصارف | F27: 3 | G27: مصرف الجمهورية ( دينار )
C28: 1202 | D28: 12024 | E28: حسابات المصارف | F28: 4 | G28: المصرف الإسلامي ( دينار )
B29: 12 | C29: 1203 | D29: =C29&F29 -> 1203 | E29: البطاقة المصرفية
C30: 1203 | D30: =C30&F30 -> 12031 | E30: بطاقة مصرفية 1 | F30: 1
C31: 1203 | D31: =C31&F31 -> 12032 | E31: بطاقة مصرفية 2 | F31: 2
B33: 12 | C33: 1204 | D33: 1204 | E33: العملاء
C34: 1204 | D34: 12041 | E34: العملاء | F34: 1
C35: 1204 | D35: 12042 | E35: العملاء | F35: 2
C36: 1204 | D36: 12043 | E36: العملاء | F36: 3
C37: 1204 | D37: 12044 | E37: العملاء | F37: 4
C38: 1204 | D38: 12045 | E38: العملاء | F38: 5
C39: 1204 | D39: 12046 | E39: العملاء | F39: 6
C40: 1204 | D40: 12047 | E40: العملاء | F40: 7
C41: 1204 | D41: 12048 | E41: العملاء | F41: 8
C42: 1204 | D42: 12049 | E42: العملاء | F42: 9
C43: 1204 | D43: 120410 | E43: العملاء | F43: 10
B44: 12 | C44: 1205 | D44: 1205 | E44: مدينون متنوعون
C45: 1205 | D45: 12051 | E45: مدينون متنوعون | F45: 1
C46: 1205 | D46: 12052 | E46: مدينون متنوعون | F46: 2
C47: 1205 | D47: 12053 | E47: مدينون متنوعون | F47: 3
C48: 1205 | D48: 12054 | E48: مدينون متنوعون | F48: 4
C49: 1205 | D49: 12055 | E49: مدينون متنوعون | F49: 5
C50: 1205 | D50: 12056 | E50: مدينون متنوعون | F50: 6
C51: 1205 | D51: 12057 | E51: مدينون متنوعون | F51: 7
C52: 1205 | D52: 12058 | E52: مدينون متنوعون | F52: 8
C53: 1205 | D53: 12059 | E53: مدينون متنوعون | F53: 9
C54: 1205 | D54: 120510 | E54: مدينون متنوعون | F54: 10
B55: 12 | C55: 1206 | D55: 1206 | E55: ضمانات لدي الغير
B56: 12 | C56: 1207 | D56: 1207 | E56: الاعتمادات المستندية
C57: 1207 | D57: 12071 | E57: الاعتمادات المستندية | F57: 1
C58: 1207 | D58: 12072 | E58: الاعتمادات المستندية | F58: 2
B59: 12 | C59: 1208 | D59: 1208 | E59: العهد النقدية
C60: 1208 | D60: 12081 | E60: العهد النقدية | F60: 1
C61: 1208 | D61: 12082 | E61: العهد النقدية | F61: 2
B62: 12 | C62: 1209 | D62: 1209 | E62: دفعة مقدمة
B63: 12 | C63: 1210 | D63: 1210 | E63: العربون
B64: 12 | C64: 1211 | D64: 1211 | E64: إيرادات مستحقة
B65: 12 | C65: 1212 | D65: 1212 | E65: مصروفات مقدمة
B66: 12 | C66: 1213 | D66: 1213 | E66: دفعات مقدمة للغير
B67: 12
A69: 2 | E69: الخصوم
B70: 21 | E70: خصوم طويلة الأجل
B71: 21 | C71: 2101 | D71: 2101 | E71: القروض من المصارف طويلة الأجل
B72: 21 | C72: 2102 | D72: =C72&F72 -> 2102 | E72: الاستثمارات طويلة الأجل
B73: 21 | C73: 2103 | D73: 2103
B74: 21 | C74: 2104 | D74: 2104
B75: 21 | C75: 2105 | D75: 2105
B76: 21 | C76: 2106 | D76: 2106
B77: 21 | C77: 2107 | D77: 2107
B78: 21 | C78: 2108 | D78: 2108
B79: 21 | C79: 2109 | D79: 2109
B80: 22 | E80: خصوم متداولة
B81: 22 | C81: 2201 | D81: 2201 | E81: الموردون
C82: 2201 | D82: 22011 | E82: الموردون | F82: 1
C83: 2201 | D83: 22012 | E83: الموردون | F83: 2
C84: 2201 | D84: 22013 | E84: الموردون | F84: 3
C85: 2201 | D85: 22014 | E85: الموردون | F85: 4
C86: 2201 | D86: 22015 | E86: الموردون | F86: 5
C87: 2201 | D87: 22016 | E87: الموردون | F87: 6
C88: 2201 | D88: 22017 | E88: الموردون | F88: 7
C89: 2201 | D89: 22018 | E89: الموردون | F89: 8
C90: 2201 | D90: 22019 | E90: الموردون | F90: 9
C91: 2201 | D91: 220110 | E91: الموردون | F91: 10
B92: 22 | C92: 2202 | D92: 2202 | E92: الدائنون المتتوعون
B93: 22 | C93: 2203 | D93: 2203 | E93: المخصصات
B94: 22 | C94: 2204 | D94: 2204 | E94: مجمع اهلاك الاصول
C95: 2204 | D95: 2204 | E95: مجمع اهلاك الاصول
C96: 2204 | D96: 2204 | E96: مجمع اهلاك الاصول
C97: 2204 | D97: 2204 | E97: مجمع اهلاك الاصول
C98: 2204 | D98: 2204 | E98: مجمع اهلاك الاصول
C99: 2204 | D99: 2204 | E99: مجمع اهلاك الاصول
C100: 2204 | D100: 2204 | E100: مجمع اهلاك الاصول
B101: 22 | C101: 2205 | D101: 2205 | E101: مصروفات مستحقة
B102: 22 | C102: 2206 | D102: 2206 | E102: ايرادات مقدمة
B103: 22 | C103: 2207 | D103: 2207 | E103: دفعات مقدمة من الغير
B104: 22 | C104: 2208 | D104: 2208
B105: 22 | C105: 2413 | D105: 2413
B106: 22 | C106: 2209 | D106: 2209
A108: 3 | E108: حقوق الملكية
B109: 31 | E109: حقوق الملكية
B110: 31 | C110: 3101 | D110: 3101 | E110: رأس المال
B111: 31 | C111: 3102 | D111: 3102 | E111: جاري الشركاء
C112: 3102 | D112: 31021 | E112: جاري الشركاء | F112: 1
C113: 3102 | D113: 31022 | E113: جاري الشركاء | F113: 2
C114: 3102 | D114: 31023 | E114: جاري الشركاء | F114: 3
C115: 3102 | D115: 31024 | E115: جاري الشركاء | F115: 4
C116: 3102 | D116: 31025 | E116: جاري الشركاء | F116: 5
C117: 3102 | D117: 31026 | E117: جاري الشركاء | F117: 6
C118: 3102 | D118: 31027 | E118: جاري الشركاء | F118: 7
C119: 3102 | D119: 31028 | E119: جاري الشركاء | F119: 8
B120: 31 | C120: 3103 | D120: 3103 | E120: ارباح وخسائر مرحلة
B121: 31 | C121: 3104 | D121: 3104 | E121: ارباح وخسائر العام
B122: 31 | C122: 3105 | D122: 3105
B123: 31 | C123: 3106 | D123: 3106
B124: 31 | C124: 3107 | D124: 3107
B125: 31 | C125: 3108 | D125: 3108
B126: 31 | C126: 3109 | D126: 3109
B127: 31 | C127: 3110 | D127: 3110
B128: 31 | C128: 3111 | D128: 3111
B129: 31 | C129: 3112 | D129: 3112
A131: 4 | E131: الايرادات | G131: الايرادات
B132: 41 | E132: الإيرادات النقدية | L132: 401 | M132: =L132&O132 -> 4011 | N132: معمل تحاليل | O132: 1
B133: 41 | C133: 4101 | D133: 4101 | E133: معمل تحاليل
C134: 4101 | D134: 41011 | E134: معمل تحاليل | F134: 1 | G134: معمل تحاليل
B135: 41 | C135: 4102 | D135: 4102 | E135: الاسعاف
B136: 41 | C136: 4102 | D136: 41021 | E136: الاسعاف | F136: 1 | G136: الاسعاف
B137: 41 | C137: 4103 | D137: 4103 | E137: قسم الباطنية
B138: 41 | C138: 4103 | D138: 41031 | E138: قسم الباطنية | F138: 1 | G138: عائشة
C139: 4103 | D139: 41032 | E139: قسم الباطنية | F139: 2 | G139: محمد الهدوار
C140: 4103 | D140: 41033 | E140: قسم الباطنية | F140: 3 | G140: روضة
C141: 4103 | D141: 41034 | E141: قسم الباطنية | F141: 4 | G141: محمد البركي
B144: 41 | C144: 4104 | D144: 4104 | E144: عيادة القلب
C145: 4104 | D145: 41041 | E145: عيادة القلب | F145: 1 | G145: افتخار
B147: 41 | C147: 4105 | D147: 4105 | E147: قسم النساء والولادة
C148: 4105 | D148: =C148&F148 -> 41051 | E148: قسم النساء والولادة | F148: 1 | G148: هويدا المعاتي
C149: 4105 | D149: 41052 | E149: قسم النساء والولادة | F149: 2 | G149: زينب الحراري
C150: 4105 | D150: 41053 | E150: قسم النساء والولادة | F150: 3 | G150: نجوى
C151: 4105 | D151: 41054 | E151: قسم النساء والولادة | F151: 4 | G151: اسماء المقرحي
C152: 4105 | D152: 41055 | E152: قسم النساء والولادة | F152: 5 | G152: هيفاء عون
C153: 4105 | D153: 41056 | E153: قسم النساء والولادة | F153: 6 | G153: فتحية شنشن
B157: 41 | C157: 4106 | D157: 4106 | E157: اخصائى اطفال
C158: 4106 | D158: 41061 | F158: 1 | G158: محمد سعد
C159: 4106 | D159: 41062 | F159: 2 | G159: 2
C160: 4106 | D160: 41063 | F160: 3 | G160: 3
B162: 41 | C162: 4107 | D162: 4107 | E162: قسم الأطفال
C163: 4107 | D163: 41071 | E163: قسم الأطفال | F163: 1 | G163: عبدالمولى سعد
C164: 4107 | D164: 41072 | E164: قسم الأطفال | F164: 2 | G164: هنيدا المعاتي
C165: 4107 | D165: 41073 | F165: 3 | G165: 3
C166: 4107 | D166: 41074 | F166: 4 | G166: 4
C167: 4107 | D167: 41075 | F167: 5 | G167: 5
B168: 41 | C168: 4108 | D168: 4108 | E168: الايواء
B169: 41 | C169: 4108 | D169: 41081 | E169: الايواء | F169: 1 | G169: الايواء
B171: 41 | C171: 4109 | D171: 4109 | E171: الصيدلية
C172: 4109 | D172: 41091 | E172: الصيدلية | F172: 1 | G172: الصيدلية
B174: 41 | C174: 4110 | D174: 4110 | E174: اخصائى الجراحة
C175: 4110 | D175: 41101 | E175: اخصائى الجراحة | F175: 1 | G175: علي المعاتي
C176: 4110 | D176: 41102 | F176: 2 | G176: 2
C177: 4110 | D177: 41103 | F177: 3 | G177: 3
B178: 41 | C178: 4111 | D178: 4111 | E178: قسم الجراحة
C179: 4111 | D179: 41111 | E179: قسم الجراحة | F179: 1 | G179: خالد المعاتي
C180: 4111 | D180: 41112 | E180: قسم الجراحة | F180: 2 | G180: محمد الأخضر
C181: 4111 | D181: 41113 | F181: 3 | G181: عمر المعاتي
C182: 4111 | D182: 41114 | F182: 4 | G182: 4
C183: 4111 | D183: 41115 | F183: 5 | G183: 5
B185: 41 | C185: 4112 | D185: 4112 | E185: قسم العظام
C186: 4112 | D186: 41121 | F186: 1 | G186: اليونيدر
C187: 4112 | D187: 41122 | F187: 2 | G187: 2
C188: 4112 | D188: 41123 | F188: 3 | G188: 3
B190: 41 | C190: 4113 | D190: 4113 | E190: قسم الانف والحنجرة
C191: 4113 | D191: 41131 | F191: 1 | G191: 1
C192: 4113 | D192: 41132 | F192: 2 | G192: 2
C193: 4113 | D193: 41133 | F193: 3 | G193: 3
B195: 41 | C195: 4114 | D195: 4114 | E195: انترا ساون
C196: 4114 | D196: 4114 | G196: 1
C197: 4114 | D197: 4114 | G197: 2
B199: 41 | C199: 4115 | D199: 4115 | E199: قسم المسالك
C200: 4115 | D200: 41151 | F200: 1 | G200: عبدالسلام الحامدي
C201: 4115 | D201: 41152 | F201: 2 | G201: 2
C202: 4115 | D202: 41153 | F202: 3 | G202: 3
B204: 41 | C204: 4116 | D204: 4116 | E204: قسم العلاج الطبيعي
C205: 4116 | D205: 41161 | F205: 1 | G205: العلاج الطبيعي
C206: 4116 | D206: 41162 | F206: 2 | G206: 2
C207: 4116 | D207: 41163 | F207: 3 | G207: 3
B209: 41 | C209: 4117 | D209: 4117 | E209: حجامة
C210: 4117 | D210: 41171 | F210: 1 | G210: 1
C211: 4117 | D211: 41172 | F211: 2 | G211: 2
C212: 4117 | D212: 41173 | F212: 3 | G212: 3
B214: 41 | C214: 4118 | D214: 4118 | E214: قسم الأسنان
C215: 4118 | D215: =C215&F215 -> 41181 | F215: 1 | G215: نورالدين المعاتي
C216: 4118 | D216: 41182 | F216: 2 | G216: 2
C217: 4118 | D217: 41183 | F217: 3 | G217: 3
B218: 41 | C218: 4119 | D218: 4119 | E218: قسم الجلدية
C219: 4119 | D219: 41191 | F219: 1 | G219: 1
C220: 4119 | D220: 41192 | F220: 2 | G220: 2
C221: 4119 | D221: 41193 | F221: 3 | G221: 3
B223: 41 | C223: 4120 | D223: 4120 | E223: قسم الاعصاب
C224: 4120 | D224: 41201 | F224: 1 | G224: 1
C225: 4120 | D225: 41202 | F225: 2 | G225: 2
... 213 more rows

Sheet الحركة
C3: تسجيل الحركة اليومية
I5: اجمالي المدين | J5: اجمالي الدائن
I6: =SUM(I9:I51) -> 276 | J6: =SUM(J9:J51) -> 2721
A8: التاريخ | B8: كود الحساب الرئيسي | C8: الحساب الرئيسي | D8: كود الحساب الفرعي | E8: الحساب الفرعي | F8: رقم الإيصال المالي | G8: كود التفصيلي | H8: الحساب التفصيلي | I8: مدين | J8: دائن
A9: 2021-01-01 | B9: 4 | C9: =IF(AND(B9="",C10="",OR(J8>0,I8>0)),"→",IF(B9>0,VLOOKUP(B9,الدليل!$A$6:$E$576,5,0),"")) -> الايرادات | D9: 4101 | E9: =IF(AND(D9="",E10="",OR(J8>0,I8>0)),"→",IF(D9>0,VLOOKUP(D9,الدليل!$C$6:$E$576,3,0),"")) -> معمل تحاليل | F9: 1676 | G9: 1 | H9: =IF(OR(D9="",G9=""),"",INDEX(الدليل!$G$8:$G$576,MATCH(D9&G9,الدليل!$D$8:$D$576,0))) -> معمل تحاليل | J9: 20
A10: 2021-01-01 | B10: 4 | C10: =IF(AND(B10="",C11="",OR(J9>0,I9>0)),"→",IF(B10>0,VLOOKUP(B10,الدليل!$A$6:$E$576,5,0),"")) -> الايرادات | D10: 4101 | E10: =IF(AND(D10="",E11="",OR(J9>0,I9>0)),"→",IF(D10>0,VLOOKUP(D10,الدليل!$C$6:$E$576,3,0),"")) -> معمل تحاليل | F10: 1677 | G10: 1 | H10: =IF(OR(D10="",G10=""),"",INDEX(الدليل!$G$8:$G$576,MATCH(D10&G10,الدليل!$D$8:$D$576,0))) -> معمل تحاليل | J10: 130
A11: 2021-01-01 | B11: 4 | C11: =IF(AND(B11="",C12="",OR(J10>0,I10>0)),"→",IF(B11>0,VLOOKUP(B11,الدليل!$A$6:$E$576,5,0),"")) -> الايرادات | D11: 4101 | E11: =IF(AND(D11="",E12="",OR(J10>0,I10>0)),"→",IF(D11>0,VLOOKUP(D11,الدليل!$C$6:$E$576,3,0),"")) -> معمل تحاليل | F11: 1678 | G11: 1 | H11: =IF(OR(D11="",G11=""),"",INDEX(الدليل!$G$8:$G$576,MATCH(D11&G11,الدليل!$D$8:$D$576,0))) -> معمل تحاليل | J11: 250
A12: 2021-01-01 | B12: 4 | C12: =IF(AND(B12="",C13="",OR(J11>0,I11>0)),"→",IF(B12>0,VLOOKUP(B12,الدليل!$A$6:$E$576,5,0),"")) -> الايرادات | D12: 4109 | E12: =IF(AND(D12="",E13="",OR(J11>0,I11>0)),"→",IF(D12>0,VLOOKUP(D12,الدليل!$C$6:$E$576,3,0),"")) -> الصيدلية | F12: 1701 | G12: 1 | H12: =IF(OR(D12="",G12=""),"",INDEX(الدليل!$G$8:$G$576,MATCH(D12&G12,الدليل!$D$8:$D$576,0))) -> الصيدلية | J12: 7
A13: 2021-01-01 | B13: 4 | C13: =IF(AND(B13="",C14="",OR(J12>0,I12>0)),"→",IF(B13>0,VLOOKUP(B13,الدليل!$A$6:$E$576,5,0),"")) -> الايرادات | D13: 4109 | E13: =IF(AND(D13="",E14="",OR(J12>0,I12>0)),"→",IF(D13>0,VLOOKUP(D13,الدليل!$C$6:$E$576,3,0),"")) -> الصيدلية | F13: 1702 | G13: 1 | H13: =IF(OR(D13="",G13=""),"",INDEX(الدليل!$G$8:$G$576,MATCH(D13&G13,الدليل!$D$8:$D$576,0))) -> الصيدلية | J13: 30
A14: 2021-01-01 | B14: 4 | C14: =IF(AND(B14="",C15="",OR(J13>0,I13>0)),"→",IF(B14>0,VLOOKUP(B14,الدليل!$A$6:$E$576,5,0),"")) -> الايرادات | D14: 4109 | E14: =IF(AND(D14="",E15="",OR(J13>0,I13>0)),"→",IF(D14>0,VLOOKUP(D14,الدليل!$C$6:$E$576,3,0),"")) -> الصيدلية | F14: 1703 | G14: 1 | H14: =IF(OR(D14="",G14=""),"",INDEX(الدليل!$G$8:$G$576,MATCH(D14&G14,الدليل!$D$8:$D$576,0))) -> الصيدلية | J14: 42
A15: 2021-01-01 | B15: 4 | C15: =IF(AND(B15="",C16="",OR(J14>0,I14>0)),"→",IF(B15>0,VLOOKUP(B15,الدليل!$A$6:$E$576,5,0),"")) -> الايرادات | D15: 4109 | E15: =IF(AND(D15="",E16="",OR(J14>0,I14>0)),"→",IF(D15>0,VLOOKUP(D15,الدليل!$C$6:$E$576,3,0),"")) -> الصيدلية | F15: 1704 | G15: 1 | H15: =IF(OR(D15="",G15=""),"",INDEX(الدليل!$G$8:$G$576,MATCH(D15&G15,الدليل!$D$8:$D$576,0))) -> الصيدلية | J15: 44
A16: 2021-01-01 | B16: 4 | C16: =IF(AND(B16="",C17="",OR(J15>0,I15>0)),"→",IF(B16>0,VLOOKUP(B16,الدليل!$A$6:$E$576,5,0),"")) -> الايرادات | D16: 4109 | E16: =IF(AND(D16="",E17="",OR(J15>0,I15>0)),"→",IF(D16>0,VLOOKUP(D16,الدليل!$C$6:$E$576,3,0),"")) -> الصيدلية | F16: 1705 | G16: 1 | H16: =IF(OR(D16="",G16=""),"",INDEX(الدليل!$G$8:$G$576,MATCH(D16&G16,الدليل!$D$8:$D$576,0))) -> الصيدلية | J16: 20
A17: 2021-01-01 | B17: 4 | C17: =IF(AND(B17="",C18="",OR(J16>0,I16>0)),"→",IF(B17>0,VLOOKUP(B17,الدليل!$A$6:$E$576,5,0),"")) -> الايرادات | D17: 4109 | E17: =IF(AND(D17="",E18="",OR(J16>0,I16>0)),"→",IF(D17>0,VLOOKUP(D17,الدليل!$C$6:$E$576,3,0),"")) -> الصيدلية | F17: 1706 | G17: 1 | H17: =IF(OR(D17="",G17=""),"",INDEX(الدليل!$G$8:$G$576,MATCH(D17&G17,الدليل!$D$8:$D$576,0))) -> الصيدلية | J17: 5
A18: 2021-01-01 | B18: 4 | C18: =IF(AND(B18="",C19="",OR(J17>0,I17>0)),"→",IF(B18>0,VLOOKUP(B18,الدليل!$A$6:$E$576,5,0),"")) -> الايرادات | D18: 4109 | E18: =IF(AND(D18="",E19="",OR(J17>0,I17>0)),"→",IF(D18>0,VLOOKUP(D18,الدليل!$C$6:$E$576,3,0),"")) -> الصيدلية | F18: 1707 | G18: 1 | H18: =IF(OR(D18="",G18=""),"",INDEX(الدليل!$G$8:$G$576,MATCH(D18&G18,الدليل!$D$8:$D$576,0))) -> الصيدلية | J18: 5
A19: 2021-01-01 | B19: 4 | C19: =IF(AND(B19="",C20="",OR(J18>0,I18>0)),"→",IF(B19>0,VLOOKUP(B19,الدليل!$A$6:$E$576,5,0),"")) -> الايرادات | D19: 4109 | E19: =IF(AND(D19="",E20="",OR(J18>0,I18>0)),"→",IF(D19>0,VLOOKUP(D19,الدليل!$C$6:$E$576,3,0),"")) -> الصيدلية | F19: 1708 | G19: 1 | H19: =IF(OR(D19="",G19=""),"",INDEX(الدليل!$G$8:$G$576,MATCH(D19&G19,الدليل!$D$8:$D$576,0))) -> الصيدلية | J19: 29
A20: 2021-01-01 | B20: 4 | C20: =IF(AND(B20="",C21="",OR(J19>0,I19>0)),"→",IF(B20>0,VLOOKUP(B20,الدليل!$A$6:$E$576,5,0),"")) -> الايرادات | D20: 4102 | E20: =IF(AND(D20="",E21="",OR(J19>0,I19>0)),"→",IF(D20>0,VLOOKUP(D20,الدليل!$C$6:$E$576,3,0),"")) -> الاسعاف | F20: 1726 | G20: 1 | H20: =IF(OR(D20="",G20=""),"",INDEX(الدليل!$G$8:$G$576,MATCH(D20&G20,الدليل!$D$8:$D$576,0))) -> الاسعاف | J20: 4
A21: 2021-01-01 | B21: 4 | C21: =IF(AND(B21="",C22="",OR(J20>0,I20>0)),"→",IF(B21>0,VLOOKUP(B21,الدليل!$A$6:$E$576,5,0),"")) -> الايرادات | D21: 4102 | E21: =IF(AND(D21="",E22="",OR(J20>0,I20>0)),"→",IF(D21>0,VLOOKUP(D21,الدليل!$C$6:$E$576,3,0),"")) -> الاسعاف | F21: 1727 | G21: 1 | H21: =IF(OR(D21="",G21=""),"",INDEX(الدليل!$G$8:$G$576,MATCH(D21&G21,الدليل!$D$8:$D$576,0))) -> الاسعاف | J21: 20
A22: 2021-01-01 | B22: 4 | C22: =IF(AND(B22="",C23="",OR(J21>0,I21>0)),"→",IF(B22>0,VLOOKUP(B22,الدليل!$A$6:$E$576,5,0),"")) -> الايرادات | D22: 4111 | E22: =IF(AND(D22="",E23="",OR(J21>0,I21>0)),"→",IF(D22>0,VLOOKUP(D22,الدليل!$C$6:$E$576,3,0),"")) -> قسم الجراحة | F22: 1728 | G22: 2 | H22: =IF(OR(D22="",G22=""),"",INDEX(الدليل!$G$8:$G$576,MATCH(D22&G22,الدليل!$D$8:$D$576,0))) -> محمد الأخضر | J22: 20
A23: 2021-01-01 | B23: 4 | C23: =IF(AND(B23="",C24="",OR(J22>0,I22>0)),"→",IF(B23>0,VLOOKUP(B23,الدليل!$A$6:$E$576,5,0),"")) -> الايرادات | D23: 4102 | E23: =IF(AND(D23="",E24="",OR(J22>0,I22>0)),"→",IF(D23>0,VLOOKUP(D23,الدليل!$C$6:$E$576,3,0),"")) -> الاسعاف | F23: 1729 | G23: 1 | H23: =IF(OR(D23="",G23=""),"",INDEX(الدليل!$G$8:$G$576,MATCH(D23&G23,الدليل!$D$8:$D$576,0))) -> الاسعاف | J23: 60 | M23: =SUM(J9:J27) -> 2246
A24: 2021-01-01 | B24: 4 | C24: =IF(AND(B24="",C25="",OR(J23>0,I23>0)),"→",IF(B24>0,VLOOKUP(B24,الدليل!$A$6:$E$576,5,0),"")) -> الايرادات | D24: 4103 | E24: =IF(AND(D24="",E25="",OR(J23>0,I23>0)),"→",IF(D24>0,VLOOKUP(D24,الدليل!$C$6:$E$576,3,0),"")) -> قسم الباطنية | F24: 1730 | G24: 1 | H24: =IF(OR(D24="",G24=""),"",INDEX(الدليل!$G$8:$G$576,MATCH(D24&G24,الدليل!$D$8:$D$576,0))) -> عائشة | J24: 30
A25: 2021-01-01 | B25: 4 | C25: =IF(AND(B25="",C26="",OR(J24>0,I24>0)),"→",IF(B25>0,VLOOKUP(B25,الدليل!$A$6:$E$576,5,0),"")) -> الايرادات | D25: 4103 | E25: =IF(AND(D25="",E26="",OR(J24>0,I24>0)),"→",IF(D25>0,VLOOKUP(D25,الدليل!$C$6:$E$576,3,0),"")) -> قسم الباطنية | F25: 1731 | G25: 1 | H25: =IF(OR(D25="",G25=""),"",INDEX(الدليل!$G$8:$G$576,MATCH(D25&G25,الدليل!$D$8:$D$576,0))) -> عائشة | J25: 30
A26: 2021-01-01 | B26: 4 | C26: =IF(AND(B26="",C27="",OR(J25>0,I25>0)),"→",IF(B26>0,VLOOKUP(B26,الدليل!$A$6:$E$576,5,0),"")) -> الايرادات | D26: 4108 | E26: =IF(AND(D26="",E27="",OR(J25>0,I25>0)),"→",IF(D26>0,VLOOKUP(D26,الدليل!$C$6:$E$576,3,0),"")) -> الايواء | F26: 1732 | G26: 1 | H26: =IF(OR(D26="",G26=""),"",INDEX(الدليل!$G$8:$G$576,MATCH(D26&G26,الدليل!$D$8:$D$576,0))) -> الايواء | J26: 500
A27: 2021-01-01 | B27: 4 | C27: =IF(AND(B27="",C28="",OR(J26>0,I26>0)),"→",IF(B27>0,VLOOKUP(B27,الدليل!$A$6:$E$576,5,0),"")) -> الايرادات | D27: 4108 | E27: =IF(AND(D27="",E28="",OR(J26>0,I26>0)),"→",IF(D27>0,VLOOKUP(D27,الدليل!$C$6:$E$576,3,0),"")) -> الايواء | F27: 1733 | G27: 1 | H27: =IF(OR(D27="",G27=""),"",INDEX(الدليل!$G$8:$G$576,MATCH(D27&G27,الدليل!$D$8:$D$576,0))) -> الايواء | J27: 1000 | M27: =SUM(I28:I31) -> 276
A28: 2021-01-01 | B28: 6 | C28: =IF(AND(B28="",C29="",OR(J27>0,I27>0)),"→",IF(B28>0,VLOOKUP(B28,الدليل!$A$6:$E$576,5,0),"")) -> المصروفات | D28: 6201 | E28: =IF(AND(D28="",E29="",OR(J27>0,I27>0)),"→",IF(D28>0,VLOOKUP(D28,الدليل!$C$6:$E$576,3,0),"")) -> المصروفات الطبية | G28: 2 | H28: =IF(OR(D28="",G28=""),"",INDEX(الدليل!$G$8:$G$576,MATCH(D28&G28,الدليل!$D$8:$D$576,0))) -> اكسجين | I28: 166
A29: 2021-01-01 | B29: 6 | C29: =IF(AND(B29="",C30="",OR(J28>0,I28>0)),"→",IF(B29>0,VLOOKUP(B29,الدليل!$A$6:$E$576,5,0),"")) -> المصروفات | D29: 6101 | E29: =IF(AND(D29="",E30="",OR(J28>0,I28>0)),"→",IF(D29>0,VLOOKUP(D29,الدليل!$C$6:$E$576,3,0),"")) -> المصروفات الادارية والعمومية | G29: 6 | H29: =IF(OR(D29="",G29=""),"",INDEX(الدليل!$G$8:$G$576,MATCH(D29&G29,الدليل!$D$8:$D$576,0))) -> المطبخ | I29: 60
A30: 2021-01-01 | B30: 6 | C30: =IF(AND(B30="",C31="",OR(J29>0,I29>0)),"→",IF(B30>0,VLOOKUP(B30,الدليل!$A$6:$E$576,5,0),"")) -> المصروفات | D30: 6101 | E30: =IF(AND(D30="",E31="",OR(J29>0,I29>0)),"→",IF(D30>0,VLOOKUP(D30,الدليل!$C$6:$E$576,3,0),"")) -> المصروفات الادارية والعمومية | G30: 3 | H30: =IF(OR(D30="",G30=""),"",INDEX(الدليل!$G$8:$G$576,MATCH(D30&G30,الدليل!$D$8:$D$576,0))) -> قرطاسية | I30: 30
A31: 2021-01-01 | B31: 6 | C31: =IF(AND(B31="",C32="",OR(J30>0,I30>0)),"→",IF(B31>0,VLOOKUP(B31,الدليل!$A$6:$E$576,5,0),"")) -> المصروفات | D31: 6101 | E31: =IF(AND(D31="",E32="",OR(J30>0,I30>0)),"→",IF(D31>0,VLOOKUP(D31,الدليل!$C$6:$E$576,3,0),"")) -> المصروفات الادارية والعمومية | G31: 5 | H31: =IF(OR(D31="",G31=""),"",INDEX(الدليل!$G$8:$G$576,MATCH(D31&G31,الدليل!$D$8:$D$576,0))) -> مواد تنظيف | I31: 20
A32: 2021-01-02 | B32: 4 | C32: =IF(AND(B32="",C33="",OR(J31>0,I31>0)),"→",IF(B32>0,VLOOKUP(B32,الدليل!$A$6:$E$576,5,0),"")) -> الايرادات | D32: 4109 | E32: =IF(AND(D32="",E33="",OR(J31>0,I31>0)),"→",IF(D32>0,VLOOKUP(D32,الدليل!$C$6:$E$576,3,0),"")) -> الصيدلية | F32: 426 | G32: 1 | H32: =IF(OR(D32="",G32=""),"",INDEX(الدليل!$G$8:$G$576,MATCH(D32&G32,الدليل!$D$8:$D$576,0))) -> الصيدلية | J32: 23
A33: 2021-01-02 | B33: 4 | C33: =IF(AND(B33="",C34="",OR(J32>0,I32>0)),"→",IF(B33>0,VLOOKUP(B33,الدليل!$A$6:$E$576,5,0),"")) -> الايرادات | D33: 4109 | E33: =IF(AND(D33="",E34="",OR(J32>0,I32>0)),"→",IF(D33>0,VLOOKUP(D33,الدليل!$C$6:$E$576,3,0),"")) -> الصيدلية | F33: 427 | G33: 1 | H33: =IF(OR(D33="",G33=""),"",INDEX(الدليل!$G$8:$G$576,MATCH(D33&G33,الدليل!$D$8:$D$576,0))) -> الصيدلية | J33: 17
A34: 2021-01-02 | B34: 4 | C34: =IF(AND(B34="",C35="",OR(J33>0,I33>0)),"→",IF(B34>0,VLOOKUP(B34,الدليل!$A$6:$E$576,5,0),"")) -> الايرادات | D34: 4109 | E34: =IF(AND(D34="",E35="",OR(J33>0,I33>0)),"→",IF(D34>0,VLOOKUP(D34,الدليل!$C$6:$E$576,3,0),"")) -> الصيدلية | F34: 428 | G34: 1 | H34: =IF(OR(D34="",G34=""),"",INDEX(الدليل!$G$8:$G$576,MATCH(D34&G34,الدليل!$D$8:$D$576,0))) -> الصيدلية | J34: 2
A35: 2021-01-02 | B35: 4 | C35: =IF(AND(B35="",C36="",OR(J34>0,I34>0)),"→",IF(B35>0,VLOOKUP(B35,الدليل!$A$6:$E$576,5,0),"")) -> الايرادات | D35: 4102 | E35: =IF(AND(D35="",E36="",OR(J34>0,I34>0)),"→",IF(D35>0,VLOOKUP(D35,الدليل!$C$6:$E$576,3,0),"")) -> الاسعاف | F35: 429 | G35: 1 | H35: =IF(OR(D35="",G35=""),"",INDEX(الدليل!$G$8:$G$576,MATCH(D35&G35,الدليل!$D$8:$D$576,0))) -> الاسعاف | J35: 2
A36: 2021-01-02 | B36: 4 | C36: =IF(AND(B36="",C37="",OR(J35>0,I35>0)),"→",IF(B36>0,VLOOKUP(B36,الدليل!$A$6:$E$576,5,0),"")) -> الايرادات | D36: 4109 | E36: =IF(AND(D36="",E37="",OR(J35>0,I35>0)),"→",IF(D36>0,VLOOKUP(D36,الدليل!$C$6:$E$576,3,0),"")) -> الصيدلية | F36: 430 | G36: 1 | H36: =IF(OR(D36="",G36=""),"",INDEX(الدليل!$G$8:$G$576,MATCH(D36&G36,الدليل!$D$8:$D$576,0))) -> الصيدلية | J36: 15
A37: 2021-01-02 | B37: 4 | C37: =IF(AND(B37="",C38="",OR(J36>0,I36>0)),"→",IF(B37>0,VLOOKUP(B37,الدليل!$A$6:$E$576,5,0),"")) -> الايرادات | D37: 4109 | E37: =IF(AND(D37="",E38="",OR(J36>0,I36>0)),"→",IF(D37>0,VLOOKUP(D37,الدليل!$C$6:$E$576,3,0),"")) -> الصيدلية | F37: 431 | G37: 1 | H37: =IF(OR(D37="",G37=""),"",INDEX(الدليل!$G$8:$G$576,MATCH(D37&G37,الدليل!$D$8:$D$576,0))) -> الصيدلية | J37: 26
A38: 2021-01-02 | B38: 4 | C38: =IF(AND(B38="",C39="",OR(J37>0,I37>0)),"→",IF(B38>0,VLOOKUP(B38,الدليل!$A$6:$E$576,5,0),"")) -> الايرادات | D38: 4102 | E38: =IF(AND(D38="",E39="",OR(J37>0,I37>0)),"→",IF(D38>0,VLOOKUP(D38,الدليل!$C$6:$E$576,3,0),"")) -> الاسعاف | F38: 432 | G38: 1 | H38: =IF(OR(D38="",G38=""),"",INDEX(الدليل!$G$8:$G$576,MATCH(D38&G38,الدليل!$D$8:$D$576,0))) -> الاسعاف | J38: 2
A39: 2021-01-02 | B39: 4 | C39: =IF(AND(B39="",C40="",OR(J38>0,I38>0)),"→",IF(B39>0,VLOOKUP(B39,الدليل!$A$6:$E$576,5,0),"")) -> الايرادات | D39: 4109 | E39: =IF(AND(D39="",E40="",OR(J38>0,I38>0)),"→",IF(D39>0,VLOOKUP(D39,الدليل!$C$6:$E$576,3,0),"")) -> الصيدلية | F39: 433 | G39: 1 | H39: =IF(OR(D39="",G39=""),"",INDEX(الدليل!$G$8:$G$576,MATCH(D39&G39,الدليل!$D$8:$D$576,0))) -> الصيدلية | J39: 33
A40: 2021-01-02 | B40: 4 | C40: =IF(AND(B40="",C41="",OR(J39>0,I39>0)),"→",IF(B40>0,VLOOKUP(B40,الدليل!$A$6:$E$576,5,0),"")) -> الايرادات | D40: 4102 | E40: =IF(AND(D40="",E41="",OR(J39>0,I39>0)),"→",IF(D40>0,VLOOKUP(D40,الدليل!$C$6:$E$576,3,0),"")) -> الاسعاف | F40: 434 | G40: 1 | H40: =IF(OR(D40="",G40=""),"",INDEX(الدليل!$G$8:$G$576,MATCH(D40&G40,الدليل!$D$8:$D$576,0))) -> الاسعاف | J40: 50
A41: 2021-01-02 | B41: 4 | C41: =IF(AND(B41="",C42="",OR(J40>0,I40>0)),"→",IF(B41>0,VLOOKUP(B41,الدليل!$A$6:$E$576,5,0),"")) -> الايرادات | D41: 4109 | E41: =IF(AND(D41="",E42="",OR(J40>0,I40>0)),"→",IF(D41>0,VLOOKUP(D41,الدليل!$C$6:$E$576,3,0),"")) -> الصيدلية | F41: 435 | G41: 1 | H41: =IF(OR(D41="",G41=""),"",INDEX(الدليل!$G$8:$G$576,MATCH(D41&G41,الدليل!$D$8:$D$576,0))) -> الصيدلية | J41: 45
A42: 2021-01-02 | B42: 4 | C42: =IF(AND(B42="",C43="",OR(J41>0,I41>0)),"→",IF(B42>0,VLOOKUP(B42,الدليل!$A$6:$E$576,5,0),"")) -> الايرادات | D42: 4102 | E42: =IF(AND(D42="",E43="",OR(J41>0,I41>0)),"→",IF(D42>0,VLOOKUP(D42,الدليل!$C$6:$E$576,3,0),"")) -> الاسعاف | F42: 436 | G42: 1 | H42: =IF(OR(D42="",G42=""),"",INDEX(الدليل!$G$8:$G$576,MATCH(D42&G42,الدليل!$D$8:$D$576,0))) -> الاسعاف | J42: 10
A43: 2021-01-02 | B43: 4 | C43: =IF(AND(B43="",C44="",OR(J42>0,I42>0)),"→",IF(B43>0,VLOOKUP(B43,الدليل!$A$6:$E$576,5,0),"")) -> الايرادات | D43: 4111 | E43: =IF(AND(D43="",E44="",OR(J42>0,I42>0)),"→",IF(D43>0,VLOOKUP(D43,الدليل!$C$6:$E$576,3,0),"")) -> قسم الجراحة | F43: 439 | G43: 2 | H43: =IF(OR(D43="",G43=""),"",INDEX(الدليل!$G$8:$G$576,MATCH(D43&G43,الدليل!$D$8:$D$576,0))) -> محمد الأخضر | J43: 20
A44: 2021-01-02 | B44: 4 | C44: =IF(AND(B44="",C45="",OR(J43>0,I43>0)),"→",IF(B44>0,VLOOKUP(B44,الدليل!$A$6:$E$576,5,0),"")) -> الايرادات | D44: 4102 | E44: =IF(AND(D44="",E45="",OR(J43>0,I43>0)),"→",IF(D44>0,VLOOKUP(D44,الدليل!$C$6:$E$576,3,0),"")) -> الاسعاف | F44: 440 | G44: 1 | H44: =IF(OR(D44="",G44=""),"",INDEX(الدليل!$G$8:$G$576,MATCH(D44&G44,الدليل!$D$8:$D$576,0))) -> الاسعاف | J44: 60 | M44: =SUM(J32:J51) -> 475
A45: 2021-01-02 | B45: 4 | C45: =IF(AND(B45="",C46="",OR(J44>0,I44>0)),"→",IF(B45>0,VLOOKUP(B45,الدليل!$A$6:$E$576,5,0),"")) -> الايرادات | D45: 4111 | E45: =IF(AND(D45="",E46="",OR(J44>0,I44>0)),"→",IF(D45>0,VLOOKUP(D45,الدليل!$C$6:$E$576,3,0),"")) -> قسم الجراحة | F45: 441 | G45: 2 | H45: =IF(OR(D45="",G45=""),"",INDEX(الدليل!$G$8:$G$576,MATCH(D45&G45,الدليل!$D$8:$D$576,0))) -> محمد الأخضر | J45: 20
A46: 2021-01-02 | B46: 4 | C46: =IF(AND(B46="",C47="",OR(J45>0,I45>0)),"→",IF(B46>0,VLOOKUP(B46,الدليل!$A$6:$E$576,5,0),"")) -> الايرادات | D46: 4102 | E46: =IF(AND(D46="",E47="",OR(J45>0,I45>0)),"→",IF(D46>0,VLOOKUP(D46,الدليل!$C$6:$E$576,3,0),"")) -> الاسعاف | F46: 442 | G46: 1 | H46: =IF(OR(D46="",G46=""),"",INDEX(الدليل!$G$8:$G$576,MATCH(D46&G46,الدليل!$D$8:$D$576,0))) -> الاسعاف | J46: 20
A47: 2021-01-02 | B47: 4 | C47: =IF(AND(B47="",C48="",OR(J46>0,I46>0)),"→",IF(B47>0,VLOOKUP(B47,الدليل!$A$6:$E$576,5,0),"")) -> الايرادات | D47: 4111 | E47: =IF(AND(D47="",E48="",OR(J46>0,I46>0)),"→",IF(D47>0,VLOOKUP(D47,الدليل!$C$6:$E$576,3,0),"")) -> قسم الجراحة | F47: 443 | G47: 2 | H47: =IF(OR(D47="",G47=""),"",INDEX(الدليل!$G$8:$G$576,MATCH(D47&G47,الدليل!$D$8:$D$576,0))) -> محمد الأخضر | J47: 20
A48: 2021-01-02 | B48: 4 | C48: =IF(AND(B48="",C49="",OR(J47>0,I47>0)),"→",IF(B48>0,VLOOKUP(B48,الدليل!$A$6:$E$576,5,0),"")) -> الايرادات | D48: 4102 | E48: =IF(AND(D48="",E49="",OR(J47>0,I47>0)),"→",IF(D48>0,VLOOKUP(D48,الدليل!$C$6:$E$576,3,0),"")) -> الاسعاف | F48: 444 | G48: 1 | H48: =IF(OR(D48="",G48=""),"",INDEX(الدليل!$G$8:$G$576,MATCH(D48&G48,الدليل!$D$8:$D$576,0))) -> الاسعاف | J48: 20 | M48: =SUM(#REF!) -> 
A49: 2021-01-02 | B49: 4 | C49: =IF(AND(B49="",C50="",OR(J48>0,I48>0)),"→",IF(B49>0,VLOOKUP(B49,الدليل!$A$6:$E$576,5,0),"")) -> الايرادات | D49: 4111 | E49: =IF(AND(D49="",E50="",OR(J48>0,I48>0)),"→",IF(D49>0,VLOOKUP(D49,الدليل!$C$6:$E$576,3,0),"")) -> قسم الجراحة | F49: 445 | G49: 2 | H49: =IF(OR(D49="",G49=""),"",INDEX(الدليل!$G$8:$G$576,MATCH(D49&G49,الدليل!$D$8:$D$576,0))) -> محمد الأخضر | J49: 20
A50: 2021-01-02 | B50: 4 | C50: =IF(AND(B50="",C51="",OR(J49>0,I49>0)),"→",IF(B50>0,VLOOKUP(B50,الدليل!$A$6:$E$576,5,0),"")) -> الايرادات | D50: 4102 | E50: =IF(AND(D50="",E51="",OR(J49>0,I49>0)),"→",IF(D50>0,VLOOKUP(D50,الدليل!$C$6:$E$576,3,0),"")) -> الاسعاف | F50: 446 | G50: 1 | H50: =IF(OR(D50="",G50=""),"",INDEX(الدليل!$G$8:$G$576,MATCH(D50&G50,الدليل!$D$8:$D$576,0))) -> الاسعاف | J50: 70

Sheet الكشف العام
C2: كشف حساب عام
E6: فى الفترة من : | F6: 2021-01-01 | G6: الى | H6: 2021-01-31
B8: رقم كود الحساب الرئيسي : | C8: 4 | E8: اسم الحساب : | F8: =IF(AND(C8="",F9="",OR(H16>0,G16>0)),"→",IF(C8>0,VLOOKUP(C8,الدليل!$A$5:$E$576,5,0),"")) -> الايرادات
M11: اجمالي المدين | N11: =SUM(O17:O73) -> 0
B12: =D12-E12 -> -1285 | D12: =643-588 -> 55 | E12: =191961.5-190621.5 -> 1340 | G12: اجمالي المدين | H12: اجمالي الدائن | I12: اجمالي الرصيد | M12: اجمالي الدائن | N12: =SUM(P18:P73) -> 2721
G13: =SUM(G17:G73) -> 0 | H13: =SUM(H17:H73) -> 2721 | I13: =IF(ISERR(G13-H13),"",G13-H13) -> -2721
B16: التاريخ | C16: الحساب الرئيسي | D16: الحساب الفرعي | E16: رقم الإيصال المالي | F16: التفصيلي | G16: مدين | H16: دائن | I16: الرصيد
B17: =IF(ROWS(B$17:B17)<=SUMPRODUCT((الحركة!$C$6:$C$26648=$F$8)*(الحركة!$A$6:$A$26648>=$F$6)*(الحركة!$A$6:$A$26648<=$H$6)),INDEX(الحركة!$A$6:$A$26648,SMALL(IF((الحركة!$C$6:$C$26648=$F$8)*(الحركة!$A$6:$A$26648>=$F$6)*(الحركة!$A$6:$A$26648<=$H$6),ROW(الحركة!$A$6:$A$26648)-ROW(الحركة!$A$6)+1),ROWS(B$17:B17))),"") -> 2021-01-01 | C17: =IF(ROWS(A$17:A17)<=SUMPRODUCT((الحركة!$C$6:$C$26648=$F$8)*(الحركة!$A$6:$A$26648>=$F$6)*(الحركة!$A$6:$A$26648<=$H$6)),INDEX(الحركة!$C$6:$C$26648,SMALL(IF((الحركة!$C$6:$C$26648=$F$8)*(الحركة!$A$6:$A$26648>=$F$6)*(الحركة!$A$6:$A$26648<=$H$6),ROW(الحركة!$A$6:$A$26648)-ROW(الحركة!$A$6)+1),ROWS(A$17:A17))),"") -> الايرادات | D17: =IF(ROWS(B$17:B17)<=SUMPRODUCT((الحركة!$C$6:$C$26648=$F$8)*(الحركة!$A$6:$A$26648>=$F$6)*(الحركة!$A$6:$A$26648<=$H$6)),INDEX(الحركة!$E$6:$E$26648,SMALL(IF((الحركة!$C$6:$C$26648=$F$8)*(الحركة!$A$6:$A$26648>=$F$6)*(الحركة!$A$6:$A$26648<=$H$6),ROW(الحركة!$A$6:$A$26648)-ROW(الحركة!$A$6)+1),ROWS(B$17:B17))),"") -> معمل تحاليل | E17: =IF(ROWS(C$17:C17)<=SUMPRODUCT((الحركة!$C$6:$C$26648=$F$8)*(الحركة!$A$6:$A$26648>=$F$6)*(الحركة!$A$6:$A$26648<=$H$6)),INDEX(الحركة!$F$6:$F$26648,SMALL(IF((الحركة!$C$6:$C$26648=$F$8)*(الحركة!$A$6:$A$26648>=$F$6)*(الحركة!$A$6:$A$26648<=$H$6),ROW(الحركة!$A$6:$A$26648)-ROW(الحركة!$A$6)+1),ROWS(C$17:C17))),"") -> 1676 | F17: =IF(ROWS(C$17:C17)<=SUMPRODUCT((الحركة!$C$6:$C$26648=$F$8)*(الحركة!$A$6:$A$26648>=$F$6)*(الحركة!$A$6:$A$26648<=$H$6)),INDEX(الحركة!$H$6:$H$26648,SMALL(IF((الحركة!$C$6:$C$26648=$F$8)*(الحركة!$A$6:$A$26648>=$F$6)*(الحركة!$A$6:$A$26648<=$H$6),ROW(الحركة!$A$6:$A$26648)-ROW(الحركة!$A$6)+1),ROWS(C$17:C17))),"") -> معمل تحاليل | G17: =IF(ROWS(B$17:B17)<=SUMPRODUCT((الحركة!$C$6:$C$26648=$F$8)*(الحركة!$A$6:$A$26648>=$F$6)*(الحركة!$A$6:$A$26648<=$H$6)),INDEX(الحركة!$I$6:$I$26648,SMALL(IF((الحركة!$C$6:$C$26648=$F$8)*(الحركة!$A$6:$A$26648>=$F$6)*(الحركة!$A$6:$A$26648<=$H$6),ROW(الحركة!$A$6:$A$26648)-ROW(الحركة!$A$6)+1),ROWS(B$17:B17))),"") -> 0 | H17: =IF(ROWS(B$17:B17)<=SUMPRODUCT((الحركة!$C$6:$C$26648=$F$8)*(الحركة!$A$6:$A$26648>=$F$6)*(الحركة!$A$6:$A$26648<=$H$6)),INDEX(الحركة!$J$6:$J$26648,SMALL(IF((الحركة!$C$6:$C$26648=$F$8)*(الحركة!$A$6:$A$26648>=$F$6)*(الحركة!$A$6:$A$26648<=$H$6),ROW(الحركة!$A$6:$A$26648)-ROW(الحركة!$A$6)+1),ROWS(B$17:B17))),"") -> 20 | I17: =IF(ISERR(G17-H17),"",G17-H17) -> -20 | M17: إسم العميل | N17: عدد العمليات | O17: مدين | P17: دائن | Q17: Month
B18: =IF(ROWS(B$17:B18)<=SUMPRODUCT((الحركة!$C$6:$C$26648=$F$8)*(الحركة!$A$6:$A$26648>=$F$6)*(الحركة!$A$6:$A$26648<=$H$6)),INDEX(الحركة!$A$6:$A$26648,SMALL(IF((الحركة!$C$6:$C$26648=$F$8)*(الحركة!$A$6:$A$26648>=$F$6)*(الحركة!$A$6:$A$26648<=$H$6),ROW(الحركة!$A$6:$A$26648)-ROW(الحركة!$A$6)+1),ROWS(B$17:B18))),"") -> 2021-01-01 | C18: =IF(ROWS(A$17:A18)<=SUMPRODUCT((الحركة!$C$6:$C$26648=$F$8)*(الحركة!$A$6:$A$26648>=$F$6)*(الحركة!$A$6:$A$26648<=$H$6)),INDEX(الحركة!$C$6:$C$26648,SMALL(IF((الحركة!$C$6:$C$26648=$F$8)*(الحركة!$A$6:$A$26648>=$F$6)*(الحركة!$A$6:$A$26648<=$H$6),ROW(الحركة!$A$6:$A$26648)-ROW(الحركة!$A$6)+1),ROWS(A$17:A18))),"") -> الايرادات | D18: =IF(ROWS(B$17:B18)<=SUMPRODUCT((الحركة!$C$6:$C$26648=$F$8)*(الحركة!$A$6:$A$26648>=$F$6)*(الحركة!$A$6:$A$26648<=$H$6)),INDEX(الحركة!$E$6:$E$26648,SMALL(IF((الحركة!$C$6:$C$26648=$F$8)*(الحركة!$A$6:$A$26648>=$F$6)*(الحركة!$A$6:$A$26648<=$H$6),ROW(الحركة!$A$6:$A$26648)-ROW(الحركة!$A$6)+1),ROWS(B$17:B18))),"") -> معمل تحاليل | E18: =IF(ROWS(C$17:C18)<=SUMPRODUCT((الحركة!$C$6:$C$26648=$F$8)*(الحركة!$A$6:$A$26648>=$F$6)*(الحركة!$A$6:$A$26648<=$H$6)),INDEX(الحركة!$F$6:$F$26648,SMALL(IF((الحركة!$C$6:$C$26648=$F$8)*(الحركة!$A$6:$A$26648>=$F$6)*(الحركة!$A$6:$A$26648<=$H$6),ROW(الحركة!$A$6:$A$26648)-ROW(الحركة!$A$6)+1),ROWS(C$17:C18))),"") -> 1677 | F18: =IF(ROWS(C$17:C18)<=SUMPRODUCT((الحركة!$C$6:$C$26648=$F$8)*(الحركة!$A$6:$A$26648>=$F$6)*(الحركة!$A$6:$A$26648<=$H$6)),INDEX(الحركة!$H$6:$H$26648,SMALL(IF((الحركة!$C$6:$C$26648=$F$8)*(الحركة!$A$6:$A$26648>=$F$6)*(الحركة!$A$6:$A$26648<=$H$6),ROW(الحركة!$A$6:$A$26648)-ROW(الحركة!$A$6)+1),ROWS(C$17:C18))),"") -> معمل تحاليل | G18: =IF(ROWS(B$17:B18)<=SUMPRODUCT((الحركة!$C$6:$C$26648=$F$8)*(الحركة!$A$6:$A$26648>=$F$6)*(الحركة!$A$6:$A$26648<=$H$6)),INDEX(الحركة!$I$6:$I$26648,SMALL(IF((الحركة!$C$6:$C$26648=$F$8)*(الحركة!$A$6:$A$26648>=$F$6)*(الحركة!$A$6:$A$26648<=$H$6),ROW(الحركة!$A$6:$A$26648)-ROW(الحركة!$A$6)+1),ROWS(B$17:B18))),"") -> 0 | H18: =IF(ROWS(B$17:B18)<=SUMPRODUCT((الحركة!$C$6:$C$26648=$F$8)*(الحركة!$A$6:$A$26648>=$F$6)*(الحركة!$A$6:$A$26648<=$H$6)),INDEX(الحركة!$J$6:$J$26648,SMALL(IF((الحركة!$C$6:$C$26648=$F$8)*(الحركة!$A$6:$A$26648>=$F$6)*(الحركة!$A$6:$A$26648<=$H$6),ROW(الحركة!$A$6:$A$26648)-ROW(الحركة!$A$6)+1),ROWS(B$17:B18))),"") -> 130 | I18: =IF(ISERR(G18-H18),"",G18-H18) -> -130 | L18: =IF(COUNTIF($D$17:D17,D17)=1,1,"") -> 1 | M18: =IF(COUNT($L$18:$L$5518)<ROW()-17,"",LOOKUP(ROW()-17,$L$18:$L$5518,$D$17:$D$5518)) -> معمل تحاليل | N18: =IF(M18="","",COUNTIF($D$17:$D$5518,M18)) -> 3 | O18: =IF(M18="","",SUMIF($D$17:$D$5518,M18,$G$17:$G$5518)) -> 0 | P18: =IF(M18="","",SUMIF($D$17:$D$5518,M18,$H$17:$H$5518)) -> 400 | Q18: =IF(B17="","",MONTH(B17)) -> 1
B19: =IF(ROWS(B$17:B19)<=SUMPRODUCT((الحركة!$C$6:$C$26648=$F$8)*(الحركة!$A$6:$A$26648>=$F$6)*(الحركة!$A$6:$A$26648<=$H$6)),INDEX(الحركة!$A$6:$A$26648,SMALL(IF((الحركة!$C$6:$C$26648=$F$8)*(الحركة!$A$6:$A$26648>=$F$6)*(الحركة!$A$6:$A$26648<=$H$6),ROW(الحركة!$A$6:$A$26648)-ROW(الحركة!$A$6)+1),ROWS(B$17:B19))),"") -> 2021-01-01 | C19: =IF(ROWS(A$17:A19)<=SUMPRODUCT((الحركة!$C$6:$C$26648=$F$8)*(الحركة!$A$6:$A$26648>=$F$6)*(الحركة!$A$6:$A$26648<=$H$6)),INDEX(الحركة!$C$6:$C$26648,SMALL(IF((الحركة!$C$6:$C$26648=$F$8)*(الحركة!$A$6:$A$26648>=$F$6)*(الحركة!$A$6:$A$26648<=$H$6),ROW(الحركة!$A$6:$A$26648)-ROW(الحركة!$A$6)+1),ROWS(A$17:A19))),"") -> الايرادات | D19: =IF(ROWS(B$17:B19)<=SUMPRODUCT((الحركة!$C$6:$C$26648=$F$8)*(الحركة!$A$6:$A$26648>=$F$6)*(الحركة!$A$6:$A$26648<=$H$6)),INDEX(الحركة!$E$6:$E$26648,SMALL(IF((الحركة!$C$6:$C$26648=$F$8)*(الحركة!$A$6:$A$26648>=$F$6)*(الحركة!$A$6:$A$26648<=$H$6),ROW(الحركة!$A$6:$A$26648)-ROW(الحركة!$A$6)+1),ROWS(B$17:B19))),"") -> معمل تحاليل | E19: =IF(ROWS(C$17:C19)<=SUMPRODUCT((الحركة!$C$6:$C$26648=$F$8)*(الحركة!$A$6:$A$26648>=$F$6)*(الحركة!$A$6:$A$26648<=$H$6)),INDEX(الحركة!$F$6:$F$26648,SMALL(IF((الحركة!$C$6:$C$26648=$F$8)*(الحركة!$A$6:$A$26648>=$F$6)*(الحركة!$A$6:$A$26648<=$H$6),ROW(الحركة!$A$6:$A$26648)-ROW(الحركة!$A$6)+1),ROWS(C$17:C19))),"") -> 1678 | F19: =IF(ROWS(C$17:C19)<=SUMPRODUCT((الحركة!$C$6:$C$26648=$F$8)*(الحركة!$A$6:$A$26648>=$F$6)*(الحركة!$A$6:$A$26648<=$H$6)),INDEX(الحركة!$H$6:$H$26648,SMALL(IF((الحركة!$C$6:$C$26648=$F$8)*(الحركة!$A$6:$A$26648>=$F$6)*(الحركة!$A$6:$A$26648<=$H$6),ROW(الحركة!$A$6:$A$26648)-ROW(الحركة!$A$6)+1),ROWS(C$17:C19))),"") -> معمل تحاليل | G19: =IF(ROWS(B$17:B19)<=SUMPRODUCT((الحركة!$C$6:$C$26648=$F$8)*(الحركة!$A$6:$A$26648>=$F$6)*(الحركة!$A$6:$A$26648<=$H$6)),INDEX(الحركة!$I$6:$I$26648,SMALL(IF((الحركة!$C$6:$C$26648=$F$8)*(الحركة!$A$6:$A$26648>=$F$6)*(الحركة!$A$6:$A$26648<=$H$6),ROW(الحركة!$A$6:$A$26648)-ROW(الحركة!$A$6)+1),ROWS(B$17:B19))),"") -> 0 | H19: =IF(ROWS(B$17:B19)<=SUMPRODUCT((الحركة!$C$6:$C$26648=$F$8)*(الحركة!$A$6:$A$26648>=$F$6)*(الحركة!$A$6:$A$26648<=$H$6)),INDEX(الحركة!$J$6:$J$26648,SMALL(IF((الحركة!$C$6:$C$26648=$F$8)*(الحركة!$A$6:$A$26648>=$F$6)*(الحركة!$A$6:$A$26648<=$H$6),ROW(الحركة!$A$6:$A$26648)-ROW(الحركة!$A$6)+1),ROWS(B$17:B19))),"") -> 250 | I19: -250 | L19: =IF(COUNTIF($D$17:D18,D18)=1,COUNT($L$18:L18)+1,"") ->  | M19: =IF(COUNT($L$18:$L$5518)<ROW()-17,"",LOOKUP(ROW()-17,$L$18:$L$5518,$D$17:$D$5518)) -> الصيدلية | N19: =IF(M19="","",COUNTIF($D$17:$D$5518,M19)) -> 15 | O19: =IF(M19="","",SUMIF($D$17:$D$5518,M19,$G$17:$G$5518)) -> 0 | P19: =IF(M19="","",SUMIF($D$17:$D$5518,M19,$H$17:$H$5518)) -> 343 | Q19: =IF(B18="","",MONTH(B18)) -> 1
B20: =IF(ROWS(B$17:B20)<=SUMPRODUCT((الحركة!$C$6:$C$26648=$F$8)*(الحركة!$A$6:$A$26648>=$F$6)*(الحركة!$A$6:$A$26648<=$H$6)),INDEX(الحركة!$A$6:$A$26648,SMALL(IF((الحركة!$C$6:$C$26648=$F$8)*(الحركة!$A$6:$A$26648>=$F$6)*(الحركة!$A$6:$A$26648<=$H$6),ROW(الحركة!$A$6:$A$26648)-ROW(الحركة!$A$6)+1),ROWS(B$17:B20))),"") -> 2021-01-01 | C20: =IF(ROWS(A$17:A20)<=SUMPRODUCT((الحركة!$C$6:$C$26648=$F$8)*(الحركة!$A$6:$A$26648>=$F$6)*(الحركة!$A$6:$A$26648<=$H$6)),INDEX(الحركة!$C$6:$C$26648,SMALL(IF((الحركة!$C$6:$C$26648=$F$8)*(الحركة!$A$6:$A$26648>=$F$6)*(الحركة!$A$6:$A$26648<=$H$6),ROW(الحركة!$A$6:$A$26648)-ROW(الحركة!$A$6)+1),ROWS(A$17:A20))),"") -> الايرادات | D20: =IF(ROWS(B$17:B20)<=SUMPRODUCT((الحركة!$C$6:$C$26648=$F$8)*(الحركة!$A$6:$A$26648>=$F$6)*(الحركة!$A$6:$A$26648<=$H$6)),INDEX(الحركة!$E$6:$E$26648,SMALL(IF((الحركة!$C$6:$C$26648=$F$8)*(الحركة!$A$6:$A$26648>=$F$6)*(الحركة!$A$6:$A$26648<=$H$6),ROW(الحركة!$A$6:$A$26648)-ROW(الحركة!$A$6)+1),ROWS(B$17:B20))),"") -> الصيدلية | E20: =IF(ROWS(C$17:C20)<=SUMPRODUCT((الحركة!$C$6:$C$26648=$F$8)*(الحركة!$A$6:$A$26648>=$F$6)*(الحركة!$A$6:$A$26648<=$H$6)),INDEX(الحركة!$F$6:$F$26648,SMALL(IF((الحركة!$C$6:$C$26648=$F$8)*(الحركة!$A$6:$A$26648>=$F$6)*(الحركة!$A$6:$A$26648<=$H$6),ROW(الحركة!$A$6:$A$26648)-ROW(الحركة!$A$6)+1),ROWS(C$17:C20))),"") -> 1701 | F20: =IF(ROWS(C$17:C20)<=SUMPRODUCT((الحركة!$C$6:$C$26648=$F$8)*(الحركة!$A$6:$A$26648>=$F$6)*(الحركة!$A$6:$A$26648<=$H$6)),INDEX(الحركة!$H$6:$H$26648,SMALL(IF((الحركة!$C$6:$C$26648=$F$8)*(الحركة!$A$6:$A$26648>=$F$6)*(الحركة!$A$6:$A$26648<=$H$6),ROW(الحركة!$A$6:$A$26648)-ROW(الحركة!$A$6)+1),ROWS(C$17:C20))),"") -> الصيدلية | G20: =IF(ROWS(B$17:B20)<=SUMPRODUCT((الحركة!$C$6:$C$26648=$F$8)*(الحركة!$A$6:$A$26648>=$F$6)*(الحركة!$A$6:$A$26648<=$H$6)),INDEX(الحركة!$I$6:$I$26648,SMALL(IF((الحركة!$C$6:$C$26648=$F$8)*(الحركة!$A$6:$A$26648>=$F$6)*(الحركة!$A$6:$A$26648<=$H$6),ROW(الحركة!$A$6:$A$26648)-ROW(الحركة!$A$6)+1),ROWS(B$17:B20))),"") -> 0 | H20: =IF(ROWS(B$17:B20)<=SUMPRODUCT((الحركة!$C$6:$C$26648=$F$8)*(الحركة!$A$6:$A$26648>=$F$6)*(الحركة!$A$6:$A$26648<=$H$6)),INDEX(الحركة!$J$6:$J$26648,SMALL(IF((الحركة!$C$6:$C$26648=$F$8)*(الحركة!$A$6:$A$26648>=$F$6)*(الحركة!$A$6:$A$26648<=$H$6),ROW(الحركة!$A$6:$A$26648)-ROW(الحركة!$A$6)+1),ROWS(B$17:B20))),"") -> 7 | I20: -7 | L20: =IF(COUNTIF($D$17:D19,D19)=1,COUNT($L$18:L19)+1,"") ->  | M20: =IF(COUNT($L$18:$L$5518)<ROW()-17,"",LOOKUP(ROW()-17,$L$18:$L$5518,$D$17:$D$5518)) -> الاسعاف | N20: =IF(M20="","",COUNTIF($D$17:$D$5518,M20)) -> 11 | O20: =IF(M20="","",SUMIF($D$17:$D$5518,M20,$G$17:$G$5518)) -> 0 | P20: =IF(M20="","",SUMIF($D$17:$D$5518,M20,$H$17:$H$5518)) -> 318 | Q20: =IF(B19="","",MONTH(B19)) -> 1
B21: =IF(ROWS(B$17:B21)<=SUMPRODUCT((الحركة!$C$6:$C$26648=$F$8)*(الحركة!$A$6:$A$26648>=$F$6)*(الحركة!$A$6:$A$26648<=$H$6)),INDEX(الحركة!$A$6:$A$26648,SMALL(IF((الحركة!$C$6:$C$26648=$F$8)*(الحركة!$A$6:$A$26648>=$F$6)*(الحركة!$A$6:$A$26648<=$H$6),ROW(الحركة!$A$6:$A$26648)-ROW(الحركة!$A$6)+1),ROWS(B$17:B21))),"") -> 2021-01-01 | C21: =IF(ROWS(A$17:A21)<=SUMPRODUCT((الحركة!$C$6:$C$26648=$F$8)*(الحركة!$A$6:$A$26648>=$F$6)*(الحركة!$A$6:$A$26648<=$H$6)),INDEX(الحركة!$C$6:$C$26648,SMALL(IF((الحركة!$C$6:$C$26648=$F$8)*(الحركة!$A$6:$A$26648>=$F$6)*(الحركة!$A$6:$A$26648<=$H$6),ROW(الحركة!$A$6:$A$26648)-ROW(الحركة!$A$6)+1),ROWS(A$17:A21))),"") -> الايرادات | D21: =IF(ROWS(B$17:B21)<=SUMPRODUCT((الحركة!$C$6:$C$26648=$F$8)*(الحركة!$A$6:$A$26648>=$F$6)*(الحركة!$A$6:$A$26648<=$H$6)),INDEX(الحركة!$E$6:$E$26648,SMALL(IF((الحركة!$C$6:$C$26648=$F$8)*(الحركة!$A$6:$A$26648>=$F$6)*(الحركة!$A$6:$A$26648<=$H$6),ROW(الحركة!$A$6:$A$26648)-ROW(الحركة!$A$6)+1),ROWS(B$17:B21))),"") -> الصيدلية | E21: =IF(ROWS(C$17:C21)<=SUMPRODUCT((الحركة!$C$6:$C$26648=$F$8)*(الحركة!$A$6:$A$26648>=$F$6)*(الحركة!$A$6:$A$26648<=$H$6)),INDEX(الحركة!$F$6:$F$26648,SMALL(IF((الحركة!$C$6:$C$26648=$F$8)*(الحركة!$A$6:$A$26648>=$F$6)*(الحركة!$A$6:$A$26648<=$H$6),ROW(الحركة!$A$6:$A$26648)-ROW(الحركة!$A$6)+1),ROWS(C$17:C21))),"") -> 1702 | F21: =IF(ROWS(C$17:C21)<=SUMPRODUCT((الحركة!$C$6:$C$26648=$F$8)*(الحركة!$A$6:$A$26648>=$F$6)*(الحركة!$A$6:$A$26648<=$H$6)),INDEX(الحركة!$H$6:$H$26648,SMALL(IF((الحركة!$C$6:$C$26648=$F$8)*(الحركة!$A$6:$A$26648>=$F$6)*(الحركة!$A$6:$A$26648<=$H$6),ROW(الحركة!$A$6:$A$26648)-ROW(الحركة!$A$6)+1),ROWS(C$17:C21))),"") -> الصيدلية | G21: =IF(ROWS(B$17:B21)<=SUMPRODUCT((الحركة!$C$6:$C$26648=$F$8)*(الحركة!$A$6:$A$26648>=$F$6)*(الحركة!$A$6:$A$26648<=$H$6)),INDEX(الحركة!$I$6:$I$26648,SMALL(IF((الحركة!$C$6:$C$26648=$F$8)*(الحركة!$A$6:$A$26648>=$F$6)*(الحركة!$A$6:$A$26648<=$H$6),ROW(الحركة!$A$6:$A$26648)-ROW(الحركة!$A$6)+1),ROWS(B$17:B21))),"") -> 0 | H21: =IF(ROWS(B$17:B21)<=SUMPRODUCT((الحركة!$C$6:$C$26648=$F$8)*(الحركة!$A$6:$A$26648>=$F$6)*(الحركة!$A$6:$A$26648<=$H$6)),INDEX(الحركة!$J$6:$J$26648,SMALL(IF((الحركة!$C$6:$C$26648=$F$8)*(الحركة!$A$6:$A$26648>=$F$6)*(الحركة!$A$6:$A$26648<=$H$6),ROW(الحركة!$A$6:$A$26648)-ROW(الحركة!$A$6)+1),ROWS(B$17:B21))),"") -> 30 | I21: -30 | L21: =IF(COUNTIF($D$17:D20,D20)=1,COUNT($L$18:L20)+1,"") -> 2 | M21: =IF(COUNT($L$18:$L$5518)<ROW()-17,"",LOOKUP(ROW()-17,$L$18:$L$5518,$D$17:$D$5518)) -> قسم الجراحة | N21: =IF(M21="","",COUNTIF($D$17:$D$5518,M21)) -> 5 | O21: =IF(M21="","",SUMIF($D$17:$D$5518,M21,$G$17:$G$5518)) -> 0 | P21: =IF(M21="","",SUMIF($D$17:$D$5518,M21,$H$17:$H$5518)) -> 100 | Q21: =IF(B20="","",MONTH(B20)) -> 1
B22: =IF(ROWS(B$17:B22)<=SUMPRODUCT((الحركة!$C$6:$C$26648=$F$8)*(الحركة!$A$6:$A$26648>=$F$6)*(الحركة!$A$6:$A$26648<=$H$6)),INDEX(الحركة!$A$6:$A$26648,SMALL(IF((الحركة!$C$6:$C$26648=$F$8)*(الحركة!$A$6:$A$26648>=$F$6)*(الحركة!$A$6:$A$26648<=$H$6),ROW(الحركة!$A$6:$A$26648)-ROW(الحركة!$A$6)+1),ROWS(B$17:B22))),"") -> 2021-01-01 | C22: =IF(ROWS(A$17:A22)<=SUMPRODUCT((الحركة!$C$6:$C$26648=$F$8)*(الحركة!$A$6:$A$26648>=$F$6)*(الحركة!$A$6:$A$26648<=$H$6)),INDEX(الحركة!$C$6:$C$26648,SMALL(IF((الحركة!$C$6:$C$26648=$F$8)*(الحركة!$A$6:$A$26648>=$F$6)*(الحركة!$A$6:$A$26648<=$H$6),ROW(الحركة!$A$6:$A$26648)-ROW(الحركة!$A$6)+1),ROWS(A$17:A22))),"") -> الايرادات | D22: =IF(ROWS(B$17:B22)<=SUMPRODUCT((الحركة!$C$6:$C$26648=$F$8)*(الحركة!$A$6:$A$26648>=$F$6)*(الحركة!$A$6:$A$26648<=$H$6)),INDEX(الحركة!$E$6:$E$26648,SMALL(IF((الحركة!$C$6:$C$26648=$F$8)*(الحركة!$A$6:$A$26648>=$F$6)*(الحركة!$A$6:$A$26648<=$H$6),ROW(الحركة!$A$6:$A$26648)-ROW(الحركة!$A$6)+1),ROWS(B$17:B22))),"") -> الصيدلية | E22: =IF(ROWS(C$17:C22)<=SUMPRODUCT((الحركة!$C$6:$C$26648=$F$8)*(الحركة!$A$6:$A$26648>=$F$6)*(الحركة!$A$6:$A$26648<=$H$6)),INDEX(الحركة!$F$6:$F$26648,SMALL(IF((الحركة!$C$6:$C$26648=$F$8)*(الحركة!$A$6:$A$26648>=$F$6)*(الحركة!$A$6:$A$26648<=$H$6),ROW(الحركة!$A$6:$A$26648)-ROW(الحركة!$A$6)+1),ROWS(C$17:C22))),"") -> 1703 | F22: =IF(ROWS(C$17:C22)<=SUMPRODUCT((الحركة!$C$6:$C$26648=$F$8)*(الحركة!$A$6:$A$26648>=$F$6)*(الحركة!$A$6:$A$26648<=$H$6)),INDEX(الحركة!$H$6:$H$26648,SMALL(IF((الحركة!$C$6:$C$26648=$F$8)*(الحركة!$A$6:$A$26648>=$F$6)*(الحركة!$A$6:$A$26648<=$H$6),ROW(الحركة!$A$6:$A$26648)-ROW(الحركة!$A$6)+1),ROWS(C$17:C22))),"") -> الصيدلية | G22: =IF(ROWS(B$17:B22)<=SUMPRODUCT((الحركة!$C$6:$C$26648=$F$8)*(الحركة!$A$6:$A$26648>=$F$6)*(الحركة!$A$6:$A$26648<=$H$6)),INDEX(الحركة!$I$6:$I$26648,SMALL(IF((الحركة!$C$6:$C$26648=$F$8)*(الحركة!$A$6:$A$26648>=$F$6)*(الحركة!$A$6:$A$26648<=$H$6),ROW(الحركة!$A$6:$A$26648)-ROW(الحركة!$A$6)+1),ROWS(B$17:B22))),"") -> 0 | H22: =IF(ROWS(B$17:B22)<=SUMPRODUCT((الحركة!$C$6:$C$26648=$F$8)*(الحركة!$A$6:$A$26648>=$F$6)*(الحركة!$A$6:$A$26648<=$H$6)),INDEX(الحركة!$J$6:$J$26648,SMALL(IF((الحركة!$C$6:$C$26648=$F$8)*(الحركة!$A$6:$A$26648>=$F$6)*(الحركة!$A$6:$A$26648<=$H$6),ROW(الحركة!$A$6:$A$26648)-ROW(الحركة!$A$6)+1),ROWS(B$17:B22))),"") -> 42 | I22: -42 | L22: =IF(COUNTIF($D$17:D21,D21)=1,COUNT($L$18:L21)+1,"") ->  | M22: =IF(COUNT($L$18:$L$5518)<ROW()-17,"",LOOKUP(ROW()-17,$L$18:$L$5518,$D$17:$D$5518)) -> قسم الباطنية | N22: =IF(M22="","",COUNTIF($D$17:$D$5518,M22)) -> 2 | O22: =IF(M22="","",SUMIF($D$17:$D$5518,M22,$G$17:$G$5518)) -> 0 | P22: =IF(M22="","",SUMIF($D$17:$D$5518,M22,$H$17:$H$5518)) -> 60 | Q22: 1
B23: =IF(ROWS(B$17:B23)<=SUMPRODUCT((الحركة!$C$6:$C$26648=$F$8)*(الحركة!$A$6:$A$26648>=$F$6)*(الحركة!$A$6:$A$26648<=$H$6)),INDEX(الحركة!$A$6:$A$26648,SMALL(IF((الحركة!$C$6:$C$26648=$F$8)*(الحركة!$A$6:$A$26648>=$F$6)*(الحركة!$A$6:$A$26648<=$H$6),ROW(الحركة!$A$6:$A$26648)-ROW(الحركة!$A$6)+1),ROWS(B$17:B23))),"") -> 2021-01-01 | C23: =IF(ROWS(A$17:A23)<=SUMPRODUCT((الحركة!$C$6:$C$26648=$F$8)*(الحركة!$A$6:$A$26648>=$F$6)*(الحركة!$A$6:$A$26648<=$H$6)),INDEX(الحركة!$C$6:$C$26648,SMALL(IF((الحركة!$C$6:$C$26648=$F$8)*(الحركة!$A$6:$A$26648>=$F$6)*(الحركة!$A$6:$A$26648<=$H$6),ROW(الحركة!$A$6:$A$26648)-ROW(الحركة!$A$6)+1),ROWS(A$17:A23))),"") -> الايرادات | D23: =IF(ROWS(B$17:B23)<=SUMPRODUCT((الحركة!$C$6:$C$26648=$F$8)*(الحركة!$A$6:$A$26648>=$F$6)*(الحركة!$A$6:$A$26648<=$H$6)),INDEX(الحركة!$E$6:$E$26648,SMALL(IF((الحركة!$C$6:$C$26648=$F$8)*(الحركة!$A$6:$A$26648>=$F$6)*(الحركة!$A$6:$A$26648<=$H$6),ROW(الحركة!$A$6:$A$26648)-ROW(الحركة!$A$6)+1),ROWS(B$17:B23))),"") -> الصيدلية | E23: =IF(ROWS(C$17:C23)<=SUMPRODUCT((الحركة!$C$6:$C$26648=$F$8)*(الحركة!$A$6:$A$26648>=$F$6)*(الحركة!$A$6:$A$26648<=$H$6)),INDEX(الحركة!$F$6:$F$26648,SMALL(IF((الحركة!$C$6:$C$26648=$F$8)*(الحركة!$A$6:$A$26648>=$F$6)*(الحركة!$A$6:$A$26648<=$H$6),ROW(الحركة!$A$6:$A$26648)-ROW(الحركة!$A$6)+1),ROWS(C$17:C23))),"") -> 1704 | F23: =IF(ROWS(C$17:C23)<=SUMPRODUCT((الحركة!$C$6:$C$26648=$F$8)*(الحركة!$A$6:$A$26648>=$F$6)*(الحركة!$A$6:$A$26648<=$H$6)),INDEX(الحركة!$H$6:$H$26648,SMALL(IF((الحركة!$C$6:$C$26648=$F$8)*(الحركة!$A$6:$A$26648>=$F$6)*(الحركة!$A$6:$A$26648<=$H$6),ROW(الحركة!$A$6:$A$26648)-ROW(الحركة!$A$6)+1),ROWS(C$17:C23))),"") -> الصيدلية | G23: =IF(ROWS(B$17:B23)<=SUMPRODUCT((الحركة!$C$6:$C$26648=$F$8)*(الحركة!$A$6:$A$26648>=$F$6)*(الحركة!$A$6:$A$26648<=$H$6)),INDEX(الحركة!$I$6:$I$26648,SMALL(IF((الحركة!$C$6:$C$26648=$F$8)*(الحركة!$A$6:$A$26648>=$F$6)*(الحركة!$A$6:$A$26648<=$H$6),ROW(الحركة!$A$6:$A$26648)-ROW(الحركة!$A$6)+1),ROWS(B$17:B23))),"") -> 0 | H23: =IF(ROWS(B$17:B23)<=SUMPRODUCT((الحركة!$C$6:$C$26648=$F$8)*(الحركة!$A$6:$A$26648>=$F$6)*(الحركة!$A$6:$A$26648<=$H$6)),INDEX(الحركة!$J$6:$J$26648,SMALL(IF((الحركة!$C$6:$C$26648=$F$8)*(الحركة!$A$6:$A$26648>=$F$6)*(الحركة!$A$6:$A$26648<=$H$6),ROW(الحركة!$A$6:$A$26648)-ROW(الحركة!$A$6)+1),ROWS(B$17:B23))),"") -> 44 | I23: -44 | L23: =IF(COUNTIF($D$17:D22,D22)=1,COUNT($L$18:L22)+1,"") ->  | M23: =IF(COUNT($L$18:$L$5518)<ROW()-17,"",LOOKUP(ROW()-17,$L$18:$L$5518,$D$17:$D$5518)) -> الايواء | N23: =IF(M23="","",COUNTIF($D$17:$D$5518,M23)) -> 2 | O23: =IF(M23="","",SUMIF($D$17:$D$5518,M23,$G$17:$G$5518)) -> 0 | P23: =IF(M23="","",SUMIF($D$17:$D$5518,M23,$H$17:$H$5518)) -> 1500 | Q23: 1
B24: =IF(ROWS(B$17:B24)<=SUMPRODUCT((الحركة!$C$6:$C$26648=$F$8)*(الحركة!$A$6:$A$26648>=$F$6)*(الحركة!$A$6:$A$26648<=$H$6)),INDEX(الحركة!$A$6:$A$26648,SMALL(IF((الحركة!$C$6:$C$26648=$F$8)*(الحركة!$A$6:$A$26648>=$F$6)*(الحركة!$A$6:$A$26648<=$H$6),ROW(الحركة!$A$6:$A$26648)-ROW(الحركة!$A$6)+1),ROWS(B$17:B24))),"") -> 2021-01-01 | C24: =IF(ROWS(A$17:A24)<=SUMPRODUCT((الحركة!$C$6:$C$26648=$F$8)*(الحركة!$A$6:$A$26648>=$F$6)*(الحركة!$A$6:$A$26648<=$H$6)),INDEX(الحركة!$C$6:$C$26648,SMALL(IF((الحركة!$C$6:$C$26648=$F$8)*(الحركة!$A$6:$A$26648>=$F$6)*(الحركة!$A$6:$A$26648<=$H$6),ROW(الحركة!$A$6:$A$26648)-ROW(الحركة!$A$6)+1),ROWS(A$17:A24))),"") -> الايرادات | D24: =IF(ROWS(B$17:B24)<=SUMPRODUCT((الحركة!$C$6:$C$26648=$F$8)*(الحركة!$A$6:$A$26648>=$F$6)*(الحركة!$A$6:$A$26648<=$H$6)),INDEX(الحركة!$E$6:$E$26648,SMALL(IF((الحركة!$C$6:$C$26648=$F$8)*(الحركة!$A$6:$A$26648>=$F$6)*(الحركة!$A$6:$A$26648<=$H$6),ROW(الحركة!$A$6:$A$26648)-ROW(الحركة!$A$6)+1),ROWS(B$17:B24))),"") -> الصيدلية | E24: =IF(ROWS(C$17:C24)<=SUMPRODUCT((الحركة!$C$6:$C$26648=$F$8)*(الحركة!$A$6:$A$26648>=$F$6)*(الحركة!$A$6:$A$26648<=$H$6)),INDEX(الحركة!$F$6:$F$26648,SMALL(IF((الحركة!$C$6:$C$26648=$F$8)*(الحركة!$A$6:$A$26648>=$F$6)*(الحركة!$A$6:$A$26648<=$H$6),ROW(الحركة!$A$6:$A$26648)-ROW(الحركة!$A$6)+1),ROWS(C$17:C24))),"") -> 1705 | F24: =IF(ROWS(C$17:C24)<=SUMPRODUCT((الحركة!$C$6:$C$26648=$F$8)*(الحركة!$A$6:$A$26648>=$F$6)*(الحركة!$A$6:$A$26648<=$H$6)),INDEX(الحركة!$H$6:$H$26648,SMALL(IF((الحركة!$C$6:$C$26648=$F$8)*(الحركة!$A$6:$A$26648>=$F$6)*(الحركة!$A$6:$A$26648<=$H$6),ROW(الحركة!$A$6:$A$26648)-ROW(الحركة!$A$6)+1),ROWS(C$17:C24))),"") -> الصيدلية | G24: =IF(ROWS(B$17:B24)<=SUMPRODUCT((الحركة!$C$6:$C$26648=$F$8)*(الحركة!$A$6:$A$26648>=$F$6)*(الحركة!$A$6:$A$26648<=$H$6)),INDEX(الحركة!$I$6:$I$26648,SMALL(IF((الحركة!$C$6:$C$26648=$F$8)*(الحركة!$A$6:$A$26648>=$F$6)*(الحركة!$A$6:$A$26648<=$H$6),ROW(الحركة!$A$6:$A$26648)-ROW(الحركة!$A$6)+1),ROWS(B$17:B24))),"") -> 0 | H24: =IF(ROWS(B$17:B24)<=SUMPRODUCT((الحركة!$C$6:$C$26648=$F$8)*(الحركة!$A$6:$A$26648>=$F$6)*(الحركة!$A$6:$A$26648<=$H$6)),INDEX(الحركة!$J$6:$J$26648,SMALL(IF((الحركة!$C$6:$C$26648=$F$8)*(الحركة!$A$6:$A$26648>=$F$6)*(الحركة!$A$6:$A$26648<=$H$6),ROW(الحركة!$A$6:$A$26648)-ROW(الحركة!$A$6)+1),ROWS(B$17:B24))),"") -> 20 | I24: -20 | L24: =IF(COUNTIF($D$17:D23,D23)=1,COUNT($L$18:L23)+1,"") ->  | M24: =IF(COUNT($L$18:$L$5518)<ROW()-17,"",LOOKUP(ROW()-17,$L$18:$L$5518,$D$17:$D$5518)) ->  | N24: =IF(M24="","",COUNTIF($D$17:$D$5518,M24)) ->  | O24: =IF(M24="","",SUMIF($D$17:$D$5518,M24,$G$17:$G$5518)) ->  | P24: =IF(M24="","",SUMIF($D$17:$D$5518,M24,$H$17:$H$5518)) ->  | Q24: 1
B25: =IF(ROWS(B$17:B25)<=SUMPRODUCT((الحركة!$C$6:$C$26648=$F$8)*(الحركة!$A$6:$A$26648>=$F$6)*(الحركة!$A$6:$A$26648<=$H$6)),INDEX(الحركة!$A$6:$A$26648,SMALL(IF((الحركة!$C$6:$C$26648=$F$8)*(الحركة!$A$6:$A$26648>=$F$6)*(الحركة!$A$6:$A$26648<=$H$6),ROW(الحركة!$A$6:$A$26648)-ROW(الحركة!$A$6)+1),ROWS(B$17:B25))),"") -> 2021-01-01 | C25: =IF(ROWS(A$17:A25)<=SUMPRODUCT((الحركة!$C$6:$C$26648=$F$8)*(الحركة!$A$6:$A$26648>=$F$6)*(الحركة!$A$6:$A$26648<=$H$6)),INDEX(الحركة!$C$6:$C$26648,SMALL(IF((الحركة!$C$6:$C$26648=$F$8)*(الحركة!$A$6:$A$26648>=$F$6)*(الحركة!$A$6:$A$26648<=$H$6),ROW(الحركة!$A$6:$A$26648)-ROW(الحركة!$A$6)+1),ROWS(A$17:A25))),"") -> الايرادات | D25: =IF(ROWS(B$17:B25)<=SUMPRODUCT((الحركة!$C$6:$C$26648=$F$8)*(الحركة!$A$6:$A$26648>=$F$6)*(الحركة!$A$6:$A$26648<=$H$6)),INDEX(الحركة!$E$6:$E$26648,SMALL(IF((الحركة!$C$6:$C$26648=$F$8)*(الحركة!$A$6:$A$26648>=$F$6)*(الحركة!$A$6:$A$26648<=$H$6),ROW(الحركة!$A$6:$A$26648)-ROW(الحركة!$A$6)+1),ROWS(B$17:B25))),"") -> الصيدلية | E25: =IF(ROWS(C$17:C25)<=SUMPRODUCT((الحركة!$C$6:$C$26648=$F$8)*(الحركة!$A$6:$A$26648>=$F$6)*(الحركة!$A$6:$A$26648<=$H$6)),INDEX(الحركة!$F$6:$F$26648,SMALL(IF((الحركة!$C$6:$C$26648=$F$8)*(الحركة!$A$6:$A$26648>=$F$6)*(الحركة!$A$6:$A$26648<=$H$6),ROW(الحركة!$A$6:$A$26648)-ROW(الحركة!$A$6)+1),ROWS(C$17:C25))),"") -> 1706 | F25: =IF(ROWS(C$17:C25)<=SUMPRODUCT((الحركة!$C$6:$C$26648=$F$8)*(الحركة!$A$6:$A$26648>=$F$6)*(الحركة!$A$6:$A$26648<=$H$6)),INDEX(الحركة!$H$6:$H$26648,SMALL(IF((الحركة!$C$6:$C$26648=$F$8)*(الحركة!$A$6:$A$26648>=$F$6)*(الحركة!$A$6:$A$26648<=$H$6),ROW(الحركة!$A$6:$A$26648)-ROW(الحركة!$A$6)+1),ROWS(C$17:C25))),"") -> الصيدلية | G25: =IF(ROWS(B$17:B25)<=SUMPRODUCT((الحركة!$C$6:$C$26648=$F$8)*(الحركة!$A$6:$A$26648>=$F$6)*(الحركة!$A$6:$A$26648<=$H$6)),INDEX(الحركة!$I$6:$I$26648,SMALL(IF((الحركة!$C$6:$C$26648=$F$8)*(الحركة!$A$6:$A$26648>=$F$6)*(الحركة!$A$6:$A$26648<=$H$6),ROW(الحركة!$A$6:$A$26648)-ROW(الحركة!$A$6)+1),ROWS(B$17:B25))),"") -> 0 | H25: =IF(ROWS(B$17:B25)<=SUMPRODUCT((الحركة!$C$6:$C$26648=$F$8)*(الحركة!$A$6:$A$26648>=$F$6)*(الحركة!$A$6:$A$26648<=$H$6)),INDEX(الحركة!$J$6:$J$26648,SMALL(IF((الحركة!$C$6:$C$26648=$F$8)*(الحركة!$A$6:$A$26648>=$F$6)*(الحركة!$A$6:$A$26648<=$H$6),ROW(الحركة!$A$6:$A$26648)-ROW(الحركة!$A$6)+1),ROWS(B$17:B25))),"") -> 5 | I25: -5 | L25: =IF(COUNTIF($D$17:D24,D24)=1,COUNT($L$18:L24)+1,"") ->  | M25: =IF(COUNT($L$18:$L$5518)<ROW()-17,"",LOOKUP(ROW()-17,$L$18:$L$5518,$D$17:$D$5518)) ->  | N25: =IF(M25="","",COUNTIF($D$17:$D$5518,M25)) ->  | O25: =IF(M25="","",SUMIF($D$17:$D$5518,M25,$G$17:$G$5518)) ->  | P25: =IF(M25="","",SUMIF($D$17:$D$5518,M25,$H$17:$H$5518)) ->  | Q25: 1
B26: =IF(ROWS(B$17:B26)<=SUMPRODUCT((الحركة!$C$6:$C$26648=$F$8)*(الحركة!$A$6:$A$26648>=$F$6)*(الحركة!$A$6:$A$26648<=$H$6)),INDEX(الحركة!$A$6:$A$26648,SMALL(IF((الحركة!$C$6:$C$26648=$F$8)*(الحركة!$A$6:$A$26648>=$F$6)*(الحركة!$A$6:$A$26648<=$H$6),ROW(الحركة!$A$6:$A$26648)-ROW(الحركة!$A$6)+1),ROWS(B$17:B26))),"") -> 2021-01-01 | C26: =IF(ROWS(A$17:A26)<=SUMPRODUCT((الحركة!$C$6:$C$26648=$F$8)*(الحركة!$A$6:$A$26648>=$F$6)*(الحركة!$A$6:$A$26648<=$H$6)),INDEX(الحركة!$C$6:$C$26648,SMALL(IF((الحركة!$C$6:$C$26648=$F$8)*(الحركة!$A$6:$A$26648>=$F$6)*(الحركة!$A$6:$A$26648<=$H$6),ROW(الحركة!$A$6:$A$26648)-ROW(الحركة!$A$6)+1),ROWS(A$17:A26))),"") -> الايرادات | D26: =IF(ROWS(B$17:B26)<=SUMPRODUCT((الحركة!$C$6:$C$26648=$F$8)*(الحركة!$A$6:$A$26648>=$F$6)*(الحركة!$A$6:$A$26648<=$H$6)),INDEX(الحركة!$E$6:$E$26648,SMALL(IF((الحركة!$C$6:$C$26648=$F$8)*(الحركة!$A$6:$A$26648>=$F$6)*(الحركة!$A$6:$A$26648<=$H$6),ROW(الحركة!$A$6:$A$26648)-ROW(الحركة!$A$6)+1),ROWS(B$17:B26))),"") -> الصيدلية | E26: =IF(ROWS(C$17:C26)<=SUMPRODUCT((الحركة!$C$6:$C$26648=$F$8)*(الحركة!$A$6:$A$26648>=$F$6)*(الحركة!$A$6:$A$26648<=$H$6)),INDEX(الحركة!$F$6:$F$26648,SMALL(IF((الحركة!$C$6:$C$26648=$F$8)*(الحركة!$A$6:$A$26648>=$F$6)*(الحركة!$A$6:$A$26648<=$H$6),ROW(الحركة!$A$6:$A$26648)-ROW(الحركة!$A$6)+1),ROWS(C$17:C26))),"") -> 1707 | F26: =IF(ROWS(C$17:C26)<=SUMPRODUCT((الحركة!$C$6:$C$26648=$F$8)*(الحركة!$A$6:$A$26648>=$F$6)*(الحركة!$A$6:$A$26648<=$H$6)),INDEX(الحركة!$H$6:$H$26648,SMALL(IF((الحركة!$C$6:$C$26648=$F$8)*(الحركة!$A$6:$A$26648>=$F$6)*(الحركة!$A$6:$A$26648<=$H$6),ROW(الحركة!$A$6:$A$26648)-ROW(الحركة!$A$6)+1),ROWS(C$17:C26))),"") -> الصيدلية | G26: =IF(ROWS(B$17:B26)<=SUMPRODUCT((الحركة!$C$6:$C$26648=$F$8)*(الحركة!$A$6:$A$26648>=$F$6)*(الحركة!$A$6:$A$26648<=$H$6)),INDEX(الحركة!$I$6:$I$26648,SMALL(IF((الحركة!$C$6:$C$26648=$F$8)*(الحركة!$A$6:$A$26648>=$F$6)*(الحركة!$A$6:$A$26648<=$H$6),ROW(الحركة!$A$6:$A$26648)-ROW(الحركة!$A$6)+1),ROWS(B$17:B26))),"") -> 0 | H26: =IF(ROWS(B$17:B26)<=SUMPRODUCT((الحركة!$C$6:$C$26648=$F$8)*(الحركة!$A$6:$A$26648>=$F$6)*(الحركة!$A$6:$A$26648<=$H$6)),INDEX(الحركة!$J$6:$J$26648,SMALL(IF((الحركة!$C$6:$C$26648=$F$8)*(الحركة!$A$6:$A$26648>=$F$6)*(الحركة!$A$6:$A$26648<=$H$6),ROW(الحركة!$A$6:$A$26648)-ROW(الحركة!$A$6)+1),ROWS(B$17:B26))),"") -> 5 | I26: -5 | L26: =IF(COUNTIF($D$17:D25,D25)=1,COUNT($L$18:L25)+1,"") ->  | M26: =IF(COUNT($L$18:$L$5518)<ROW()-17,"",LOOKUP(ROW()-17,$L$18:$L$5518,$D$17:$D$5518)) ->  | N26: =IF(M26="","",COUNTIF($D$17:$D$5518,M26)) ->  | O26: =IF(M26="","",SUMIF($D$17:$D$5518,M26,$G$17:$G$5518)) ->  | P26: =IF(M26="","",SUMIF($D$17:$D$5518,M26,$H$17:$H$5518)) ->  | Q26: 1
B27: =IF(ROWS(B$17:B27)<=SUMPRODUCT((الحركة!$C$6:$C$26648=$F$8)*(الحركة!$A$6:$A$26648>=$F$6)*(الحركة!$A$6:$A$26648<=$H$6)),INDEX(الحركة!$A$6:$A$26648,SMALL(IF((الحركة!$C$6:$C$26648=$F$8)*(الحركة!$A$6:$A$26648>=$F$6)*(الحركة!$A$6:$A$26648<=$H$6),ROW(الحركة!$A$6:$A$26648)-ROW(الحركة!$A$6)+1),ROWS(B$17:B27))),"") -> 2021-01-01 | C27: =IF(ROWS(A$17:A27)<=SUMPRODUCT((الحركة!$C$6:$C$26648=$F$8)*(الحركة!$A$6:$A$26648>=$F$6)*(الحركة!$A$6:$A$26648<=$H$6)),INDEX(الحركة!$C$6:$C$26648,SMALL(IF((الحركة!$C$6:$C$26648=$F$8)*(الحركة!$A$6:$A$26648>=$F$6)*(الحركة!$A$6:$A$26648<=$H$6),ROW(الحركة!$A$6:$A$26648)-ROW(الحركة!$A$6)+1),ROWS(A$17:A27))),"") -> الايرادات | D27: =IF(ROWS(B$17:B27)<=SUMPRODUCT((الحركة!$C$6:$C$26648=$F$8)*(الحركة!$A$6:$A$26648>=$F$6)*(الحركة!$A$6:$A$26648<=$H$6)),INDEX(الحركة!$E$6:$E$26648,SMALL(IF((الحركة!$C$6:$C$26648=$F$8)*(الحركة!$A$6:$A$26648>=$F$6)*(الحركة!$A$6:$A$26648<=$H$6),ROW(الحركة!$A$6:$A$26648)-ROW(الحركة!$A$6)+1),ROWS(B$17:B27))),"") -> الصيدلية | E27: =IF(ROWS(C$17:C27)<=SUMPRODUCT((الحركة!$C$6:$C$26648=$F$8)*(الحركة!$A$6:$A$26648>=$F$6)*(الحركة!$A$6:$A$26648<=$H$6)),INDEX(الحركة!$F$6:$F$26648,SMALL(IF((الحركة!$C$6:$C$26648=$F$8)*(الحركة!$A$6:$A$26648>=$F$6)*(الحركة!$A$6:$A$26648<=$H$6),ROW(الحركة!$A$6:$A$26648)-ROW(الحركة!$A$6)+1),ROWS(C$17:C27))),"") -> 1708 | F27: =IF(ROWS(C$17:C27)<=SUMPRODUCT((الحركة!$C$6:$C$26648=$F$8)*(الحركة!$A$6:$A$26648>=$F$6)*(الحركة!$A$6:$A$26648<=$H$6)),INDEX(الحركة!$H$6:$H$26648,SMALL(IF((الحركة!$C$6:$C$26648=$F$8)*(الحركة!$A$6:$A$26648>=$F$6)*(الحركة!$A$6:$A$26648<=$H$6),ROW(الحركة!$A$6:$A$26648)-ROW(الحركة!$A$6)+1),ROWS(C$17:C27))),"") -> الصيدلية | G27: =IF(ROWS(B$17:B27)<=SUMPRODUCT((الحركة!$C$6:$C$26648=$F$8)*(الحركة!$A$6:$A$26648>=$F$6)*(الحركة!$A$6:$A$26648<=$H$6)),INDEX(الحركة!$I$6:$I$26648,SMALL(IF((الحركة!$C$6:$C$26648=$F$8)*(الحركة!$A$6:$A$26648>=$F$6)*(الحركة!$A$6:$A$26648<=$H$6),ROW(الحركة!$A$6:$A$26648)-ROW(الحركة!$A$6)+1),ROWS(B$17:B27))),"") -> 0 | H27: =IF(ROWS(B$17:B27)<=SUMPRODUCT((الحركة!$C$6:$C$26648=$F$8)*(الحركة!$A$6:$A$26648>=$F$6)*(الحركة!$A$6:$A$26648<=$H$6)),INDEX(الحركة!$J$6:$J$26648,SMALL(IF((الحركة!$C$6:$C$26648=$F$8)*(الحركة!$A$6:$A$26648>=$F$6)*(الحركة!$A$6:$A$26648<=$H$6),ROW(الحركة!$A$6:$A$26648)-ROW(الحركة!$A$6)+1),ROWS(B$17:B27))),"") -> 29 | I27: -29 | L27: =IF(COUNTIF($D$17:D26,D26)=1,COUNT($L$18:L26)+1,"") ->  | M27: =IF(COUNT($L$18:$L$5518)<ROW()-17,"",LOOKUP(ROW()-17,$L$18:$L$5518,$D$17:$D$5518)) ->  | N27: =IF(M27="","",COUNTIF($D$17:$D$5518,M27)) ->  | O27: =IF(M27="","",SUMIF($D$17:$D$5518,M27,$G$17:$G$5518)) ->  | P27: =IF(M27="","",SUMIF($D$17:$D$5518,M27,$H$17:$H$5518)) ->  | Q27: 1
B28: =IF(ROWS(B$17:B28)<=SUMPRODUCT((الحركة!$C$6:$C$26648=$F$8)*(الحركة!$A$6:$A$26648>=$F$6)*(الحركة!$A$6:$A$26648<=$H$6)),INDEX(الحركة!$A$6:$A$26648,SMALL(IF((الحركة!$C$6:$C$26648=$F$8)*(الحركة!$A$6:$A$26648>=$F$6)*(الحركة!$A$6:$A$26648<=$H$6),ROW(الحركة!$A$6:$A$26648)-ROW(الحركة!$A$6)+1),ROWS(B$17:B28))),"") -> 2021-01-01 | C28: =IF(ROWS(A$17:A28)<=SUMPRODUCT((الحركة!$C$6:$C$26648=$F$8)*(الحركة!$A$6:$A$26648>=$F$6)*(الحركة!$A$6:$A$26648<=$H$6)),INDEX(الحركة!$C$6:$C$26648,SMALL(IF((الحركة!$C$6:$C$26648=$F$8)*(الحركة!$A$6:$A$26648>=$F$6)*(الحركة!$A$6:$A$26648<=$H$6),ROW(الحركة!$A$6:$A$26648)-ROW(الحركة!$A$6)+1),ROWS(A$17:A28))),"") -> الايرادات | D28: =IF(ROWS(B$17:B28)<=SUMPRODUCT((الحركة!$C$6:$C$26648=$F$8)*(الحركة!$A$6:$A$26648>=$F$6)*(الحركة!$A$6:$A$26648<=$H$6)),INDEX(الحركة!$E$6:$E$26648,SMALL(IF((الحركة!$C$6:$C$26648=$F$8)*(الحركة!$A$6:$A$26648>=$F$6)*(الحركة!$A$6:$A$26648<=$H$6),ROW(الحركة!$A$6:$A$26648)-ROW(الحركة!$A$6)+1),ROWS(B$17:B28))),"") -> الاسعاف | E28: =IF(ROWS(C$17:C28)<=SUMPRODUCT((الحركة!$C$6:$C$26648=$F$8)*(الحركة!$A$6:$A$26648>=$F$6)*(الحركة!$A$6:$A$26648<=$H$6)),INDEX(الحركة!$F$6:$F$26648,SMALL(IF((الحركة!$C$6:$C$26648=$F$8)*(الحركة!$A$6:$A$26648>=$F$6)*(الحركة!$A$6:$A$26648<=$H$6),ROW(الحركة!$A$6:$A$26648)-ROW(الحركة!$A$6)+1),ROWS(C$17:C28))),"") -> 1726 | F28: =IF(ROWS(C$17:C28)<=SUMPRODUCT((الحركة!$C$6:$C$26648=$F$8)*(الحركة!$A$6:$A$26648>=$F$6)*(الحركة!$A$6:$A$26648<=$H$6)),INDEX(الحركة!$H$6:$H$26648,SMALL(IF((الحركة!$C$6:$C$26648=$F$8)*(الحركة!$A$6:$A$26648>=$F$6)*(الحركة!$A$6:$A$26648<=$H$6),ROW(الحركة!$A$6:$A$26648)-ROW(الحركة!$A$6)+1),ROWS(C$17:C28))),"") -> الاسعاف | G28: =IF(ROWS(B$17:B28)<=SUMPRODUCT((الحركة!$C$6:$C$26648=$F$8)*(الحركة!$A$6:$A$26648>=$F$6)*(الحركة!$A$6:$A$26648<=$H$6)),INDEX(الحركة!$I$6:$I$26648,SMALL(IF((الحركة!$C$6:$C$26648=$F$8)*(الحركة!$A$6:$A$26648>=$F$6)*(الحركة!$A$6:$A$26648<=$H$6),ROW(الحركة!$A$6:$A$26648)-ROW(الحركة!$A$6)+1),ROWS(B$17:B28))),"") -> 0 | H28: =IF(ROWS(B$17:B28)<=SUMPRODUCT((الحركة!$C$6:$C$26648=$F$8)*(الحركة!$A$6:$A$26648>=$F$6)*(الحركة!$A$6:$A$26648<=$H$6)),INDEX(الحركة!$J$6:$J$26648,SMALL(IF((الحركة!$C$6:$C$26648=$F$8)*(الحركة!$A$6:$A$26648>=$F$6)*(الحركة!$A$6:$A$26648<=$H$6),ROW(الحركة!$A$6:$A$26648)-ROW(الحركة!$A$6)+1),ROWS(B$17:B28))),"") -> 4 | I28: -4 | L28: =IF(COUNTIF($D$17:D27,D27)=1,COUNT($L$18:L27)+1,"") ->  | M28: =IF(COUNT($L$18:$L$5518)<ROW()-17,"",LOOKUP(ROW()-17,$L$18:$L$5518,$D$17:$D$5518)) ->  | N28: =IF(M28="","",COUNTIF($D$17:$D$5518,M28)) ->  | O28: =IF(M28="","",SUMIF($D$17:$D$5518,M28,$G$17:$G$5518)) ->  | P28: =IF(M28="","",SUMIF($D$17:$D$5518,M28,$H$17:$H$5518)) ->  | Q28: 1
B29: =IF(ROWS(B$17:B29)<=SUMPRODUCT((الحركة!$C$6:$C$26648=$F$8)*(الحركة!$A$6:$A$26648>=$F$6)*(الحركة!$A$6:$A$26648<=$H$6)),INDEX(الحركة!$A$6:$A$26648,SMALL(IF((الحركة!$C$6:$C$26648=$F$8)*(الحركة!$A$6:$A$26648>=$F$6)*(الحركة!$A$6:$A$26648<=$H$6),ROW(الحركة!$A$6:$A$26648)-ROW(الحركة!$A$6)+1),ROWS(B$17:B29))),"") -> 2021-01-01 | C29: =IF(ROWS(A$17:A29)<=SUMPRODUCT((الحركة!$C$6:$C$26648=$F$8)*(الحركة!$A$6:$A$26648>=$F$6)*(الحركة!$A$6:$A$26648<=$H$6)),INDEX(الحركة!$C$6:$C$26648,SMALL(IF((الحركة!$C$6:$C$26648=$F$8)*(الحركة!$A$6:$A$26648>=$F$6)*(الحركة!$A$6:$A$26648<=$H$6),ROW(الحركة!$A$6:$A$26648)-ROW(الحركة!$A$6)+1),ROWS(A$17:A29))),"") -> الايرادات | D29: =IF(ROWS(B$17:B29)<=SUMPRODUCT((الحركة!$C$6:$C$26648=$F$8)*(الحركة!$A$6:$A$26648>=$F$6)*(الحركة!$A$6:$A$26648<=$H$6)),INDEX(الحركة!$E$6:$E$26648,SMALL(IF((الحركة!$C$6:$C$26648=$F$8)*(الحركة!$A$6:$A$26648>=$F$6)*(الحركة!$A$6:$A$26648<=$H$6),ROW(الحركة!$A$6:$A$26648)-ROW(الحركة!$A$6)+1),ROWS(B$17:B29))),"") -> الاسعاف | E29: =IF(ROWS(C$17:C29)<=SUMPRODUCT((الحركة!$C$6:$C$26648=$F$8)*(الحركة!$A$6:$A$26648>=$F$6)*(الحركة!$A$6:$A$26648<=$H$6)),INDEX(الحركة!$F$6:$F$26648,SMALL(IF((الحركة!$C$6:$C$26648=$F$8)*(الحركة!$A$6:$A$26648>=$F$6)*(الحركة!$A$6:$A$26648<=$H$6),ROW(الحركة!$A$6:$A$26648)-ROW(الحركة!$A$6)+1),ROWS(C$17:C29))),"") -> 1727 | F29: =IF(ROWS(C$17:C29)<=SUMPRODUCT((الحركة!$C$6:$C$26648=$F$8)*(الحركة!$A$6:$A$26648>=$F$6)*(الحركة!$A$6:$A$26648<=$H$6)),INDEX(الحركة!$H$6:$H$26648,SMALL(IF((الحركة!$C$6:$C$26648=$F$8)*(الحركة!$A$6:$A$26648>=$F$6)*(الحركة!$A$6:$A$26648<=$H$6),ROW(الحركة!$A$6:$A$26648)-ROW(الحركة!$A$6)+1),ROWS(C$17:C29))),"") -> الاسعاف | G29: =IF(ROWS(B$17:B29)<=SUMPRODUCT((الحركة!$C$6:$C$26648=$F$8)*(الحركة!$A$6:$A$26648>=$F$6)*(الحركة!$A$6:$A$26648<=$H$6)),INDEX(الحركة!$I$6:$I$26648,SMALL(IF((الحركة!$C$6:$C$26648=$F$8)*(الحركة!$A$6:$A$26648>=$F$6)*(الحركة!$A$6:$A$26648<=$H$6),ROW(الحركة!$A$6:$A$26648)-ROW(الحركة!$A$6)+1),ROWS(B$17:B29))),"") -> 0 | H29: =IF(ROWS(B$17:B29)<=SUMPRODUCT((الحركة!$C$6:$C$26648=$F$8)*(الحركة!$A$6:$A$26648>=$F$6)*(الحركة!$A$6:$A$26648<=$H$6)),INDEX(الحركة!$J$6:$J$26648,SMALL(IF((الحركة!$C$6:$C$26648=$F$8)*(الحركة!$A$6:$A$26648>=$F$6)*(الحركة!$A$6:$A$26648<=$H$6),ROW(الحركة!$A$6:$A$26648)-ROW(الحركة!$A$6)+1),ROWS(B$17:B29))),"") -> 20 | I29: -20 | L29: =IF(COUNTIF($D$17:D28,D28)=1,COUNT($L$18:L28)+1,"") -> 3 | M29: =IF(COUNT($L$18:$L$5518)<ROW()-17,"",LOOKUP(ROW()-17,$L$18:$L$5518,$D$17:$D$5518)) ->  | N29: =IF(M29="","",COUNTIF($D$17:$D$5518,M29)) ->  | O29: =IF(M29="","",SUMIF($D$17:$D$5518,M29,$G$17:$G$5518)) ->  | P29: =IF(M29="","",SUMIF($D$17:$D$5518,M29,$H$17:$H$5518)) ->  | Q29: 1
B30: =IF(ROWS(B$17:B30)<=SUMPRODUCT((الحركة!$C$6:$C$26648=$F$8)*(الحركة!$A$6:$A$26648>=$F$6)*(الحركة!$A$6:$A$26648<=$H$6)),INDEX(الحركة!$A$6:$A$26648,SMALL(IF((الحركة!$C$6:$C$26648=$F$8)*(الحركة!$A$6:$A$26648>=$F$6)*(الحركة!$A$6:$A$26648<=$H$6),ROW(الحركة!$A$6:$A$26648)-ROW(الحركة!$A$6)+1),ROWS(B$17:B30))),"") -> 2021-01-01 | C30: =IF(ROWS(A$17:A30)<=SUMPRODUCT((الحركة!$C$6:$C$26648=$F$8)*(الحركة!$A$6:$A$26648>=$F$6)*(الحركة!$A$6:$A$26648<=$H$6)),INDEX(الحركة!$C$6:$C$26648,SMALL(IF((الحركة!$C$6:$C$26648=$F$8)*(الحركة!$A$6:$A$26648>=$F$6)*(الحركة!$A$6:$A$26648<=$H$6),ROW(الحركة!$A$6:$A$26648)-ROW(الحركة!$A$6)+1),ROWS(A$17:A30))),"") -> الايرادات | D30: =IF(ROWS(B$17:B30)<=SUMPRODUCT((الحركة!$C$6:$C$26648=$F$8)*(الحركة!$A$6:$A$26648>=$F$6)*(الحركة!$A$6:$A$26648<=$H$6)),INDEX(الحركة!$E$6:$E$26648,SMALL(IF((الحركة!$C$6:$C$26648=$F$8)*(الحركة!$A$6:$A$26648>=$F$6)*(الحركة!$A$6:$A$26648<=$H$6),ROW(الحركة!$A$6:$A$26648)-ROW(الحركة!$A$6)+1),ROWS(B$17:B30))),"") -> قسم الجراحة | E30: =IF(ROWS(C$17:C30)<=SUMPRODUCT((الحركة!$C$6:$C$26648=$F$8)*(الحركة!$A$6:$A$26648>=$F$6)*(الحركة!$A$6:$A$26648<=$H$6)),INDEX(الحركة!$F$6:$F$26648,SMALL(IF((الحركة!$C$6:$C$26648=$F$8)*(الحركة!$A$6:$A$26648>=$F$6)*(الحركة!$A$6:$A$26648<=$H$6),ROW(الحركة!$A$6:$A$26648)-ROW(الحركة!$A$6)+1),ROWS(C$17:C30))),"") -> 1728 | F30: =IF(ROWS(C$17:C30)<=SUMPRODUCT((الحركة!$C$6:$C$26648=$F$8)*(الحركة!$A$6:$A$26648>=$F$6)*(الحركة!$A$6:$A$26648<=$H$6)),INDEX(الحركة!$H$6:$H$26648,SMALL(IF((الحركة!$C$6:$C$26648=$F$8)*(الحركة!$A$6:$A$26648>=$F$6)*(الحركة!$A$6:$A$26648<=$H$6),ROW(الحركة!$A$6:$A$26648)-ROW(الحركة!$A$6)+1),ROWS(C$17:C30))),"") -> محمد الأخضر | G30: =IF(ROWS(B$17:B30)<=SUMPRODUCT((الحركة!$C$6:$C$26648=$F$8)*(الحركة!$A$6:$A$26648>=$F$6)*(الحركة!$A$6:$A$26648<=$H$6)),INDEX(الحركة!$I$6:$I$26648,SMALL(IF((الحركة!$C$6:$C$26648=$F$8)*(الحركة!$A$6:$A$26648>=$F$6)*(الحركة!$A$6:$A$26648<=$H$6),ROW(الحركة!$A$6:$A$26648)-ROW(الحركة!$A$6)+1),ROWS(B$17:B30))),"") -> 0 | H30: =IF(ROWS(B$17:B30)<=SUMPRODUCT((الحركة!$C$6:$C$26648=$F$8)*(الحركة!$A$6:$A$26648>=$F$6)*(الحركة!$A$6:$A$26648<=$H$6)),INDEX(الحركة!$J$6:$J$26648,SMALL(IF((الحركة!$C$6:$C$26648=$F$8)*(الحركة!$A$6:$A$26648>=$F$6)*(الحركة!$A$6:$A$26648<=$H$6),ROW(الحركة!$A$6:$A$26648)-ROW(الحركة!$A$6)+1),ROWS(B$17:B30))),"") -> 20 | I30: -20 | L30: =IF(COUNTIF($D$17:D29,D29)=1,COUNT($L$18:L29)+1,"") ->  | M30: =IF(COUNT($L$18:$L$5518)<ROW()-17,"",LOOKUP(ROW()-17,$L$18:$L$5518,$D$17:$D$5518)) ->  | N30: =IF(M30="","",COUNTIF($D$17:$D$5518,M30)) ->  | O30: =IF(M30="","",SUMIF($D$17:$D$5518,M30,$G$17:$G$5518)) ->  | P30: =IF(M30="","",SUMIF($D$17:$D$5518,M30,$H$17:$H$5518)) ->  | Q30: 1
B31: =IF(ROWS(B$17:B31)<=SUMPRODUCT((الحركة!$C$6:$C$26648=$F$8)*(الحركة!$A$6:$A$26648>=$F$6)*(الحركة!$A$6:$A$26648<=$H$6)),INDEX(الحركة!$A$6:$A$26648,SMALL(IF((الحركة!$C$6:$C$26648=$F$8)*(الحركة!$A$6:$A$26648>=$F$6)*(الحركة!$A$6:$A$26648<=$H$6),ROW(الحركة!$A$6:$A$26648)-ROW(الحركة!$A$6)+1),ROWS(B$17:B31))),"") -> 2021-01-01 | C31: =IF(ROWS(A$17:A31)<=SUMPRODUCT((الحركة!$C$6:$C$26648=$F$8)*(الحركة!$A$6:$A$26648>=$F$6)*(الحركة!$A$6:$A$26648<=$H$6)),INDEX(الحركة!$C$6:$C$26648,SMALL(IF((الحركة!$C$6:$C$26648=$F$8)*(الحركة!$A$6:$A$26648>=$F$6)*(الحركة!$A$6:$A$26648<=$H$6),ROW(الحركة!$A$6:$A$26648)-ROW(الحركة!$A$6)+1),ROWS(A$17:A31))),"") -> الايرادات | D31: =IF(ROWS(B$17:B31)<=SUMPRODUCT((الحركة!$C$6:$C$26648=$F$8)*(الحركة!$A$6:$A$26648>=$F$6)*(الحركة!$A$6:$A$26648<=$H$6)),INDEX(الحركة!$E$6:$E$26648,SMALL(IF((الحركة!$C$6:$C$26648=$F$8)*(الحركة!$A$6:$A$26648>=$F$6)*(الحركة!$A$6:$A$26648<=$H$6),ROW(الحركة!$A$6:$A$26648)-ROW(الحركة!$A$6)+1),ROWS(B$17:B31))),"") -> الاسعاف | E31: =IF(ROWS(C$17:C31)<=SUMPRODUCT((الحركة!$C$6:$C$26648=$F$8)*(الحركة!$A$6:$A$26648>=$F$6)*(الحركة!$A$6:$A$26648<=$H$6)),INDEX(الحركة!$F$6:$F$26648,SMALL(IF((الحركة!$C$6:$C$26648=$F$8)*(الحركة!$A$6:$A$26648>=$F$6)*(الحركة!$A$6:$A$26648<=$H$6),ROW(الحركة!$A$6:$A$26648)-ROW(الحركة!$A$6)+1),ROWS(C$17:C31))),"") -> 1729 | F31: =IF(ROWS(C$17:C31)<=SUMPRODUCT((الحركة!$C$6:$C$26648=$F$8)*(الحركة!$A$6:$A$26648>=$F$6)*(الحركة!$A$6:$A$26648<=$H$6)),INDEX(الحركة!$H$6:$H$26648,SMALL(IF((الحركة!$C$6:$C$26648=$F$8)*(الحركة!$A$6:$A$26648>=$F$6)*(الحركة!$A$6:$A$26648<=$H$6),ROW(الحركة!$A$6:$A$26648)-ROW(الحركة!$A$6)+1),ROWS(C$17:C31))),"") -> الاسعاف | G31: =IF(ROWS(B$17:B31)<=SUMPRODUCT((الحركة!$C$6:$C$26648=$F$8)*(الحركة!$A$6:$A$26648>=$F$6)*(الحركة!$A$6:$A$26648<=$H$6)),INDEX(الحركة!$I$6:$I$26648,SMALL(IF((الحركة!$C$6:$C$26648=$F$8)*(الحركة!$A$6:$A$26648>=$F$6)*(الحركة!$A$6:$A$26648<=$H$6),ROW(الحركة!$A$6:$A$26648)-ROW(الحركة!$A$6)+1),ROWS(B$17:B31))),"") -> 0 | H31: =IF(ROWS(B$17:B31)<=SUMPRODUCT((الحركة!$C$6:$C$26648=$F$8)*(الحركة!$A$6:$A$26648>=$F$6)*(الحركة!$A$6:$A$26648<=$H$6)),INDEX(الحركة!$J$6:$J$26648,SMALL(IF((الحركة!$C$6:$C$26648=$F$8)*(الحركة!$A$6:$A$26648>=$F$6)*(الحركة!$A$6:$A$26648<=$H$6),ROW(الحركة!$A$6:$A$26648)-ROW(الحركة!$A$6)+1),ROWS(B$17:B31))),"") -> 60 | I31: -60 | L31: =IF(COUNTIF($D$17:D30,D30)=1,COUNT($L$18:L30)+1,"") -> 4 | M31: =IF(COUNT($L$18:$L$5518)<ROW()-17,"",LOOKUP(ROW()-17,$L$18:$L$5518,$D$17:$D$5518)) ->  | N31: =IF(M31="","",COUNTIF($D$17:$D$5518,M31)) ->  | O31: =IF(M31="","",SUMIF($D$17:$D$5518,M31,$G$17:$G$5518)) ->  | P31: =IF(M31="","",SUMIF($D$17:$D$5518,M31,$H$17:$H$5518)) ->  | Q31: 1 | S31: =SUM(P18:P30) -> 2721
B32: =IF(ROWS(B$17:B32)<=SUMPRODUCT((الحركة!$C$6:$C$26648=$F$8)*(الحركة!$A$6:$A$26648>=$F$6)*(الحركة!$A$6:$A$26648<=$H$6)),INDEX(الحركة!$A$6:$A$26648,SMALL(IF((الحركة!$C$6:$C$26648=$F$8)*(الحركة!$A$6:$A$26648>=$F$6)*(الحركة!$A$6:$A$26648<=$H$6),ROW(الحركة!$A$6:$A$26648)-ROW(الحركة!$A$6)+1),ROWS(B$17:B32))),"") -> 2021-01-01 | C32: =IF(ROWS(A$17:A32)<=SUMPRODUCT((الحركة!$C$6:$C$26648=$F$8)*(الحركة!$A$6:$A$26648>=$F$6)*(الحركة!$A$6:$A$26648<=$H$6)),INDEX(الحركة!$C$6:$C$26648,SMALL(IF((الحركة!$C$6:$C$26648=$F$8)*(الحركة!$A$6:$A$26648>=$F$6)*(الحركة!$A$6:$A$26648<=$H$6),ROW(الحركة!$A$6:$A$26648)-ROW(الحركة!$A$6)+1),ROWS(A$17:A32))),"") -> الايرادات | D32: =IF(ROWS(B$17:B32)<=SUMPRODUCT((الحركة!$C$6:$C$26648=$F$8)*(الحركة!$A$6:$A$26648>=$F$6)*(الحركة!$A$6:$A$26648<=$H$6)),INDEX(الحركة!$E$6:$E$26648,SMALL(IF((الحركة!$C$6:$C$26648=$F$8)*(الحركة!$A$6:$A$26648>=$F$6)*(الحركة!$A$6:$A$26648<=$H$6),ROW(الحركة!$A$6:$A$26648)-ROW(الحركة!$A$6)+1),ROWS(B$17:B32))),"") -> قسم الباطنية | E32: =IF(ROWS(C$17:C32)<=SUMPRODUCT((الحركة!$C$6:$C$26648=$F$8)*(الحركة!$A$6:$A$26648>=$F$6)*(الحركة!$A$6:$A$26648<=$H$6)),INDEX(الحركة!$F$6:$F$26648,SMALL(IF((الحركة!$C$6:$C$26648=$F$8)*(الحركة!$A$6:$A$26648>=$F$6)*(الحركة!$A$6:$A$26648<=$H$6),ROW(الحركة!$A$6:$A$26648)-ROW(الحركة!$A$6)+1),ROWS(C$17:C32))),"") -> 1730 | F32: =IF(ROWS(C$17:C32)<=SUMPRODUCT((الحركة!$C$6:$C$26648=$F$8)*(الحركة!$A$6:$A$26648>=$F$6)*(الحركة!$A$6:$A$26648<=$H$6)),INDEX(الحركة!$H$6:$H$26648,SMALL(IF((الحركة!$C$6:$C$26648=$F$8)*(الحركة!$A$6:$A$26648>=$F$6)*(الحركة!$A$6:$A$26648<=$H$6),ROW(الحركة!$A$6:$A$26648)-ROW(الحركة!$A$6)+1),ROWS(C$17:C32))),"") -> عائشة | G32: =IF(ROWS(B$17:B32)<=SUMPRODUCT((الحركة!$C$6:$C$26648=$F$8)*(الحركة!$A$6:$A$26648>=$F$6)*(الحركة!$A$6:$A$26648<=$H$6)),INDEX(الحركة!$I$6:$I$26648,SMALL(IF((الحركة!$C$6:$C$26648=$F$8)*(الحركة!$A$6:$A$26648>=$F$6)*(الحركة!$A$6:$A$26648<=$H$6),ROW(الحركة!$A$6:$A$26648)-ROW(الحركة!$A$6)+1),ROWS(B$17:B32))),"") -> 0 | H32: =IF(ROWS(B$17:B32)<=SUMPRODUCT((الحركة!$C$6:$C$26648=$F$8)*(الحركة!$A$6:$A$26648>=$F$6)*(الحركة!$A$6:$A$26648<=$H$6)),INDEX(الحركة!$J$6:$J$26648,SMALL(IF((الحركة!$C$6:$C$26648=$F$8)*(الحركة!$A$6:$A$26648>=$F$6)*(الحركة!$A$6:$A$26648<=$H$6),ROW(الحركة!$A$6:$A$26648)-ROW(الحركة!$A$6)+1),ROWS(B$17:B32))),"") -> 30 | I32: -30 | L32: =IF(COUNTIF($D$17:D31,D31)=1,COUNT($L$18:L31)+1,"") ->  | M32: =IF(COUNT($L$18:$L$5518)<ROW()-17,"",LOOKUP(ROW()-17,$L$18:$L$5518,$D$17:$D$5518)) ->  | N32: =IF(M32="","",COUNTIF($D$17:$D$5518,M32)) ->  | O32: =IF(M32="","",SUMIF($D$17:$D$5518,M32,$G$17:$G$5518)) ->  | P32: =IF(M32="","",SUMIF($D$17:$D$5518,M32,$H$17:$H$5518)) ->  | Q32: 1 | S32: 330
B33: =IF(ROWS(B$17:B33)<=SUMPRODUCT((الحركة!$C$6:$C$26648=$F$8)*(الحركة!$A$6:$A$26648>=$F$6)*(الحركة!$A$6:$A$26648<=$H$6)),INDEX(الحركة!$A$6:$A$26648,SMALL(IF((الحركة!$C$6:$C$26648=$F$8)*(الحركة!$A$6:$A$26648>=$F$6)*(الحركة!$A$6:$A$26648<=$H$6),ROW(الحركة!$A$6:$A$26648)-ROW(الحركة!$A$6)+1),ROWS(B$17:B33))),"") -> 2021-01-01 | C33: =IF(ROWS(A$17:A33)<=SUMPRODUCT((الحركة!$C$6:$C$26648=$F$8)*(الحركة!$A$6:$A$26648>=$F$6)*(الحركة!$A$6:$A$26648<=$H$6)),INDEX(الحركة!$C$6:$C$26648,SMALL(IF((الحركة!$C$6:$C$26648=$F$8)*(الحركة!$A$6:$A$26648>=$F$6)*(الحركة!$A$6:$A$26648<=$H$6),ROW(الحركة!$A$6:$A$26648)-ROW(الحركة!$A$6)+1),ROWS(A$17:A33))),"") -> الايرادات | D33: =IF(ROWS(B$17:B33)<=SUMPRODUCT((الحركة!$C$6:$C$26648=$F$8)*(الحركة!$A$6:$A$26648>=$F$6)*(الحركة!$A$6:$A$26648<=$H$6)),INDEX(الحركة!$E$6:$E$26648,SMALL(IF((الحركة!$C$6:$C$26648=$F$8)*(الحركة!$A$6:$A$26648>=$F$6)*(الحركة!$A$6:$A$26648<=$H$6),ROW(الحركة!$A$6:$A$26648)-ROW(الحركة!$A$6)+1),ROWS(B$17:B33))),"") -> قسم الباطنية | E33: =IF(ROWS(C$17:C33)<=SUMPRODUCT((الحركة!$C$6:$C$26648=$F$8)*(الحركة!$A$6:$A$26648>=$F$6)*(الحركة!$A$6:$A$26648<=$H$6)),INDEX(الحركة!$F$6:$F$26648,SMALL(IF((الحركة!$C$6:$C$26648=$F$8)*(الحركة!$A$6:$A$26648>=$F$6)*(الحركة!$A$6:$A$26648<=$H$6),ROW(الحركة!$A$6:$A$26648)-ROW(الحركة!$A$6)+1),ROWS(C$17:C33))),"") -> 1731 | F33: =IF(ROWS(C$17:C33)<=SUMPRODUCT((الحركة!$C$6:$C$26648=$F$8)*(الحركة!$A$6:$A$26648>=$F$6)*(الحركة!$A$6:$A$26648<=$H$6)),INDEX(الحركة!$H$6:$H$26648,SMALL(IF((الحركة!$C$6:$C$26648=$F$8)*(الحركة!$A$6:$A$26648>=$F$6)*(الحركة!$A$6:$A$26648<=$H$6),ROW(الحركة!$A$6:$A$26648)-ROW(الحركة!$A$6)+1),ROWS(C$17:C33))),"") -> عائشة | G33: =IF(ROWS(B$17:B33)<=SUMPRODUCT((الحركة!$C$6:$C$26648=$F$8)*(الحركة!$A$6:$A$26648>=$F$6)*(الحركة!$A$6:$A$26648<=$H$6)),INDEX(الحركة!$I$6:$I$26648,SMALL(IF((الحركة!$C$6:$C$26648=$F$8)*(الحركة!$A$6:$A$26648>=$F$6)*(الحركة!$A$6:$A$26648<=$H$6),ROW(الحركة!$A$6:$A$26648)-ROW(الحركة!$A$6)+1),ROWS(B$17:B33))),"") -> 0 | H33: =IF(ROWS(B$17:B33)<=SUMPRODUCT((الحركة!$C$6:$C$26648=$F$8)*(الحركة!$A$6:$A$26648>=$F$6)*(الحركة!$A$6:$A$26648<=$H$6)),INDEX(الحركة!$J$6:$J$26648,SMALL(IF((الحركة!$C$6:$C$26648=$F$8)*(الحركة!$A$6:$A$26648>=$F$6)*(الحركة!$A$6:$A$26648<=$H$6),ROW(الحركة!$A$6:$A$26648)-ROW(الحركة!$A$6)+1),ROWS(B$17:B33))),"") -> 30 | I33: -30 | L33: =IF(COUNTIF($D$17:D32,D32)=1,COUNT($L$18:L32)+1,"") -> 5 | M33: =IF(COUNT($L$18:$L$5518)<ROW()-17,"",LOOKUP(ROW()-17,$L$18:$L$5518,$D$17:$D$5518)) ->  | N33: =IF(M33="","",COUNTIF($D$17:$D$5518,M33)) ->  | O33: =IF(M33="","",SUMIF($D$17:$D$5518,M33,$G$17:$G$5518)) ->  | P33: =IF(M33="","",SUMIF($D$17:$D$5518,M33,$H$17:$H$5518)) ->  | Q33: 1 | S33: =SUM(S31:S32) -> 3051
B34: =IF(ROWS(B$17:B34)<=SUMPRODUCT((الحركة!$C$6:$C$26648=$F$8)*(الحركة!$A$6:$A$26648>=$F$6)*(الحركة!$A$6:$A$26648<=$H$6)),INDEX(الحركة!$A$6:$A$26648,SMALL(IF((الحركة!$C$6:$C$26648=$F$8)*(الحركة!$A$6:$A$26648>=$F$6)*(الحركة!$A$6:$A$26648<=$H$6),ROW(الحركة!$A$6:$A$26648)-ROW(الحركة!$A$6)+1),ROWS(B$17:B34))),"") -> 2021-01-01 | C34: =IF(ROWS(A$17:A34)<=SUMPRODUCT((الحركة!$C$6:$C$26648=$F$8)*(الحركة!$A$6:$A$26648>=$F$6)*(الحركة!$A$6:$A$26648<=$H$6)),INDEX(الحركة!$C$6:$C$26648,SMALL(IF((الحركة!$C$6:$C$26648=$F$8)*(الحركة!$A$6:$A$26648>=$F$6)*(الحركة!$A$6:$A$26648<=$H$6),ROW(الحركة!$A$6:$A$26648)-ROW(الحركة!$A$6)+1),ROWS(A$17:A34))),"") -> الايرادات | D34: =IF(ROWS(B$17:B34)<=SUMPRODUCT((الحركة!$C$6:$C$26648=$F$8)*(الحركة!$A$6:$A$26648>=$F$6)*(الحركة!$A$6:$A$26648<=$H$6)),INDEX(الحركة!$E$6:$E$26648,SMALL(IF((الحركة!$C$6:$C$26648=$F$8)*(الحركة!$A$6:$A$26648>=$F$6)*(الحركة!$A$6:$A$26648<=$H$6),ROW(الحركة!$A$6:$A$26648)-ROW(الحركة!$A$6)+1),ROWS(B$17:B34))),"") -> الايواء | E34: =IF(ROWS(C$17:C34)<=SUMPRODUCT((الحركة!$C$6:$C$26648=$F$8)*(الحركة!$A$6:$A$26648>=$F$6)*(الحركة!$A$6:$A$26648<=$H$6)),INDEX(الحركة!$F$6:$F$26648,SMALL(IF((الحركة!$C$6:$C$26648=$F$8)*(الحركة!$A$6:$A$26648>=$F$6)*(الحركة!$A$6:$A$26648<=$H$6),ROW(الحركة!$A$6:$A$26648)-ROW(الحركة!$A$6)+1),ROWS(C$17:C34))),"") -> 1732 | F34: =IF(ROWS(C$17:C34)<=SUMPRODUCT((الحركة!$C$6:$C$26648=$F$8)*(الحركة!$A$6:$A$26648>=$F$6)*(الحركة!$A$6:$A$26648<=$H$6)),INDEX(الحركة!$H$6:$H$26648,SMALL(IF((الحركة!$C$6:$C$26648=$F$8)*(الحركة!$A$6:$A$26648>=$F$6)*(الحركة!$A$6:$A$26648<=$H$6),ROW(الحركة!$A$6:$A$26648)-ROW(الحركة!$A$6)+1),ROWS(C$17:C34))),"") -> الايواء | G34: =IF(ROWS(B$17:B34)<=SUMPRODUCT((الحركة!$C$6:$C$26648=$F$8)*(الحركة!$A$6:$A$26648>=$F$6)*(الحركة!$A$6:$A$26648<=$H$6)),INDEX(الحركة!$I$6:$I$26648,SMALL(IF((الحركة!$C$6:$C$26648=$F$8)*(الحركة!$A$6:$A$26648>=$F$6)*(الحركة!$A$6:$A$26648<=$H$6),ROW(الحركة!$A$6:$A$26648)-ROW(الحركة!$A$6)+1),ROWS(B$17:B34))),"") -> 0 | H34: =IF(ROWS(B$17:B34)<=SUMPRODUCT((الحركة!$C$6:$C$26648=$F$8)*(الحركة!$A$6:$A$26648>=$F$6)*(الحركة!$A$6:$A$26648<=$H$6)),INDEX(الحركة!$J$6:$J$26648,SMALL(IF((الحركة!$C$6:$C$26648=$F$8)*(الحركة!$A$6:$A$26648>=$F$6)*(الحركة!$A$6:$A$26648<=$H$6),ROW(الحركة!$A$6:$A$26648)-ROW(الحركة!$A$6)+1),ROWS(B$17:B34))),"") -> 500 | I34: -500 | L34: =IF(COUNTIF($D$17:D33,D33)=1,COUNT($L$18:L33)+1,"") ->  | M34: =IF(COUNT($L$18:$L$5518)<ROW()-17,"",LOOKUP(ROW()-17,$L$18:$L$5518,$D$17:$D$5518)) ->  | N34: =IF(M34="","",COUNTIF($D$17:$D$5518,M34)) ->  | O34: =IF(M34="","",SUMIF($D$17:$D$5518,M34,$G$17:$G$5518)) ->  | P34: =IF(M34="","",SUMIF($D$17:$D$5518,M34,$H$17:$H$5518)) ->  | Q34: 1
B35: =IF(ROWS(B$17:B35)<=SUMPRODUCT((الحركة!$C$6:$C$26648=$F$8)*(الحركة!$A$6:$A$26648>=$F$6)*(الحركة!$A$6:$A$26648<=$H$6)),INDEX(الحركة!$A$6:$A$26648,SMALL(IF((الحركة!$C$6:$C$26648=$F$8)*(الحركة!$A$6:$A$26648>=$F$6)*(الحركة!$A$6:$A$26648<=$H$6),ROW(الحركة!$A$6:$A$26648)-ROW(الحركة!$A$6)+1),ROWS(B$17:B35))),"") -> 2021-01-01 | C35: =IF(ROWS(A$17:A35)<=SUMPRODUCT((الحركة!$C$6:$C$26648=$F$8)*(الحركة!$A$6:$A$26648>=$F$6)*(الحركة!$A$6:$A$26648<=$H$6)),INDEX(الحركة!$C$6:$C$26648,SMALL(IF((الحركة!$C$6:$C$26648=$F$8)*(الحركة!$A$6:$A$26648>=$F$6)*(الحركة!$A$6:$A$26648<=$H$6),ROW(الحركة!$A$6:$A$26648)-ROW(الحركة!$A$6)+1),ROWS(A$17:A35))),"") -> الايرادات | D35: =IF(ROWS(B$17:B35)<=SUMPRODUCT((الحركة!$C$6:$C$26648=$F$8)*(الحركة!$A$6:$A$26648>=$F$6)*(الحركة!$A$6:$A$26648<=$H$6)),INDEX(الحركة!$E$6:$E$26648,SMALL(IF((الحركة!$C$6:$C$26648=$F$8)*(الحركة!$A$6:$A$26648>=$F$6)*(الحركة!$A$6:$A$26648<=$H$6),ROW(الحركة!$A$6:$A$26648)-ROW(الحركة!$A$6)+1),ROWS(B$17:B35))),"") -> الايواء | E35: =IF(ROWS(C$17:C35)<=SUMPRODUCT((الحركة!$C$6:$C$26648=$F$8)*(الحركة!$A$6:$A$26648>=$F$6)*(الحركة!$A$6:$A$26648<=$H$6)),INDEX(الحركة!$F$6:$F$26648,SMALL(IF((الحركة!$C$6:$C$26648=$F$8)*(الحركة!$A$6:$A$26648>=$F$6)*(الحركة!$A$6:$A$26648<=$H$6),ROW(الحركة!$A$6:$A$26648)-ROW(الحركة!$A$6)+1),ROWS(C$17:C35))),"") -> 1733 | F35: =IF(ROWS(C$17:C35)<=SUMPRODUCT((الحركة!$C$6:$C$26648=$F$8)*(الحركة!$A$6:$A$26648>=$F$6)*(الحركة!$A$6:$A$26648<=$H$6)),INDEX(الحركة!$H$6:$H$26648,SMALL(IF((الحركة!$C$6:$C$26648=$F$8)*(الحركة!$A$6:$A$26648>=$F$6)*(الحركة!$A$6:$A$26648<=$H$6),ROW(الحركة!$A$6:$A$26648)-ROW(الحركة!$A$6)+1),ROWS(C$17:C35))),"") -> الايواء | G35: =IF(ROWS(B$17:B35)<=SUMPRODUCT((الحركة!$C$6:$C$26648=$F$8)*(الحركة!$A$6:$A$26648>=$F$6)*(الحركة!$A$6:$A$26648<=$H$6)),INDEX(الحركة!$I$6:$I$26648,SMALL(IF((الحركة!$C$6:$C$26648=$F$8)*(الحركة!$A$6:$A$26648>=$F$6)*(الحركة!$A$6:$A$26648<=$H$6),ROW(الحركة!$A$6:$A$26648)-ROW(الحركة!$A$6)+1),ROWS(B$17:B35))),"") -> 0 | H35: =IF(ROWS(B$17:B35)<=SUMPRODUCT((الحركة!$C$6:$C$26648=$F$8)*(الحركة!$A$6:$A$26648>=$F$6)*(الحركة!$A$6:$A$26648<=$H$6)),INDEX(الحركة!$J$6:$J$26648,SMALL(IF((الحركة!$C$6:$C$26648=$F$8)*(الحركة!$A$6:$A$26648>=$F$6)*(الحركة!$A$6:$A$26648<=$H$6),ROW(الحركة!$A$6:$A$26648)-ROW(الحركة!$A$6)+1),ROWS(B$17:B35))),"") -> 1000 | I35: -1000 | L35: =IF(COUNTIF($D$17:D34,D34)=1,COUNT($L$18:L34)+1,"") -> 6 | M35: =IF(COUNT($L$18:$L$5518)<ROW()-17,"",LOOKUP(ROW()-17,$L$18:$L$5518,$D$17:$D$5518)) ->  | N35: =IF(M35="","",COUNTIF($D$17:$D$5518,M35)) ->  | O35: =IF(M35="","",SUMIF($D$17:$D$5518,M35,$G$17:$G$5518)) ->  | P35: =IF(M35="","",SUMIF($D$17:$D$5518,M35,$H$17:$H$5518)) ->  | Q35: 1
B36: =IF(ROWS(B$17:B36)<=SUMPRODUCT((الحركة!$C$6:$C$26648=$F$8)*(الحركة!$A$6:$A$26648>=$F$6)*(الحركة!$A$6:$A$26648<=$H$6)),INDEX(الحركة!$A$6:$A$26648,SMALL(IF((الحركة!$C$6:$C$26648=$F$8)*(الحركة!$A$6:$A$26648>=$F$6)*(الحركة!$A$6:$A$26648<=$H$6),ROW(الحركة!$A$6:$A$26648)-ROW(الحركة!$A$6)+1),ROWS(B$17:B36))),"") -> 2021-01-02 | C36: =IF(ROWS(A$17:A36)<=SUMPRODUCT((الحركة!$C$6:$C$26648=$F$8)*(الحركة!$A$6:$A$26648>=$F$6)*(الحركة!$A$6:$A$26648<=$H$6)),INDEX(الحركة!$C$6:$C$26648,SMALL(IF((الحركة!$C$6:$C$26648=$F$8)*(الحركة!$A$6:$A$26648>=$F$6)*(الحركة!$A$6:$A$26648<=$H$6),ROW(الحركة!$A$6:$A$26648)-ROW(الحركة!$A$6)+1),ROWS(A$17:A36))),"") -> الايرادات | D36: =IF(ROWS(B$17:B36)<=SUMPRODUCT((الحركة!$C$6:$C$26648=$F$8)*(الحركة!$A$6:$A$26648>=$F$6)*(الحركة!$A$6:$A$26648<=$H$6)),INDEX(الحركة!$E$6:$E$26648,SMALL(IF((الحركة!$C$6:$C$26648=$F$8)*(الحركة!$A$6:$A$26648>=$F$6)*(الحركة!$A$6:$A$26648<=$H$6),ROW(الحركة!$A$6:$A$26648)-ROW(الحركة!$A$6)+1),ROWS(B$17:B36))),"") -> الصيدلية | E36: =IF(ROWS(C$17:C36)<=SUMPRODUCT((الحركة!$C$6:$C$26648=$F$8)*(الحركة!$A$6:$A$26648>=$F$6)*(الحركة!$A$6:$A$26648<=$H$6)),INDEX(الحركة!$F$6:$F$26648,SMALL(IF((الحركة!$C$6:$C$26648=$F$8)*(الحركة!$A$6:$A$26648>=$F$6)*(الحركة!$A$6:$A$26648<=$H$6),ROW(الحركة!$A$6:$A$26648)-ROW(الحركة!$A$6)+1),ROWS(C$17:C36))),"") -> 426 | F36: =IF(ROWS(C$17:C36)<=SUMPRODUCT((الحركة!$C$6:$C$26648=$F$8)*(الحركة!$A$6:$A$26648>=$F$6)*(الحركة!$A$6:$A$26648<=$H$6)),INDEX(الحركة!$H$6:$H$26648,SMALL(IF((الحركة!$C$6:$C$26648=$F$8)*(الحركة!$A$6:$A$26648>=$F$6)*(الحركة!$A$6:$A$26648<=$H$6),ROW(الحركة!$A$6:$A$26648)-ROW(الحركة!$A$6)+1),ROWS(C$17:C36))),"") -> الصيدلية | G36: =IF(ROWS(B$17:B36)<=SUMPRODUCT((الحركة!$C$6:$C$26648=$F$8)*(الحركة!$A$6:$A$26648>=$F$6)*(الحركة!$A$6:$A$26648<=$H$6)),INDEX(الحركة!$I$6:$I$26648,SMALL(IF((الحركة!$C$6:$C$26648=$F$8)*(الحركة!$A$6:$A$26648>=$F$6)*(الحركة!$A$6:$A$26648<=$H$6),ROW(الحركة!$A$6:$A$26648)-ROW(الحركة!$A$6)+1),ROWS(B$17:B36))),"") -> 0 | H36: =IF(ROWS(B$17:B36)<=SUMPRODUCT((الحركة!$C$6:$C$26648=$F$8)*(الحركة!$A$6:$A$26648>=$F$6)*(الحركة!$A$6:$A$26648<=$H$6)),INDEX(الحركة!$J$6:$J$26648,SMALL(IF((الحركة!$C$6:$C$26648=$F$8)*(الحركة!$A$6:$A$26648>=$F$6)*(الحركة!$A$6:$A$26648<=$H$6),ROW(الحركة!$A$6:$A$26648)-ROW(الحركة!$A$6)+1),ROWS(B$17:B36))),"") -> 23 | I36: -23 | L36: =IF(COUNTIF($D$17:D35,D35)=1,COUNT($L$18:L35)+1,"") ->  | M36: =IF(COUNT($L$18:$L$5518)<ROW()-17,"",LOOKUP(ROW()-17,$L$18:$L$5518,$D$17:$D$5518)) ->  | N36: =IF(M36="","",COUNTIF($D$17:$D$5518,M36)) ->  | O36: =IF(M36="","",SUMIF($D$17:$D$5518,M36,$G$17:$G$5518)) ->  | P36: =IF(M36="","",SUMIF($D$17:$D$5518,M36,$H$17:$H$5518)) ->  | Q36: 1
B37: =IF(ROWS(B$17:B37)<=SUMPRODUCT((الحركة!$C$6:$C$26648=$F$8)*(الحركة!$A$6:$A$26648>=$F$6)*(الحركة!$A$6:$A$26648<=$H$6)),INDEX(الحركة!$A$6:$A$26648,SMALL(IF((الحركة!$C$6:$C$26648=$F$8)*(الحركة!$A$6:$A$26648>=$F$6)*(الحركة!$A$6:$A$26648<=$H$6),ROW(الحركة!$A$6:$A$26648)-ROW(الحركة!$A$6)+1),ROWS(B$17:B37))),"") -> 2021-01-02 | C37: =IF(ROWS(A$17:A37)<=SUMPRODUCT((الحركة!$C$6:$C$26648=$F$8)*(الحركة!$A$6:$A$26648>=$F$6)*(الحركة!$A$6:$A$26648<=$H$6)),INDEX(الحركة!$C$6:$C$26648,SMALL(IF((الحركة!$C$6:$C$26648=$F$8)*(الحركة!$A$6:$A$26648>=$F$6)*(الحركة!$A$6:$A$26648<=$H$6),ROW(الحركة!$A$6:$A$26648)-ROW(الحركة!$A$6)+1),ROWS(A$17:A37))),"") -> الايرادات | D37: =IF(ROWS(B$17:B37)<=SUMPRODUCT((الحركة!$C$6:$C$26648=$F$8)*(الحركة!$A$6:$A$26648>=$F$6)*(الحركة!$A$6:$A$26648<=$H$6)),INDEX(الحركة!$E$6:$E$26648,SMALL(IF((الحركة!$C$6:$C$26648=$F$8)*(الحركة!$A$6:$A$26648>=$F$6)*(الحركة!$A$6:$A$26648<=$H$6),ROW(الحركة!$A$6:$A$26648)-ROW(الحركة!$A$6)+1),ROWS(B$17:B37))),"") -> الصيدلية | E37: =IF(ROWS(C$17:C37)<=SUMPRODUCT((الحركة!$C$6:$C$26648=$F$8)*(الحركة!$A$6:$A$26648>=$F$6)*(الحركة!$A$6:$A$26648<=$H$6)),INDEX(الحركة!$F$6:$F$26648,SMALL(IF((الحركة!$C$6:$C$26648=$F$8)*(الحركة!$A$6:$A$26648>=$F$6)*(الحركة!$A$6:$A$26648<=$H$6),ROW(الحركة!$A$6:$A$26648)-ROW(الحركة!$A$6)+1),ROWS(C$17:C37))),"") -> 427 | F37: =IF(ROWS(C$17:C37)<=SUMPRODUCT((الحركة!$C$6:$C$26648=$F$8)*(الحركة!$A$6:$A$26648>=$F$6)*(الحركة!$A$6:$A$26648<=$H$6)),INDEX(الحركة!$H$6:$H$26648,SMALL(IF((الحركة!$C$6:$C$26648=$F$8)*(الحركة!$A$6:$A$26648>=$F$6)*(الحركة!$A$6:$A$26648<=$H$6),ROW(الحركة!$A$6:$A$26648)-ROW(الحركة!$A$6)+1),ROWS(C$17:C37))),"") -> الصيدلية | G37: =IF(ROWS(B$17:B37)<=SUMPRODUCT((الحركة!$C$6:$C$26648=$F$8)*(الحركة!$A$6:$A$26648>=$F$6)*(الحركة!$A$6:$A$26648<=$H$6)),INDEX(الحركة!$I$6:$I$26648,SMALL(IF((الحركة!$C$6:$C$26648=$F$8)*(الحركة!$A$6:$A$26648>=$F$6)*(الحركة!$A$6:$A$26648<=$H$6),ROW(الحركة!$A$6:$A$26648)-ROW(الحركة!$A$6)+1),ROWS(B$17:B37))),"") -> 0 | H37: =IF(ROWS(B$17:B37)<=SUMPRODUCT((الحركة!$C$6:$C$26648=$F$8)*(الحركة!$A$6:$A$26648>=$F$6)*(الحركة!$A$6:$A$26648<=$H$6)),INDEX(الحركة!$J$6:$J$26648,SMALL(IF((الحركة!$C$6:$C$26648=$F$8)*(الحركة!$A$6:$A$26648>=$F$6)*(الحركة!$A$6:$A$26648<=$H$6),ROW(الحركة!$A$6:$A$26648)-ROW(الحركة!$A$6)+1),ROWS(B$17:B37))),"") -> 17 | I37: -17 | L37: =IF(COUNTIF($D$17:D36,D36)=1,COUNT($L$18:L36)+1,"") ->  | M37: =IF(COUNT($L$18:$L$5518)<ROW()-17,"",LOOKUP(ROW()-17,$L$18:$L$5518,$D$17:$D$5518)) ->  | N37: =IF(M37="","",COUNTIF($D$17:$D$5518,M37)) ->  | O37: =IF(M37="","",SUMIF($D$17:$D$5518,M37,$G$17:$G$5518)) ->  | P37: =IF(M37="","",SUMIF($D$17:$D$5518,M37,$H$17:$H$5518)) ->  | Q37: 1
B38: =IF(ROWS(B$17:B38)<=SUMPRODUCT((الحركة!$C$6:$C$26648=$F$8)*(الحركة!$A$6:$A$26648>=$F$6)*(الحركة!$A$6:$A$26648<=$H$6)),INDEX(الحركة!$A$6:$A$26648,SMALL(IF((الحركة!$C$6:$C$26648=$F$8)*(الحركة!$A$6:$A$26648>=$F$6)*(الحركة!$A$6:$A$26648<=$H$6),ROW(الحركة!$A$6:$A$26648)-ROW(الحركة!$A$6)+1),ROWS(B$17:B38))),"") -> 2021-01-02 | C38: =IF(ROWS(A$17:A38)<=SUMPRODUCT((الحركة!$C$6:$C$26648=$F$8)*(الحركة!$A$6:$A$26648>=$F$6)*(الحركة!$A$6:$A$26648<=$H$6)),INDEX(الحركة!$C$6:$C$26648,SMALL(IF((الحركة!$C$6:$C$26648=$F$8)*(الحركة!$A$6:$A$26648>=$F$6)*(الحركة!$A$6:$A$26648<=$H$6),ROW(الحركة!$A$6:$A$26648)-ROW(الحركة!$A$6)+1),ROWS(A$17:A38))),"") -> الايرادات | D38: =IF(ROWS(B$17:B38)<=SUMPRODUCT((الحركة!$C$6:$C$26648=$F$8)*(الحركة!$A$6:$A$26648>=$F$6)*(الحركة!$A$6:$A$26648<=$H$6)),INDEX(الحركة!$E$6:$E$26648,SMALL(IF((الحركة!$C$6:$C$26648=$F$8)*(الحركة!$A$6:$A$26648>=$F$6)*(الحركة!$A$6:$A$26648<=$H$6),ROW(الحركة!$A$6:$A$26648)-ROW(الحركة!$A$6)+1),ROWS(B$17:B38))),"") -> الصيدلية | E38: =IF(ROWS(C$17:C38)<=SUMPRODUCT((الحركة!$C$6:$C$26648=$F$8)*(الحركة!$A$6:$A$26648>=$F$6)*(الحركة!$A$6:$A$26648<=$H$6)),INDEX(الحركة!$F$6:$F$26648,SMALL(IF((الحركة!$C$6:$C$26648=$F$8)*(الحركة!$A$6:$A$26648>=$F$6)*(الحركة!$A$6:$A$26648<=$H$6),ROW(الحركة!$A$6:$A$26648)-ROW(الحركة!$A$6)+1),ROWS(C$17:C38))),"") -> 428 | F38: =IF(ROWS(C$17:C38)<=SUMPRODUCT((الحركة!$C$6:$C$26648=$F$8)*(الحركة!$A$6:$A$26648>=$F$6)*(الحركة!$A$6:$A$26648<=$H$6)),INDEX(الحركة!$H$6:$H$26648,SMALL(IF((الحركة!$C$6:$C$26648=$F$8)*(الحركة!$A$6:$A$26648>=$F$6)*(الحركة!$A$6:$A$26648<=$H$6),ROW(الحركة!$A$6:$A$26648)-ROW(الحركة!$A$6)+1),ROWS(C$17:C38))),"") -> الصيدلية | G38: =IF(ROWS(B$17:B38)<=SUMPRODUCT((الحركة!$C$6:$C$26648=$F$8)*(الحركة!$A$6:$A$26648>=$F$6)*(الحركة!$A$6:$A$26648<=$H$6)),INDEX(الحركة!$I$6:$I$26648,SMALL(IF((الحركة!$C$6:$C$26648=$F$8)*(الحركة!$A$6:$A$26648>=$F$6)*(الحركة!$A$6:$A$26648<=$H$6),ROW(الحركة!$A$6:$A$26648)-ROW(الحركة!$A$6)+1),ROWS(B$17:B38))),"") -> 0 | H38: =IF(ROWS(B$17:B38)<=SUMPRODUCT((الحركة!$C$6:$C$26648=$F$8)*(الحركة!$A$6:$A$26648>=$F$6)*(الحركة!$A$6:$A$26648<=$H$6)),INDEX(الحركة!$J$6:$J$26648,SMALL(IF((الحركة!$C$6:$C$26648=$F$8)*(الحركة!$A$6:$A$26648>=$F$6)*(الحركة!$A$6:$A$26648<=$H$6),ROW(الحركة!$A$6:$A$26648)-ROW(الحركة!$A$6)+1),ROWS(B$17:B38))),"") -> 2 | I38: -2 | L38: =IF(COUNTIF($D$17:D37,D37)=1,COUNT($L$18:L37)+1,"") ->  | M38: =IF(COUNT($L$18:$L$5518)<ROW()-17,"",LOOKUP(ROW()-17,$L$18:$L$5518,$D$17:$D$5518)) ->  | N38: =IF(M38="","",COUNTIF($D$17:$D$5518,M38)) ->  | O38: =IF(M38="","",SUMIF($D$17:$D$5518,M38,$G$17:$G$5518)) ->  | P38: =IF(M38="","",SUMIF($D$17:$D$5518,M38,$H$17:$H$5518)) ->  | Q38: 1
B39: =IF(ROWS(B$17:B39)<=SUMPRODUCT((الحركة!$C$6:$C$26648=$F$8)*(الحركة!$A$6:$A$26648>=$F$6)*(الحركة!$A$6:$A$26648<=$H$6)),INDEX(الحركة!$A$6:$A$26648,SMALL(IF((الحركة!$C$6:$C$26648=$F$8)*(الحركة!$A$6:$A$26648>=$F$6)*(الحركة!$A$6:$A$26648<=$H$6),ROW(الحركة!$A$6:$A$26648)-ROW(الحركة!$A$6)+1),ROWS(B$17:B39))),"") -> 2021-01-02 | C39: =IF(ROWS(A$17:A39)<=SUMPRODUCT((الحركة!$C$6:$C$26648=$F$8)*(الحركة!$A$6:$A$26648>=$F$6)*(الحركة!$A$6:$A$26648<=$H$6)),INDEX(الحركة!$C$6:$C$26648,SMALL(IF((الحركة!$C$6:$C$26648=$F$8)*(الحركة!$A$6:$A$26648>=$F$6)*(الحركة!$A$6:$A$26648<=$H$6),ROW(الحركة!$A$6:$A$26648)-ROW(الحركة!$A$6)+1),ROWS(A$17:A39))),"") -> الايرادات | D39: =IF(ROWS(B$17:B39)<=SUMPRODUCT((الحركة!$C$6:$C$26648=$F$8)*(الحركة!$A$6:$A$26648>=$F$6)*(الحركة!$A$6:$A$26648<=$H$6)),INDEX(الحركة!$E$6:$E$26648,SMALL(IF((الحركة!$C$6:$C$26648=$F$8)*(الحركة!$A$6:$A$26648>=$F$6)*(الحركة!$A$6:$A$26648<=$H$6),ROW(الحركة!$A$6:$A$26648)-ROW(الحركة!$A$6)+1),ROWS(B$17:B39))),"") -> الاسعاف | E39: =IF(ROWS(C$17:C39)<=SUMPRODUCT((الحركة!$C$6:$C$26648=$F$8)*(الحركة!$A$6:$A$26648>=$F$6)*(الحركة!$A$6:$A$26648<=$H$6)),INDEX(الحركة!$F$6:$F$26648,SMALL(IF((الحركة!$C$6:$C$26648=$F$8)*(الحركة!$A$6:$A$26648>=$F$6)*(الحركة!$A$6:$A$26648<=$H$6),ROW(الحركة!$A$6:$A$26648)-ROW(الحركة!$A$6)+1),ROWS(C$17:C39))),"") -> 429 | F39: =IF(ROWS(C$17:C39)<=SUMPRODUCT((الحركة!$C$6:$C$26648=$F$8)*(الحركة!$A$6:$A$26648>=$F$6)*(الحركة!$A$6:$A$26648<=$H$6)),INDEX(الحركة!$H$6:$H$26648,SMALL(IF((الحركة!$C$6:$C$26648=$F$8)*(الحركة!$A$6:$A$26648>=$F$6)*(الحركة!$A$6:$A$26648<=$H$6),ROW(الحركة!$A$6:$A$26648)-ROW(الحركة!$A$6)+1),ROWS(C$17:C39))),"") -> الاسعاف | G39: =IF(ROWS(B$17:B39)<=SUMPRODUCT((الحركة!$C$6:$C$26648=$F$8)*(الحركة!$A$6:$A$26648>=$F$6)*(الحركة!$A$6:$A$26648<=$H$6)),INDEX(الحركة!$I$6:$I$26648,SMALL(IF((الحركة!$C$6:$C$26648=$F$8)*(الحركة!$A$6:$A$26648>=$F$6)*(الحركة!$A$6:$A$26648<=$H$6),ROW(الحركة!$A$6:$A$26648)-ROW(الحركة!$A$6)+1),ROWS(B$17:B39))),"") -> 0 | H39: =IF(ROWS(B$17:B39)<=SUMPRODUCT((الحركة!$C$6:$C$26648=$F$8)*(الحركة!$A$6:$A$26648>=$F$6)*(الحركة!$A$6:$A$26648<=$H$6)),INDEX(الحركة!$J$6:$J$26648,SMALL(IF((الحركة!$C$6:$C$26648=$F$8)*(الحركة!$A$6:$A$26648>=$F$6)*(الحركة!$A$6:$A$26648<=$H$6),ROW(الحركة!$A$6:$A$26648)-ROW(الحركة!$A$6)+1),ROWS(B$17:B39))),"") -> 2 | I39: -2 | L39: =IF(COUNTIF($D$17:D38,D38)=1,COUNT($L$18:L38)+1,"") ->  | M39: =IF(COUNT($L$18:$L$5518)<ROW()-17,"",LOOKUP(ROW()-17,$L$18:$L$5518,$D$17:$D$5518)) ->  | N39: =IF(M39="","",COUNTIF($D$17:$D$5518,M39)) ->  | O39: =IF(M39="","",SUMIF($D$17:$D$5518,M39,$G$17:$G$5518)) ->  | P39: =IF(M39="","",SUMIF($D$17:$D$5518,M39,$H$17:$H$5518)) ->  | Q39: 1
B40: =IF(ROWS(B$17:B40)<=SUMPRODUCT((الحركة!$C$6:$C$26648=$F$8)*(الحركة!$A$6:$A$26648>=$F$6)*(الحركة!$A$6:$A$26648<=$H$6)),INDEX(الحركة!$A$6:$A$26648,SMALL(IF((الحركة!$C$6:$C$26648=$F$8)*(الحركة!$A$6:$A$26648>=$F$6)*(الحركة!$A$6:$A$26648<=$H$6),ROW(الحركة!$A$6:$A$26648)-ROW(الحركة!$A$6)+1),ROWS(B$17:B40))),"") -> 2021-01-02 | C40: =IF(ROWS(A$17:A40)<=SUMPRODUCT((الحركة!$C$6:$C$26648=$F$8)*(الحركة!$A$6:$A$26648>=$F$6)*(الحركة!$A$6:$A$26648<=$H$6)),INDEX(الحركة!$C$6:$C$26648,SMALL(IF((الحركة!$C$6:$C$26648=$F$8)*(الحركة!$A$6:$A$26648>=$F$6)*(الحركة!$A$6:$A$26648<=$H$6),ROW(الحركة!$A$6:$A$26648)-ROW(الحركة!$A$6)+1),ROWS(A$17:A40))),"") -> الايرادات | D40: =IF(ROWS(B$17:B40)<=SUMPRODUCT((الحركة!$C$6:$C$26648=$F$8)*(الحركة!$A$6:$A$26648>=$F$6)*(الحركة!$A$6:$A$26648<=$H$6)),INDEX(الحركة!$E$6:$E$26648,SMALL(IF((الحركة!$C$6:$C$26648=$F$8)*(الحركة!$A$6:$A$26648>=$F$6)*(الحركة!$A$6:$A$26648<=$H$6),ROW(الحركة!$A$6:$A$26648)-ROW(الحركة!$A$6)+1),ROWS(B$17:B40))),"") -> الصيدلية | E40: =IF(ROWS(C$17:C40)<=SUMPRODUCT((الحركة!$C$6:$C$26648=$F$8)*(الحركة!$A$6:$A$26648>=$F$6)*(الحركة!$A$6:$A$26648<=$H$6)),INDEX(الحركة!$F$6:$F$26648,SMALL(IF((الحركة!$C$6:$C$26648=$F$8)*(الحركة!$A$6:$A$26648>=$F$6)*(الحركة!$A$6:$A$26648<=$H$6),ROW(الحركة!$A$6:$A$26648)-ROW(الحركة!$A$6)+1),ROWS(C$17:C40))),"") -> 430 | F40: =IF(ROWS(C$17:C40)<=SUMPRODUCT((الحركة!$C$6:$C$26648=$F$8)*(الحركة!$A$6:$A$26648>=$F$6)*(الحركة!$A$6:$A$26648<=$H$6)),INDEX(الحركة!$H$6:$H$26648,SMALL(IF((الحركة!$C$6:$C$26648=$F$8)*(الحركة!$A$6:$A$26648>=$F$6)*(الحركة!$A$6:$A$26648<=$H$6),ROW(الحركة!$A$6:$A$26648)-ROW(الحركة!$A$6)+1),ROWS(C$17:C40))),"") -> الصيدلية | G40: =IF(ROWS(B$17:B40)<=SUMPRODUCT((الحركة!$C$6:$C$26648=$F$8)*(الحركة!$A$6:$A$26648>=$F$6)*(الحركة!$A$6:$A$26648<=$H$6)),INDEX(الحركة!$I$6:$I$26648,SMALL(IF((الحركة!$C$6:$C$26648=$F$8)*(الحركة!$A$6:$A$26648>=$F$6)*(الحركة!$A$6:$A$26648<=$H$6),ROW(الحركة!$A$6:$A$26648)-ROW(الحركة!$A$6)+1),ROWS(B$17:B40))),"") -> 0 | H40: =IF(ROWS(B$17:B40)<=SUMPRODUCT((الحركة!$C$6:$C$26648=$F$8)*(الحركة!$A$6:$A$26648>=$F$6)*(الحركة!$A$6:$A$26648<=$H$6)),INDEX(الحركة!$J$6:$J$26648,SMALL(IF((الحركة!$C$6:$C$26648=$F$8)*(الحركة!$A$6:$A$26648>=$F$6)*(الحركة!$A$6:$A$26648<=$H$6),ROW(الحركة!$A$6:$A$26648)-ROW(الحركة!$A$6)+1),ROWS(B$17:B40))),"") -> 15 | I40: -15 | L40: =IF(COUNTIF($D$17:D39,D39)=1,COUNT($L$18:L39)+1,"") ->  | M40: =IF(COUNT($L$18:$L$5518)<ROW()-17,"",LOOKUP(ROW()-17,$L$18:$L$5518,$D$17:$D$5518)) ->  | N40: =IF(M40="","",COUNTIF($D$17:$D$5518,M40)) ->  | O40: =IF(M40="","",SUMIF($D$17:$D$5518,M40,$G$17:$G$5518)) ->  | P40: =IF(M40="","",SUMIF($D$17:$D$5518,M40,$H$17:$H$5518)) ->  | Q40: 1
B41: =IF(ROWS(B$17:B41)<=SUMPRODUCT((الحركة!$C$6:$C$26648=$F$8)*(الحركة!$A$6:$A$26648>=$F$6)*(الحركة!$A$6:$A$26648<=$H$6)),INDEX(الحركة!$A$6:$A$26648,SMALL(IF((الحركة!$C$6:$C$26648=$F$8)*(الحركة!$A$6:$A$26648>=$F$6)*(الحركة!$A$6:$A$26648<=$H$6),ROW(الحركة!$A$6:$A$26648)-ROW(الحركة!$A$6)+1),ROWS(B$17:B41))),"") -> 2021-01-02 | C41: =IF(ROWS(A$17:A41)<=SUMPRODUCT((الحركة!$C$6:$C$26648=$F$8)*(الحركة!$A$6:$A$26648>=$F$6)*(الحركة!$A$6:$A$26648<=$H$6)),INDEX(الحركة!$C$6:$C$26648,SMALL(IF((الحركة!$C$6:$C$26648=$F$8)*(الحركة!$A$6:$A$26648>=$F$6)*(الحركة!$A$6:$A$26648<=$H$6),ROW(الحركة!$A$6:$A$26648)-ROW(الحركة!$A$6)+1),ROWS(A$17:A41))),"") -> الايرادات | D41: =IF(ROWS(B$17:B41)<=SUMPRODUCT((الحركة!$C$6:$C$26648=$F$8)*(الحركة!$A$6:$A$26648>=$F$6)*(الحركة!$A$6:$A$26648<=$H$6)),INDEX(الحركة!$E$6:$E$26648,SMALL(IF((الحركة!$C$6:$C$26648=$F$8)*(الحركة!$A$6:$A$26648>=$F$6)*(الحركة!$A$6:$A$26648<=$H$6),ROW(الحركة!$A$6:$A$26648)-ROW(الحركة!$A$6)+1),ROWS(B$17:B41))),"") -> الصيدلية | E41: =IF(ROWS(C$17:C41)<=SUMPRODUCT((الحركة!$C$6:$C$26648=$F$8)*(الحركة!$A$6:$A$26648>=$F$6)*(الحركة!$A$6:$A$26648<=$H$6)),INDEX(الحركة!$F$6:$F$26648,SMALL(IF((الحركة!$C$6:$C$26648=$F$8)*(الحركة!$A$6:$A$26648>=$F$6)*(الحركة!$A$6:$A$26648<=$H$6),ROW(الحركة!$A$6:$A$26648)-ROW(الحركة!$A$6)+1),ROWS(C$17:C41))),"") -> 431 | F41: =IF(ROWS(C$17:C41)<=SUMPRODUCT((الحركة!$C$6:$C$26648=$F$8)*(الحركة!$A$6:$A$26648>=$F$6)*(الحركة!$A$6:$A$26648<=$H$6)),INDEX(الحركة!$H$6:$H$26648,SMALL(IF((الحركة!$C$6:$C$26648=$F$8)*(الحركة!$A$6:$A$26648>=$F$6)*(الحركة!$A$6:$A$26648<=$H$6),ROW(الحركة!$A$6:$A$26648)-ROW(الحركة!$A$6)+1),ROWS(C$17:C41))),"") -> الصيدلية | G41: =IF(ROWS(B$17:B41)<=SUMPRODUCT((الحركة!$C$6:$C$26648=$F$8)*(الحركة!$A$6:$A$26648>=$F$6)*(الحركة!$A$6:$A$26648<=$H$6)),INDEX(الحركة!$I$6:$I$26648,SMALL(IF((الحركة!$C$6:$C$26648=$F$8)*(الحركة!$A$6:$A$26648>=$F$6)*(الحركة!$A$6:$A$26648<=$H$6),ROW(الحركة!$A$6:$A$26648)-ROW(الحركة!$A$6)+1),ROWS(B$17:B41))),"") -> 0 | H41: =IF(ROWS(B$17:B41)<=SUMPRODUCT((الحركة!$C$6:$C$26648=$F$8)*(الحركة!$A$6:$A$26648>=$F$6)*(الحركة!$A$6:$A$26648<=$H$6)),INDEX(الحركة!$J$6:$J$26648,SMALL(IF((الحركة!$C$6:$C$26648=$F$8)*(الحركة!$A$6:$A$26648>=$F$6)*(الحركة!$A$6:$A$26648<=$H$6),ROW(الحركة!$A$6:$A$26648)-ROW(الحركة!$A$6)+1),ROWS(B$17:B41))),"") -> 26 | I41: -26 | L41: =IF(COUNTIF($D$17:D40,D40)=1,COUNT($L$18:L40)+1,"") ->  | M41: =IF(COUNT($L$18:$L$5518)<ROW()-17,"",LOOKUP(ROW()-17,$L$18:$L$5518,$D$17:$D$5518)) ->  | N41: =IF(M41="","",COUNTIF($D$17:$D$5518,M41)) ->  | O41: =IF(M41="","",SUMIF($D$17:$D$5518,M41,$G$17:$G$5518)) ->  | P41: =IF(M41="","",SUMIF($D$17:$D$5518,M41,$H$17:$H$5518)) ->  | Q41: 1
B42: =IF(ROWS(B$17:B42)<=SUMPRODUCT((الحركة!$C$6:$C$26648=$F$8)*(الحركة!$A$6:$A$26648>=$F$6)*(الحركة!$A$6:$A$26648<=$H$6)),INDEX(الحركة!$A$6:$A$26648,SMALL(IF((الحركة!$C$6:$C$26648=$F$8)*(الحركة!$A$6:$A$26648>=$F$6)*(الحركة!$A$6:$A$26648<=$H$6),ROW(الحركة!$A$6:$A$26648)-ROW(الحركة!$A$6)+1),ROWS(B$17:B42))),"") -> 2021-01-02 | C42: =IF(ROWS(A$17:A42)<=SUMPRODUCT((الحركة!$C$6:$C$26648=$F$8)*(الحركة!$A$6:$A$26648>=$F$6)*(الحركة!$A$6:$A$26648<=$H$6)),INDEX(الحركة!$C$6:$C$26648,SMALL(IF((الحركة!$C$6:$C$26648=$F$8)*(الحركة!$A$6:$A$26648>=$F$6)*(الحركة!$A$6:$A$26648<=$H$6),ROW(الحركة!$A$6:$A$26648)-ROW(الحركة!$A$6)+1),ROWS(A$17:A42))),"") -> الايرادات | D42: =IF(ROWS(B$17:B42)<=SUMPRODUCT((الحركة!$C$6:$C$26648=$F$8)*(الحركة!$A$6:$A$26648>=$F$6)*(الحركة!$A$6:$A$26648<=$H$6)),INDEX(الحركة!$E$6:$E$26648,SMALL(IF((الحركة!$C$6:$C$26648=$F$8)*(الحركة!$A$6:$A$26648>=$F$6)*(الحركة!$A$6:$A$26648<=$H$6),ROW(الحركة!$A$6:$A$26648)-ROW(الحركة!$A$6)+1),ROWS(B$17:B42))),"") -> الاسعاف | E42: =IF(ROWS(C$17:C42)<=SUMPRODUCT((الحركة!$C$6:$C$26648=$F$8)*(الحركة!$A$6:$A$26648>=$F$6)*(الحركة!$A$6:$A$26648<=$H$6)),INDEX(الحركة!$F$6:$F$26648,SMALL(IF((الحركة!$C$6:$C$26648=$F$8)*(الحركة!$A$6:$A$26648>=$F$6)*(الحركة!$A$6:$A$26648<=$H$6),ROW(الحركة!$A$6:$A$26648)-ROW(الحركة!$A$6)+1),ROWS(C$17:C42))),"") -> 432 | F42: =IF(ROWS(C$17:C42)<=SUMPRODUCT((الحركة!$C$6:$C$26648=$F$8)*(الحركة!$A$6:$A$26648>=$F$6)*(الحركة!$A$6:$A$26648<=$H$6)),INDEX(الحركة!$H$6:$H$26648,SMALL(IF((الحركة!$C$6:$C$26648=$F$8)*(الحركة!$A$6:$A$26648>=$F$6)*(الحركة!$A$6:$A$26648<=$H$6),ROW(الحركة!$A$6:$A$26648)-ROW(الحركة!$A$6)+1),ROWS(C$17:C42))),"") -> الاسعاف | G42: =IF(ROWS(B$17:B42)<=SUMPRODUCT((الحركة!$C$6:$C$26648=$F$8)*(الحركة!$A$6:$A$26648>=$F$6)*(الحركة!$A$6:$A$26648<=$H$6)),INDEX(الحركة!$I$6:$I$26648,SMALL(IF((الحركة!$C$6:$C$26648=$F$8)*(الحركة!$A$6:$A$26648>=$F$6)*(الحركة!$A$6:$A$26648<=$H$6),ROW(الحركة!$A$6:$A$26648)-ROW(الحركة!$A$6)+1),ROWS(B$17:B42))),"") -> 0 | H42: =IF(ROWS(B$17:B42)<=SUMPRODUCT((الحركة!$C$6:$C$26648=$F$8)*(الحركة!$A$6:$A$26648>=$F$6)*(الحركة!$A$6:$A$26648<=$H$6)),INDEX(الحركة!$J$6:$J$26648,SMALL(IF((الحركة!$C$6:$C$26648=$F$8)*(الحركة!$A$6:$A$26648>=$F$6)*(الحركة!$A$6:$A$26648<=$H$6),ROW(الحركة!$A$6:$A$26648)-ROW(الحركة!$A$6)+1),ROWS(B$17:B42))),"") -> 2 | I42: -2 | L42: =IF(COUNTIF($D$17:D41,D41)=1,COUNT($L$18:L41)+1,"") ->  | M42: =IF(COUNT($L$18:$L$5518)<ROW()-17,"",LOOKUP(ROW()-17,$L$18:$L$5518,$D$17:$D$5518)) ->  | N42: =IF(M42="","",COUNTIF($D$17:$D$5518,M42)) ->  | O42: =IF(M42="","",SUMIF($D$17:$D$5518,M42,$G$17:$G$5518)) ->  | P42: =IF(M42="","",SUMIF($D$17:$D$5518,M42,$H$17:$H$5518)) ->  | Q42: 1
B43: =IF(ROWS(B$17:B43)<=SUMPRODUCT((الحركة!$C$6:$C$26648=$F$8)*(الحركة!$A$6:$A$26648>=$F$6)*(الحركة!$A$6:$A$26648<=$H$6)),INDEX(الحركة!$A$6:$A$26648,SMALL(IF((الحركة!$C$6:$C$26648=$F$8)*(الحركة!$A$6:$A$26648>=$F$6)*(الحركة!$A$6:$A$26648<=$H$6),ROW(الحركة!$A$6:$A$26648)-ROW(الحركة!$A$6)+1),ROWS(B$17:B43))),"") -> 2021-01-02 | C43: =IF(ROWS(A$17:A43)<=SUMPRODUCT((الحركة!$C$6:$C$26648=$F$8)*(الحركة!$A$6:$A$26648>=$F$6)*(الحركة!$A$6:$A$26648<=$H$6)),INDEX(الحركة!$C$6:$C$26648,SMALL(IF((الحركة!$C$6:$C$26648=$F$8)*(الحركة!$A$6:$A$26648>=$F$6)*(الحركة!$A$6:$A$26648<=$H$6),ROW(الحركة!$A$6:$A$26648)-ROW(الحركة!$A$6)+1),ROWS(A$17:A43))),"") -> الايرادات | D43: =IF(ROWS(B$17:B43)<=SUMPRODUCT((الحركة!$C$6:$C$26648=$F$8)*(الحركة!$A$6:$A$26648>=$F$6)*(الحركة!$A$6:$A$26648<=$H$6)),INDEX(الحركة!$E$6:$E$26648,SMALL(IF((الحركة!$C$6:$C$26648=$F$8)*(الحركة!$A$6:$A$26648>=$F$6)*(الحركة!$A$6:$A$26648<=$H$6),ROW(الحركة!$A$6:$A$26648)-ROW(الحركة!$A$6)+1),ROWS(B$17:B43))),"") -> الصيدلية | E43: =IF(ROWS(C$17:C43)<=SUMPRODUCT((الحركة!$C$6:$C$26648=$F$8)*(الحركة!$A$6:$A$26648>=$F$6)*(الحركة!$A$6:$A$26648<=$H$6)),INDEX(الحركة!$F$6:$F$26648,SMALL(IF((الحركة!$C$6:$C$26648=$F$8)*(الحركة!$A$6:$A$26648>=$F$6)*(الحركة!$A$6:$A$26648<=$H$6),ROW(الحركة!$A$6:$A$26648)-ROW(الحركة!$A$6)+1),ROWS(C$17:C43))),"") -> 433 | F43: =IF(ROWS(C$17:C43)<=SUMPRODUCT((الحركة!$C$6:$C$26648=$F$8)*(الحركة!$A$6:$A$26648>=$F$6)*(الحركة!$A$6:$A$26648<=$H$6)),INDEX(الحركة!$H$6:$H$26648,SMALL(IF((الحركة!$C$6:$C$26648=$F$8)*(الحركة!$A$6:$A$26648>=$F$6)*(الحركة!$A$6:$A$26648<=$H$6),ROW(الحركة!$A$6:$A$26648)-ROW(الحركة!$A$6)+1),ROWS(C$17:C43))),"") -> الصيدلية | G43: =IF(ROWS(B$17:B43)<=SUMPRODUCT((الحركة!$C$6:$C$26648=$F$8)*(الحركة!$A$6:$A$26648>=$F$6)*(الحركة!$A$6:$A$26648<=$H$6)),INDEX(الحركة!$I$6:$I$26648,SMALL(IF((الحركة!$C$6:$C$26648=$F$8)*(الحركة!$A$6:$A$26648>=$F$6)*(الحركة!$A$6:$A$26648<=$H$6),ROW(الحركة!$A$6:$A$26648)-ROW(الحركة!$A$6)+1),ROWS(B$17:B43))),"") -> 0 | H43: =IF(ROWS(B$17:B43)<=SUMPRODUCT((الحركة!$C$6:$C$26648=$F$8)*(الحركة!$A$6:$A$26648>=$F$6)*(الحركة!$A$6:$A$26648<=$H$6)),INDEX(الحركة!$J$6:$J$26648,SMALL(IF((الحركة!$C$6:$C$26648=$F$8)*(الحركة!$A$6:$A$26648>=$F$6)*(الحركة!$A$6:$A$26648<=$H$6),ROW(الحركة!$A$6:$A$26648)-ROW(الحركة!$A$6)+1),ROWS(B$17:B43))),"") -> 33 | I43: -33 | L43: =IF(COUNTIF($D$17:D42,D42)=1,COUNT($L$18:L42)+1,"") ->  | M43: =IF(COUNT($L$18:$L$5518)<ROW()-17,"",LOOKUP(ROW()-17,$L$18:$L$5518,$D$17:$D$5518)) ->  | N43: =IF(M43="","",COUNTIF($D$17:$D$5518,M43)) ->  | O43: =IF(M43="","",SUMIF($D$17:$D$5518,M43,$G$17:$G$5518)) ->  | P43: =IF(M43="","",SUMIF($D$17:$D$5518,M43,$H$17:$H$5518)) ->  | Q43: 1
B44: =IF(ROWS(B$17:B44)<=SUMPRODUCT((الحركة!$C$6:$C$26648=$F$8)*(الحركة!$A$6:$A$26648>=$F$6)*(الحركة!$A$6:$A$26648<=$H$6)),INDEX(الحركة!$A$6:$A$26648,SMALL(IF((الحركة!$C$6:$C$26648=$F$8)*(الحركة!$A$6:$A$26648>=$F$6)*(الحركة!$A$6:$A$26648<=$H$6),ROW(الحركة!$A$6:$A$26648)-ROW(الحركة!$A$6)+1),ROWS(B$17:B44))),"") -> 2021-01-02 | C44: =IF(ROWS(A$17:A44)<=SUMPRODUCT((الحركة!$C$6:$C$26648=$F$8)*(الحركة!$A$6:$A$26648>=$F$6)*(الحركة!$A$6:$A$26648<=$H$6)),INDEX(الحركة!$C$6:$C$26648,SMALL(IF((الحركة!$C$6:$C$26648=$F$8)*(الحركة!$A$6:$A$26648>=$F$6)*(الحركة!$A$6:$A$26648<=$H$6),ROW(الحركة!$A$6:$A$26648)-ROW(الحركة!$A$6)+1),ROWS(A$17:A44))),"") -> الايرادات | D44: =IF(ROWS(B$17:B44)<=SUMPRODUCT((الحركة!$C$6:$C$26648=$F$8)*(الحركة!$A$6:$A$26648>=$F$6)*(الحركة!$A$6:$A$26648<=$H$6)),INDEX(الحركة!$E$6:$E$26648,SMALL(IF((الحركة!$C$6:$C$26648=$F$8)*(الحركة!$A$6:$A$26648>=$F$6)*(الحركة!$A$6:$A$26648<=$H$6),ROW(الحركة!$A$6:$A$26648)-ROW(الحركة!$A$6)+1),ROWS(B$17:B44))),"") -> الاسعاف | E44: =IF(ROWS(C$17:C44)<=SUMPRODUCT((الحركة!$C$6:$C$26648=$F$8)*(الحركة!$A$6:$A$26648>=$F$6)*(الحركة!$A$6:$A$26648<=$H$6)),INDEX(الحركة!$F$6:$F$26648,SMALL(IF((الحركة!$C$6:$C$26648=$F$8)*(الحركة!$A$6:$A$26648>=$F$6)*(الحركة!$A$6:$A$26648<=$H$6),ROW(الحركة!$A$6:$A$26648)-ROW(الحركة!$A$6)+1),ROWS(C$17:C44))),"") -> 434 | F44: =IF(ROWS(C$17:C44)<=SUMPRODUCT((الحركة!$C$6:$C$26648=$F$8)*(الحركة!$A$6:$A$26648>=$F$6)*(الحركة!$A$6:$A$26648<=$H$6)),INDEX(الحركة!$H$6:$H$26648,SMALL(IF((الحركة!$C$6:$C$26648=$F$8)*(الحركة!$A$6:$A$26648>=$F$6)*(الحركة!$A$6:$A$26648<=$H$6),ROW(الحركة!$A$6:$A$26648)-ROW(الحركة!$A$6)+1),ROWS(C$17:C44))),"") -> الاسعاف | G44: =IF(ROWS(B$17:B44)<=SUMPRODUCT((الحركة!$C$6:$C$26648=$F$8)*(الحركة!$A$6:$A$26648>=$F$6)*(الحركة!$A$6:$A$26648<=$H$6)),INDEX(الحركة!$I$6:$I$26648,SMALL(IF((الحركة!$C$6:$C$26648=$F$8)*(الحركة!$A$6:$A$26648>=$F$6)*(الحركة!$A$6:$A$26648<=$H$6),ROW(الحركة!$A$6:$A$26648)-ROW(الحركة!$A$6)+1),ROWS(B$17:B44))),"") -> 0 | H44: =IF(ROWS(B$17:B44)<=SUMPRODUCT((الحركة!$C$6:$C$26648=$F$8)*(الحركة!$A$6:$A$26648>=$F$6)*(الحركة!$A$6:$A$26648<=$H$6)),INDEX(الحركة!$J$6:$J$26648,SMALL(IF((الحركة!$C$6:$C$26648=$F$8)*(الحركة!$A$6:$A$26648>=$F$6)*(الحركة!$A$6:$A$26648<=$H$6),ROW(الحركة!$A$6:$A$26648)-ROW(الحركة!$A$6)+1),ROWS(B$17:B44))),"") -> 50 | I44: -50 | L44: =IF(COUNTIF($D$17:D43,D43)=1,COUNT($L$18:L43)+1,"") ->  | M44: =IF(COUNT($L$18:$L$5518)<ROW()-17,"",LOOKUP(ROW()-17,$L$18:$L$5518,$D$17:$D$5518)) ->  | N44: =IF(M44="","",COUNTIF($D$17:$D$5518,M44)) ->  | O44: =IF(M44="","",SUMIF($D$17:$D$5518,M44,$G$17:$G$5518)) ->  | P44: =IF(M44="","",SUMIF($D$17:$D$5518,M44,$H$17:$H$5518)) ->  | Q44: 1
B45: =IF(ROWS(B$17:B45)<=SUMPRODUCT((الحركة!$C$6:$C$26648=$F$8)*(الحركة!$A$6:$A$26648>=$F$6)*(الحركة!$A$6:$A$26648<=$H$6)),INDEX(الحركة!$A$6:$A$26648,SMALL(IF((الحركة!$C$6:$C$26648=$F$8)*(الحركة!$A$6:$A$26648>=$F$6)*(الحركة!$A$6:$A$26648<=$H$6),ROW(الحركة!$A$6:$A$26648)-ROW(الحركة!$A$6)+1),ROWS(B$17:B45))),"") -> 2021-01-02 | C45: =IF(ROWS(A$17:A45)<=SUMPRODUCT((الحركة!$C$6:$C$26648=$F$8)*(الحركة!$A$6:$A$26648>=$F$6)*(الحركة!$A$6:$A$26648<=$H$6)),INDEX(الحركة!$C$6:$C$26648,SMALL(IF((الحركة!$C$6:$C$26648=$F$8)*(الحركة!$A$6:$A$26648>=$F$6)*(الحركة!$A$6:$A$26648<=$H$6),ROW(الحركة!$A$6:$A$26648)-ROW(الحركة!$A$6)+1),ROWS(A$17:A45))),"") -> الايرادات | D45: =IF(ROWS(B$17:B45)<=SUMPRODUCT((الحركة!$C$6:$C$26648=$F$8)*(الحركة!$A$6:$A$26648>=$F$6)*(الحركة!$A$6:$A$26648<=$H$6)),INDEX(الحركة!$E$6:$E$26648,SMALL(IF((الحركة!$C$6:$C$26648=$F$8)*(الحركة!$A$6:$A$26648>=$F$6)*(الحركة!$A$6:$A$26648<=$H$6),ROW(الحركة!$A$6:$A$26648)-ROW(الحركة!$A$6)+1),ROWS(B$17:B45))),"") -> الصيدلية | E45: =IF(ROWS(C$17:C45)<=SUMPRODUCT((الحركة!$C$6:$C$26648=$F$8)*(الحركة!$A$6:$A$26648>=$F$6)*(الحركة!$A$6:$A$26648<=$H$6)),INDEX(الحركة!$F$6:$F$26648,SMALL(IF((الحركة!$C$6:$C$26648=$F$8)*(الحركة!$A$6:$A$26648>=$F$6)*(الحركة!$A$6:$A$26648<=$H$6),ROW(الحركة!$A$6:$A$26648)-ROW(الحركة!$A$6)+1),ROWS(C$17:C45))),"") -> 435 | F45: =IF(ROWS(C$17:C45)<=SUMPRODUCT((الحركة!$C$6:$C$26648=$F$8)*(الحركة!$A$6:$A$26648>=$F$6)*(الحركة!$A$6:$A$26648<=$H$6)),INDEX(الحركة!$H$6:$H$26648,SMALL(IF((الحركة!$C$6:$C$26648=$F$8)*(الحركة!$A$6:$A$26648>=$F$6)*(الحركة!$A$6:$A$26648<=$H$6),ROW(الحركة!$A$6:$A$26648)-ROW(الحركة!$A$6)+1),ROWS(C$17:C45))),"") -> الصيدلية | G45: =IF(ROWS(B$17:B45)<=SUMPRODUCT((الحركة!$C$6:$C$26648=$F$8)*(الحركة!$A$6:$A$26648>=$F$6)*(الحركة!$A$6:$A$26648<=$H$6)),INDEX(الحركة!$I$6:$I$26648,SMALL(IF((الحركة!$C$6:$C$26648=$F$8)*(الحركة!$A$6:$A$26648>=$F$6)*(الحركة!$A$6:$A$26648<=$H$6),ROW(الحركة!$A$6:$A$26648)-ROW(الحركة!$A$6)+1),ROWS(B$17:B45))),"") -> 0 | H45: =IF(ROWS(B$17:B45)<=SUMPRODUCT((الحركة!$C$6:$C$26648=$F$8)*(الحركة!$A$6:$A$26648>=$F$6)*(الحركة!$A$6:$A$26648<=$H$6)),INDEX(الحركة!$J$6:$J$26648,SMALL(IF((الحركة!$C$6:$C$26648=$F$8)*(الحركة!$A$6:$A$26648>=$F$6)*(الحركة!$A$6:$A$26648<=$H$6),ROW(الحركة!$A$6:$A$26648)-ROW(الحركة!$A$6)+1),ROWS(B$17:B45))),"") -> 45 | I45: -45 | L45: =IF(COUNTIF($D$17:D44,D44)=1,COUNT($L$18:L44)+1,"") ->  | M45: =IF(COUNT($L$18:$L$5518)<ROW()-17,"",LOOKUP(ROW()-17,$L$18:$L$5518,$D$17:$D$5518)) ->  | N45: =IF(M45="","",COUNTIF($D$17:$D$5518,M45)) ->  | O45: =IF(M45="","",SUMIF($D$17:$D$5518,M45,$G$17:$G$5518)) ->  | P45: =IF(M45="","",SUMIF($D$17:$D$5518,M45,$H$17:$H$5518)) ->  | Q45: 1
B46: =IF(ROWS(B$17:B46)<=SUMPRODUCT((الحركة!$C$6:$C$26648=$F$8)*(الحركة!$A$6:$A$26648>=$F$6)*(الحركة!$A$6:$A$26648<=$H$6)),INDEX(الحركة!$A$6:$A$26648,SMALL(IF((الحركة!$C$6:$C$26648=$F$8)*(الحركة!$A$6:$A$26648>=$F$6)*(الحركة!$A$6:$A$26648<=$H$6),ROW(الحركة!$A$6:$A$26648)-ROW(الحركة!$A$6)+1),ROWS(B$17:B46))),"") -> 2021-01-02 | C46: =IF(ROWS(A$17:A46)<=SUMPRODUCT((الحركة!$C$6:$C$26648=$F$8)*(الحركة!$A$6:$A$26648>=$F$6)*(الحركة!$A$6:$A$26648<=$H$6)),INDEX(الحركة!$C$6:$C$26648,SMALL(IF((الحركة!$C$6:$C$26648=$F$8)*(الحركة!$A$6:$A$26648>=$F$6)*(الحركة!$A$6:$A$26648<=$H$6),ROW(الحركة!$A$6:$A$26648)-ROW(الحركة!$A$6)+1),ROWS(A$17:A46))),"") -> الايرادات | D46: =IF(ROWS(B$17:B46)<=SUMPRODUCT((الحركة!$C$6:$C$26648=$F$8)*(الحركة!$A$6:$A$26648>=$F$6)*(الحركة!$A$6:$A$26648<=$H$6)),INDEX(الحركة!$E$6:$E$26648,SMALL(IF((الحركة!$C$6:$C$26648=$F$8)*(الحركة!$A$6:$A$26648>=$F$6)*(الحركة!$A$6:$A$26648<=$H$6),ROW(الحركة!$A$6:$A$26648)-ROW(الحركة!$A$6)+1),ROWS(B$17:B46))),"") -> الاسعاف | E46: =IF(ROWS(C$17:C46)<=SUMPRODUCT((الحركة!$C$6:$C$26648=$F$8)*(الحركة!$A$6:$A$26648>=$F$6)*(الحركة!$A$6:$A$26648<=$H$6)),INDEX(الحركة!$F$6:$F$26648,SMALL(IF((الحركة!$C$6:$C$26648=$F$8)*(الحركة!$A$6:$A$26648>=$F$6)*(الحركة!$A$6:$A$26648<=$H$6),ROW(الحركة!$A$6:$A$26648)-ROW(الحركة!$A$6)+1),ROWS(C$17:C46))),"") -> 436 | F46: =IF(ROWS(C$17:C46)<=SUMPRODUCT((الحركة!$C$6:$C$26648=$F$8)*(الحركة!$A$6:$A$26648>=$F$6)*(الحركة!$A$6:$A$26648<=$H$6)),INDEX(الحركة!$H$6:$H$26648,SMALL(IF((الحركة!$C$6:$C$26648=$F$8)*(الحركة!$A$6:$A$26648>=$F$6)*(الحركة!$A$6:$A$26648<=$H$6),ROW(الحركة!$A$6:$A$26648)-ROW(الحركة!$A$6)+1),ROWS(C$17:C46))),"") -> الاسعاف | G46: =IF(ROWS(B$17:B46)<=SUMPRODUCT((الحركة!$C$6:$C$26648=$F$8)*(الحركة!$A$6:$A$26648>=$F$6)*(الحركة!$A$6:$A$26648<=$H$6)),INDEX(الحركة!$I$6:$I$26648,SMALL(IF((الحركة!$C$6:$C$26648=$F$8)*(الحركة!$A$6:$A$26648>=$F$6)*(الحركة!$A$6:$A$26648<=$H$6),ROW(الحركة!$A$6:$A$26648)-ROW(الحركة!$A$6)+1),ROWS(B$17:B46))),"") -> 0 | H46: =IF(ROWS(B$17:B46)<=SUMPRODUCT((الحركة!$C$6:$C$26648=$F$8)*(الحركة!$A$6:$A$26648>=$F$6)*(الحركة!$A$6:$A$26648<=$H$6)),INDEX(الحركة!$J$6:$J$26648,SMALL(IF((الحركة!$C$6:$C$26648=$F$8)*(الحركة!$A$6:$A$26648>=$F$6)*(الحركة!$A$6:$A$26648<=$H$6),ROW(الحركة!$A$6:$A$26648)-ROW(الحركة!$A$6)+1),ROWS(B$17:B46))),"") -> 10 | I46: -10 | L46: =IF(COUNTIF($D$17:D45,D45)=1,COUNT($L$18:L45)+1,"") ->  | M46: =IF(COUNT($L$18:$L$5518)<ROW()-17,"",LOOKUP(ROW()-17,$L$18:$L$5518,$D$17:$D$5518)) ->  | N46: =IF(M46="","",COUNTIF($D$17:$D$5518,M46)) ->  | O46: =IF(M46="","",SUMIF($D$17:$D$5518,M46,$G$17:$G$5518)) ->  | P46: =IF(M46="","",SUMIF($D$17:$D$5518,M46,$H$17:$H$5518)) ->  | Q46: 1
B47: =IF(ROWS(B$17:B47)<=SUMPRODUCT((الحركة!$C$6:$C$26648=$F$8)*(الحركة!$A$6:$A$26648>=$F$6)*(الحركة!$A$6:$A$26648<=$H$6)),INDEX(الحركة!$A$6:$A$26648,SMALL(IF((الحركة!$C$6:$C$26648=$F$8)*(الحركة!$A$6:$A$26648>=$F$6)*(الحركة!$A$6:$A$26648<=$H$6),ROW(الحركة!$A$6:$A$26648)-ROW(الحركة!$A$6)+1),ROWS(B$17:B47))),"") -> 2021-01-02 | C47: =IF(ROWS(A$17:A47)<=SUMPRODUCT((الحركة!$C$6:$C$26648=$F$8)*(الحركة!$A$6:$A$26648>=$F$6)*(الحركة!$A$6:$A$26648<=$H$6)),INDEX(الحركة!$C$6:$C$26648,SMALL(IF((الحركة!$C$6:$C$26648=$F$8)*(الحركة!$A$6:$A$26648>=$F$6)*(الحركة!$A$6:$A$26648<=$H$6),ROW(الحركة!$A$6:$A$26648)-ROW(الحركة!$A$6)+1),ROWS(A$17:A47))),"") -> الايرادات | D47: =IF(ROWS(B$17:B47)<=SUMPRODUCT((الحركة!$C$6:$C$26648=$F$8)*(الحركة!$A$6:$A$26648>=$F$6)*(الحركة!$A$6:$A$26648<=$H$6)),INDEX(الحركة!$E$6:$E$26648,SMALL(IF((الحركة!$C$6:$C$26648=$F$8)*(الحركة!$A$6:$A$26648>=$F$6)*(الحركة!$A$6:$A$26648<=$H$6),ROW(الحركة!$A$6:$A$26648)-ROW(الحركة!$A$6)+1),ROWS(B$17:B47))),"") -> قسم الجراحة | E47: =IF(ROWS(C$17:C47)<=SUMPRODUCT((الحركة!$C$6:$C$26648=$F$8)*(الحركة!$A$6:$A$26648>=$F$6)*(الحركة!$A$6:$A$26648<=$H$6)),INDEX(الحركة!$F$6:$F$26648,SMALL(IF((الحركة!$C$6:$C$26648=$F$8)*(الحركة!$A$6:$A$26648>=$F$6)*(الحركة!$A$6:$A$26648<=$H$6),ROW(الحركة!$A$6:$A$26648)-ROW(الحركة!$A$6)+1),ROWS(C$17:C47))),"") -> 439 | F47: =IF(ROWS(C$17:C47)<=SUMPRODUCT((الحركة!$C$6:$C$26648=$F$8)*(الحركة!$A$6:$A$26648>=$F$6)*(الحركة!$A$6:$A$26648<=$H$6)),INDEX(الحركة!$H$6:$H$26648,SMALL(IF((الحركة!$C$6:$C$26648=$F$8)*(الحركة!$A$6:$A$26648>=$F$6)*(الحركة!$A$6:$A$26648<=$H$6),ROW(الحركة!$A$6:$A$26648)-ROW(الحركة!$A$6)+1),ROWS(C$17:C47))),"") -> محمد الأخضر | G47: =IF(ROWS(B$17:B47)<=SUMPRODUCT((الحركة!$C$6:$C$26648=$F$8)*(الحركة!$A$6:$A$26648>=$F$6)*(الحركة!$A$6:$A$26648<=$H$6)),INDEX(الحركة!$I$6:$I$26648,SMALL(IF((الحركة!$C$6:$C$26648=$F$8)*(الحركة!$A$6:$A$26648>=$F$6)*(الحركة!$A$6:$A$26648<=$H$6),ROW(الحركة!$A$6:$A$26648)-ROW(الحركة!$A$6)+1),ROWS(B$17:B47))),"") -> 0 | H47: =IF(ROWS(B$17:B47)<=SUMPRODUCT((الحركة!$C$6:$C$26648=$F$8)*(الحركة!$A$6:$A$26648>=$F$6)*(الحركة!$A$6:$A$26648<=$H$6)),INDEX(الحركة!$J$6:$J$26648,SMALL(IF((الحركة!$C$6:$C$26648=$F$8)*(الحركة!$A$6:$A$26648>=$F$6)*(الحركة!$A$6:$A$26648<=$H$6),ROW(الحركة!$A$6:$A$26648)-ROW(الحركة!$A$6)+1),ROWS(B$17:B47))),"") -> 20 | I47: -20 | L47: =IF(COUNTIF($D$17:D46,D46)=1,COUNT($L$18:L46)+1,"") ->  | M47: =IF(COUNT($L$18:$L$5518)<ROW()-17,"",LOOKUP(ROW()-17,$L$18:$L$5518,$D$17:$D$5518)) ->  | N47: =IF(M47="","",COUNTIF($D$17:$D$5518,M47)) ->  | O47: =IF(M47="","",SUMIF($D$17:$D$5518,M47,$G$17:$G$5518)) ->  | P47: =IF(M47="","",SUMIF($D$17:$D$5518,M47,$H$17:$H$5518)) ->  | Q47: 1
B48: =IF(ROWS(B$17:B48)<=SUMPRODUCT((الحركة!$C$6:$C$26648=$F$8)*(الحركة!$A$6:$A$26648>=$F$6)*(الحركة!$A$6:$A$26648<=$H$6)),INDEX(الحركة!$A$6:$A$26648,SMALL(IF((الحركة!$C$6:$C$26648=$F$8)*(الحركة!$A$6:$A$26648>=$F$6)*(الحركة!$A$6:$A$26648<=$H$6),ROW(الحركة!$A$6:$A$26648)-ROW(الحركة!$A$6)+1),ROWS(B$17:B48))),"") -> 2021-01-02 | C48: =IF(ROWS(A$17:A48)<=SUMPRODUCT((الحركة!$C$6:$C$26648=$F$8)*(الحركة!$A$6:$A$26648>=$F$6)*(الحركة!$A$6:$A$26648<=$H$6)),INDEX(الحركة!$C$6:$C$26648,SMALL(IF((الحركة!$C$6:$C$26648=$F$8)*(الحركة!$A$6:$A$26648>=$F$6)*(الحركة!$A$6:$A$26648<=$H$6),ROW(الحركة!$A$6:$A$26648)-ROW(الحركة!$A$6)+1),ROWS(A$17:A48))),"") -> الايرادات | D48: =IF(ROWS(B$17:B48)<=SUMPRODUCT((الحركة!$C$6:$C$26648=$F$8)*(الحركة!$A$6:$A$26648>=$F$6)*(الحركة!$A$6:$A$26648<=$H$6)),INDEX(الحركة!$E$6:$E$26648,SMALL(IF((الحركة!$C$6:$C$26648=$F$8)*(الحركة!$A$6:$A$26648>=$F$6)*(الحركة!$A$6:$A$26648<=$H$6),ROW(الحركة!$A$6:$A$26648)-ROW(الحركة!$A$6)+1),ROWS(B$17:B48))),"") -> الاسعاف | E48: =IF(ROWS(C$17:C48)<=SUMPRODUCT((الحركة!$C$6:$C$26648=$F$8)*(الحركة!$A$6:$A$26648>=$F$6)*(الحركة!$A$6:$A$26648<=$H$6)),INDEX(الحركة!$F$6:$F$26648,SMALL(IF((الحركة!$C$6:$C$26648=$F$8)*(الحركة!$A$6:$A$26648>=$F$6)*(الحركة!$A$6:$A$26648<=$H$6),ROW(الحركة!$A$6:$A$26648)-ROW(الحركة!$A$6)+1),ROWS(C$17:C48))),"") -> 440 | F48: =IF(ROWS(C$17:C48)<=SUMPRODUCT((الحركة!$C$6:$C$26648=$F$8)*(الحركة!$A$6:$A$26648>=$F$6)*(الحركة!$A$6:$A$26648<=$H$6)),INDEX(الحركة!$H$6:$H$26648,SMALL(IF((الحركة!$C$6:$C$26648=$F$8)*(الحركة!$A$6:$A$26648>=$F$6)*(الحركة!$A$6:$A$26648<=$H$6),ROW(الحركة!$A$6:$A$26648)-ROW(الحركة!$A$6)+1),ROWS(C$17:C48))),"") -> الاسعاف | G48: =IF(ROWS(B$17:B48)<=SUMPRODUCT((الحركة!$C$6:$C$26648=$F$8)*(الحركة!$A$6:$A$26648>=$F$6)*(الحركة!$A$6:$A$26648<=$H$6)),INDEX(الحركة!$I$6:$I$26648,SMALL(IF((الحركة!$C$6:$C$26648=$F$8)*(الحركة!$A$6:$A$26648>=$F$6)*(الحركة!$A$6:$A$26648<=$H$6),ROW(الحركة!$A$6:$A$26648)-ROW(الحركة!$A$6)+1),ROWS(B$17:B48))),"") -> 0 | H48: =IF(ROWS(B$17:B48)<=SUMPRODUCT((الحركة!$C$6:$C$26648=$F$8)*(الحركة!$A$6:$A$26648>=$F$6)*(الحركة!$A$6:$A$26648<=$H$6)),INDEX(الحركة!$J$6:$J$26648,SMALL(IF((الحركة!$C$6:$C$26648=$F$8)*(الحركة!$A$6:$A$26648>=$F$6)*(الحركة!$A$6:$A$26648<=$H$6),ROW(الحركة!$A$6:$A$26648)-ROW(الحركة!$A$6)+1),ROWS(B$17:B48))),"") -> 60 | I48: -60 | L48: =IF(COUNTIF($D$17:D47,D47)=1,COUNT($L$18:L47)+1,"") ->  | M48: =IF(COUNT($L$18:$L$5518)<ROW()-17,"",LOOKUP(ROW()-17,$L$18:$L$5518,$D$17:$D$5518)) ->  | N48: =IF(M48="","",COUNTIF($D$17:$D$5518,M48)) ->  | O48: =IF(M48="","",SUMIF($D$17:$D$5518,M48,$G$17:$G$5518)) ->  | P48: =IF(M48="","",SUMIF($D$17:$D$5518,M48,$H$17:$H$5518)) ->  | Q48: 1
B49: =IF(ROWS(B$17:B49)<=SUMPRODUCT((الحركة!$C$6:$C$26648=$F$8)*(الحركة!$A$6:$A$26648>=$F$6)*(الحركة!$A$6:$A$26648<=$H$6)),INDEX(الحركة!$A$6:$A$26648,SMALL(IF((الحركة!$C$6:$C$26648=$F$8)*(الحركة!$A$6:$A$26648>=$F$6)*(الحركة!$A$6:$A$26648<=$H$6),ROW(الحركة!$A$6:$A$26648)-ROW(الحركة!$A$6)+1),ROWS(B$17:B49))),"") -> 2021-01-02 | C49: =IF(ROWS(A$17:A49)<=SUMPRODUCT((الحركة!$C$6:$C$26648=$F$8)*(الحركة!$A$6:$A$26648>=$F$6)*(الحركة!$A$6:$A$26648<=$H$6)),INDEX(الحركة!$C$6:$C$26648,SMALL(IF((الحركة!$C$6:$C$26648=$F$8)*(الحركة!$A$6:$A$26648>=$F$6)*(الحركة!$A$6:$A$26648<=$H$6),ROW(الحركة!$A$6:$A$26648)-ROW(الحركة!$A$6)+1),ROWS(A$17:A49))),"") -> الايرادات | D49: =IF(ROWS(B$17:B49)<=SUMPRODUCT((الحركة!$C$6:$C$26648=$F$8)*(الحركة!$A$6:$A$26648>=$F$6)*(الحركة!$A$6:$A$26648<=$H$6)),INDEX(الحركة!$E$6:$E$26648,SMALL(IF((الحركة!$C$6:$C$26648=$F$8)*(الحركة!$A$6:$A$26648>=$F$6)*(الحركة!$A$6:$A$26648<=$H$6),ROW(الحركة!$A$6:$A$26648)-ROW(الحركة!$A$6)+1),ROWS(B$17:B49))),"") -> قسم الجراحة | E49: =IF(ROWS(C$17:C49)<=SUMPRODUCT((الحركة!$C$6:$C$26648=$F$8)*(الحركة!$A$6:$A$26648>=$F$6)*(الحركة!$A$6:$A$26648<=$H$6)),INDEX(الحركة!$F$6:$F$26648,SMALL(IF((الحركة!$C$6:$C$26648=$F$8)*(الحركة!$A$6:$A$26648>=$F$6)*(الحركة!$A$6:$A$26648<=$H$6),ROW(الحركة!$A$6:$A$26648)-ROW(الحركة!$A$6)+1),ROWS(C$17:C49))),"") -> 441 | F49: =IF(ROWS(C$17:C49)<=SUMPRODUCT((الحركة!$C$6:$C$26648=$F$8)*(الحركة!$A$6:$A$26648>=$F$6)*(الحركة!$A$6:$A$26648<=$H$6)),INDEX(الحركة!$H$6:$H$26648,SMALL(IF((الحركة!$C$6:$C$26648=$F$8)*(الحركة!$A$6:$A$26648>=$F$6)*(الحركة!$A$6:$A$26648<=$H$6),ROW(الحركة!$A$6:$A$26648)-ROW(الحركة!$A$6)+1),ROWS(C$17:C49))),"") -> محمد الأخضر | G49: =IF(ROWS(B$17:B49)<=SUMPRODUCT((الحركة!$C$6:$C$26648=$F$8)*(الحركة!$A$6:$A$26648>=$F$6)*(الحركة!$A$6:$A$26648<=$H$6)),INDEX(الحركة!$I$6:$I$26648,SMALL(IF((الحركة!$C$6:$C$26648=$F$8)*(الحركة!$A$6:$A$26648>=$F$6)*(الحركة!$A$6:$A$26648<=$H$6),ROW(الحركة!$A$6:$A$26648)-ROW(الحركة!$A$6)+1),ROWS(B$17:B49))),"") -> 0 | H49: =IF(ROWS(B$17:B49)<=SUMPRODUCT((الحركة!$C$6:$C$26648=$F$8)*(الحركة!$A$6:$A$26648>=$F$6)*(الحركة!$A$6:$A$26648<=$H$6)),INDEX(الحركة!$J$6:$J$26648,SMALL(IF((الحركة!$C$6:$C$26648=$F$8)*(الحركة!$A$6:$A$26648>=$F$6)*(الحركة!$A$6:$A$26648<=$H$6),ROW(الحركة!$A$6:$A$26648)-ROW(الحركة!$A$6)+1),ROWS(B$17:B49))),"") -> 20 | I49: -20 | L49: =IF(COUNTIF($D$17:D48,D48)=1,COUNT($L$18:L48)+1,"") ->  | M49: =IF(COUNT($L$18:$L$5518)<ROW()-17,"",LOOKUP(ROW()-17,$L$18:$L$5518,$D$17:$D$5518)) ->  | N49: =IF(M49="","",COUNTIF($D$17:$D$5518,M49)) ->  | O49: =IF(M49="","",SUMIF($D$17:$D$5518,M49,$G$17:$G$5518)) ->  | P49: =IF(M49="","",SUMIF($D$17:$D$5518,M49,$H$17:$H$5518)) ->  | Q49: 1
B50: =IF(ROWS(B$17:B50)<=SUMPRODUCT((الحركة!$C$6:$C$26648=$F$8)*(الحركة!$A$6:$A$26648>=$F$6)*(الحركة!$A$6:$A$26648<=$H$6)),INDEX(الحركة!$A$6:$A$26648,SMALL(IF((الحركة!$C$6:$C$26648=$F$8)*(الحركة!$A$6:$A$26648>=$F$6)*(الحركة!$A$6:$A$26648<=$H$6),ROW(الحركة!$A$6:$A$26648)-ROW(الحركة!$A$6)+1),ROWS(B$17:B50))),"") -> 2021-01-02 | C50: =IF(ROWS(A$17:A50)<=SUMPRODUCT((الحركة!$C$6:$C$26648=$F$8)*(الحركة!$A$6:$A$26648>=$F$6)*(الحركة!$A$6:$A$26648<=$H$6)),INDEX(الحركة!$C$6:$C$26648,SMALL(IF((الحركة!$C$6:$C$26648=$F$8)*(الحركة!$A$6:$A$26648>=$F$6)*(الحركة!$A$6:$A$26648<=$H$6),ROW(الحركة!$A$6:$A$26648)-ROW(الحركة!$A$6)+1),ROWS(A$17:A50))),"") -> الايرادات | D50: =IF(ROWS(B$17:B50)<=SUMPRODUCT((الحركة!$C$6:$C$26648=$F$8)*(الحركة!$A$6:$A$26648>=$F$6)*(الحركة!$A$6:$A$26648<=$H$6)),INDEX(الحركة!$E$6:$E$26648,SMALL(IF((الحركة!$C$6:$C$26648=$F$8)*(الحركة!$A$6:$A$26648>=$F$6)*(الحركة!$A$6:$A$26648<=$H$6),ROW(الحركة!$A$6:$A$26648)-ROW(الحركة!$A$6)+1),ROWS(B$17:B50))),"") -> الاسعاف | E50: =IF(ROWS(C$17:C50)<=SUMPRODUCT((الحركة!$C$6:$C$26648=$F$8)*(الحركة!$A$6:$A$26648>=$F$6)*(الحركة!$A$6:$A$26648<=$H$6)),INDEX(الحركة!$F$6:$F$26648,SMALL(IF((الحركة!$C$6:$C$26648=$F$8)*(الحركة!$A$6:$A$26648>=$F$6)*(الحركة!$A$6:$A$26648<=$H$6),ROW(الحركة!$A$6:$A$26648)-ROW(الحركة!$A$6)+1),ROWS(C$17:C50))),"") -> 442 | F50: =IF(ROWS(C$17:C50)<=SUMPRODUCT((الحركة!$C$6:$C$26648=$F$8)*(الحركة!$A$6:$A$26648>=$F$6)*(الحركة!$A$6:$A$26648<=$H$6)),INDEX(الحركة!$H$6:$H$26648,SMALL(IF((الحركة!$C$6:$C$26648=$F$8)*(الحركة!$A$6:$A$26648>=$F$6)*(الحركة!$A$6:$A$26648<=$H$6),ROW(الحركة!$A$6:$A$26648)-ROW(الحركة!$A$6)+1),ROWS(C$17:C50))),"") -> الاسعاف | G50: =IF(ROWS(B$17:B50)<=SUMPRODUCT((الحركة!$C$6:$C$26648=$F$8)*(الحركة!$A$6:$A$26648>=$F$6)*(الحركة!$A$6:$A$26648<=$H$6)),INDEX(الحركة!$I$6:$I$26648,SMALL(IF((الحركة!$C$6:$C$26648=$F$8)*(الحركة!$A$6:$A$26648>=$F$6)*(الحركة!$A$6:$A$26648<=$H$6),ROW(الحركة!$A$6:$A$26648)-ROW(الحركة!$A$6)+1),ROWS(B$17:B50))),"") -> 0 | H50: =IF(ROWS(B$17:B50)<=SUMPRODUCT((الحركة!$C$6:$C$26648=$F$8)*(الحركة!$A$6:$A$26648>=$F$6)*(الحركة!$A$6:$A$26648<=$H$6)),INDEX(الحركة!$J$6:$J$26648,SMALL(IF((الحركة!$C$6:$C$26648=$F$8)*(الحركة!$A$6:$A$26648>=$F$6)*(الحركة!$A$6:$A$26648<=$H$6),ROW(الحركة!$A$6:$A$26648)-ROW(الحركة!$A$6)+1),ROWS(B$17:B50))),"") -> 20 | I50: -20 | L50: =IF(COUNTIF($D$17:D49,D49)=1,COUNT($L$18:L49)+1,"") ->  | M50: =IF(COUNT($L$18:$L$5518)<ROW()-17,"",LOOKUP(ROW()-17,$L$18:$L$5518,$D$17:$D$5518)) ->  | N50: =IF(M50="","",COUNTIF($D$17:$D$5518,M50)) ->  | O50: =IF(M50="","",SUMIF($D$17:$D$5518,M50,$G$17:$G$5518)) ->  | P50: =IF(M50="","",SUMIF($D$17:$D$5518,M50,$H$17:$H$5518)) ->  | Q50: 1
B51: =IF(ROWS(B$17:B51)<=SUMPRODUCT((الحركة!$C$6:$C$26648=$F$8)*(الحركة!$A$6:$A$26648>=$F$6)*(الحركة!$A$6:$A$26648<=$H$6)),INDEX(الحركة!$A$6:$A$26648,SMALL(IF((الحركة!$C$6:$C$26648=$F$8)*(الحركة!$A$6:$A$26648>=$F$6)*(الحركة!$A$6:$A$26648<=$H$6),ROW(الحركة!$A$6:$A$26648)-ROW(الحركة!$A$6)+1),ROWS(B$17:B51))),"") -> 2021-01-02 | C51: =IF(ROWS(A$17:A51)<=SUMPRODUCT((الحركة!$C$6:$C$26648=$F$8)*(الحركة!$A$6:$A$26648>=$F$6)*(الحركة!$A$6:$A$26648<=$H$6)),INDEX(الحركة!$C$6:$C$26648,SMALL(IF((الحركة!$C$6:$C$26648=$F$8)*(الحركة!$A$6:$A$26648>=$F$6)*(الحركة!$A$6:$A$26648<=$H$6),ROW(الحركة!$A$6:$A$26648)-ROW(الحركة!$A$6)+1),ROWS(A$17:A51))),"") -> الايرادات | D51: =IF(ROWS(B$17:B51)<=SUMPRODUCT((الحركة!$C$6:$C$26648=$F$8)*(الحركة!$A$6:$A$26648>=$F$6)*(الحركة!$A$6:$A$26648<=$H$6)),INDEX(الحركة!$E$6:$E$26648,SMALL(IF((الحركة!$C$6:$C$26648=$F$8)*(الحركة!$A$6:$A$26648>=$F$6)*(الحركة!$A$6:$A$26648<=$H$6),ROW(الحركة!$A$6:$A$26648)-ROW(الحركة!$A$6)+1),ROWS(B$17:B51))),"") -> قسم الجراحة | E51: =IF(ROWS(C$17:C51)<=SUMPRODUCT((الحركة!$C$6:$C$26648=$F$8)*(الحركة!$A$6:$A$26648>=$F$6)*(الحركة!$A$6:$A$26648<=$H$6)),INDEX(الحركة!$F$6:$F$26648,SMALL(IF((الحركة!$C$6:$C$26648=$F$8)*(الحركة!$A$6:$A$26648>=$F$6)*(الحركة!$A$6:$A$26648<=$H$6),ROW(الحركة!$A$6:$A$26648)-ROW(الحركة!$A$6)+1),ROWS(C$17:C51))),"") -> 443 | F51: =IF(ROWS(C$17:C51)<=SUMPRODUCT((الحركة!$C$6:$C$26648=$F$8)*(الحركة!$A$6:$A$26648>=$F$6)*(الحركة!$A$6:$A$26648<=$H$6)),INDEX(الحركة!$H$6:$H$26648,SMALL(IF((الحركة!$C$6:$C$26648=$F$8)*(الحركة!$A$6:$A$26648>=$F$6)*(الحركة!$A$6:$A$26648<=$H$6),ROW(الحركة!$A$6:$A$26648)-ROW(الحركة!$A$6)+1),ROWS(C$17:C51))),"") -> محمد الأخضر | G51: =IF(ROWS(B$17:B51)<=SUMPRODUCT((الحركة!$C$6:$C$26648=$F$8)*(الحركة!$A$6:$A$26648>=$F$6)*(الحركة!$A$6:$A$26648<=$H$6)),INDEX(الحركة!$I$6:$I$26648,SMALL(IF((الحركة!$C$6:$C$26648=$F$8)*(الحركة!$A$6:$A$26648>=$F$6)*(الحركة!$A$6:$A$26648<=$H$6),ROW(الحركة!$A$6:$A$26648)-ROW(الحركة!$A$6)+1),ROWS(B$17:B51))),"") -> 0 | H51: =IF(ROWS(B$17:B51)<=SUMPRODUCT((الحركة!$C$6:$C$26648=$F$8)*(الحركة!$A$6:$A$26648>=$F$6)*(الحركة!$A$6:$A$26648<=$H$6)),INDEX(الحركة!$J$6:$J$26648,SMALL(IF((الحركة!$C$6:$C$26648=$F$8)*(الحركة!$A$6:$A$26648>=$F$6)*(الحركة!$A$6:$A$26648<=$H$6),ROW(الحركة!$A$6:$A$26648)-ROW(الحركة!$A$6)+1),ROWS(B$17:B51))),"") -> 20 | I51: -20 | L51: =IF(COUNTIF($D$17:D50,D50)=1,COUNT($L$18:L50)+1,"") ->  | M51: =IF(COUNT($L$18:$L$5518)<ROW()-17,"",LOOKUP(ROW()-17,$L$18:$L$5518,$D$17:$D$5518)) ->  | N51: =IF(M51="","",COUNTIF($D$17:$D$5518,M51)) ->  | O51: =IF(M51="","",SUMIF($D$17:$D$5518,M51,$G$17:$G$5518)) ->  | P51: =IF(M51="","",SUMIF($D$17:$D$5518,M51,$H$17:$H$5518)) ->  | Q51: 1
B52: =IF(ROWS(B$17:B52)<=SUMPRODUCT((الحركة!$C$6:$C$26648=$F$8)*(الحركة!$A$6:$A$26648>=$F$6)*(الحركة!$A$6:$A$26648<=$H$6)),INDEX(الحركة!$A$6:$A$26648,SMALL(IF((الحركة!$C$6:$C$26648=$F$8)*(الحركة!$A$6:$A$26648>=$F$6)*(الحركة!$A$6:$A$26648<=$H$6),ROW(الحركة!$A$6:$A$26648)-ROW(الحركة!$A$6)+1),ROWS(B$17:B52))),"") -> 2021-01-02 | C52: =IF(ROWS(A$17:A52)<=SUMPRODUCT((الحركة!$C$6:$C$26648=$F$8)*(الحركة!$A$6:$A$26648>=$F$6)*(الحركة!$A$6:$A$26648<=$H$6)),INDEX(الحركة!$C$6:$C$26648,SMALL(IF((الحركة!$C$6:$C$26648=$F$8)*(الحركة!$A$6:$A$26648>=$F$6)*(الحركة!$A$6:$A$26648<=$H$6),ROW(الحركة!$A$6:$A$26648)-ROW(الحركة!$A$6)+1),ROWS(A$17:A52))),"") -> الايرادات | D52: =IF(ROWS(B$17:B52)<=SUMPRODUCT((الحركة!$C$6:$C$26648=$F$8)*(الحركة!$A$6:$A$26648>=$F$6)*(الحركة!$A$6:$A$26648<=$H$6)),INDEX(الحركة!$E$6:$E$26648,SMALL(IF((الحركة!$C$6:$C$26648=$F$8)*(الحركة!$A$6:$A$26648>=$F$6)*(الحركة!$A$6:$A$26648<=$H$6),ROW(الحركة!$A$6:$A$26648)-ROW(الحركة!$A$6)+1),ROWS(B$17:B52))),"") -> الاسعاف | E52: =IF(ROWS(C$17:C52)<=SUMPRODUCT((الحركة!$C$6:$C$26648=$F$8)*(الحركة!$A$6:$A$26648>=$F$6)*(الحركة!$A$6:$A$26648<=$H$6)),INDEX(الحركة!$F$6:$F$26648,SMALL(IF((الحركة!$C$6:$C$26648=$F$8)*(الحركة!$A$6:$A$26648>=$F$6)*(الحركة!$A$6:$A$26648<=$H$6),ROW(الحركة!$A$6:$A$26648)-ROW(الحركة!$A$6)+1),ROWS(C$17:C52))),"") -> 444 | F52: =IF(ROWS(C$17:C52)<=SUMPRODUCT((الحركة!$C$6:$C$26648=$F$8)*(الحركة!$A$6:$A$26648>=$F$6)*(الحركة!$A$6:$A$26648<=$H$6)),INDEX(الحركة!$H$6:$H$26648,SMALL(IF((الحركة!$C$6:$C$26648=$F$8)*(الحركة!$A$6:$A$26648>=$F$6)*(الحركة!$A$6:$A$26648<=$H$6),ROW(الحركة!$A$6:$A$26648)-ROW(الحركة!$A$6)+1),ROWS(C$17:C52))),"") -> الاسعاف | G52: =IF(ROWS(B$17:B52)<=SUMPRODUCT((الحركة!$C$6:$C$26648=$F$8)*(الحركة!$A$6:$A$26648>=$F$6)*(الحركة!$A$6:$A$26648<=$H$6)),INDEX(الحركة!$I$6:$I$26648,SMALL(IF((الحركة!$C$6:$C$26648=$F$8)*(الحركة!$A$6:$A$26648>=$F$6)*(الحركة!$A$6:$A$26648<=$H$6),ROW(الحركة!$A$6:$A$26648)-ROW(الحركة!$A$6)+1),ROWS(B$17:B52))),"") -> 0 | H52: =IF(ROWS(B$17:B52)<=SUMPRODUCT((الحركة!$C$6:$C$26648=$F$8)*(الحركة!$A$6:$A$26648>=$F$6)*(الحركة!$A$6:$A$26648<=$H$6)),INDEX(الحركة!$J$6:$J$26648,SMALL(IF((الحركة!$C$6:$C$26648=$F$8)*(الحركة!$A$6:$A$26648>=$F$6)*(الحركة!$A$6:$A$26648<=$H$6),ROW(الحركة!$A$6:$A$26648)-ROW(الحركة!$A$6)+1),ROWS(B$17:B52))),"") -> 20 | I52: -20 | L52: =IF(COUNTIF($D$17:D51,D51)=1,COUNT($L$18:L51)+1,"") ->  | M52: =IF(COUNT($L$18:$L$5518)<ROW()-17,"",LOOKUP(ROW()-17,$L$18:$L$5518,$D$17:$D$5518)) ->  | N52: =IF(M52="","",COUNTIF($D$17:$D$5518,M52)) ->  | O52: =IF(M52="","",SUMIF($D$17:$D$5518,M52,$G$17:$G$5518)) ->  | P52: =IF(M52="","",SUMIF($D$17:$D$5518,M52,$H$17:$H$5518)) ->  | Q52: 1
B53: =IF(ROWS(B$17:B53)<=SUMPRODUCT((الحركة!$C$6:$C$26648=$F$8)*(الحركة!$A$6:$A$26648>=$F$6)*(الحركة!$A$6:$A$26648<=$H$6)),INDEX(الحركة!$A$6:$A$26648,SMALL(IF((الحركة!$C$6:$C$26648=$F$8)*(الحركة!$A$6:$A$26648>=$F$6)*(الحركة!$A$6:$A$26648<=$H$6),ROW(الحركة!$A$6:$A$26648)-ROW(الحركة!$A$6)+1),ROWS(B$17:B53))),"") -> 2021-01-02 | C53: =IF(ROWS(A$17:A53)<=SUMPRODUCT((الحركة!$C$6:$C$26648=$F$8)*(الحركة!$A$6:$A$26648>=$F$6)*(الحركة!$A$6:$A$26648<=$H$6)),INDEX(الحركة!$C$6:$C$26648,SMALL(IF((الحركة!$C$6:$C$26648=$F$8)*(الحركة!$A$6:$A$26648>=$F$6)*(الحركة!$A$6:$A$26648<=$H$6),ROW(الحركة!$A$6:$A$26648)-ROW(الحركة!$A$6)+1),ROWS(A$17:A53))),"") -> الايرادات | D53: =IF(ROWS(B$17:B53)<=SUMPRODUCT((الحركة!$C$6:$C$26648=$F$8)*(الحركة!$A$6:$A$26648>=$F$6)*(الحركة!$A$6:$A$26648<=$H$6)),INDEX(الحركة!$E$6:$E$26648,SMALL(IF((الحركة!$C$6:$C$26648=$F$8)*(الحركة!$A$6:$A$26648>=$F$6)*(الحركة!$A$6:$A$26648<=$H$6),ROW(الحركة!$A$6:$A$26648)-ROW(الحركة!$A$6)+1),ROWS(B$17:B53))),"") -> قسم الجراحة | E53: =IF(ROWS(C$17:C53)<=SUMPRODUCT((الحركة!$C$6:$C$26648=$F$8)*(الحركة!$A$6:$A$26648>=$F$6)*(الحركة!$A$6:$A$26648<=$H$6)),INDEX(الحركة!$F$6:$F$26648,SMALL(IF((الحركة!$C$6:$C$26648=$F$8)*(الحركة!$A$6:$A$26648>=$F$6)*(الحركة!$A$6:$A$26648<=$H$6),ROW(الحركة!$A$6:$A$26648)-ROW(الحركة!$A$6)+1),ROWS(C$17:C53))),"") -> 445 | F53: =IF(ROWS(C$17:C53)<=SUMPRODUCT((الحركة!$C$6:$C$26648=$F$8)*(الحركة!$A$6:$A$26648>=$F$6)*(الحركة!$A$6:$A$26648<=$H$6)),INDEX(الحركة!$H$6:$H$26648,SMALL(IF((الحركة!$C$6:$C$26648=$F$8)*(الحركة!$A$6:$A$26648>=$F$6)*(الحركة!$A$6:$A$26648<=$H$6),ROW(الحركة!$A$6:$A$26648)-ROW(الحركة!$A$6)+1),ROWS(C$17:C53))),"") -> محمد الأخضر | G53: =IF(ROWS(B$17:B53)<=SUMPRODUCT((الحركة!$C$6:$C$26648=$F$8)*(الحركة!$A$6:$A$26648>=$F$6)*(الحركة!$A$6:$A$26648<=$H$6)),INDEX(الحركة!$I$6:$I$26648,SMALL(IF((الحركة!$C$6:$C$26648=$F$8)*(الحركة!$A$6:$A$26648>=$F$6)*(الحركة!$A$6:$A$26648<=$H$6),ROW(الحركة!$A$6:$A$26648)-ROW(الحركة!$A$6)+1),ROWS(B$17:B53))),"") -> 0 | H53: =IF(ROWS(B$17:B53)<=SUMPRODUCT((الحركة!$C$6:$C$26648=$F$8)*(الحركة!$A$6:$A$26648>=$F$6)*(الحركة!$A$6:$A$26648<=$H$6)),INDEX(الحركة!$J$6:$J$26648,SMALL(IF((الحركة!$C$6:$C$26648=$F$8)*(الحركة!$A$6:$A$26648>=$F$6)*(الحركة!$A$6:$A$26648<=$H$6),ROW(الحركة!$A$6:$A$26648)-ROW(الحركة!$A$6)+1),ROWS(B$17:B53))),"") -> 20 | I53: -20 | L53: =IF(COUNTIF($D$17:D52,D52)=1,COUNT($L$18:L52)+1,"") ->  | M53: =IF(COUNT($L$18:$L$5518)<ROW()-17,"",LOOKUP(ROW()-17,$L$18:$L$5518,$D$17:$D$5518)) ->  | N53: =IF(M53="","",COUNTIF($D$17:$D$5518,M53)) ->  | O53: =IF(M53="","",SUMIF($D$17:$D$5518,M53,$G$17:$G$5518)) ->  | P53: =IF(M53="","",SUMIF($D$17:$D$5518,M53,$H$17:$H$5518)) ->  | Q53: 1
B54: =IF(ROWS(B$17:B54)<=SUMPRODUCT((الحركة!$C$6:$C$26648=$F$8)*(الحركة!$A$6:$A$26648>=$F$6)*(الحركة!$A$6:$A$26648<=$H$6)),INDEX(الحركة!$A$6:$A$26648,SMALL(IF((الحركة!$C$6:$C$26648=$F$8)*(الحركة!$A$6:$A$26648>=$F$6)*(الحركة!$A$6:$A$26648<=$H$6),ROW(الحركة!$A$6:$A$26648)-ROW(الحركة!$A$6)+1),ROWS(B$17:B54))),"") -> 2021-01-02 | C54: =IF(ROWS(A$17:A54)<=SUMPRODUCT((الحركة!$C$6:$C$26648=$F$8)*(الحركة!$A$6:$A$26648>=$F$6)*(الحركة!$A$6:$A$26648<=$H$6)),INDEX(الحركة!$C$6:$C$26648,SMALL(IF((الحركة!$C$6:$C$26648=$F$8)*(الحركة!$A$6:$A$26648>=$F$6)*(الحركة!$A$6:$A$26648<=$H$6),ROW(الحركة!$A$6:$A$26648)-ROW(الحركة!$A$6)+1),ROWS(A$17:A54))),"") -> الايرادات | D54: =IF(ROWS(B$17:B54)<=SUMPRODUCT((الحركة!$C$6:$C$26648=$F$8)*(الحركة!$A$6:$A$26648>=$F$6)*(الحركة!$A$6:$A$26648<=$H$6)),INDEX(الحركة!$E$6:$E$26648,SMALL(IF((الحركة!$C$6:$C$26648=$F$8)*(الحركة!$A$6:$A$26648>=$F$6)*(الحركة!$A$6:$A$26648<=$H$6),ROW(الحركة!$A$6:$A$26648)-ROW(الحركة!$A$6)+1),ROWS(B$17:B54))),"") -> الاسعاف | E54: =IF(ROWS(C$17:C54)<=SUMPRODUCT((الحركة!$C$6:$C$26648=$F$8)*(الحركة!$A$6:$A$26648>=$F$6)*(الحركة!$A$6:$A$26648<=$H$6)),INDEX(الحركة!$F$6:$F$26648,SMALL(IF((الحركة!$C$6:$C$26648=$F$8)*(الحركة!$A$6:$A$26648>=$F$6)*(الحركة!$A$6:$A$26648<=$H$6),ROW(الحركة!$A$6:$A$26648)-ROW(الحركة!$A$6)+1),ROWS(C$17:C54))),"") -> 446 | F54: =IF(ROWS(C$17:C54)<=SUMPRODUCT((الحركة!$C$6:$C$26648=$F$8)*(الحركة!$A$6:$A$26648>=$F$6)*(الحركة!$A$6:$A$26648<=$H$6)),INDEX(الحركة!$H$6:$H$26648,SMALL(IF((الحركة!$C$6:$C$26648=$F$8)*(الحركة!$A$6:$A$26648>=$F$6)*(الحركة!$A$6:$A$26648<=$H$6),ROW(الحركة!$A$6:$A$26648)-ROW(الحركة!$A$6)+1),ROWS(C$17:C54))),"") -> الاسعاف | G54: =IF(ROWS(B$17:B54)<=SUMPRODUCT((الحركة!$C$6:$C$26648=$F$8)*(الحركة!$A$6:$A$26648>=$F$6)*(الحركة!$A$6:$A$26648<=$H$6)),INDEX(الحركة!$I$6:$I$26648,SMALL(IF((الحركة!$C$6:$C$26648=$F$8)*(الحركة!$A$6:$A$26648>=$F$6)*(الحركة!$A$6:$A$26648<=$H$6),ROW(الحركة!$A$6:$A$26648)-ROW(الحركة!$A$6)+1),ROWS(B$17:B54))),"") -> 0 | H54: =IF(ROWS(B$17:B54)<=SUMPRODUCT((الحركة!$C$6:$C$26648=$F$8)*(الحركة!$A$6:$A$26648>=$F$6)*(الحركة!$A$6:$A$26648<=$H$6)),INDEX(الحركة!$J$6:$J$26648,SMALL(IF((الحركة!$C$6:$C$26648=$F$8)*(الحركة!$A$6:$A$26648>=$F$6)*(الحركة!$A$6:$A$26648<=$H$6),ROW(الحركة!$A$6:$A$26648)-ROW(الحركة!$A$6)+1),ROWS(B$17:B54))),"") -> 70 | I54: -70 | L54: =IF(COUNTIF($D$17:D53,D53)=1,COUNT($L$18:L53)+1,"") ->  | M54: =IF(COUNT($L$18:$L$5518)<ROW()-17,"",LOOKUP(ROW()-17,$L$18:$L$5518,$D$17:$D$5518)) ->  | N54: =IF(M54="","",COUNTIF($D$17:$D$5518,M54)) ->  | O54: =IF(M54="","",SUMIF($D$17:$D$5518,M54,$G$17:$G$5518)) ->  | P54: =IF(M54="","",SUMIF($D$17:$D$5518,M54,$H$17:$H$5518)) ->  | Q54: 1
B55: =IF(ROWS(B$17:B55)<=SUMPRODUCT((الحركة!$C$6:$C$26648=$F$8)*(الحركة!$A$6:$A$26648>=$F$6)*(الحركة!$A$6:$A$26648<=$H$6)),INDEX(الحركة!$A$6:$A$26648,SMALL(IF((الحركة!$C$6:$C$26648=$F$8)*(الحركة!$A$6:$A$26648>=$F$6)*(الحركة!$A$6:$A$26648<=$H$6),ROW(الحركة!$A$6:$A$26648)-ROW(الحركة!$A$6)+1),ROWS(B$17:B55))),"") ->  | C55: =IF(ROWS(A$17:A55)<=SUMPRODUCT((الحركة!$C$6:$C$26648=$F$8)*(الحركة!$A$6:$A$26648>=$F$6)*(الحركة!$A$6:$A$26648<=$H$6)),INDEX(الحركة!$C$6:$C$26648,SMALL(IF((الحركة!$C$6:$C$26648=$F$8)*(الحركة!$A$6:$A$26648>=$F$6)*(الحركة!$A$6:$A$26648<=$H$6),ROW(الحركة!$A$6:$A$26648)-ROW(الحركة!$A$6)+1),ROWS(A$17:A55))),"") ->  | D55: =IF(ROWS(B$17:B55)<=SUMPRODUCT((الحركة!$C$6:$C$26648=$F$8)*(الحركة!$A$6:$A$26648>=$F$6)*(الحركة!$A$6:$A$26648<=$H$6)),INDEX(الحركة!$E$6:$E$26648,SMALL(IF((الحركة!$C$6:$C$26648=$F$8)*(الحركة!$A$6:$A$26648>=$F$6)*(الحركة!$A$6:$A$26648<=$H$6),ROW(الحركة!$A$6:$A$26648)-ROW(الحركة!$A$6)+1),ROWS(B$17:B55))),"") ->  | E55: =IF(ROWS(C$17:C55)<=SUMPRODUCT((الحركة!$C$6:$C$26648=$F$8)*(الحركة!$A$6:$A$26648>=$F$6)*(الحركة!$A$6:$A$26648<=$H$6)),INDEX(الحركة!$F$6:$F$26648,SMALL(IF((الحركة!$C$6:$C$26648=$F$8)*(الحركة!$A$6:$A$26648>=$F$6)*(الحركة!$A$6:$A$26648<=$H$6),ROW(الحركة!$A$6:$A$26648)-ROW(الحركة!$A$6)+1),ROWS(C$17:C55))),"") ->  | F55: =IF(ROWS(C$17:C55)<=SUMPRODUCT((الحركة!$C$6:$C$26648=$F$8)*(الحركة!$A$6:$A$26648>=$F$6)*(الحركة!$A$6:$A$26648<=$H$6)),INDEX(الحركة!$H$6:$H$26648,SMALL(IF((الحركة!$C$6:$C$26648=$F$8)*(الحركة!$A$6:$A$26648>=$F$6)*(الحركة!$A$6:$A$26648<=$H$6),ROW(الحركة!$A$6:$A$26648)-ROW(الحركة!$A$6)+1),ROWS(C$17:C55))),"") ->  | G55: =IF(ROWS(B$17:B55)<=SUMPRODUCT((الحركة!$C$6:$C$26648=$F$8)*(الحركة!$A$6:$A$26648>=$F$6)*(الحركة!$A$6:$A$26648<=$H$6)),INDEX(الحركة!$I$6:$I$26648,SMALL(IF((الحركة!$C$6:$C$26648=$F$8)*(الحركة!$A$6:$A$26648>=$F$6)*(الحركة!$A$6:$A$26648<=$H$6),ROW(الحركة!$A$6:$A$26648)-ROW(الحركة!$A$6)+1),ROWS(B$17:B55))),"") ->  | H55: =IF(ROWS(B$17:B55)<=SUMPRODUCT((الحركة!$C$6:$C$26648=$F$8)*(الحركة!$A$6:$A$26648>=$F$6)*(الحركة!$A$6:$A$26648<=$H$6)),INDEX(الحركة!$J$6:$J$26648,SMALL(IF((الحركة!$C$6:$C$26648=$F$8)*(الحركة!$A$6:$A$26648>=$F$6)*(الحركة!$A$6:$A$26648<=$H$6),ROW(الحركة!$A$6:$A$26648)-ROW(الحركة!$A$6)+1),ROWS(B$17:B55))),"") ->  | L55: =IF(COUNTIF($D$17:D54,D54)=1,COUNT($L$18:L54)+1,"") ->  | M55: =IF(COUNT($L$18:$L$5518)<ROW()-17,"",LOOKUP(ROW()-17,$L$18:$L$5518,$D$17:$D$5518)) ->  | N55: =IF(M55="","",COUNTIF($D$17:$D$5518,M55)) ->  | O55: =IF(M55="","",SUMIF($D$17:$D$5518,M55,$G$17:$G$5518)) ->  | P55: =IF(M55="","",SUMIF($D$17:$D$5518,M55,$H$17:$H$5518)) ->  | Q55: 1
B56: =IF(ROWS(B$17:B56)<=SUMPRODUCT((الحركة!$C$6:$C$26648=$F$8)*(الحركة!$A$6:$A$26648>=$F$6)*(الحركة!$A$6:$A$26648<=$H$6)),INDEX(الحركة!$A$6:$A$26648,SMALL(IF((الحركة!$C$6:$C$26648=$F$8)*(الحركة!$A$6:$A$26648>=$F$6)*(الحركة!$A$6:$A$26648<=$H$6),ROW(الحركة!$A$6:$A$26648)-ROW(الحركة!$A$6)+1),ROWS(B$17:B56))),"") ->  | C56: =IF(ROWS(A$17:A56)<=SUMPRODUCT((الحركة!$C$6:$C$26648=$F$8)*(الحركة!$A$6:$A$26648>=$F$6)*(الحركة!$A$6:$A$26648<=$H$6)),INDEX(الحركة!$C$6:$C$26648,SMALL(IF((الحركة!$C$6:$C$26648=$F$8)*(الحركة!$A$6:$A$26648>=$F$6)*(الحركة!$A$6:$A$26648<=$H$6),ROW(الحركة!$A$6:$A$26648)-ROW(الحركة!$A$6)+1),ROWS(A$17:A56))),"") ->  | D56: =IF(ROWS(B$17:B56)<=SUMPRODUCT((الحركة!$C$6:$C$26648=$F$8)*(الحركة!$A$6:$A$26648>=$F$6)*(الحركة!$A$6:$A$26648<=$H$6)),INDEX(الحركة!$E$6:$E$26648,SMALL(IF((الحركة!$C$6:$C$26648=$F$8)*(الحركة!$A$6:$A$26648>=$F$6)*(الحركة!$A$6:$A$26648<=$H$6),ROW(الحركة!$A$6:$A$26648)-ROW(الحركة!$A$6)+1),ROWS(B$17:B56))),"") ->  | E56: =IF(ROWS(C$17:C56)<=SUMPRODUCT((الحركة!$C$6:$C$26648=$F$8)*(الحركة!$A$6:$A$26648>=$F$6)*(الحركة!$A$6:$A$26648<=$H$6)),INDEX(الحركة!$F$6:$F$26648,SMALL(IF((الحركة!$C$6:$C$26648=$F$8)*(الحركة!$A$6:$A$26648>=$F$6)*(الحركة!$A$6:$A$26648<=$H$6),ROW(الحركة!$A$6:$A$26648)-ROW(الحركة!$A$6)+1),ROWS(C$17:C56))),"") ->  | F56: =IF(ROWS(C$17:C56)<=SUMPRODUCT((الحركة!$C$6:$C$26648=$F$8)*(الحركة!$A$6:$A$26648>=$F$6)*(الحركة!$A$6:$A$26648<=$H$6)),INDEX(الحركة!$H$6:$H$26648,SMALL(IF((الحركة!$C$6:$C$26648=$F$8)*(الحركة!$A$6:$A$26648>=$F$6)*(الحركة!$A$6:$A$26648<=$H$6),ROW(الحركة!$A$6:$A$26648)-ROW(الحركة!$A$6)+1),ROWS(C$17:C56))),"") ->  | G56: =IF(ROWS(B$17:B56)<=SUMPRODUCT((الحركة!$C$6:$C$26648=$F$8)*(الحركة!$A$6:$A$26648>=$F$6)*(الحركة!$A$6:$A$26648<=$H$6)),INDEX(الحركة!$I$6:$I$26648,SMALL(IF((الحركة!$C$6:$C$26648=$F$8)*(الحركة!$A$6:$A$26648>=$F$6)*(الحركة!$A$6:$A$26648<=$H$6),ROW(الحركة!$A$6:$A$26648)-ROW(الحركة!$A$6)+1),ROWS(B$17:B56))),"") ->  | H56: =IF(ROWS(B$17:B56)<=SUMPRODUCT((الحركة!$C$6:$C$26648=$F$8)*(الحركة!$A$6:$A$26648>=$F$6)*(الحركة!$A$6:$A$26648<=$H$6)),INDEX(الحركة!$J$6:$J$26648,SMALL(IF((الحركة!$C$6:$C$26648=$F$8)*(الحركة!$A$6:$A$26648>=$F$6)*(الحركة!$A$6:$A$26648<=$H$6),ROW(الحركة!$A$6:$A$26648)-ROW(الحركة!$A$6)+1),ROWS(B$17:B56))),"") ->  | L56: =IF(COUNTIF($D$17:D55,D55)=1,COUNT($L$18:L55)+1,"") -> 7 | M56: =IF(COUNT($L$18:$L$5518)<ROW()-17,"",LOOKUP(ROW()-17,$L$18:$L$5518,$D$17:$D$5518)) ->  | N56: =IF(M56="","",COUNTIF($D$17:$D$5518,M56)) ->  | O56: =IF(M56="","",SUMIF($D$17:$D$5518,M56,$G$17:$G$5518)) ->  | P56: =IF(M56="","",SUMIF($D$17:$D$5518,M56,$H$17:$H$5518)) -> 
B57: =IF(ROWS(B$17:B57)<=SUMPRODUCT((الحركة!$C$6:$C$26648=$F$8)*(الحركة!$A$6:$A$26648>=$F$6)*(الحركة!$A$6:$A$26648<=$H$6)),INDEX(الحركة!$A$6:$A$26648,SMALL(IF((الحركة!$C$6:$C$26648=$F$8)*(الحركة!$A$6:$A$26648>=$F$6)*(الحركة!$A$6:$A$26648<=$H$6),ROW(الحركة!$A$6:$A$26648)-ROW(الحركة!$A$6)+1),ROWS(B$17:B57))),"") ->  | C57: =IF(ROWS(A$17:A57)<=SUMPRODUCT((الحركة!$C$6:$C$26648=$F$8)*(الحركة!$A$6:$A$26648>=$F$6)*(الحركة!$A$6:$A$26648<=$H$6)),INDEX(الحركة!$C$6:$C$26648,SMALL(IF((الحركة!$C$6:$C$26648=$F$8)*(الحركة!$A$6:$A$26648>=$F$6)*(الحركة!$A$6:$A$26648<=$H$6),ROW(الحركة!$A$6:$A$26648)-ROW(الحركة!$A$6)+1),ROWS(A$17:A57))),"") ->  | D57: =IF(ROWS(B$17:B57)<=SUMPRODUCT((الحركة!$C$6:$C$26648=$F$8)*(الحركة!$A$6:$A$26648>=$F$6)*(الحركة!$A$6:$A$26648<=$H$6)),INDEX(الحركة!$E$6:$E$26648,SMALL(IF((الحركة!$C$6:$C$26648=$F$8)*(الحركة!$A$6:$A$26648>=$F$6)*(الحركة!$A$6:$A$26648<=$H$6),ROW(الحركة!$A$6:$A$26648)-ROW(الحركة!$A$6)+1),ROWS(B$17:B57))),"") ->  | E57: =IF(ROWS(C$17:C57)<=SUMPRODUCT((الحركة!$C$6:$C$26648=$F$8)*(الحركة!$A$6:$A$26648>=$F$6)*(الحركة!$A$6:$A$26648<=$H$6)),INDEX(الحركة!$F$6:$F$26648,SMALL(IF((الحركة!$C$6:$C$26648=$F$8)*(الحركة!$A$6:$A$26648>=$F$6)*(الحركة!$A$6:$A$26648<=$H$6),ROW(الحركة!$A$6:$A$26648)-ROW(الحركة!$A$6)+1),ROWS(C$17:C57))),"") ->  | F57: =IF(ROWS(C$17:C57)<=SUMPRODUCT((الحركة!$C$6:$C$26648=$F$8)*(الحركة!$A$6:$A$26648>=$F$6)*(الحركة!$A$6:$A$26648<=$H$6)),INDEX(الحركة!$H$6:$H$26648,SMALL(IF((الحركة!$C$6:$C$26648=$F$8)*(الحركة!$A$6:$A$26648>=$F$6)*(الحركة!$A$6:$A$26648<=$H$6),ROW(الحركة!$A$6:$A$26648)-ROW(الحركة!$A$6)+1),ROWS(C$17:C57))),"") ->  | G57: =IF(ROWS(B$17:B57)<=SUMPRODUCT((الحركة!$C$6:$C$26648=$F$8)*(الحركة!$A$6:$A$26648>=$F$6)*(الحركة!$A$6:$A$26648<=$H$6)),INDEX(الحركة!$I$6:$I$26648,SMALL(IF((الحركة!$C$6:$C$26648=$F$8)*(الحركة!$A$6:$A$26648>=$F$6)*(الحركة!$A$6:$A$26648<=$H$6),ROW(الحركة!$A$6:$A$26648)-ROW(الحركة!$A$6)+1),ROWS(B$17:B57))),"") ->  | H57: =IF(ROWS(B$17:B57)<=SUMPRODUCT((الحركة!$C$6:$C$26648=$F$8)*(الحركة!$A$6:$A$26648>=$F$6)*(الحركة!$A$6:$A$26648<=$H$6)),INDEX(الحركة!$J$6:$J$26648,SMALL(IF((الحركة!$C$6:$C$26648=$F$8)*(الحركة!$A$6:$A$26648>=$F$6)*(الحركة!$A$6:$A$26648<=$H$6),ROW(الحركة!$A$6:$A$26648)-ROW(الحركة!$A$6)+1),ROWS(B$17:B57))),"") ->  | L57: =IF(COUNTIF($D$17:D56,D56)=1,COUNT($L$18:L56)+1,"") ->  | M57: =IF(COUNT($L$18:$L$5518)<ROW()-17,"",LOOKUP(ROW()-17,$L$18:$L$5518,$D$17:$D$5518)) ->  | N57: =IF(M57="","",COUNTIF($D$17:$D$5518,M57)) ->  | O57: =IF(M57="","",SUMIF($D$17:$D$5518,M57,$G$17:$G$5518)) ->  | P57: =IF(M57="","",SUMIF($D$17:$D$5518,M57,$H$17:$H$5518)) -> 
B58: =IF(ROWS(B$17:B58)<=SUMPRODUCT((الحركة!$C$6:$C$26648=$F$8)*(الحركة!$A$6:$A$26648>=$F$6)*(الحركة!$A$6:$A$26648<=$H$6)),INDEX(الحركة!$A$6:$A$26648,SMALL(IF((الحركة!$C$6:$C$26648=$F$8)*(الحركة!$A$6:$A$26648>=$F$6)*(الحركة!$A$6:$A$26648<=$H$6),ROW(الحركة!$A$6:$A$26648)-ROW(الحركة!$A$6)+1),ROWS(B$17:B58))),"") ->  | C58: =IF(ROWS(A$17:A58)<=SUMPRODUCT((الحركة!$C$6:$C$26648=$F$8)*(الحركة!$A$6:$A$26648>=$F$6)*(الحركة!$A$6:$A$26648<=$H$6)),INDEX(الحركة!$C$6:$C$26648,SMALL(IF((الحركة!$C$6:$C$26648=$F$8)*(الحركة!$A$6:$A$26648>=$F$6)*(الحركة!$A$6:$A$26648<=$H$6),ROW(الحركة!$A$6:$A$26648)-ROW(الحركة!$A$6)+1),ROWS(A$17:A58))),"") ->  | D58: =IF(ROWS(B$17:B58)<=SUMPRODUCT((الحركة!$C$6:$C$26648=$F$8)*(الحركة!$A$6:$A$26648>=$F$6)*(الحركة!$A$6:$A$26648<=$H$6)),INDEX(الحركة!$E$6:$E$26648,SMALL(IF((الحركة!$C$6:$C$26648=$F$8)*(الحركة!$A$6:$A$26648>=$F$6)*(الحركة!$A$6:$A$26648<=$H$6),ROW(الحركة!$A$6:$A$26648)-ROW(الحركة!$A$6)+1),ROWS(B$17:B58))),"") ->  | E58: =IF(ROWS(C$17:C58)<=SUMPRODUCT((الحركة!$C$6:$C$26648=$F$8)*(الحركة!$A$6:$A$26648>=$F$6)*(الحركة!$A$6:$A$26648<=$H$6)),INDEX(الحركة!$F$6:$F$26648,SMALL(IF((الحركة!$C$6:$C$26648=$F$8)*(الحركة!$A$6:$A$26648>=$F$6)*(الحركة!$A$6:$A$26648<=$H$6),ROW(الحركة!$A$6:$A$26648)-ROW(الحركة!$A$6)+1),ROWS(C$17:C58))),"") ->  | F58: =IF(ROWS(C$17:C58)<=SUMPRODUCT((الحركة!$C$6:$C$26648=$F$8)*(الحركة!$A$6:$A$26648>=$F$6)*(الحركة!$A$6:$A$26648<=$H$6)),INDEX(الحركة!$H$6:$H$26648,SMALL(IF((الحركة!$C$6:$C$26648=$F$8)*(الحركة!$A$6:$A$26648>=$F$6)*(الحركة!$A$6:$A$26648<=$H$6),ROW(الحركة!$A$6:$A$26648)-ROW(الحركة!$A$6)+1),ROWS(C$17:C58))),"") ->  | G58: =IF(ROWS(B$17:B58)<=SUMPRODUCT((الحركة!$C$6:$C$26648=$F$8)*(الحركة!$A$6:$A$26648>=$F$6)*(الحركة!$A$6:$A$26648<=$H$6)),INDEX(الحركة!$I$6:$I$26648,SMALL(IF((الحركة!$C$6:$C$26648=$F$8)*(الحركة!$A$6:$A$26648>=$F$6)*(الحركة!$A$6:$A$26648<=$H$6),ROW(الحركة!$A$6:$A$26648)-ROW(الحركة!$A$6)+1),ROWS(B$17:B58))),"") ->  | H58: =IF(ROWS(B$17:B58)<=SUMPRODUCT((الحركة!$C$6:$C$26648=$F$8)*(الحركة!$A$6:$A$26648>=$F$6)*(الحركة!$A$6:$A$26648<=$H$6)),INDEX(الحركة!$J$6:$J$26648,SMALL(IF((الحركة!$C$6:$C$26648=$F$8)*(الحركة!$A$6:$A$26648>=$F$6)*(الحركة!$A$6:$A$26648<=$H$6),ROW(الحركة!$A$6:$A$26648)-ROW(الحركة!$A$6)+1),ROWS(B$17:B58))),"") ->  | L58: =IF(COUNTIF($D$17:D57,D57)=1,COUNT($L$18:L57)+1,"") ->  | M58: =IF(COUNT($L$18:$L$5518)<ROW()-17,"",LOOKUP(ROW()-17,$L$18:$L$5518,$D$17:$D$5518)) ->  | N58: =IF(M58="","",COUNTIF($D$17:$D$5518,M58)) ->  | O58: =IF(M58="","",SUMIF($D$17:$D$5518,M58,$G$17:$G$5518)) ->  | P58: =IF(M58="","",SUMIF($D$17:$D$5518,M58,$H$17:$H$5518)) -> 
B59: =IF(ROWS(B$17:B59)<=SUMPRODUCT((الحركة!$C$6:$C$26648=$F$8)*(الحركة!$A$6:$A$26648>=$F$6)*(الحركة!$A$6:$A$26648<=$H$6)),INDEX(الحركة!$A$6:$A$26648,SMALL(IF((الحركة!$C$6:$C$26648=$F$8)*(الحركة!$A$6:$A$26648>=$F$6)*(الحركة!$A$6:$A$26648<=$H$6),ROW(الحركة!$A$6:$A$26648)-ROW(الحركة!$A$6)+1),ROWS(B$17:B59))),"") ->  | C59: =IF(ROWS(A$17:A59)<=SUMPRODUCT((الحركة!$C$6:$C$26648=$F$8)*(الحركة!$A$6:$A$26648>=$F$6)*(الحركة!$A$6:$A$26648<=$H$6)),INDEX(الحركة!$C$6:$C$26648,SMALL(IF((الحركة!$C$6:$C$26648=$F$8)*(الحركة!$A$6:$A$26648>=$F$6)*(الحركة!$A$6:$A$26648<=$H$6),ROW(الحركة!$A$6:$A$26648)-ROW(الحركة!$A$6)+1),ROWS(A$17:A59))),"") ->  | D59: =IF(ROWS(B$17:B59)<=SUMPRODUCT((الحركة!$C$6:$C$26648=$F$8)*(الحركة!$A$6:$A$26648>=$F$6)*(الحركة!$A$6:$A$26648<=$H$6)),INDEX(الحركة!$E$6:$E$26648,SMALL(IF((الحركة!$C$6:$C$26648=$F$8)*(الحركة!$A$6:$A$26648>=$F$6)*(الحركة!$A$6:$A$26648<=$H$6),ROW(الحركة!$A$6:$A$26648)-ROW(الحركة!$A$6)+1),ROWS(B$17:B59))),"") ->  | E59: =IF(ROWS(C$17:C59)<=SUMPRODUCT((الحركة!$C$6:$C$26648=$F$8)*(الحركة!$A$6:$A$26648>=$F$6)*(الحركة!$A$6:$A$26648<=$H$6)),INDEX(الحركة!$F$6:$F$26648,SMALL(IF((الحركة!$C$6:$C$26648=$F$8)*(الحركة!$A$6:$A$26648>=$F$6)*(الحركة!$A$6:$A$26648<=$H$6),ROW(الحركة!$A$6:$A$26648)-ROW(الحركة!$A$6)+1),ROWS(C$17:C59))),"") ->  | F59: =IF(ROWS(C$17:C59)<=SUMPRODUCT((الحركة!$C$6:$C$26648=$F$8)*(الحركة!$A$6:$A$26648>=$F$6)*(الحركة!$A$6:$A$26648<=$H$6)),INDEX(الحركة!$H$6:$H$26648,SMALL(IF((الحركة!$C$6:$C$26648=$F$8)*(الحركة!$A$6:$A$26648>=$F$6)*(الحركة!$A$6:$A$26648<=$H$6),ROW(الحركة!$A$6:$A$26648)-ROW(الحركة!$A$6)+1),ROWS(C$17:C59))),"") ->  | G59: =IF(ROWS(B$17:B59)<=SUMPRODUCT((الحركة!$C$6:$C$26648=$F$8)*(الحركة!$A$6:$A$26648>=$F$6)*(الحركة!$A$6:$A$26648<=$H$6)),INDEX(الحركة!$I$6:$I$26648,SMALL(IF((الحركة!$C$6:$C$26648=$F$8)*(الحركة!$A$6:$A$26648>=$F$6)*(الحركة!$A$6:$A$26648<=$H$6),ROW(الحركة!$A$6:$A$26648)-ROW(الحركة!$A$6)+1),ROWS(B$17:B59))),"") ->  | H59: =IF(ROWS(B$17:B59)<=SUMPRODUCT((الحركة!$C$6:$C$26648=$F$8)*(الحركة!$A$6:$A$26648>=$F$6)*(الحركة!$A$6:$A$26648<=$H$6)),INDEX(الحركة!$J$6:$J$26648,SMALL(IF((الحركة!$C$6:$C$26648=$F$8)*(الحركة!$A$6:$A$26648>=$F$6)*(الحركة!$A$6:$A$26648<=$H$6),ROW(الحركة!$A$6:$A$26648)-ROW(الحركة!$A$6)+1),ROWS(B$17:B59))),"") ->  | L59: =IF(COUNTIF($D$17:D58,D58)=1,COUNT($L$18:L58)+1,"") ->  | M59: =IF(COUNT($L$18:$L$5518)<ROW()-17,"",LOOKUP(ROW()-17,$L$18:$L$5518,$D$17:$D$5518)) ->  | N59: =IF(M59="","",COUNTIF($D$17:$D$5518,M59)) ->  | O59: =IF(M59="","",SUMIF($D$17:$D$5518,M59,$G$17:$G$5518)) ->  | P59: =IF(M59="","",SUMIF($D$17:$D$5518,M59,$H$17:$H$5518)) -> 
B60: =IF(ROWS(B$17:B60)<=SUMPRODUCT((الحركة!$C$6:$C$26648=$F$8)*(الحركة!$A$6:$A$26648>=$F$6)*(الحركة!$A$6:$A$26648<=$H$6)),INDEX(الحركة!$A$6:$A$26648,SMALL(IF((الحركة!$C$6:$C$26648=$F$8)*(الحركة!$A$6:$A$26648>=$F$6)*(الحركة!$A$6:$A$26648<=$H$6),ROW(الحركة!$A$6:$A$26648)-ROW(الحركة!$A$6)+1),ROWS(B$17:B60))),"") ->  | C60: =IF(ROWS(A$17:A60)<=SUMPRODUCT((الحركة!$C$6:$C$26648=$F$8)*(الحركة!$A$6:$A$26648>=$F$6)*(الحركة!$A$6:$A$26648<=$H$6)),INDEX(الحركة!$C$6:$C$26648,SMALL(IF((الحركة!$C$6:$C$26648=$F$8)*(الحركة!$A$6:$A$26648>=$F$6)*(الحركة!$A$6:$A$26648<=$H$6),ROW(الحركة!$A$6:$A$26648)-ROW(الحركة!$A$6)+1),ROWS(A$17:A60))),"") ->  | D60: =IF(ROWS(B$17:B60)<=SUMPRODUCT((الحركة!$C$6:$C$26648=$F$8)*(الحركة!$A$6:$A$26648>=$F$6)*(الحركة!$A$6:$A$26648<=$H$6)),INDEX(الحركة!$E$6:$E$26648,SMALL(IF((الحركة!$C$6:$C$26648=$F$8)*(الحركة!$A$6:$A$26648>=$F$6)*(الحركة!$A$6:$A$26648<=$H$6),ROW(الحركة!$A$6:$A$26648)-ROW(الحركة!$A$6)+1),ROWS(B$17:B60))),"") ->  | E60: =IF(ROWS(C$17:C60)<=SUMPRODUCT((الحركة!$C$6:$C$26648=$F$8)*(الحركة!$A$6:$A$26648>=$F$6)*(الحركة!$A$6:$A$26648<=$H$6)),INDEX(الحركة!$F$6:$F$26648,SMALL(IF((الحركة!$C$6:$C$26648=$F$8)*(الحركة!$A$6:$A$26648>=$F$6)*(الحركة!$A$6:$A$26648<=$H$6),ROW(الحركة!$A$6:$A$26648)-ROW(الحركة!$A$6)+1),ROWS(C$17:C60))),"") ->  | F60: =IF(ROWS(C$17:C60)<=SUMPRODUCT((الحركة!$C$6:$C$26648=$F$8)*(الحركة!$A$6:$A$26648>=$F$6)*(الحركة!$A$6:$A$26648<=$H$6)),INDEX(الحركة!$H$6:$H$26648,SMALL(IF((الحركة!$C$6:$C$26648=$F$8)*(الحركة!$A$6:$A$26648>=$F$6)*(الحركة!$A$6:$A$26648<=$H$6),ROW(الحركة!$A$6:$A$26648)-ROW(الحركة!$A$6)+1),ROWS(C$17:C60))),"") ->  | G60: =IF(ROWS(B$17:B60)<=SUMPRODUCT((الحركة!$C$6:$C$26648=$F$8)*(الحركة!$A$6:$A$26648>=$F$6)*(الحركة!$A$6:$A$26648<=$H$6)),INDEX(الحركة!$I$6:$I$26648,SMALL(IF((الحركة!$C$6:$C$26648=$F$8)*(الحركة!$A$6:$A$26648>=$F$6)*(الحركة!$A$6:$A$26648<=$H$6),ROW(الحركة!$A$6:$A$26648)-ROW(الحركة!$A$6)+1),ROWS(B$17:B60))),"") ->  | H60: =IF(ROWS(B$17:B60)<=SUMPRODUCT((الحركة!$C$6:$C$26648=$F$8)*(الحركة!$A$6:$A$26648>=$F$6)*(الحركة!$A$6:$A$26648<=$H$6)),INDEX(الحركة!$J$6:$J$26648,SMALL(IF((الحركة!$C$6:$C$26648=$F$8)*(الحركة!$A$6:$A$26648>=$F$6)*(الحركة!$A$6:$A$26648<=$H$6),ROW(الحركة!$A$6:$A$26648)-ROW(الحركة!$A$6)+1),ROWS(B$17:B60))),"") ->  | L60: =IF(COUNTIF($D$17:D59,D59)=1,COUNT($L$18:L59)+1,"") ->  | M60: =IF(COUNT($L$18:$L$5518)<ROW()-17,"",LOOKUP(ROW()-17,$L$18:$L$5518,$D$17:$D$5518)) ->  | N60: =IF(M60="","",COUNTIF($D$17:$D$5518,M60)) ->  | O60: =IF(M60="","",SUMIF($D$17:$D$5518,M60,$G$17:$G$5518)) ->  | P60: =IF(M60="","",SUMIF($D$17:$D$5518,M60,$H$17:$H$5518)) -> 
B61: =IF(ROWS(B$17:B61)<=SUMPRODUCT((الحركة!$C$6:$C$26648=$F$8)*(الحركة!$A$6:$A$26648>=$F$6)*(الحركة!$A$6:$A$26648<=$H$6)),INDEX(الحركة!$A$6:$A$26648,SMALL(IF((الحركة!$C$6:$C$26648=$F$8)*(الحركة!$A$6:$A$26648>=$F$6)*(الحركة!$A$6:$A$26648<=$H$6),ROW(الحركة!$A$6:$A$26648)-ROW(الحركة!$A$6)+1),ROWS(B$17:B61))),"") ->  | C61: =IF(ROWS(A$17:A61)<=SUMPRODUCT((الحركة!$C$6:$C$26648=$F$8)*(الحركة!$A$6:$A$26648>=$F$6)*(الحركة!$A$6:$A$26648<=$H$6)),INDEX(الحركة!$C$6:$C$26648,SMALL(IF((الحركة!$C$6:$C$26648=$F$8)*(الحركة!$A$6:$A$26648>=$F$6)*(الحركة!$A$6:$A$26648<=$H$6),ROW(الحركة!$A$6:$A$26648)-ROW(الحركة!$A$6)+1),ROWS(A$17:A61))),"") ->  | D61: =IF(ROWS(B$17:B61)<=SUMPRODUCT((الحركة!$C$6:$C$26648=$F$8)*(الحركة!$A$6:$A$26648>=$F$6)*(الحركة!$A$6:$A$26648<=$H$6)),INDEX(الحركة!$E$6:$E$26648,SMALL(IF((الحركة!$C$6:$C$26648=$F$8)*(الحركة!$A$6:$A$26648>=$F$6)*(الحركة!$A$6:$A$26648<=$H$6),ROW(الحركة!$A$6:$A$26648)-ROW(الحركة!$A$6)+1),ROWS(B$17:B61))),"") ->  | E61: =IF(ROWS(C$17:C61)<=SUMPRODUCT((الحركة!$C$6:$C$26648=$F$8)*(الحركة!$A$6:$A$26648>=$F$6)*(الحركة!$A$6:$A$26648<=$H$6)),INDEX(الحركة!$F$6:$F$26648,SMALL(IF((الحركة!$C$6:$C$26648=$F$8)*(الحركة!$A$6:$A$26648>=$F$6)*(الحركة!$A$6:$A$26648<=$H$6),ROW(الحركة!$A$6:$A$26648)-ROW(الحركة!$A$6)+1),ROWS(C$17:C61))),"") ->  | F61: =IF(ROWS(C$17:C61)<=SUMPRODUCT((الحركة!$C$6:$C$26648=$F$8)*(الحركة!$A$6:$A$26648>=$F$6)*(الحركة!$A$6:$A$26648<=$H$6)),INDEX(الحركة!$H$6:$H$26648,SMALL(IF((الحركة!$C$6:$C$26648=$F$8)*(الحركة!$A$6:$A$26648>=$F$6)*(الحركة!$A$6:$A$26648<=$H$6),ROW(الحركة!$A$6:$A$26648)-ROW(الحركة!$A$6)+1),ROWS(C$17:C61))),"") ->  | G61: =IF(ROWS(B$17:B61)<=SUMPRODUCT((الحركة!$C$6:$C$26648=$F$8)*(الحركة!$A$6:$A$26648>=$F$6)*(الحركة!$A$6:$A$26648<=$H$6)),INDEX(الحركة!$I$6:$I$26648,SMALL(IF((الحركة!$C$6:$C$26648=$F$8)*(الحركة!$A$6:$A$26648>=$F$6)*(الحركة!$A$6:$A$26648<=$H$6),ROW(الحركة!$A$6:$A$26648)-ROW(الحركة!$A$6)+1),ROWS(B$17:B61))),"") ->  | H61: =IF(ROWS(B$17:B61)<=SUMPRODUCT((الحركة!$C$6:$C$26648=$F$8)*(الحركة!$A$6:$A$26648>=$F$6)*(الحركة!$A$6:$A$26648<=$H$6)),INDEX(الحركة!$J$6:$J$26648,SMALL(IF((الحركة!$C$6:$C$26648=$F$8)*(الحركة!$A$6:$A$26648>=$F$6)*(الحركة!$A$6:$A$26648<=$H$6),ROW(الحركة!$A$6:$A$26648)-ROW(الحركة!$A$6)+1),ROWS(B$17:B61))),"") ->  | L61: =IF(COUNTIF($D$17:D60,D60)=1,COUNT($L$18:L60)+1,"") ->  | M61: =IF(COUNT($L$18:$L$5518)<ROW()-17,"",LOOKUP(ROW()-17,$L$18:$L$5518,$D$17:$D$5518)) ->  | N61: =IF(M61="","",COUNTIF($D$17:$D$5518,M61)) ->  | O61: =IF(M61="","",SUMIF($D$17:$D$5518,M61,$G$17:$G$5518)) ->  | P61: =IF(M61="","",SUMIF($D$17:$D$5518,M61,$H$17:$H$5518)) -> 
B62: =IF(ROWS(B$17:B62)<=SUMPRODUCT((الحركة!$C$6:$C$26648=$F$8)*(الحركة!$A$6:$A$26648>=$F$6)*(الحركة!$A$6:$A$26648<=$H$6)),INDEX(الحركة!$A$6:$A$26648,SMALL(IF((الحركة!$C$6:$C$26648=$F$8)*(الحركة!$A$6:$A$26648>=$F$6)*(الحركة!$A$6:$A$26648<=$H$6),ROW(الحركة!$A$6:$A$26648)-ROW(الحركة!$A$6)+1),ROWS(B$17:B62))),"") ->  | C62: =IF(ROWS(A$17:A62)<=SUMPRODUCT((الحركة!$C$6:$C$26648=$F$8)*(الحركة!$A$6:$A$26648>=$F$6)*(الحركة!$A$6:$A$26648<=$H$6)),INDEX(الحركة!$C$6:$C$26648,SMALL(IF((الحركة!$C$6:$C$26648=$F$8)*(الحركة!$A$6:$A$26648>=$F$6)*(الحركة!$A$6:$A$26648<=$H$6),ROW(الحركة!$A$6:$A$26648)-ROW(الحركة!$A$6)+1),ROWS(A$17:A62))),"") ->  | D62: =IF(ROWS(B$17:B62)<=SUMPRODUCT((الحركة!$C$6:$C$26648=$F$8)*(الحركة!$A$6:$A$26648>=$F$6)*(الحركة!$A$6:$A$26648<=$H$6)),INDEX(الحركة!$E$6:$E$26648,SMALL(IF((الحركة!$C$6:$C$26648=$F$8)*(الحركة!$A$6:$A$26648>=$F$6)*(الحركة!$A$6:$A$26648<=$H$6),ROW(الحركة!$A$6:$A$26648)-ROW(الحركة!$A$6)+1),ROWS(B$17:B62))),"") ->  | E62: =IF(ROWS(C$17:C62)<=SUMPRODUCT((الحركة!$C$6:$C$26648=$F$8)*(الحركة!$A$6:$A$26648>=$F$6)*(الحركة!$A$6:$A$26648<=$H$6)),INDEX(الحركة!$F$6:$F$26648,SMALL(IF((الحركة!$C$6:$C$26648=$F$8)*(الحركة!$A$6:$A$26648>=$F$6)*(الحركة!$A$6:$A$26648<=$H$6),ROW(الحركة!$A$6:$A$26648)-ROW(الحركة!$A$6)+1),ROWS(C$17:C62))),"") ->  | F62: =IF(ROWS(C$17:C62)<=SUMPRODUCT((الحركة!$C$6:$C$26648=$F$8)*(الحركة!$A$6:$A$26648>=$F$6)*(الحركة!$A$6:$A$26648<=$H$6)),INDEX(الحركة!$H$6:$H$26648,SMALL(IF((الحركة!$C$6:$C$26648=$F$8)*(الحركة!$A$6:$A$26648>=$F$6)*(الحركة!$A$6:$A$26648<=$H$6),ROW(الحركة!$A$6:$A$26648)-ROW(الحركة!$A$6)+1),ROWS(C$17:C62))),"") ->  | G62: =IF(ROWS(B$17:B62)<=SUMPRODUCT((الحركة!$C$6:$C$26648=$F$8)*(الحركة!$A$6:$A$26648>=$F$6)*(الحركة!$A$6:$A$26648<=$H$6)),INDEX(الحركة!$I$6:$I$26648,SMALL(IF((الحركة!$C$6:$C$26648=$F$8)*(الحركة!$A$6:$A$26648>=$F$6)*(الحركة!$A$6:$A$26648<=$H$6),ROW(الحركة!$A$6:$A$26648)-ROW(الحركة!$A$6)+1),ROWS(B$17:B62))),"") ->  | H62: =IF(ROWS(B$17:B62)<=SUMPRODUCT((الحركة!$C$6:$C$26648=$F$8)*(الحركة!$A$6:$A$26648>=$F$6)*(الحركة!$A$6:$A$26648<=$H$6)),INDEX(الحركة!$J$6:$J$26648,SMALL(IF((الحركة!$C$6:$C$26648=$F$8)*(الحركة!$A$6:$A$26648>=$F$6)*(الحركة!$A$6:$A$26648<=$H$6),ROW(الحركة!$A$6:$A$26648)-ROW(الحركة!$A$6)+1),ROWS(B$17:B62))),"") ->  | L62: =IF(COUNTIF($D$17:D61,D61)=1,COUNT($L$18:L61)+1,"") ->  | M62: =IF(COUNT($L$18:$L$5518)<ROW()-17,"",LOOKUP(ROW()-17,$L$18:$L$5518,$D$17:$D$5518)) ->  | N62: =IF(M62="","",COUNTIF($D$17:$D$5518,M62)) ->  | O62: =IF(M62="","",SUMIF($D$17:$D$5518,M62,$G$17:$G$5518)) ->  | P62: =IF(M62="","",SUMIF($D$17:$D$5518,M62,$H$17:$H$5518)) -> 
B63: =IF(ROWS(B$17:B63)<=SUMPRODUCT((الحركة!$C$6:$C$26648=$F$8)*(الحركة!$A$6:$A$26648>=$F$6)*(الحركة!$A$6:$A$26648<=$H$6)),INDEX(الحركة!$A$6:$A$26648,SMALL(IF((الحركة!$C$6:$C$26648=$F$8)*(الحركة!$A$6:$A$26648>=$F$6)*(الحركة!$A$6:$A$26648<=$H$6),ROW(الحركة!$A$6:$A$26648)-ROW(الحركة!$A$6)+1),ROWS(B$17:B63))),"") ->  | C63: =IF(ROWS(A$17:A63)<=SUMPRODUCT((الحركة!$C$6:$C$26648=$F$8)*(الحركة!$A$6:$A$26648>=$F$6)*(الحركة!$A$6:$A$26648<=$H$6)),INDEX(الحركة!$C$6:$C$26648,SMALL(IF((الحركة!$C$6:$C$26648=$F$8)*(الحركة!$A$6:$A$26648>=$F$6)*(الحركة!$A$6:$A$26648<=$H$6),ROW(الحركة!$A$6:$A$26648)-ROW(الحركة!$A$6)+1),ROWS(A$17:A63))),"") ->  | D63: =IF(ROWS(B$17:B63)<=SUMPRODUCT((الحركة!$C$6:$C$26648=$F$8)*(الحركة!$A$6:$A$26648>=$F$6)*(الحركة!$A$6:$A$26648<=$H$6)),INDEX(الحركة!$E$6:$E$26648,SMALL(IF((الحركة!$C$6:$C$26648=$F$8)*(الحركة!$A$6:$A$26648>=$F$6)*(الحركة!$A$6:$A$26648<=$H$6),ROW(الحركة!$A$6:$A$26648)-ROW(الحركة!$A$6)+1),ROWS(B$17:B63))),"") ->  | E63: =IF(ROWS(C$17:C63)<=SUMPRODUCT((الحركة!$C$6:$C$26648=$F$8)*(الحركة!$A$6:$A$26648>=$F$6)*(الحركة!$A$6:$A$26648<=$H$6)),INDEX(الحركة!$F$6:$F$26648,SMALL(IF((الحركة!$C$6:$C$26648=$F$8)*(الحركة!$A$6:$A$26648>=$F$6)*(الحركة!$A$6:$A$26648<=$H$6),ROW(الحركة!$A$6:$A$26648)-ROW(الحركة!$A$6)+1),ROWS(C$17:C63))),"") ->  | F63: =IF(ROWS(C$17:C63)<=SUMPRODUCT((الحركة!$C$6:$C$26648=$F$8)*(الحركة!$A$6:$A$26648>=$F$6)*(الحركة!$A$6:$A$26648<=$H$6)),INDEX(الحركة!$H$6:$H$26648,SMALL(IF((الحركة!$C$6:$C$26648=$F$8)*(الحركة!$A$6:$A$26648>=$F$6)*(الحركة!$A$6:$A$26648<=$H$6),ROW(الحركة!$A$6:$A$26648)-ROW(الحركة!$A$6)+1),ROWS(C$17:C63))),"") ->  | G63: =IF(ROWS(B$17:B63)<=SUMPRODUCT((الحركة!$C$6:$C$26648=$F$8)*(الحركة!$A$6:$A$26648>=$F$6)*(الحركة!$A$6:$A$26648<=$H$6)),INDEX(الحركة!$I$6:$I$26648,SMALL(IF((الحركة!$C$6:$C$26648=$F$8)*(الحركة!$A$6:$A$26648>=$F$6)*(الحركة!$A$6:$A$26648<=$H$6),ROW(الحركة!$A$6:$A$26648)-ROW(الحركة!$A$6)+1),ROWS(B$17:B63))),"") ->  | H63: =IF(ROWS(B$17:B63)<=SUMPRODUCT((الحركة!$C$6:$C$26648=$F$8)*(الحركة!$A$6:$A$26648>=$F$6)*(الحركة!$A$6:$A$26648<=$H$6)),INDEX(الحركة!$J$6:$J$26648,SMALL(IF((الحركة!$C$6:$C$26648=$F$8)*(الحركة!$A$6:$A$26648>=$F$6)*(الحركة!$A$6:$A$26648<=$H$6),ROW(الحركة!$A$6:$A$26648)-ROW(الحركة!$A$6)+1),ROWS(B$17:B63))),"") ->  | L63: =IF(COUNTIF($D$17:D62,D62)=1,COUNT($L$18:L62)+1,"") ->  | M63: =IF(COUNT($L$18:$L$5518)<ROW()-17,"",LOOKUP(ROW()-17,$L$18:$L$5518,$D$17:$D$5518)) ->  | N63: =IF(M63="","",COUNTIF($D$17:$D$5518,M63)) ->  | O63: =IF(M63="","",SUMIF($D$17:$D$5518,M63,$G$17:$G$5518)) ->  | P63: =IF(M63="","",SUMIF($D$17:$D$5518,M63,$H$17:$H$5518)) -> 
B64: =IF(ROWS(B$17:B64)<=SUMPRODUCT((الحركة!$C$6:$C$26648=$F$8)*(الحركة!$A$6:$A$26648>=$F$6)*(الحركة!$A$6:$A$26648<=$H$6)),INDEX(الحركة!$A$6:$A$26648,SMALL(IF((الحركة!$C$6:$C$26648=$F$8)*(الحركة!$A$6:$A$26648>=$F$6)*(الحركة!$A$6:$A$26648<=$H$6),ROW(الحركة!$A$6:$A$26648)-ROW(الحركة!$A$6)+1),ROWS(B$17:B64))),"") ->  | C64: =IF(ROWS(A$17:A64)<=SUMPRODUCT((الحركة!$C$6:$C$26648=$F$8)*(الحركة!$A$6:$A$26648>=$F$6)*(الحركة!$A$6:$A$26648<=$H$6)),INDEX(الحركة!$C$6:$C$26648,SMALL(IF((الحركة!$C$6:$C$26648=$F$8)*(الحركة!$A$6:$A$26648>=$F$6)*(الحركة!$A$6:$A$26648<=$H$6),ROW(الحركة!$A$6:$A$26648)-ROW(الحركة!$A$6)+1),ROWS(A$17:A64))),"") ->  | D64: =IF(ROWS(B$17:B64)<=SUMPRODUCT((الحركة!$C$6:$C$26648=$F$8)*(الحركة!$A$6:$A$26648>=$F$6)*(الحركة!$A$6:$A$26648<=$H$6)),INDEX(الحركة!$E$6:$E$26648,SMALL(IF((الحركة!$C$6:$C$26648=$F$8)*(الحركة!$A$6:$A$26648>=$F$6)*(الحركة!$A$6:$A$26648<=$H$6),ROW(الحركة!$A$6:$A$26648)-ROW(الحركة!$A$6)+1),ROWS(B$17:B64))),"") ->  | E64: =IF(ROWS(C$17:C64)<=SUMPRODUCT((الحركة!$C$6:$C$26648=$F$8)*(الحركة!$A$6:$A$26648>=$F$6)*(الحركة!$A$6:$A$26648<=$H$6)),INDEX(الحركة!$F$6:$F$26648,SMALL(IF((الحركة!$C$6:$C$26648=$F$8)*(الحركة!$A$6:$A$26648>=$F$6)*(الحركة!$A$6:$A$26648<=$H$6),ROW(الحركة!$A$6:$A$26648)-ROW(الحركة!$A$6)+1),ROWS(C$17:C64))),"") ->  | F64: =IF(ROWS(C$17:C64)<=SUMPRODUCT((الحركة!$C$6:$C$26648=$F$8)*(الحركة!$A$6:$A$26648>=$F$6)*(الحركة!$A$6:$A$26648<=$H$6)),INDEX(الحركة!$H$6:$H$26648,SMALL(IF((الحركة!$C$6:$C$26648=$F$8)*(الحركة!$A$6:$A$26648>=$F$6)*(الحركة!$A$6:$A$26648<=$H$6),ROW(الحركة!$A$6:$A$26648)-ROW(الحركة!$A$6)+1),ROWS(C$17:C64))),"") ->  | G64: =IF(ROWS(B$17:B64)<=SUMPRODUCT((الحركة!$C$6:$C$26648=$F$8)*(الحركة!$A$6:$A$26648>=$F$6)*(الحركة!$A$6:$A$26648<=$H$6)),INDEX(الحركة!$I$6:$I$26648,SMALL(IF((الحركة!$C$6:$C$26648=$F$8)*(الحركة!$A$6:$A$26648>=$F$6)*(الحركة!$A$6:$A$26648<=$H$6),ROW(الحركة!$A$6:$A$26648)-ROW(الحركة!$A$6)+1),ROWS(B$17:B64))),"") ->  | H64: =IF(ROWS(B$17:B64)<=SUMPRODUCT((الحركة!$C$6:$C$26648=$F$8)*(الحركة!$A$6:$A$26648>=$F$6)*(الحركة!$A$6:$A$26648<=$H$6)),INDEX(الحركة!$J$6:$J$26648,SMALL(IF((الحركة!$C$6:$C$26648=$F$8)*(الحركة!$A$6:$A$26648>=$F$6)*(الحركة!$A$6:$A$26648<=$H$6),ROW(الحركة!$A$6:$A$26648)-ROW(الحركة!$A$6)+1),ROWS(B$17:B64))),"") ->  | L64: =IF(COUNTIF($D$17:D63,D63)=1,COUNT($L$18:L63)+1,"") ->  | M64: =IF(COUNT($L$18:$L$5518)<ROW()-17,"",LOOKUP(ROW()-17,$L$18:$L$5518,$D$17:$D$5518)) ->  | N64: =IF(M64="","",COUNTIF($D$17:$D$5518,M64)) ->  | O64: =IF(M64="","",SUMIF($D$17:$D$5518,M64,$G$17:$G$5518)) ->  | P64: =IF(M64="","",SUMIF($D$17:$D$5518,M64,$H$17:$H$5518)) -> 
B65: =IF(ROWS(B$17:B65)<=SUMPRODUCT((الحركة!$C$6:$C$26648=$F$8)*(الحركة!$A$6:$A$26648>=$F$6)*(الحركة!$A$6:$A$26648<=$H$6)),INDEX(الحركة!$A$6:$A$26648,SMALL(IF((الحركة!$C$6:$C$26648=$F$8)*(الحركة!$A$6:$A$26648>=$F$6)*(الحركة!$A$6:$A$26648<=$H$6),ROW(الحركة!$A$6:$A$26648)-ROW(الحركة!$A$6)+1),ROWS(B$17:B65))),"") ->  | C65: =IF(ROWS(A$17:A65)<=SUMPRODUCT((الحركة!$C$6:$C$26648=$F$8)*(الحركة!$A$6:$A$26648>=$F$6)*(الحركة!$A$6:$A$26648<=$H$6)),INDEX(الحركة!$C$6:$C$26648,SMALL(IF((الحركة!$C$6:$C$26648=$F$8)*(الحركة!$A$6:$A$26648>=$F$6)*(الحركة!$A$6:$A$26648<=$H$6),ROW(الحركة!$A$6:$A$26648)-ROW(الحركة!$A$6)+1),ROWS(A$17:A65))),"") ->  | D65: =IF(ROWS(B$17:B65)<=SUMPRODUCT((الحركة!$C$6:$C$26648=$F$8)*(الحركة!$A$6:$A$26648>=$F$6)*(الحركة!$A$6:$A$26648<=$H$6)),INDEX(الحركة!$E$6:$E$26648,SMALL(IF((الحركة!$C$6:$C$26648=$F$8)*(الحركة!$A$6:$A$26648>=$F$6)*(الحركة!$A$6:$A$26648<=$H$6),ROW(الحركة!$A$6:$A$26648)-ROW(الحركة!$A$6)+1),ROWS(B$17:B65))),"") ->  | E65: =IF(ROWS(C$17:C65)<=SUMPRODUCT((الحركة!$C$6:$C$26648=$F$8)*(الحركة!$A$6:$A$26648>=$F$6)*(الحركة!$A$6:$A$26648<=$H$6)),INDEX(الحركة!$F$6:$F$26648,SMALL(IF((الحركة!$C$6:$C$26648=$F$8)*(الحركة!$A$6:$A$26648>=$F$6)*(الحركة!$A$6:$A$26648<=$H$6),ROW(الحركة!$A$6:$A$26648)-ROW(الحركة!$A$6)+1),ROWS(C$17:C65))),"") ->  | F65: =IF(ROWS(C$17:C65)<=SUMPRODUCT((الحركة!$C$6:$C$26648=$F$8)*(الحركة!$A$6:$A$26648>=$F$6)*(الحركة!$A$6:$A$26648<=$H$6)),INDEX(الحركة!$H$6:$H$26648,SMALL(IF((الحركة!$C$6:$C$26648=$F$8)*(الحركة!$A$6:$A$26648>=$F$6)*(الحركة!$A$6:$A$26648<=$H$6),ROW(الحركة!$A$6:$A$26648)-ROW(الحركة!$A$6)+1),ROWS(C$17:C65))),"") ->  | G65: =IF(ROWS(B$17:B65)<=SUMPRODUCT((الحركة!$C$6:$C$26648=$F$8)*(الحركة!$A$6:$A$26648>=$F$6)*(الحركة!$A$6:$A$26648<=$H$6)),INDEX(الحركة!$I$6:$I$26648,SMALL(IF((الحركة!$C$6:$C$26648=$F$8)*(الحركة!$A$6:$A$26648>=$F$6)*(الحركة!$A$6:$A$26648<=$H$6),ROW(الحركة!$A$6:$A$26648)-ROW(الحركة!$A$6)+1),ROWS(B$17:B65))),"") ->  | H65: =IF(ROWS(B$17:B65)<=SUMPRODUCT((الحركة!$C$6:$C$26648=$F$8)*(الحركة!$A$6:$A$26648>=$F$6)*(الحركة!$A$6:$A$26648<=$H$6)),INDEX(الحركة!$J$6:$J$26648,SMALL(IF((الحركة!$C$6:$C$26648=$F$8)*(الحركة!$A$6:$A$26648>=$F$6)*(الحركة!$A$6:$A$26648<=$H$6),ROW(الحركة!$A$6:$A$26648)-ROW(الحركة!$A$6)+1),ROWS(B$17:B65))),"") ->  | L65: =IF(COUNTIF($D$17:D64,D64)=1,COUNT($L$18:L64)+1,"") ->  | M65: =IF(COUNT($L$18:$L$5518)<ROW()-17,"",LOOKUP(ROW()-17,$L$18:$L$5518,$D$17:$D$5518)) ->  | N65: =IF(M65="","",COUNTIF($D$17:$D$5518,M65)) ->  | O65: =IF(M65="","",SUMIF($D$17:$D$5518,M65,$G$17:$G$5518)) ->  | P65: =IF(M65="","",SUMIF($D$17:$D$5518,M65,$H$17:$H$5518)) -> 
B66: =IF(ROWS(B$17:B66)<=SUMPRODUCT((الحركة!$C$6:$C$26648=$F$8)*(الحركة!$A$6:$A$26648>=$F$6)*(الحركة!$A$6:$A$26648<=$H$6)),INDEX(الحركة!$A$6:$A$26648,SMALL(IF((الحركة!$C$6:$C$26648=$F$8)*(الحركة!$A$6:$A$26648>=$F$6)*(الحركة!$A$6:$A$26648<=$H$6),ROW(الحركة!$A$6:$A$26648)-ROW(الحركة!$A$6)+1),ROWS(B$17:B66))),"") ->  | C66: =IF(ROWS(A$17:A66)<=SUMPRODUCT((الحركة!$C$6:$C$26648=$F$8)*(الحركة!$A$6:$A$26648>=$F$6)*(الحركة!$A$6:$A$26648<=$H$6)),INDEX(الحركة!$C$6:$C$26648,SMALL(IF((الحركة!$C$6:$C$26648=$F$8)*(الحركة!$A$6:$A$26648>=$F$6)*(الحركة!$A$6:$A$26648<=$H$6),ROW(الحركة!$A$6:$A$26648)-ROW(الحركة!$A$6)+1),ROWS(A$17:A66))),"") ->  | D66: =IF(ROWS(B$17:B66)<=SUMPRODUCT((الحركة!$C$6:$C$26648=$F$8)*(الحركة!$A$6:$A$26648>=$F$6)*(الحركة!$A$6:$A$26648<=$H$6)),INDEX(الحركة!$E$6:$E$26648,SMALL(IF((الحركة!$C$6:$C$26648=$F$8)*(الحركة!$A$6:$A$26648>=$F$6)*(الحركة!$A$6:$A$26648<=$H$6),ROW(الحركة!$A$6:$A$26648)-ROW(الحركة!$A$6)+1),ROWS(B$17:B66))),"") ->  | E66: =IF(ROWS(C$17:C66)<=SUMPRODUCT((الحركة!$C$6:$C$26648=$F$8)*(الحركة!$A$6:$A$26648>=$F$6)*(الحركة!$A$6:$A$26648<=$H$6)),INDEX(الحركة!$F$6:$F$26648,SMALL(IF((الحركة!$C$6:$C$26648=$F$8)*(الحركة!$A$6:$A$26648>=$F$6)*(الحركة!$A$6:$A$26648<=$H$6),ROW(الحركة!$A$6:$A$26648)-ROW(الحركة!$A$6)+1),ROWS(C$17:C66))),"") ->  | F66: =IF(ROWS(C$17:C66)<=SUMPRODUCT((الحركة!$C$6:$C$26648=$F$8)*(الحركة!$A$6:$A$26648>=$F$6)*(الحركة!$A$6:$A$26648<=$H$6)),INDEX(الحركة!$H$6:$H$26648,SMALL(IF((الحركة!$C$6:$C$26648=$F$8)*(الحركة!$A$6:$A$26648>=$F$6)*(الحركة!$A$6:$A$26648<=$H$6),ROW(الحركة!$A$6:$A$26648)-ROW(الحركة!$A$6)+1),ROWS(C$17:C66))),"") ->  | G66: =IF(ROWS(B$17:B66)<=SUMPRODUCT((الحركة!$C$6:$C$26648=$F$8)*(الحركة!$A$6:$A$26648>=$F$6)*(الحركة!$A$6:$A$26648<=$H$6)),INDEX(الحركة!$I$6:$I$26648,SMALL(IF((الحركة!$C$6:$C$26648=$F$8)*(الحركة!$A$6:$A$26648>=$F$6)*(الحركة!$A$6:$A$26648<=$H$6),ROW(الحركة!$A$6:$A$26648)-ROW(الحركة!$A$6)+1),ROWS(B$17:B66))),"") ->  | H66: =IF(ROWS(B$17:B66)<=SUMPRODUCT((الحركة!$C$6:$C$26648=$F$8)*(الحركة!$A$6:$A$26648>=$F$6)*(الحركة!$A$6:$A$26648<=$H$6)),INDEX(الحركة!$J$6:$J$26648,SMALL(IF((الحركة!$C$6:$C$26648=$F$8)*(الحركة!$A$6:$A$26648>=$F$6)*(الحركة!$A$6:$A$26648<=$H$6),ROW(الحركة!$A$6:$A$26648)-ROW(الحركة!$A$6)+1),ROWS(B$17:B66))),"") ->  | L66: =IF(COUNTIF($D$17:D65,D65)=1,COUNT($L$18:L65)+1,"") ->  | M66: =IF(COUNT($L$18:$L$5518)<ROW()-17,"",LOOKUP(ROW()-17,$L$18:$L$5518,$D$17:$D$5518)) ->  | N66: =IF(M66="","",COUNTIF($D$17:$D$5518,M66)) ->  | O66: =IF(M66="","",SUMIF($D$17:$D$5518,M66,$G$17:$G$5518)) ->  | P66: =IF(M66="","",SUMIF($D$17:$D$5518,M66,$H$17:$H$5518)) -> 
B67: =IF(ROWS(B$17:B67)<=SUMPRODUCT((الحركة!$C$6:$C$26648=$F$8)*(الحركة!$A$6:$A$26648>=$F$6)*(الحركة!$A$6:$A$26648<=$H$6)),INDEX(الحركة!$A$6:$A$26648,SMALL(IF((الحركة!$C$6:$C$26648=$F$8)*(الحركة!$A$6:$A$26648>=$F$6)*(الحركة!$A$6:$A$26648<=$H$6),ROW(الحركة!$A$6:$A$26648)-ROW(الحركة!$A$6)+1),ROWS(B$17:B67))),"") ->  | C67: =IF(ROWS(A$17:A67)<=SUMPRODUCT((الحركة!$C$6:$C$26648=$F$8)*(الحركة!$A$6:$A$26648>=$F$6)*(الحركة!$A$6:$A$26648<=$H$6)),INDEX(الحركة!$C$6:$C$26648,SMALL(IF((الحركة!$C$6:$C$26648=$F$8)*(الحركة!$A$6:$A$26648>=$F$6)*(الحركة!$A$6:$A$26648<=$H$6),ROW(الحركة!$A$6:$A$26648)-ROW(الحركة!$A$6)+1),ROWS(A$17:A67))),"") ->  | D67: =IF(ROWS(B$17:B67)<=SUMPRODUCT((الحركة!$C$6:$C$26648=$F$8)*(الحركة!$A$6:$A$26648>=$F$6)*(الحركة!$A$6:$A$26648<=$H$6)),INDEX(الحركة!$E$6:$E$26648,SMALL(IF((الحركة!$C$6:$C$26648=$F$8)*(الحركة!$A$6:$A$26648>=$F$6)*(الحركة!$A$6:$A$26648<=$H$6),ROW(الحركة!$A$6:$A$26648)-ROW(الحركة!$A$6)+1),ROWS(B$17:B67))),"") ->  | E67: =IF(ROWS(C$17:C67)<=SUMPRODUCT((الحركة!$C$6:$C$26648=$F$8)*(الحركة!$A$6:$A$26648>=$F$6)*(الحركة!$A$6:$A$26648<=$H$6)),INDEX(الحركة!$F$6:$F$26648,SMALL(IF((الحركة!$C$6:$C$26648=$F$8)*(الحركة!$A$6:$A$26648>=$F$6)*(الحركة!$A$6:$A$26648<=$H$6),ROW(الحركة!$A$6:$A$26648)-ROW(الحركة!$A$6)+1),ROWS(C$17:C67))),"") ->  | F67: =IF(ROWS(C$17:C67)<=SUMPRODUCT((الحركة!$C$6:$C$26648=$F$8)*(الحركة!$A$6:$A$26648>=$F$6)*(الحركة!$A$6:$A$26648<=$H$6)),INDEX(الحركة!$H$6:$H$26648,SMALL(IF((الحركة!$C$6:$C$26648=$F$8)*(الحركة!$A$6:$A$26648>=$F$6)*(الحركة!$A$6:$A$26648<=$H$6),ROW(الحركة!$A$6:$A$26648)-ROW(الحركة!$A$6)+1),ROWS(C$17:C67))),"") ->  | G67: =IF(ROWS(B$17:B67)<=SUMPRODUCT((الحركة!$C$6:$C$26648=$F$8)*(الحركة!$A$6:$A$26648>=$F$6)*(الحركة!$A$6:$A$26648<=$H$6)),INDEX(الحركة!$I$6:$I$26648,SMALL(IF((الحركة!$C$6:$C$26648=$F$8)*(الحركة!$A$6:$A$26648>=$F$6)*(الحركة!$A$6:$A$26648<=$H$6),ROW(الحركة!$A$6:$A$26648)-ROW(الحركة!$A$6)+1),ROWS(B$17:B67))),"") ->  | H67: =IF(ROWS(B$17:B67)<=SUMPRODUCT((الحركة!$C$6:$C$26648=$F$8)*(الحركة!$A$6:$A$26648>=$F$6)*(الحركة!$A$6:$A$26648<=$H$6)),INDEX(الحركة!$J$6:$J$26648,SMALL(IF((الحركة!$C$6:$C$26648=$F$8)*(الحركة!$A$6:$A$26648>=$F$6)*(الحركة!$A$6:$A$26648<=$H$6),ROW(الحركة!$A$6:$A$26648)-ROW(الحركة!$A$6)+1),ROWS(B$17:B67))),"") ->  | L67: =IF(COUNTIF($D$17:D66,D66)=1,COUNT($L$18:L66)+1,"") ->  | M67: =IF(COUNT($L$18:$L$5518)<ROW()-17,"",LOOKUP(ROW()-17,$L$18:$L$5518,$D$17:$D$5518)) ->  | N67: =IF(M67="","",COUNTIF($D$17:$D$5518,M67)) ->  | O67: =IF(M67="","",SUMIF($D$17:$D$5518,M67,$G$17:$G$5518)) ->  | P67: =IF(M67="","",SUMIF($D$17:$D$5518,M67,$H$17:$H$5518)) -> 
B68: =IF(ROWS(B$17:B68)<=SUMPRODUCT((الحركة!$C$6:$C$26648=$F$8)*(الحركة!$A$6:$A$26648>=$F$6)*(الحركة!$A$6:$A$26648<=$H$6)),INDEX(الحركة!$A$6:$A$26648,SMALL(IF((الحركة!$C$6:$C$26648=$F$8)*(الحركة!$A$6:$A$26648>=$F$6)*(الحركة!$A$6:$A$26648<=$H$6),ROW(الحركة!$A$6:$A$26648)-ROW(الحركة!$A$6)+1),ROWS(B$17:B68))),"") ->  | C68: =IF(ROWS(A$17:A68)<=SUMPRODUCT((الحركة!$C$6:$C$26648=$F$8)*(الحركة!$A$6:$A$26648>=$F$6)*(الحركة!$A$6:$A$26648<=$H$6)),INDEX(الحركة!$C$6:$C$26648,SMALL(IF((الحركة!$C$6:$C$26648=$F$8)*(الحركة!$A$6:$A$26648>=$F$6)*(الحركة!$A$6:$A$26648<=$H$6),ROW(الحركة!$A$6:$A$26648)-ROW(الحركة!$A$6)+1),ROWS(A$17:A68))),"") ->  | D68: =IF(ROWS(B$17:B68)<=SUMPRODUCT((الحركة!$C$6:$C$26648=$F$8)*(الحركة!$A$6:$A$26648>=$F$6)*(الحركة!$A$6:$A$26648<=$H$6)),INDEX(الحركة!$E$6:$E$26648,SMALL(IF((الحركة!$C$6:$C$26648=$F$8)*(الحركة!$A$6:$A$26648>=$F$6)*(الحركة!$A$6:$A$26648<=$H$6),ROW(الحركة!$A$6:$A$26648)-ROW(الحركة!$A$6)+1),ROWS(B$17:B68))),"") ->  | E68: =IF(ROWS(C$17:C68)<=SUMPRODUCT((الحركة!$C$6:$C$26648=$F$8)*(الحركة!$A$6:$A$26648>=$F$6)*(الحركة!$A$6:$A$26648<=$H$6)),INDEX(الحركة!$F$6:$F$26648,SMALL(IF((الحركة!$C$6:$C$26648=$F$8)*(الحركة!$A$6:$A$26648>=$F$6)*(الحركة!$A$6:$A$26648<=$H$6),ROW(الحركة!$A$6:$A$26648)-ROW(الحركة!$A$6)+1),ROWS(C$17:C68))),"") ->  | F68: =IF(ROWS(C$17:C68)<=SUMPRODUCT((الحركة!$C$6:$C$26648=$F$8)*(الحركة!$A$6:$A$26648>=$F$6)*(الحركة!$A$6:$A$26648<=$H$6)),INDEX(الحركة!$H$6:$H$26648,SMALL(IF((الحركة!$C$6:$C$26648=$F$8)*(الحركة!$A$6:$A$26648>=$F$6)*(الحركة!$A$6:$A$26648<=$H$6),ROW(الحركة!$A$6:$A$26648)-ROW(الحركة!$A$6)+1),ROWS(C$17:C68))),"") ->  | G68: =IF(ROWS(B$17:B68)<=SUMPRODUCT((الحركة!$C$6:$C$26648=$F$8)*(الحركة!$A$6:$A$26648>=$F$6)*(الحركة!$A$6:$A$26648<=$H$6)),INDEX(الحركة!$I$6:$I$26648,SMALL(IF((الحركة!$C$6:$C$26648=$F$8)*(الحركة!$A$6:$A$26648>=$F$6)*(الحركة!$A$6:$A$26648<=$H$6),ROW(الحركة!$A$6:$A$26648)-ROW(الحركة!$A$6)+1),ROWS(B$17:B68))),"") ->  | H68: =IF(ROWS(B$17:B68)<=SUMPRODUCT((الحركة!$C$6:$C$26648=$F$8)*(الحركة!$A$6:$A$26648>=$F$6)*(الحركة!$A$6:$A$26648<=$H$6)),INDEX(الحركة!$J$6:$J$26648,SMALL(IF((الحركة!$C$6:$C$26648=$F$8)*(الحركة!$A$6:$A$26648>=$F$6)*(الحركة!$A$6:$A$26648<=$H$6),ROW(الحركة!$A$6:$A$26648)-ROW(الحركة!$A$6)+1),ROWS(B$17:B68))),"") ->  | L68: =IF(COUNTIF($D$17:D67,D67)=1,COUNT($L$18:L67)+1,"") ->  | M68: =IF(COUNT($L$18:$L$5518)<ROW()-17,"",LOOKUP(ROW()-17,$L$18:$L$5518,$D$17:$D$5518)) ->  | N68: =IF(M68="","",COUNTIF($D$17:$D$5518,M68)) ->  | O68: =IF(M68="","",SUMIF($D$17:$D$5518,M68,$G$17:$G$5518)) ->  | P68: =IF(M68="","",SUMIF($D$17:$D$5518,M68,$H$17:$H$5518)) -> 
B69: =IF(ROWS(B$17:B69)<=SUMPRODUCT((الحركة!$C$6:$C$26648=$F$8)*(الحركة!$A$6:$A$26648>=$F$6)*(الحركة!$A$6:$A$26648<=$H$6)),INDEX(الحركة!$A$6:$A$26648,SMALL(IF((الحركة!$C$6:$C$26648=$F$8)*(الحركة!$A$6:$A$26648>=$F$6)*(الحركة!$A$6:$A$26648<=$H$6),ROW(الحركة!$A$6:$A$26648)-ROW(الحركة!$A$6)+1),ROWS(B$17:B69))),"") ->  | C69: =IF(ROWS(A$17:A69)<=SUMPRODUCT((الحركة!$C$6:$C$26648=$F$8)*(الحركة!$A$6:$A$26648>=$F$6)*(الحركة!$A$6:$A$26648<=$H$6)),INDEX(الحركة!$C$6:$C$26648,SMALL(IF((الحركة!$C$6:$C$26648=$F$8)*(الحركة!$A$6:$A$26648>=$F$6)*(الحركة!$A$6:$A$26648<=$H$6),ROW(الحركة!$A$6:$A$26648)-ROW(الحركة!$A$6)+1),ROWS(A$17:A69))),"") ->  | D69: =IF(ROWS(B$17:B69)<=SUMPRODUCT((الحركة!$C$6:$C$26648=$F$8)*(الحركة!$A$6:$A$26648>=$F$6)*(الحركة!$A$6:$A$26648<=$H$6)),INDEX(الحركة!$E$6:$E$26648,SMALL(IF((الحركة!$C$6:$C$26648=$F$8)*(الحركة!$A$6:$A$26648>=$F$6)*(الحركة!$A$6:$A$26648<=$H$6),ROW(الحركة!$A$6:$A$26648)-ROW(الحركة!$A$6)+1),ROWS(B$17:B69))),"") ->  | E69: =IF(ROWS(C$17:C69)<=SUMPRODUCT((الحركة!$C$6:$C$26648=$F$8)*(الحركة!$A$6:$A$26648>=$F$6)*(الحركة!$A$6:$A$26648<=$H$6)),INDEX(الحركة!$F$6:$F$26648,SMALL(IF((الحركة!$C$6:$C$26648=$F$8)*(الحركة!$A$6:$A$26648>=$F$6)*(الحركة!$A$6:$A$26648<=$H$6),ROW(الحركة!$A$6:$A$26648)-ROW(الحركة!$A$6)+1),ROWS(C$17:C69))),"") ->  | F69: =IF(ROWS(C$17:C69)<=SUMPRODUCT((الحركة!$C$6:$C$26648=$F$8)*(الحركة!$A$6:$A$26648>=$F$6)*(الحركة!$A$6:$A$26648<=$H$6)),INDEX(الحركة!$H$6:$H$26648,SMALL(IF((الحركة!$C$6:$C$26648=$F$8)*(الحركة!$A$6:$A$26648>=$F$6)*(الحركة!$A$6:$A$26648<=$H$6),ROW(الحركة!$A$6:$A$26648)-ROW(الحركة!$A$6)+1),ROWS(C$17:C69))),"") ->  | G69: =IF(ROWS(B$17:B69)<=SUMPRODUCT((الحركة!$C$6:$C$26648=$F$8)*(الحركة!$A$6:$A$26648>=$F$6)*(الحركة!$A$6:$A$26648<=$H$6)),INDEX(الحركة!$I$6:$I$26648,SMALL(IF((الحركة!$C$6:$C$26648=$F$8)*(الحركة!$A$6:$A$26648>=$F$6)*(الحركة!$A$6:$A$26648<=$H$6),ROW(الحركة!$A$6:$A$26648)-ROW(الحركة!$A$6)+1),ROWS(B$17:B69))),"") ->  | H69: =IF(ROWS(B$17:B69)<=SUMPRODUCT((الحركة!$C$6:$C$26648=$F$8)*(الحركة!$A$6:$A$26648>=$F$6)*(الحركة!$A$6:$A$26648<=$H$6)),INDEX(الحركة!$J$6:$J$26648,SMALL(IF((الحركة!$C$6:$C$26648=$F$8)*(الحركة!$A$6:$A$26648>=$F$6)*(الحركة!$A$6:$A$26648<=$H$6),ROW(الحركة!$A$6:$A$26648)-ROW(الحركة!$A$6)+1),ROWS(B$17:B69))),"") ->  | L69: =IF(COUNTIF($D$17:D68,D68)=1,COUNT($L$18:L68)+1,"") ->  | M69: =IF(COUNT($L$18:$L$5518)<ROW()-17,"",LOOKUP(ROW()-17,$L$18:$L$5518,$D$17:$D$5518)) ->  | N69: =IF(M69="","",COUNTIF($D$17:$D$5518,M69)) ->  | O69: =IF(M69="","",SUMIF($D$17:$D$5518,M69,$G$17:$G$5518)) ->  | P69: =IF(M69="","",SUMIF($D$17:$D$5518,M69,$H$17:$H$5518)) -> 
B70: =IF(ROWS(B$17:B70)<=SUMPRODUCT((الحركة!$C$6:$C$26648=$F$8)*(الحركة!$A$6:$A$26648>=$F$6)*(الحركة!$A$6:$A$26648<=$H$6)),INDEX(الحركة!$A$6:$A$26648,SMALL(IF((الحركة!$C$6:$C$26648=$F$8)*(الحركة!$A$6:$A$26648>=$F$6)*(الحركة!$A$6:$A$26648<=$H$6),ROW(الحركة!$A$6:$A$26648)-ROW(الحركة!$A$6)+1),ROWS(B$17:B70))),"") ->  | C70: =IF(ROWS(A$17:A70)<=SUMPRODUCT((الحركة!$C$6:$C$26648=$F$8)*(الحركة!$A$6:$A$26648>=$F$6)*(الحركة!$A$6:$A$26648<=$H$6)),INDEX(الحركة!$C$6:$C$26648,SMALL(IF((الحركة!$C$6:$C$26648=$F$8)*(الحركة!$A$6:$A$26648>=$F$6)*(الحركة!$A$6:$A$26648<=$H$6),ROW(الحركة!$A$6:$A$26648)-ROW(الحركة!$A$6)+1),ROWS(A$17:A70))),"") ->  | D70: =IF(ROWS(B$17:B70)<=SUMPRODUCT((الحركة!$C$6:$C$26648=$F$8)*(الحركة!$A$6:$A$26648>=$F$6)*(الحركة!$A$6:$A$26648<=$H$6)),INDEX(الحركة!$E$6:$E$26648,SMALL(IF((الحركة!$C$6:$C$26648=$F$8)*(الحركة!$A$6:$A$26648>=$F$6)*(الحركة!$A$6:$A$26648<=$H$6),ROW(الحركة!$A$6:$A$26648)-ROW(الحركة!$A$6)+1),ROWS(B$17:B70))),"") ->  | E70: =IF(ROWS(C$17:C70)<=SUMPRODUCT((الحركة!$C$6:$C$26648=$F$8)*(الحركة!$A$6:$A$26648>=$F$6)*(الحركة!$A$6:$A$26648<=$H$6)),INDEX(الحركة!$F$6:$F$26648,SMALL(IF((الحركة!$C$6:$C$26648=$F$8)*(الحركة!$A$6:$A$26648>=$F$6)*(الحركة!$A$6:$A$26648<=$H$6),ROW(الحركة!$A$6:$A$26648)-ROW(الحركة!$A$6)+1),ROWS(C$17:C70))),"") ->  | F70: =IF(ROWS(C$17:C70)<=SUMPRODUCT((الحركة!$C$6:$C$26648=$F$8)*(الحركة!$A$6:$A$26648>=$F$6)*(الحركة!$A$6:$A$26648<=$H$6)),INDEX(الحركة!$H$6:$H$26648,SMALL(IF((الحركة!$C$6:$C$26648=$F$8)*(الحركة!$A$6:$A$26648>=$F$6)*(الحركة!$A$6:$A$26648<=$H$6),ROW(الحركة!$A$6:$A$26648)-ROW(الحركة!$A$6)+1),ROWS(C$17:C70))),"") ->  | G70: =IF(ROWS(B$17:B70)<=SUMPRODUCT((الحركة!$C$6:$C$26648=$F$8)*(الحركة!$A$6:$A$26648>=$F$6)*(الحركة!$A$6:$A$26648<=$H$6)),INDEX(الحركة!$I$6:$I$26648,SMALL(IF((الحركة!$C$6:$C$26648=$F$8)*(الحركة!$A$6:$A$26648>=$F$6)*(الحركة!$A$6:$A$26648<=$H$6),ROW(الحركة!$A$6:$A$26648)-ROW(الحركة!$A$6)+1),ROWS(B$17:B70))),"") ->  | H70: =IF(ROWS(B$17:B70)<=SUMPRODUCT((الحركة!$C$6:$C$26648=$F$8)*(الحركة!$A$6:$A$26648>=$F$6)*(الحركة!$A$6:$A$26648<=$H$6)),INDEX(الحركة!$J$6:$J$26648,SMALL(IF((الحركة!$C$6:$C$26648=$F$8)*(الحركة!$A$6:$A$26648>=$F$6)*(الحركة!$A$6:$A$26648<=$H$6),ROW(الحركة!$A$6:$A$26648)-ROW(الحركة!$A$6)+1),ROWS(B$17:B70))),"") ->  | L70: =IF(COUNTIF($D$17:D69,D69)=1,COUNT($L$18:L69)+1,"") ->  | M70: =IF(COUNT($L$18:$L$5518)<ROW()-17,"",LOOKUP(ROW()-17,$L$18:$L$5518,$D$17:$D$5518)) ->  | N70: =IF(M70="","",COUNTIF($D$17:$D$5518,M70)) ->  | O70: =IF(M70="","",SUMIF($D$17:$D$5518,M70,$G$17:$G$5518)) ->  | P70: =IF(M70="","",SUMIF($D$17:$D$5518,M70,$H$17:$H$5518)) -> 
B71: =IF(ROWS(B$17:B71)<=SUMPRODUCT((الحركة!$C$6:$C$26648=$F$8)*(الحركة!$A$6:$A$26648>=$F$6)*(الحركة!$A$6:$A$26648<=$H$6)),INDEX(الحركة!$A$6:$A$26648,SMALL(IF((الحركة!$C$6:$C$26648=$F$8)*(الحركة!$A$6:$A$26648>=$F$6)*(الحركة!$A$6:$A$26648<=$H$6),ROW(الحركة!$A$6:$A$26648)-ROW(الحركة!$A$6)+1),ROWS(B$17:B71))),"") ->  | C71: =IF(ROWS(A$17:A71)<=SUMPRODUCT((الحركة!$C$6:$C$26648=$F$8)*(الحركة!$A$6:$A$26648>=$F$6)*(الحركة!$A$6:$A$26648<=$H$6)),INDEX(الحركة!$C$6:$C$26648,SMALL(IF((الحركة!$C$6:$C$26648=$F$8)*(الحركة!$A$6:$A$26648>=$F$6)*(الحركة!$A$6:$A$26648<=$H$6),ROW(الحركة!$A$6:$A$26648)-ROW(الحركة!$A$6)+1),ROWS(A$17:A71))),"") ->  | D71: =IF(ROWS(B$17:B71)<=SUMPRODUCT((الحركة!$C$6:$C$26648=$F$8)*(الحركة!$A$6:$A$26648>=$F$6)*(الحركة!$A$6:$A$26648<=$H$6)),INDEX(الحركة!$E$6:$E$26648,SMALL(IF((الحركة!$C$6:$C$26648=$F$8)*(الحركة!$A$6:$A$26648>=$F$6)*(الحركة!$A$6:$A$26648<=$H$6),ROW(الحركة!$A$6:$A$26648)-ROW(الحركة!$A$6)+1),ROWS(B$17:B71))),"") ->  | E71: =IF(ROWS(C$17:C71)<=SUMPRODUCT((الحركة!$C$6:$C$26648=$F$8)*(الحركة!$A$6:$A$26648>=$F$6)*(الحركة!$A$6:$A$26648<=$H$6)),INDEX(الحركة!$F$6:$F$26648,SMALL(IF((الحركة!$C$6:$C$26648=$F$8)*(الحركة!$A$6:$A$26648>=$F$6)*(الحركة!$A$6:$A$26648<=$H$6),ROW(الحركة!$A$6:$A$26648)-ROW(الحركة!$A$6)+1),ROWS(C$17:C71))),"") ->  | F71: =IF(ROWS(C$17:C71)<=SUMPRODUCT((الحركة!$C$6:$C$26648=$F$8)*(الحركة!$A$6:$A$26648>=$F$6)*(الحركة!$A$6:$A$26648<=$H$6)),INDEX(الحركة!$H$6:$H$26648,SMALL(IF((الحركة!$C$6:$C$26648=$F$8)*(الحركة!$A$6:$A$26648>=$F$6)*(الحركة!$A$6:$A$26648<=$H$6),ROW(الحركة!$A$6:$A$26648)-ROW(الحركة!$A$6)+1),ROWS(C$17:C71))),"") ->  | G71: =IF(ROWS(B$17:B71)<=SUMPRODUCT((الحركة!$C$6:$C$26648=$F$8)*(الحركة!$A$6:$A$26648>=$F$6)*(الحركة!$A$6:$A$26648<=$H$6)),INDEX(الحركة!$I$6:$I$26648,SMALL(IF((الحركة!$C$6:$C$26648=$F$8)*(الحركة!$A$6:$A$26648>=$F$6)*(الحركة!$A$6:$A$26648<=$H$6),ROW(الحركة!$A$6:$A$26648)-ROW(الحركة!$A$6)+1),ROWS(B$17:B71))),"") ->  | H71: =IF(ROWS(B$17:B71)<=SUMPRODUCT((الحركة!$C$6:$C$26648=$F$8)*(الحركة!$A$6:$A$26648>=$F$6)*(الحركة!$A$6:$A$26648<=$H$6)),INDEX(الحركة!$J$6:$J$26648,SMALL(IF((الحركة!$C$6:$C$26648=$F$8)*(الحركة!$A$6:$A$26648>=$F$6)*(الحركة!$A$6:$A$26648<=$H$6),ROW(الحركة!$A$6:$A$26648)-ROW(الحركة!$A$6)+1),ROWS(B$17:B71))),"") ->  | L71: =IF(COUNTIF($D$17:D70,D70)=1,COUNT($L$18:L70)+1,"") ->  | M71: =IF(COUNT($L$18:$L$5518)<ROW()-17,"",LOOKUP(ROW()-17,$L$18:$L$5518,$D$17:$D$5518)) ->  | N71: =IF(M71="","",COUNTIF($D$17:$D$5518,M71)) ->  | O71: =IF(M71="","",SUMIF($D$17:$D$5518,M71,$G$17:$G$5518)) ->  | P71: =IF(M71="","",SUMIF($D$17:$D$5518,M71,$H$17:$H$5518)) -> 
B72: =IF(ROWS(B$17:B72)<=SUMPRODUCT((الحركة!$C$6:$C$26648=$F$8)*(الحركة!$A$6:$A$26648>=$F$6)*(الحركة!$A$6:$A$26648<=$H$6)),INDEX(الحركة!$A$6:$A$26648,SMALL(IF((الحركة!$C$6:$C$26648=$F$8)*(الحركة!$A$6:$A$26648>=$F$6)*(الحركة!$A$6:$A$26648<=$H$6),ROW(الحركة!$A$6:$A$26648)-ROW(الحركة!$A$6)+1),ROWS(B$17:B72))),"") ->  | C72: =IF(ROWS(A$17:A72)<=SUMPRODUCT((الحركة!$C$6:$C$26648=$F$8)*(الحركة!$A$6:$A$26648>=$F$6)*(الحركة!$A$6:$A$26648<=$H$6)),INDEX(الحركة!$C$6:$C$26648,SMALL(IF((الحركة!$C$6:$C$26648=$F$8)*(الحركة!$A$6:$A$26648>=$F$6)*(الحركة!$A$6:$A$26648<=$H$6),ROW(الحركة!$A$6:$A$26648)-ROW(الحركة!$A$6)+1),ROWS(A$17:A72))),"") ->  | D72: =IF(ROWS(B$17:B72)<=SUMPRODUCT((الحركة!$C$6:$C$26648=$F$8)*(الحركة!$A$6:$A$26648>=$F$6)*(الحركة!$A$6:$A$26648<=$H$6)),INDEX(الحركة!$E$6:$E$26648,SMALL(IF((الحركة!$C$6:$C$26648=$F$8)*(الحركة!$A$6:$A$26648>=$F$6)*(الحركة!$A$6:$A$26648<=$H$6),ROW(الحركة!$A$6:$A$26648)-ROW(الحركة!$A$6)+1),ROWS(B$17:B72))),"") ->  | E72: =IF(ROWS(C$17:C72)<=SUMPRODUCT((الحركة!$C$6:$C$26648=$F$8)*(الحركة!$A$6:$A$26648>=$F$6)*(الحركة!$A$6:$A$26648<=$H$6)),INDEX(الحركة!$F$6:$F$26648,SMALL(IF((الحركة!$C$6:$C$26648=$F$8)*(الحركة!$A$6:$A$26648>=$F$6)*(الحركة!$A$6:$A$26648<=$H$6),ROW(الحركة!$A$6:$A$26648)-ROW(الحركة!$A$6)+1),ROWS(C$17:C72))),"") ->  | F72: =IF(ROWS(C$17:C72)<=SUMPRODUCT((الحركة!$C$6:$C$26648=$F$8)*(الحركة!$A$6:$A$26648>=$F$6)*(الحركة!$A$6:$A$26648<=$H$6)),INDEX(الحركة!$H$6:$H$26648,SMALL(IF((الحركة!$C$6:$C$26648=$F$8)*(الحركة!$A$6:$A$26648>=$F$6)*(الحركة!$A$6:$A$26648<=$H$6),ROW(الحركة!$A$6:$A$26648)-ROW(الحركة!$A$6)+1),ROWS(C$17:C72))),"") ->  | G72: =IF(ROWS(B$17:B72)<=SUMPRODUCT((الحركة!$C$6:$C$26648=$F$8)*(الحركة!$A$6:$A$26648>=$F$6)*(الحركة!$A$6:$A$26648<=$H$6)),INDEX(الحركة!$I$6:$I$26648,SMALL(IF((الحركة!$C$6:$C$26648=$F$8)*(الحركة!$A$6:$A$26648>=$F$6)*(الحركة!$A$6:$A$26648<=$H$6),ROW(الحركة!$A$6:$A$26648)-ROW(الحركة!$A$6)+1),ROWS(B$17:B72))),"") ->  | H72: =IF(ROWS(B$17:B72)<=SUMPRODUCT((الحركة!$C$6:$C$26648=$F$8)*(الحركة!$A$6:$A$26648>=$F$6)*(الحركة!$A$6:$A$26648<=$H$6)),INDEX(الحركة!$J$6:$J$26648,SMALL(IF((الحركة!$C$6:$C$26648=$F$8)*(الحركة!$A$6:$A$26648>=$F$6)*(الحركة!$A$6:$A$26648<=$H$6),ROW(الحركة!$A$6:$A$26648)-ROW(الحركة!$A$6)+1),ROWS(B$17:B72))),"") ->  | L72: =IF(COUNTIF($D$17:D71,D71)=1,COUNT($L$18:L71)+1,"") ->  | M72: =IF(COUNT($L$18:$L$5518)<ROW()-17,"",LOOKUP(ROW()-17,$L$18:$L$5518,$D$17:$D$5518)) ->  | N72: =IF(M72="","",COUNTIF($D$17:$D$5518,M72)) ->  | O72: =IF(M72="","",SUMIF($D$17:$D$5518,M72,$G$17:$G$5518)) ->  | P72: =IF(M72="","",SUMIF($D$17:$D$5518,M72,$H$17:$H$5518)) -> 
B73: =IF(ROWS(B$17:B73)<=SUMPRODUCT((الحركة!$C$6:$C$26648=$F$8)*(الحركة!$A$6:$A$26648>=$F$6)*(الحركة!$A$6:$A$26648<=$H$6)),INDEX(الحركة!$A$6:$A$26648,SMALL(IF((الحركة!$C$6:$C$26648=$F$8)*(الحركة!$A$6:$A$26648>=$F$6)*(الحركة!$A$6:$A$26648<=$H$6),ROW(الحركة!$A$6:$A$26648)-ROW(الحركة!$A$6)+1),ROWS(B$17:B73))),"") ->  | C73: =IF(ROWS(A$17:A73)<=SUMPRODUCT((الحركة!$C$6:$C$26648=$F$8)*(الحركة!$A$6:$A$26648>=$F$6)*(الحركة!$A$6:$A$26648<=$H$6)),INDEX(الحركة!$C$6:$C$26648,SMALL(IF((الحركة!$C$6:$C$26648=$F$8)*(الحركة!$A$6:$A$26648>=$F$6)*(الحركة!$A$6:$A$26648<=$H$6),ROW(الحركة!$A$6:$A$26648)-ROW(الحركة!$A$6)+1),ROWS(A$17:A73))),"") ->  | D73: =IF(ROWS(B$17:B73)<=SUMPRODUCT((الحركة!$C$6:$C$26648=$F$8)*(الحركة!$A$6:$A$26648>=$F$6)*(الحركة!$A$6:$A$26648<=$H$6)),INDEX(الحركة!$E$6:$E$26648,SMALL(IF((الحركة!$C$6:$C$26648=$F$8)*(الحركة!$A$6:$A$26648>=$F$6)*(الحركة!$A$6:$A$26648<=$H$6),ROW(الحركة!$A$6:$A$26648)-ROW(الحركة!$A$6)+1),ROWS(B$17:B73))),"") ->  | E73: =IF(ROWS(C$17:C73)<=SUMPRODUCT((الحركة!$C$6:$C$26648=$F$8)*(الحركة!$A$6:$A$26648>=$F$6)*(الحركة!$A$6:$A$26648<=$H$6)),INDEX(الحركة!$F$6:$F$26648,SMALL(IF((الحركة!$C$6:$C$26648=$F$8)*(الحركة!$A$6:$A$26648>=$F$6)*(الحركة!$A$6:$A$26648<=$H$6),ROW(الحركة!$A$6:$A$26648)-ROW(الحركة!$A$6)+1),ROWS(C$17:C73))),"") ->  | F73: =IF(ROWS(C$17:C73)<=SUMPRODUCT((الحركة!$C$6:$C$26648=$F$8)*(الحركة!$A$6:$A$26648>=$F$6)*(الحركة!$A$6:$A$26648<=$H$6)),INDEX(الحركة!$H$6:$H$26648,SMALL(IF((الحركة!$C$6:$C$26648=$F$8)*(الحركة!$A$6:$A$26648>=$F$6)*(الحركة!$A$6:$A$26648<=$H$6),ROW(الحركة!$A$6:$A$26648)-ROW(الحركة!$A$6)+1),ROWS(C$17:C73))),"") ->  | G73: =IF(ROWS(B$17:B73)<=SUMPRODUCT((الحركة!$C$6:$C$26648=$F$8)*(الحركة!$A$6:$A$26648>=$F$6)*(الحركة!$A$6:$A$26648<=$H$6)),INDEX(الحركة!$I$6:$I$26648,SMALL(IF((الحركة!$C$6:$C$26648=$F$8)*(الحركة!$A$6:$A$26648>=$F$6)*(الحركة!$A$6:$A$26648<=$H$6),ROW(الحركة!$A$6:$A$26648)-ROW(الحركة!$A$6)+1),ROWS(B$17:B73))),"") ->  | H73: =IF(ROWS(B$17:B73)<=SUMPRODUCT((الحركة!$C$6:$C$26648=$F$8)*(الحركة!$A$6:$A$26648>=$F$6)*(الحركة!$A$6:$A$26648<=$H$6)),INDEX(الحركة!$J$6:$J$26648,SMALL(IF((الحركة!$C$6:$C$26648=$F$8)*(الحركة!$A$6:$A$26648>=$F$6)*(الحركة!$A$6:$A$26648<=$H$6),ROW(الحركة!$A$6:$A$26648)-ROW(الحركة!$A$6)+1),ROWS(B$17:B73))),"") ->  | L73: =IF(COUNTIF($D$17:D72,D72)=1,COUNT($L$18:L72)+1,"") ->  | M73: =IF(COUNT($L$18:$L$5518)<ROW()-17,"",LOOKUP(ROW()-17,$L$18:$L$5518,$D$17:$D$5518)) ->  | N73: =IF(M73="","",COUNTIF($D$17:$D$5518,M73)) ->  | O73: =IF(M73="","",SUMIF($D$17:$D$5518,M73,$G$17:$G$5518)) ->  | P73: =IF(M73="","",SUMIF($D$17:$D$5518,M73,$H$17:$H$5518)) -> 

Sheet الكشف التفصيلي
C2: كشف حساب عام
E6: فى الفترة من : | F6: 2021-01-01 | G6: الى | H6: 2021-01-31
B8: رقم كود الحساب الرئيسي : | C8: 6301 | E8: اسم الحساب : | F8: =IF(AND(C8="",F9="",OR(H12>0,G12>0)),"→",IF(C8>0,VLOOKUP(C8,الدليل!$C$5:$E$576,3,0),"")) -> حصص الأطباء | M8: عدد العمليات | N8: =SUM(N18:N86) -> 0
M11: اجمالي المدين | N11: =SUM(O18:O86) -> 0
D12: =SUM(H23:H28) -> 0 | E12: =482-428 -> 54 | G12: اجمالي المدين | H12: اجمالي الدائن | I12: اجمالي الرصيد | M12: اجمالي الدائن | N12: =SUM(P18:P86) -> 0
G13: =SUM(G17:G86) -> 0 | H13: =SUM(H17:H86) -> 0 | I13: =IF(ISERR(G13-H13),"",G13-H13) -> 0
B16: التاريخ | C16: الحساب الرئيسي | D16: الحساب الفرعي | E16: رقم الإيصال المالي | F16: التفصيلي | G16: مدين | H16: دائن | I16: الرصيد
B17: =IF(ROWS(B$16:B16)<=SUMPRODUCT((الحركة!$E$6:$E$26648=$F$8)*(الحركة!$A$6:$A$26648>=$F$6)*(الحركة!$A$6:$A$26648<=$H$6)),INDEX(الحركة!$A$6:$A$26648,SMALL(IF((الحركة!$E$6:$E$26648=$F$8)*(الحركة!$A$6:$A$26648>=$F$6)*(الحركة!$A$6:$A$26648<=$H$6),ROW(الحركة!$A$6:$A$26648)-ROW(الحركة!$A$6)+1),ROWS(B$16:B16))),"") ->  | D17: =IF(ROWS(B$16:B16)<=SUMPRODUCT((الحركة!$E$6:$E$26648=$F$8)*(الحركة!$A$6:$A$26648>=$F$6)*(الحركة!$A$6:$A$26648<=$H$6)),INDEX(الحركة!$E$6:$E$26648,SMALL(IF((الحركة!$E$6:$E$26648=$F$8)*(الحركة!$A$6:$A$26648>=$F$6)*(الحركة!$A$6:$A$26648<=$H$6),ROW(الحركة!$A$6:$A$26648)-ROW(الحركة!$A$6)+1),ROWS(B$16:B16))),"") ->  | E17: =IF(ROWS(C$16:C16)<=SUMPRODUCT((الحركة!$E$6:$E$26648=$F$8)*(الحركة!$A$6:$A$26648>=$F$6)*(الحركة!$A$6:$A$26648<=$H$6)),INDEX(الحركة!$F$6:$F$26648,SMALL(IF((الحركة!$E$6:$E$26648=$F$8)*(الحركة!$A$6:$A$26648>=$F$6)*(الحركة!$A$6:$A$26648<=$H$6),ROW(الحركة!$A$6:$A$26648)-ROW(الحركة!$A$6)+1),ROWS(C$16:C16))),"") ->  | F17: =IF(ROWS(C$16:C16)<=SUMPRODUCT((الحركة!$E$6:$E$26648=$F$8)*(الحركة!$A$6:$A$26648>=$F$6)*(الحركة!$A$6:$A$26648<=$H$6)),INDEX(الحركة!$H$6:$H$26648,SMALL(IF((الحركة!$E$6:$E$26648=$F$8)*(الحركة!$A$6:$A$26648>=$F$6)*(الحركة!$A$6:$A$26648<=$H$6),ROW(الحركة!$A$6:$A$26648)-ROW(الحركة!$A$6)+1),ROWS(C$16:C16))),"") ->  | G17: =IF(ROWS(B$16:B16)<=SUMPRODUCT((الحركة!$E$6:$E$26648=$F$8)*(الحركة!$A$6:$A$26648>=$F$6)*(الحركة!$A$6:$A$26648<=$H$6)),INDEX(الحركة!$I$6:$I$26648,SMALL(IF((الحركة!$E$6:$E$26648=$F$8)*(الحركة!$A$6:$A$26648>=$F$6)*(الحركة!$A$6:$A$26648<=$H$6),ROW(الحركة!$A$6:$A$26648)-ROW(الحركة!$A$6)+1),ROWS(B$16:B16))),"") ->  | H17: =IF(ROWS(C$16:C16)<=SUMPRODUCT((الحركة!$E$6:$E$26648=$F$8)*(الحركة!$A$6:$A$26648>=$F$6)*(الحركة!$A$6:$A$26648<=$H$6)),INDEX(الحركة!$J$6:$J$26648,SMALL(IF((الحركة!$E$6:$E$26648=$F$8)*(الحركة!$A$6:$A$26648>=$F$6)*(الحركة!$A$6:$A$26648<=$H$6),ROW(الحركة!$A$6:$A$26648)-ROW(الحركة!$A$6)+1),ROWS(C$16:C16))),"") ->  | I17: =IF(ISERR(G17-H17),"",G17-H17) ->  | M17: إسم العميل | N17: عدد العمليات | O17: مدين | P17: دائن | Q17: Month
B18: =IF(ROWS(B$16:B17)<=SUMPRODUCT((الحركة!$E$6:$E$26648=$F$8)*(الحركة!$A$6:$A$26648>=$F$6)*(الحركة!$A$6:$A$26648<=$H$6)),INDEX(الحركة!$A$6:$A$26648,SMALL(IF((الحركة!$E$6:$E$26648=$F$8)*(الحركة!$A$6:$A$26648>=$F$6)*(الحركة!$A$6:$A$26648<=$H$6),ROW(الحركة!$A$6:$A$26648)-ROW(الحركة!$A$6)+1),ROWS(B$16:B17))),"") ->  | D18: =IF(ROWS(B$16:B17)<=SUMPRODUCT((الحركة!$E$6:$E$26648=$F$8)*(الحركة!$A$6:$A$26648>=$F$6)*(الحركة!$A$6:$A$26648<=$H$6)),INDEX(الحركة!$E$6:$E$26648,SMALL(IF((الحركة!$E$6:$E$26648=$F$8)*(الحركة!$A$6:$A$26648>=$F$6)*(الحركة!$A$6:$A$26648<=$H$6),ROW(الحركة!$A$6:$A$26648)-ROW(الحركة!$A$6)+1),ROWS(B$16:B17))),"") ->  | E18: =IF(ROWS(C$16:C17)<=SUMPRODUCT((الحركة!$E$6:$E$26648=$F$8)*(الحركة!$A$6:$A$26648>=$F$6)*(الحركة!$A$6:$A$26648<=$H$6)),INDEX(الحركة!$F$6:$F$26648,SMALL(IF((الحركة!$E$6:$E$26648=$F$8)*(الحركة!$A$6:$A$26648>=$F$6)*(الحركة!$A$6:$A$26648<=$H$6),ROW(الحركة!$A$6:$A$26648)-ROW(الحركة!$A$6)+1),ROWS(C$16:C17))),"") ->  | F18: =IF(ROWS(C$16:C17)<=SUMPRODUCT((الحركة!$E$6:$E$26648=$F$8)*(الحركة!$A$6:$A$26648>=$F$6)*(الحركة!$A$6:$A$26648<=$H$6)),INDEX(الحركة!$H$6:$H$26648,SMALL(IF((الحركة!$E$6:$E$26648=$F$8)*(الحركة!$A$6:$A$26648>=$F$6)*(الحركة!$A$6:$A$26648<=$H$6),ROW(الحركة!$A$6:$A$26648)-ROW(الحركة!$A$6)+1),ROWS(C$16:C17))),"") ->  | G18: =IF(ROWS(B$16:B17)<=SUMPRODUCT((الحركة!$E$6:$E$26648=$F$8)*(الحركة!$A$6:$A$26648>=$F$6)*(الحركة!$A$6:$A$26648<=$H$6)),INDEX(الحركة!$I$6:$I$26648,SMALL(IF((الحركة!$E$6:$E$26648=$F$8)*(الحركة!$A$6:$A$26648>=$F$6)*(الحركة!$A$6:$A$26648<=$H$6),ROW(الحركة!$A$6:$A$26648)-ROW(الحركة!$A$6)+1),ROWS(B$16:B17))),"") ->  | H18: =IF(ROWS(C$16:C17)<=SUMPRODUCT((الحركة!$E$6:$E$26648=$F$8)*(الحركة!$A$6:$A$26648>=$F$6)*(الحركة!$A$6:$A$26648<=$H$6)),INDEX(الحركة!$J$6:$J$26648,SMALL(IF((الحركة!$E$6:$E$26648=$F$8)*(الحركة!$A$6:$A$26648>=$F$6)*(الحركة!$A$6:$A$26648<=$H$6),ROW(الحركة!$A$6:$A$26648)-ROW(الحركة!$A$6)+1),ROWS(C$16:C17))),"") ->  | I18: =IF(ISERR(G18-H18),"",G18-H18) ->  | L18: =IF(COUNTIF($F$17:F17,F17)=1,1,"") -> 1 | M18: =IF(COUNT($L$18:$L$14759)<ROW()-17,"",LOOKUP(ROW()-17,$L$18:$L$14759,$F$17:$F$14759)) ->  | N18: =IF(M18="","",COUNTIF($F$17:$F$359,M18)) ->  | O18: =IF(M18="","",SUMIF($F$17:$F$359,M18,$G$17:$G$14759)) ->  | P18: =IF(M18="","",SUMIF($F$17:$F$359,M18,$H$17:$H$14759)) ->  | Q18: =IF(B17="","",MONTH(B17)) -> 
B19: =IF(ROWS(B$16:B18)<=SUMPRODUCT((الحركة!$E$6:$E$26648=$F$8)*(الحركة!$A$6:$A$26648>=$F$6)*(الحركة!$A$6:$A$26648<=$H$6)),INDEX(الحركة!$A$6:$A$26648,SMALL(IF((الحركة!$E$6:$E$26648=$F$8)*(الحركة!$A$6:$A$26648>=$F$6)*(الحركة!$A$6:$A$26648<=$H$6),ROW(الحركة!$A$6:$A$26648)-ROW(الحركة!$A$6)+1),ROWS(B$16:B18))),"") ->  | D19: =IF(ROWS(B$16:B18)<=SUMPRODUCT((الحركة!$E$6:$E$26648=$F$8)*(الحركة!$A$6:$A$26648>=$F$6)*(الحركة!$A$6:$A$26648<=$H$6)),INDEX(الحركة!$E$6:$E$26648,SMALL(IF((الحركة!$E$6:$E$26648=$F$8)*(الحركة!$A$6:$A$26648>=$F$6)*(الحركة!$A$6:$A$26648<=$H$6),ROW(الحركة!$A$6:$A$26648)-ROW(الحركة!$A$6)+1),ROWS(B$16:B18))),"") ->  | E19: =IF(ROWS(C$16:C18)<=SUMPRODUCT((الحركة!$E$6:$E$26648=$F$8)*(الحركة!$A$6:$A$26648>=$F$6)*(الحركة!$A$6:$A$26648<=$H$6)),INDEX(الحركة!$F$6:$F$26648,SMALL(IF((الحركة!$E$6:$E$26648=$F$8)*(الحركة!$A$6:$A$26648>=$F$6)*(الحركة!$A$6:$A$26648<=$H$6),ROW(الحركة!$A$6:$A$26648)-ROW(الحركة!$A$6)+1),ROWS(C$16:C18))),"") ->  | F19: =IF(ROWS(C$16:C18)<=SUMPRODUCT((الحركة!$E$6:$E$26648=$F$8)*(الحركة!$A$6:$A$26648>=$F$6)*(الحركة!$A$6:$A$26648<=$H$6)),INDEX(الحركة!$H$6:$H$26648,SMALL(IF((الحركة!$E$6:$E$26648=$F$8)*(الحركة!$A$6:$A$26648>=$F$6)*(الحركة!$A$6:$A$26648<=$H$6),ROW(الحركة!$A$6:$A$26648)-ROW(الحركة!$A$6)+1),ROWS(C$16:C18))),"") ->  | G19: =IF(ROWS(B$16:B18)<=SUMPRODUCT((الحركة!$E$6:$E$26648=$F$8)*(الحركة!$A$6:$A$26648>=$F$6)*(الحركة!$A$6:$A$26648<=$H$6)),INDEX(الحركة!$I$6:$I$26648,SMALL(IF((الحركة!$E$6:$E$26648=$F$8)*(الحركة!$A$6:$A$26648>=$F$6)*(الحركة!$A$6:$A$26648<=$H$6),ROW(الحركة!$A$6:$A$26648)-ROW(الحركة!$A$6)+1),ROWS(B$16:B18))),"") ->  | H19: =IF(ROWS(C$16:C18)<=SUMPRODUCT((الحركة!$E$6:$E$26648=$F$8)*(الحركة!$A$6:$A$26648>=$F$6)*(الحركة!$A$6:$A$26648<=$H$6)),INDEX(الحركة!$J$6:$J$26648,SMALL(IF((الحركة!$E$6:$E$26648=$F$8)*(الحركة!$A$6:$A$26648>=$F$6)*(الحركة!$A$6:$A$26648<=$H$6),ROW(الحركة!$A$6:$A$26648)-ROW(الحركة!$A$6)+1),ROWS(C$16:C18))),"") ->  | L19: =IF(COUNTIF($F$17:F18,F18)=1,COUNT($L$18:L18)+1,"") ->  | M19: =IF(COUNT($L$18:$L$14759)<ROW()-17,"",LOOKUP(ROW()-17,$L$18:$L$14759,$F$17:$F$14759)) ->  | N19: =IF(M19="","",COUNTIF($F$17:$F$359,M19)) ->  | O19: =IF(M19="","",SUMIF($F$17:$F$359,M19,$G$17:$G$14759)) ->  | P19: =IF(M19="","",SUMIF($F$17:$F$359,M19,$H$17:$H$14759)) ->  | Q19: =IF(B18="","",MONTH(B18)) -> 
B20: =IF(ROWS(B$16:B19)<=SUMPRODUCT((الحركة!$E$6:$E$26648=$F$8)*(الحركة!$A$6:$A$26648>=$F$6)*(الحركة!$A$6:$A$26648<=$H$6)),INDEX(الحركة!$A$6:$A$26648,SMALL(IF((الحركة!$E$6:$E$26648=$F$8)*(الحركة!$A$6:$A$26648>=$F$6)*(الحركة!$A$6:$A$26648<=$H$6),ROW(الحركة!$A$6:$A$26648)-ROW(الحركة!$A$6)+1),ROWS(B$16:B19))),"") ->  | D20: =IF(ROWS(B$16:B19)<=SUMPRODUCT((الحركة!$E$6:$E$26648=$F$8)*(الحركة!$A$6:$A$26648>=$F$6)*(الحركة!$A$6:$A$26648<=$H$6)),INDEX(الحركة!$E$6:$E$26648,SMALL(IF((الحركة!$E$6:$E$26648=$F$8)*(الحركة!$A$6:$A$26648>=$F$6)*(الحركة!$A$6:$A$26648<=$H$6),ROW(الحركة!$A$6:$A$26648)-ROW(الحركة!$A$6)+1),ROWS(B$16:B19))),"") ->  | E20: =IF(ROWS(C$16:C19)<=SUMPRODUCT((الحركة!$E$6:$E$26648=$F$8)*(الحركة!$A$6:$A$26648>=$F$6)*(الحركة!$A$6:$A$26648<=$H$6)),INDEX(الحركة!$F$6:$F$26648,SMALL(IF((الحركة!$E$6:$E$26648=$F$8)*(الحركة!$A$6:$A$26648>=$F$6)*(الحركة!$A$6:$A$26648<=$H$6),ROW(الحركة!$A$6:$A$26648)-ROW(الحركة!$A$6)+1),ROWS(C$16:C19))),"") ->  | F20: =IF(ROWS(C$16:C19)<=SUMPRODUCT((الحركة!$E$6:$E$26648=$F$8)*(الحركة!$A$6:$A$26648>=$F$6)*(الحركة!$A$6:$A$26648<=$H$6)),INDEX(الحركة!$H$6:$H$26648,SMALL(IF((الحركة!$E$6:$E$26648=$F$8)*(الحركة!$A$6:$A$26648>=$F$6)*(الحركة!$A$6:$A$26648<=$H$6),ROW(الحركة!$A$6:$A$26648)-ROW(الحركة!$A$6)+1),ROWS(C$16:C19))),"") ->  | G20: =IF(ROWS(B$16:B19)<=SUMPRODUCT((الحركة!$E$6:$E$26648=$F$8)*(الحركة!$A$6:$A$26648>=$F$6)*(الحركة!$A$6:$A$26648<=$H$6)),INDEX(الحركة!$I$6:$I$26648,SMALL(IF((الحركة!$E$6:$E$26648=$F$8)*(الحركة!$A$6:$A$26648>=$F$6)*(الحركة!$A$6:$A$26648<=$H$6),ROW(الحركة!$A$6:$A$26648)-ROW(الحركة!$A$6)+1),ROWS(B$16:B19))),"") ->  | H20: =IF(ROWS(C$16:C19)<=SUMPRODUCT((الحركة!$E$6:$E$26648=$F$8)*(الحركة!$A$6:$A$26648>=$F$6)*(الحركة!$A$6:$A$26648<=$H$6)),INDEX(الحركة!$J$6:$J$26648,SMALL(IF((الحركة!$E$6:$E$26648=$F$8)*(الحركة!$A$6:$A$26648>=$F$6)*(الحركة!$A$6:$A$26648<=$H$6),ROW(الحركة!$A$6:$A$26648)-ROW(الحركة!$A$6)+1),ROWS(C$16:C19))),"") ->  | L20: =IF(COUNTIF($F$17:F19,F19)=1,COUNT($L$18:L19)+1,"") ->  | M20: =IF(COUNT($L$18:$L$14759)<ROW()-17,"",LOOKUP(ROW()-17,$L$18:$L$14759,$F$17:$F$14759)) ->  | N20: =IF(M20="","",COUNTIF($F$17:$F$359,M20)) ->  | O20: =IF(M20="","",SUMIF($F$17:$F$359,M20,$G$17:$G$14759)) ->  | P20: =IF(M20="","",SUMIF($F$17:$F$359,M20,$H$17:$H$14759)) -> 
B21: =IF(ROWS(B$16:B20)<=SUMPRODUCT((الحركة!$E$6:$E$26648=$F$8)*(الحركة!$A$6:$A$26648>=$F$6)*(الحركة!$A$6:$A$26648<=$H$6)),INDEX(الحركة!$A$6:$A$26648,SMALL(IF((الحركة!$E$6:$E$26648=$F$8)*(الحركة!$A$6:$A$26648>=$F$6)*(الحركة!$A$6:$A$26648<=$H$6),ROW(الحركة!$A$6:$A$26648)-ROW(الحركة!$A$6)+1),ROWS(B$16:B20))),"") ->  | D21: =IF(ROWS(B$16:B20)<=SUMPRODUCT((الحركة!$E$6:$E$26648=$F$8)*(الحركة!$A$6:$A$26648>=$F$6)*(الحركة!$A$6:$A$26648<=$H$6)),INDEX(الحركة!$E$6:$E$26648,SMALL(IF((الحركة!$E$6:$E$26648=$F$8)*(الحركة!$A$6:$A$26648>=$F$6)*(الحركة!$A$6:$A$26648<=$H$6),ROW(الحركة!$A$6:$A$26648)-ROW(الحركة!$A$6)+1),ROWS(B$16:B20))),"") ->  | E21: =IF(ROWS(C$16:C20)<=SUMPRODUCT((الحركة!$E$6:$E$26648=$F$8)*(الحركة!$A$6:$A$26648>=$F$6)*(الحركة!$A$6:$A$26648<=$H$6)),INDEX(الحركة!$F$6:$F$26648,SMALL(IF((الحركة!$E$6:$E$26648=$F$8)*(الحركة!$A$6:$A$26648>=$F$6)*(الحركة!$A$6:$A$26648<=$H$6),ROW(الحركة!$A$6:$A$26648)-ROW(الحركة!$A$6)+1),ROWS(C$16:C20))),"") ->  | F21: =IF(ROWS(C$16:C20)<=SUMPRODUCT((الحركة!$E$6:$E$26648=$F$8)*(الحركة!$A$6:$A$26648>=$F$6)*(الحركة!$A$6:$A$26648<=$H$6)),INDEX(الحركة!$H$6:$H$26648,SMALL(IF((الحركة!$E$6:$E$26648=$F$8)*(الحركة!$A$6:$A$26648>=$F$6)*(الحركة!$A$6:$A$26648<=$H$6),ROW(الحركة!$A$6:$A$26648)-ROW(الحركة!$A$6)+1),ROWS(C$16:C20))),"") ->  | G21: =IF(ROWS(B$16:B20)<=SUMPRODUCT((الحركة!$E$6:$E$26648=$F$8)*(الحركة!$A$6:$A$26648>=$F$6)*(الحركة!$A$6:$A$26648<=$H$6)),INDEX(الحركة!$I$6:$I$26648,SMALL(IF((الحركة!$E$6:$E$26648=$F$8)*(الحركة!$A$6:$A$26648>=$F$6)*(الحركة!$A$6:$A$26648<=$H$6),ROW(الحركة!$A$6:$A$26648)-ROW(الحركة!$A$6)+1),ROWS(B$16:B20))),"") ->  | H21: =IF(ROWS(C$16:C20)<=SUMPRODUCT((الحركة!$E$6:$E$26648=$F$8)*(الحركة!$A$6:$A$26648>=$F$6)*(الحركة!$A$6:$A$26648<=$H$6)),INDEX(الحركة!$J$6:$J$26648,SMALL(IF((الحركة!$E$6:$E$26648=$F$8)*(الحركة!$A$6:$A$26648>=$F$6)*(الحركة!$A$6:$A$26648<=$H$6),ROW(الحركة!$A$6:$A$26648)-ROW(الحركة!$A$6)+1),ROWS(C$16:C20))),"") ->  | L21: =IF(COUNTIF($F$17:F20,F20)=1,COUNT($L$18:L20)+1,"") ->  | M21: =IF(COUNT($L$18:$L$14759)<ROW()-17,"",LOOKUP(ROW()-17,$L$18:$L$14759,$F$17:$F$14759)) ->  | N21: =IF(M21="","",COUNTIF($F$17:$F$359,M21)) ->  | O21: =IF(M21="","",SUMIF($F$17:$F$359,M21,$G$17:$G$14759)) ->  | P21: =IF(M21="","",SUMIF($F$17:$F$359,M21,$H$17:$H$14759)) -> 
B22: =IF(ROWS(B$16:B21)<=SUMPRODUCT((الحركة!$E$6:$E$26648=$F$8)*(الحركة!$A$6:$A$26648>=$F$6)*(الحركة!$A$6:$A$26648<=$H$6)),INDEX(الحركة!$A$6:$A$26648,SMALL(IF((الحركة!$E$6:$E$26648=$F$8)*(الحركة!$A$6:$A$26648>=$F$6)*(الحركة!$A$6:$A$26648<=$H$6),ROW(الحركة!$A$6:$A$26648)-ROW(الحركة!$A$6)+1),ROWS(B$16:B21))),"") ->  | D22: =IF(ROWS(B$16:B21)<=SUMPRODUCT((الحركة!$E$6:$E$26648=$F$8)*(الحركة!$A$6:$A$26648>=$F$6)*(الحركة!$A$6:$A$26648<=$H$6)),INDEX(الحركة!$E$6:$E$26648,SMALL(IF((الحركة!$E$6:$E$26648=$F$8)*(الحركة!$A$6:$A$26648>=$F$6)*(الحركة!$A$6:$A$26648<=$H$6),ROW(الحركة!$A$6:$A$26648)-ROW(الحركة!$A$6)+1),ROWS(B$16:B21))),"") ->  | E22: =IF(ROWS(C$16:C21)<=SUMPRODUCT((الحركة!$E$6:$E$26648=$F$8)*(الحركة!$A$6:$A$26648>=$F$6)*(الحركة!$A$6:$A$26648<=$H$6)),INDEX(الحركة!$F$6:$F$26648,SMALL(IF((الحركة!$E$6:$E$26648=$F$8)*(الحركة!$A$6:$A$26648>=$F$6)*(الحركة!$A$6:$A$26648<=$H$6),ROW(الحركة!$A$6:$A$26648)-ROW(الحركة!$A$6)+1),ROWS(C$16:C21))),"") ->  | F22: =IF(ROWS(C$16:C21)<=SUMPRODUCT((الحركة!$E$6:$E$26648=$F$8)*(الحركة!$A$6:$A$26648>=$F$6)*(الحركة!$A$6:$A$26648<=$H$6)),INDEX(الحركة!$H$6:$H$26648,SMALL(IF((الحركة!$E$6:$E$26648=$F$8)*(الحركة!$A$6:$A$26648>=$F$6)*(الحركة!$A$6:$A$26648<=$H$6),ROW(الحركة!$A$6:$A$26648)-ROW(الحركة!$A$6)+1),ROWS(C$16:C21))),"") ->  | G22: =IF(ROWS(B$16:B21)<=SUMPRODUCT((الحركة!$E$6:$E$26648=$F$8)*(الحركة!$A$6:$A$26648>=$F$6)*(الحركة!$A$6:$A$26648<=$H$6)),INDEX(الحركة!$I$6:$I$26648,SMALL(IF((الحركة!$E$6:$E$26648=$F$8)*(الحركة!$A$6:$A$26648>=$F$6)*(الحركة!$A$6:$A$26648<=$H$6),ROW(الحركة!$A$6:$A$26648)-ROW(الحركة!$A$6)+1),ROWS(B$16:B21))),"") ->  | H22: =IF(ROWS(C$16:C21)<=SUMPRODUCT((الحركة!$E$6:$E$26648=$F$8)*(الحركة!$A$6:$A$26648>=$F$6)*(الحركة!$A$6:$A$26648<=$H$6)),INDEX(الحركة!$J$6:$J$26648,SMALL(IF((الحركة!$E$6:$E$26648=$F$8)*(الحركة!$A$6:$A$26648>=$F$6)*(الحركة!$A$6:$A$26648<=$H$6),ROW(الحركة!$A$6:$A$26648)-ROW(الحركة!$A$6)+1),ROWS(C$16:C21))),"") ->  | L22: =IF(COUNTIF($F$17:F21,F21)=1,COUNT($L$18:L21)+1,"") ->  | M22: =IF(COUNT($L$18:$L$14759)<ROW()-17,"",LOOKUP(ROW()-17,$L$18:$L$14759,$F$17:$F$14759)) ->  | N22: =IF(M22="","",COUNTIF($F$17:$F$359,M22)) ->  | O22: =IF(M22="","",SUMIF($F$17:$F$359,M22,$G$17:$G$14759)) ->  | P22: =IF(M22="","",SUMIF($F$17:$F$359,M22,$H$17:$H$14759)) -> 
B23: =IF(ROWS(B$16:B22)<=SUMPRODUCT((الحركة!$E$6:$E$26648=$F$8)*(الحركة!$A$6:$A$26648>=$F$6)*(الحركة!$A$6:$A$26648<=$H$6)),INDEX(الحركة!$A$6:$A$26648,SMALL(IF((الحركة!$E$6:$E$26648=$F$8)*(الحركة!$A$6:$A$26648>=$F$6)*(الحركة!$A$6:$A$26648<=$H$6),ROW(الحركة!$A$6:$A$26648)-ROW(الحركة!$A$6)+1),ROWS(B$16:B22))),"") ->  | D23: =IF(ROWS(B$16:B22)<=SUMPRODUCT((الحركة!$E$6:$E$26648=$F$8)*(الحركة!$A$6:$A$26648>=$F$6)*(الحركة!$A$6:$A$26648<=$H$6)),INDEX(الحركة!$E$6:$E$26648,SMALL(IF((الحركة!$E$6:$E$26648=$F$8)*(الحركة!$A$6:$A$26648>=$F$6)*(الحركة!$A$6:$A$26648<=$H$6),ROW(الحركة!$A$6:$A$26648)-ROW(الحركة!$A$6)+1),ROWS(B$16:B22))),"") ->  | E23: =IF(ROWS(C$16:C22)<=SUMPRODUCT((الحركة!$E$6:$E$26648=$F$8)*(الحركة!$A$6:$A$26648>=$F$6)*(الحركة!$A$6:$A$26648<=$H$6)),INDEX(الحركة!$F$6:$F$26648,SMALL(IF((الحركة!$E$6:$E$26648=$F$8)*(الحركة!$A$6:$A$26648>=$F$6)*(الحركة!$A$6:$A$26648<=$H$6),ROW(الحركة!$A$6:$A$26648)-ROW(الحركة!$A$6)+1),ROWS(C$16:C22))),"") ->  | F23: =IF(ROWS(C$16:C22)<=SUMPRODUCT((الحركة!$E$6:$E$26648=$F$8)*(الحركة!$A$6:$A$26648>=$F$6)*(الحركة!$A$6:$A$26648<=$H$6)),INDEX(الحركة!$H$6:$H$26648,SMALL(IF((الحركة!$E$6:$E$26648=$F$8)*(الحركة!$A$6:$A$26648>=$F$6)*(الحركة!$A$6:$A$26648<=$H$6),ROW(الحركة!$A$6:$A$26648)-ROW(الحركة!$A$6)+1),ROWS(C$16:C22))),"") ->  | G23: =IF(ROWS(B$16:B22)<=SUMPRODUCT((الحركة!$E$6:$E$26648=$F$8)*(الحركة!$A$6:$A$26648>=$F$6)*(الحركة!$A$6:$A$26648<=$H$6)),INDEX(الحركة!$I$6:$I$26648,SMALL(IF((الحركة!$E$6:$E$26648=$F$8)*(الحركة!$A$6:$A$26648>=$F$6)*(الحركة!$A$6:$A$26648<=$H$6),ROW(الحركة!$A$6:$A$26648)-ROW(الحركة!$A$6)+1),ROWS(B$16:B22))),"") ->  | H23: =IF(ROWS(C$16:C22)<=SUMPRODUCT((الحركة!$E$6:$E$26648=$F$8)*(الحركة!$A$6:$A$26648>=$F$6)*(الحركة!$A$6:$A$26648<=$H$6)),INDEX(الحركة!$J$6:$J$26648,SMALL(IF((الحركة!$E$6:$E$26648=$F$8)*(الحركة!$A$6:$A$26648>=$F$6)*(الحركة!$A$6:$A$26648<=$H$6),ROW(الحركة!$A$6:$A$26648)-ROW(الحركة!$A$6)+1),ROWS(C$16:C22))),"") ->  | J23: =SUM(H17:H26) -> 0 | L23: =IF(COUNTIF($F$17:F22,F22)=1,COUNT($L$18:L22)+1,"") ->  | M23: =IF(COUNT($L$18:$L$14759)<ROW()-17,"",LOOKUP(ROW()-17,$L$18:$L$14759,$F$17:$F$14759)) ->  | N23: =IF(M23="","",COUNTIF($F$17:$F$359,M23)) ->  | O23: =IF(M23="","",SUMIF($F$17:$F$359,M23,$G$17:$G$14759)) ->  | P23: =IF(M23="","",SUMIF($F$17:$F$359,M23,$H$17:$H$14759)) -> 
B24: =IF(ROWS(B$16:B23)<=SUMPRODUCT((الحركة!$E$6:$E$26648=$F$8)*(الحركة!$A$6:$A$26648>=$F$6)*(الحركة!$A$6:$A$26648<=$H$6)),INDEX(الحركة!$A$6:$A$26648,SMALL(IF((الحركة!$E$6:$E$26648=$F$8)*(الحركة!$A$6:$A$26648>=$F$6)*(الحركة!$A$6:$A$26648<=$H$6),ROW(الحركة!$A$6:$A$26648)-ROW(الحركة!$A$6)+1),ROWS(B$16:B23))),"") ->  | D24: =IF(ROWS(B$16:B23)<=SUMPRODUCT((الحركة!$E$6:$E$26648=$F$8)*(الحركة!$A$6:$A$26648>=$F$6)*(الحركة!$A$6:$A$26648<=$H$6)),INDEX(الحركة!$E$6:$E$26648,SMALL(IF((الحركة!$E$6:$E$26648=$F$8)*(الحركة!$A$6:$A$26648>=$F$6)*(الحركة!$A$6:$A$26648<=$H$6),ROW(الحركة!$A$6:$A$26648)-ROW(الحركة!$A$6)+1),ROWS(B$16:B23))),"") ->  | E24: =IF(ROWS(C$16:C23)<=SUMPRODUCT((الحركة!$E$6:$E$26648=$F$8)*(الحركة!$A$6:$A$26648>=$F$6)*(الحركة!$A$6:$A$26648<=$H$6)),INDEX(الحركة!$F$6:$F$26648,SMALL(IF((الحركة!$E$6:$E$26648=$F$8)*(الحركة!$A$6:$A$26648>=$F$6)*(الحركة!$A$6:$A$26648<=$H$6),ROW(الحركة!$A$6:$A$26648)-ROW(الحركة!$A$6)+1),ROWS(C$16:C23))),"") ->  | F24: =IF(ROWS(C$16:C23)<=SUMPRODUCT((الحركة!$E$6:$E$26648=$F$8)*(الحركة!$A$6:$A$26648>=$F$6)*(الحركة!$A$6:$A$26648<=$H$6)),INDEX(الحركة!$H$6:$H$26648,SMALL(IF((الحركة!$E$6:$E$26648=$F$8)*(الحركة!$A$6:$A$26648>=$F$6)*(الحركة!$A$6:$A$26648<=$H$6),ROW(الحركة!$A$6:$A$26648)-ROW(الحركة!$A$6)+1),ROWS(C$16:C23))),"") ->  | G24: =IF(ROWS(B$16:B23)<=SUMPRODUCT((الحركة!$E$6:$E$26648=$F$8)*(الحركة!$A$6:$A$26648>=$F$6)*(الحركة!$A$6:$A$26648<=$H$6)),INDEX(الحركة!$I$6:$I$26648,SMALL(IF((الحركة!$E$6:$E$26648=$F$8)*(الحركة!$A$6:$A$26648>=$F$6)*(الحركة!$A$6:$A$26648<=$H$6),ROW(الحركة!$A$6:$A$26648)-ROW(الحركة!$A$6)+1),ROWS(B$16:B23))),"") ->  | H24: =IF(ROWS(C$16:C23)<=SUMPRODUCT((الحركة!$E$6:$E$26648=$F$8)*(الحركة!$A$6:$A$26648>=$F$6)*(الحركة!$A$6:$A$26648<=$H$6)),INDEX(الحركة!$J$6:$J$26648,SMALL(IF((الحركة!$E$6:$E$26648=$F$8)*(الحركة!$A$6:$A$26648>=$F$6)*(الحركة!$A$6:$A$26648<=$H$6),ROW(الحركة!$A$6:$A$26648)-ROW(الحركة!$A$6)+1),ROWS(C$16:C23))),"") ->  | L24: =IF(COUNTIF($F$17:F23,F23)=1,COUNT($L$18:L23)+1,"") ->  | M24: =IF(COUNT($L$18:$L$14759)<ROW()-17,"",LOOKUP(ROW()-17,$L$18:$L$14759,$F$17:$F$14759)) ->  | N24: =IF(M24="","",COUNTIF($F$17:$F$359,M24)) ->  | O24: =IF(M24="","",SUMIF($F$17:$F$359,M24,$G$17:$G$14759)) ->  | P24: =IF(M24="","",SUMIF($F$17:$F$359,M24,$H$17:$H$14759)) -> 
B25: =IF(ROWS(B$16:B24)<=SUMPRODUCT((الحركة!$E$6:$E$26648=$F$8)*(الحركة!$A$6:$A$26648>=$F$6)*(الحركة!$A$6:$A$26648<=$H$6)),INDEX(الحركة!$A$6:$A$26648,SMALL(IF((الحركة!$E$6:$E$26648=$F$8)*(الحركة!$A$6:$A$26648>=$F$6)*(الحركة!$A$6:$A$26648<=$H$6),ROW(الحركة!$A$6:$A$26648)-ROW(الحركة!$A$6)+1),ROWS(B$16:B24))),"") ->  | D25: =IF(ROWS(B$16:B24)<=SUMPRODUCT((الحركة!$E$6:$E$26648=$F$8)*(الحركة!$A$6:$A$26648>=$F$6)*(الحركة!$A$6:$A$26648<=$H$6)),INDEX(الحركة!$E$6:$E$26648,SMALL(IF((الحركة!$E$6:$E$26648=$F$8)*(الحركة!$A$6:$A$26648>=$F$6)*(الحركة!$A$6:$A$26648<=$H$6),ROW(الحركة!$A$6:$A$26648)-ROW(الحركة!$A$6)+1),ROWS(B$16:B24))),"") ->  | E25: =IF(ROWS(C$16:C24)<=SUMPRODUCT((الحركة!$E$6:$E$26648=$F$8)*(الحركة!$A$6:$A$26648>=$F$6)*(الحركة!$A$6:$A$26648<=$H$6)),INDEX(الحركة!$F$6:$F$26648,SMALL(IF((الحركة!$E$6:$E$26648=$F$8)*(الحركة!$A$6:$A$26648>=$F$6)*(الحركة!$A$6:$A$26648<=$H$6),ROW(الحركة!$A$6:$A$26648)-ROW(الحركة!$A$6)+1),ROWS(C$16:C24))),"") ->  | F25: =IF(ROWS(C$16:C24)<=SUMPRODUCT((الحركة!$E$6:$E$26648=$F$8)*(الحركة!$A$6:$A$26648>=$F$6)*(الحركة!$A$6:$A$26648<=$H$6)),INDEX(الحركة!$H$6:$H$26648,SMALL(IF((الحركة!$E$6:$E$26648=$F$8)*(الحركة!$A$6:$A$26648>=$F$6)*(الحركة!$A$6:$A$26648<=$H$6),ROW(الحركة!$A$6:$A$26648)-ROW(الحركة!$A$6)+1),ROWS(C$16:C24))),"") ->  | G25: =IF(ROWS(B$16:B24)<=SUMPRODUCT((الحركة!$E$6:$E$26648=$F$8)*(الحركة!$A$6:$A$26648>=$F$6)*(الحركة!$A$6:$A$26648<=$H$6)),INDEX(الحركة!$I$6:$I$26648,SMALL(IF((الحركة!$E$6:$E$26648=$F$8)*(الحركة!$A$6:$A$26648>=$F$6)*(الحركة!$A$6:$A$26648<=$H$6),ROW(الحركة!$A$6:$A$26648)-ROW(الحركة!$A$6)+1),ROWS(B$16:B24))),"") ->  | H25: =IF(ROWS(C$16:C24)<=SUMPRODUCT((الحركة!$E$6:$E$26648=$F$8)*(الحركة!$A$6:$A$26648>=$F$6)*(الحركة!$A$6:$A$26648<=$H$6)),INDEX(الحركة!$J$6:$J$26648,SMALL(IF((الحركة!$E$6:$E$26648=$F$8)*(الحركة!$A$6:$A$26648>=$F$6)*(الحركة!$A$6:$A$26648<=$H$6),ROW(الحركة!$A$6:$A$26648)-ROW(الحركة!$A$6)+1),ROWS(C$16:C24))),"") ->  | J25: =SUM(H27:H33) -> 0 | L25: =IF(COUNTIF($F$17:F24,F24)=1,COUNT($L$18:L24)+1,"") ->  | M25: =IF(COUNT($L$18:$L$14759)<ROW()-17,"",LOOKUP(ROW()-17,$L$18:$L$14759,$F$17:$F$14759)) ->  | N25: =IF(M25="","",COUNTIF($F$17:$F$359,M25)) ->  | O25: =IF(M25="","",SUMIF($F$17:$F$359,M25,$G$17:$G$14759)) ->  | P25: =IF(M25="","",SUMIF($F$17:$F$359,M25,$H$17:$H$14759)) -> 
B26: =IF(ROWS(B$16:B25)<=SUMPRODUCT((الحركة!$E$6:$E$26648=$F$8)*(الحركة!$A$6:$A$26648>=$F$6)*(الحركة!$A$6:$A$26648<=$H$6)),INDEX(الحركة!$A$6:$A$26648,SMALL(IF((الحركة!$E$6:$E$26648=$F$8)*(الحركة!$A$6:$A$26648>=$F$6)*(الحركة!$A$6:$A$26648<=$H$6),ROW(الحركة!$A$6:$A$26648)-ROW(الحركة!$A$6)+1),ROWS(B$16:B25))),"") ->  | D26: =IF(ROWS(B$16:B25)<=SUMPRODUCT((الحركة!$E$6:$E$26648=$F$8)*(الحركة!$A$6:$A$26648>=$F$6)*(الحركة!$A$6:$A$26648<=$H$6)),INDEX(الحركة!$E$6:$E$26648,SMALL(IF((الحركة!$E$6:$E$26648=$F$8)*(الحركة!$A$6:$A$26648>=$F$6)*(الحركة!$A$6:$A$26648<=$H$6),ROW(الحركة!$A$6:$A$26648)-ROW(الحركة!$A$6)+1),ROWS(B$16:B25))),"") ->  | E26: =IF(ROWS(C$16:C25)<=SUMPRODUCT((الحركة!$E$6:$E$26648=$F$8)*(الحركة!$A$6:$A$26648>=$F$6)*(الحركة!$A$6:$A$26648<=$H$6)),INDEX(الحركة!$F$6:$F$26648,SMALL(IF((الحركة!$E$6:$E$26648=$F$8)*(الحركة!$A$6:$A$26648>=$F$6)*(الحركة!$A$6:$A$26648<=$H$6),ROW(الحركة!$A$6:$A$26648)-ROW(الحركة!$A$6)+1),ROWS(C$16:C25))),"") ->  | F26: =IF(ROWS(C$16:C25)<=SUMPRODUCT((الحركة!$E$6:$E$26648=$F$8)*(الحركة!$A$6:$A$26648>=$F$6)*(الحركة!$A$6:$A$26648<=$H$6)),INDEX(الحركة!$H$6:$H$26648,SMALL(IF((الحركة!$E$6:$E$26648=$F$8)*(الحركة!$A$6:$A$26648>=$F$6)*(الحركة!$A$6:$A$26648<=$H$6),ROW(الحركة!$A$6:$A$26648)-ROW(الحركة!$A$6)+1),ROWS(C$16:C25))),"") ->  | G26: =IF(ROWS(B$16:B25)<=SUMPRODUCT((الحركة!$E$6:$E$26648=$F$8)*(الحركة!$A$6:$A$26648>=$F$6)*(الحركة!$A$6:$A$26648<=$H$6)),INDEX(الحركة!$I$6:$I$26648,SMALL(IF((الحركة!$E$6:$E$26648=$F$8)*(الحركة!$A$6:$A$26648>=$F$6)*(الحركة!$A$6:$A$26648<=$H$6),ROW(الحركة!$A$6:$A$26648)-ROW(الحركة!$A$6)+1),ROWS(B$16:B25))),"") ->  | H26: =IF(ROWS(C$16:C25)<=SUMPRODUCT((الحركة!$E$6:$E$26648=$F$8)*(الحركة!$A$6:$A$26648>=$F$6)*(الحركة!$A$6:$A$26648<=$H$6)),INDEX(الحركة!$J$6:$J$26648,SMALL(IF((الحركة!$E$6:$E$26648=$F$8)*(الحركة!$A$6:$A$26648>=$F$6)*(الحركة!$A$6:$A$26648<=$H$6),ROW(الحركة!$A$6:$A$26648)-ROW(الحركة!$A$6)+1),ROWS(C$16:C25))),"") ->  | L26: =IF(COUNTIF($F$17:F25,F25)=1,COUNT($L$18:L25)+1,"") ->  | M26: =IF(COUNT($L$18:$L$14759)<ROW()-17,"",LOOKUP(ROW()-17,$L$18:$L$14759,$F$17:$F$14759)) ->  | N26: =IF(M26="","",COUNTIF($F$17:$F$359,M26)) ->  | O26: =IF(M26="","",SUMIF($F$17:$F$359,M26,$G$17:$G$14759)) ->  | P26: =IF(M26="","",SUMIF($F$17:$F$359,M26,$H$17:$H$14759)) -> 
B27: =IF(ROWS(B$16:B26)<=SUMPRODUCT((الحركة!$E$6:$E$26648=$F$8)*(الحركة!$A$6:$A$26648>=$F$6)*(الحركة!$A$6:$A$26648<=$H$6)),INDEX(الحركة!$A$6:$A$26648,SMALL(IF((الحركة!$E$6:$E$26648=$F$8)*(الحركة!$A$6:$A$26648>=$F$6)*(الحركة!$A$6:$A$26648<=$H$6),ROW(الحركة!$A$6:$A$26648)-ROW(الحركة!$A$6)+1),ROWS(B$16:B26))),"") ->  | D27: =IF(ROWS(B$16:B26)<=SUMPRODUCT((الحركة!$E$6:$E$26648=$F$8)*(الحركة!$A$6:$A$26648>=$F$6)*(الحركة!$A$6:$A$26648<=$H$6)),INDEX(الحركة!$E$6:$E$26648,SMALL(IF((الحركة!$E$6:$E$26648=$F$8)*(الحركة!$A$6:$A$26648>=$F$6)*(الحركة!$A$6:$A$26648<=$H$6),ROW(الحركة!$A$6:$A$26648)-ROW(الحركة!$A$6)+1),ROWS(B$16:B26))),"") ->  | E27: =IF(ROWS(C$16:C26)<=SUMPRODUCT((الحركة!$E$6:$E$26648=$F$8)*(الحركة!$A$6:$A$26648>=$F$6)*(الحركة!$A$6:$A$26648<=$H$6)),INDEX(الحركة!$F$6:$F$26648,SMALL(IF((الحركة!$E$6:$E$26648=$F$8)*(الحركة!$A$6:$A$26648>=$F$6)*(الحركة!$A$6:$A$26648<=$H$6),ROW(الحركة!$A$6:$A$26648)-ROW(الحركة!$A$6)+1),ROWS(C$16:C26))),"") ->  | F27: =IF(ROWS(C$16:C26)<=SUMPRODUCT((الحركة!$E$6:$E$26648=$F$8)*(الحركة!$A$6:$A$26648>=$F$6)*(الحركة!$A$6:$A$26648<=$H$6)),INDEX(الحركة!$H$6:$H$26648,SMALL(IF((الحركة!$E$6:$E$26648=$F$8)*(الحركة!$A$6:$A$26648>=$F$6)*(الحركة!$A$6:$A$26648<=$H$6),ROW(الحركة!$A$6:$A$26648)-ROW(الحركة!$A$6)+1),ROWS(C$16:C26))),"") ->  | G27: =IF(ROWS(B$16:B26)<=SUMPRODUCT((الحركة!$E$6:$E$26648=$F$8)*(الحركة!$A$6:$A$26648>=$F$6)*(الحركة!$A$6:$A$26648<=$H$6)),INDEX(الحركة!$I$6:$I$26648,SMALL(IF((الحركة!$E$6:$E$26648=$F$8)*(الحركة!$A$6:$A$26648>=$F$6)*(الحركة!$A$6:$A$26648<=$H$6),ROW(الحركة!$A$6:$A$26648)-ROW(الحركة!$A$6)+1),ROWS(B$16:B26))),"") ->  | H27: =IF(ROWS(C$16:C26)<=SUMPRODUCT((الحركة!$E$6:$E$26648=$F$8)*(الحركة!$A$6:$A$26648>=$F$6)*(الحركة!$A$6:$A$26648<=$H$6)),INDEX(الحركة!$J$6:$J$26648,SMALL(IF((الحركة!$E$6:$E$26648=$F$8)*(الحركة!$A$6:$A$26648>=$F$6)*(الحركة!$A$6:$A$26648<=$H$6),ROW(الحركة!$A$6:$A$26648)-ROW(الحركة!$A$6)+1),ROWS(C$16:C26))),"") ->  | L27: =IF(COUNTIF($F$17:F26,F26)=1,COUNT($L$18:L26)+1,"") ->  | M27: =IF(COUNT($L$18:$L$14759)<ROW()-17,"",LOOKUP(ROW()-17,$L$18:$L$14759,$F$17:$F$14759)) ->  | N27: =IF(M27="","",COUNTIF($F$17:$F$359,M27)) ->  | O27: =IF(M27="","",SUMIF($F$17:$F$359,M27,$G$17:$G$14759)) ->  | P27: =IF(M27="","",SUMIF($F$17:$F$359,M27,$H$17:$H$14759)) -> 
B28: =IF(ROWS(B$16:B27)<=SUMPRODUCT((الحركة!$E$6:$E$26648=$F$8)*(الحركة!$A$6:$A$26648>=$F$6)*(الحركة!$A$6:$A$26648<=$H$6)),INDEX(الحركة!$A$6:$A$26648,SMALL(IF((الحركة!$E$6:$E$26648=$F$8)*(الحركة!$A$6:$A$26648>=$F$6)*(الحركة!$A$6:$A$26648<=$H$6),ROW(الحركة!$A$6:$A$26648)-ROW(الحركة!$A$6)+1),ROWS(B$16:B27))),"") ->  | D28: =IF(ROWS(B$16:B27)<=SUMPRODUCT((الحركة!$E$6:$E$26648=$F$8)*(الحركة!$A$6:$A$26648>=$F$6)*(الحركة!$A$6:$A$26648<=$H$6)),INDEX(الحركة!$E$6:$E$26648,SMALL(IF((الحركة!$E$6:$E$26648=$F$8)*(الحركة!$A$6:$A$26648>=$F$6)*(الحركة!$A$6:$A$26648<=$H$6),ROW(الحركة!$A$6:$A$26648)-ROW(الحركة!$A$6)+1),ROWS(B$16:B27))),"") ->  | E28: =IF(ROWS(C$16:C27)<=SUMPRODUCT((الحركة!$E$6:$E$26648=$F$8)*(الحركة!$A$6:$A$26648>=$F$6)*(الحركة!$A$6:$A$26648<=$H$6)),INDEX(الحركة!$F$6:$F$26648,SMALL(IF((الحركة!$E$6:$E$26648=$F$8)*(الحركة!$A$6:$A$26648>=$F$6)*(الحركة!$A$6:$A$26648<=$H$6),ROW(الحركة!$A$6:$A$26648)-ROW(الحركة!$A$6)+1),ROWS(C$16:C27))),"") ->  | F28: =IF(ROWS(C$16:C27)<=SUMPRODUCT((الحركة!$E$6:$E$26648=$F$8)*(الحركة!$A$6:$A$26648>=$F$6)*(الحركة!$A$6:$A$26648<=$H$6)),INDEX(الحركة!$H$6:$H$26648,SMALL(IF((الحركة!$E$6:$E$26648=$F$8)*(الحركة!$A$6:$A$26648>=$F$6)*(الحركة!$A$6:$A$26648<=$H$6),ROW(الحركة!$A$6:$A$26648)-ROW(الحركة!$A$6)+1),ROWS(C$16:C27))),"") ->  | G28: =IF(ROWS(B$16:B27)<=SUMPRODUCT((الحركة!$E$6:$E$26648=$F$8)*(الحركة!$A$6:$A$26648>=$F$6)*(الحركة!$A$6:$A$26648<=$H$6)),INDEX(الحركة!$I$6:$I$26648,SMALL(IF((الحركة!$E$6:$E$26648=$F$8)*(الحركة!$A$6:$A$26648>=$F$6)*(الحركة!$A$6:$A$26648<=$H$6),ROW(الحركة!$A$6:$A$26648)-ROW(الحركة!$A$6)+1),ROWS(B$16:B27))),"") ->  | H28: =IF(ROWS(C$16:C27)<=SUMPRODUCT((الحركة!$E$6:$E$26648=$F$8)*(الحركة!$A$6:$A$26648>=$F$6)*(الحركة!$A$6:$A$26648<=$H$6)),INDEX(الحركة!$J$6:$J$26648,SMALL(IF((الحركة!$E$6:$E$26648=$F$8)*(الحركة!$A$6:$A$26648>=$F$6)*(الحركة!$A$6:$A$26648<=$H$6),ROW(الحركة!$A$6:$A$26648)-ROW(الحركة!$A$6)+1),ROWS(C$16:C27))),"") ->  | L28: =IF(COUNTIF($F$17:F27,F27)=1,COUNT($L$18:L27)+1,"") ->  | M28: =IF(COUNT($L$18:$L$14759)<ROW()-17,"",LOOKUP(ROW()-17,$L$18:$L$14759,$F$17:$F$14759)) ->  | N28: =IF(M28="","",COUNTIF($F$17:$F$359,M28)) ->  | O28: =IF(M28="","",SUMIF($F$17:$F$359,M28,$G$17:$G$14759)) ->  | P28: =IF(M28="","",SUMIF($F$17:$F$359,M28,$H$17:$H$14759)) -> 
B29: =IF(ROWS(B$16:B28)<=SUMPRODUCT((الحركة!$E$6:$E$26648=$F$8)*(الحركة!$A$6:$A$26648>=$F$6)*(الحركة!$A$6:$A$26648<=$H$6)),INDEX(الحركة!$A$6:$A$26648,SMALL(IF((الحركة!$E$6:$E$26648=$F$8)*(الحركة!$A$6:$A$26648>=$F$6)*(الحركة!$A$6:$A$26648<=$H$6),ROW(الحركة!$A$6:$A$26648)-ROW(الحركة!$A$6)+1),ROWS(B$16:B28))),"") ->  | D29: =IF(ROWS(B$16:B28)<=SUMPRODUCT((الحركة!$E$6:$E$26648=$F$8)*(الحركة!$A$6:$A$26648>=$F$6)*(الحركة!$A$6:$A$26648<=$H$6)),INDEX(الحركة!$E$6:$E$26648,SMALL(IF((الحركة!$E$6:$E$26648=$F$8)*(الحركة!$A$6:$A$26648>=$F$6)*(الحركة!$A$6:$A$26648<=$H$6),ROW(الحركة!$A$6:$A$26648)-ROW(الحركة!$A$6)+1),ROWS(B$16:B28))),"") ->  | E29: =IF(ROWS(C$16:C28)<=SUMPRODUCT((الحركة!$E$6:$E$26648=$F$8)*(الحركة!$A$6:$A$26648>=$F$6)*(الحركة!$A$6:$A$26648<=$H$6)),INDEX(الحركة!$F$6:$F$26648,SMALL(IF((الحركة!$E$6:$E$26648=$F$8)*(الحركة!$A$6:$A$26648>=$F$6)*(الحركة!$A$6:$A$26648<=$H$6),ROW(الحركة!$A$6:$A$26648)-ROW(الحركة!$A$6)+1),ROWS(C$16:C28))),"") ->  | F29: =IF(ROWS(C$16:C28)<=SUMPRODUCT((الحركة!$E$6:$E$26648=$F$8)*(الحركة!$A$6:$A$26648>=$F$6)*(الحركة!$A$6:$A$26648<=$H$6)),INDEX(الحركة!$H$6:$H$26648,SMALL(IF((الحركة!$E$6:$E$26648=$F$8)*(الحركة!$A$6:$A$26648>=$F$6)*(الحركة!$A$6:$A$26648<=$H$6),ROW(الحركة!$A$6:$A$26648)-ROW(الحركة!$A$6)+1),ROWS(C$16:C28))),"") ->  | G29: =IF(ROWS(B$16:B28)<=SUMPRODUCT((الحركة!$E$6:$E$26648=$F$8)*(الحركة!$A$6:$A$26648>=$F$6)*(الحركة!$A$6:$A$26648<=$H$6)),INDEX(الحركة!$I$6:$I$26648,SMALL(IF((الحركة!$E$6:$E$26648=$F$8)*(الحركة!$A$6:$A$26648>=$F$6)*(الحركة!$A$6:$A$26648<=$H$6),ROW(الحركة!$A$6:$A$26648)-ROW(الحركة!$A$6)+1),ROWS(B$16:B28))),"") ->  | H29: =IF(ROWS(C$16:C28)<=SUMPRODUCT((الحركة!$E$6:$E$26648=$F$8)*(الحركة!$A$6:$A$26648>=$F$6)*(الحركة!$A$6:$A$26648<=$H$6)),INDEX(الحركة!$J$6:$J$26648,SMALL(IF((الحركة!$E$6:$E$26648=$F$8)*(الحركة!$A$6:$A$26648>=$F$6)*(الحركة!$A$6:$A$26648<=$H$6),ROW(الحركة!$A$6:$A$26648)-ROW(الحركة!$A$6)+1),ROWS(C$16:C28))),"") ->  | L29: =IF(COUNTIF($F$17:F28,F28)=1,COUNT($L$18:L28)+1,"") ->  | M29: =IF(COUNT($L$18:$L$14759)<ROW()-17,"",LOOKUP(ROW()-17,$L$18:$L$14759,$F$17:$F$14759)) ->  | N29: =IF(M29="","",COUNTIF($F$17:$F$359,M29)) ->  | O29: =IF(M29="","",SUMIF($F$17:$F$359,M29,$G$17:$G$14759)) ->  | P29: =IF(M29="","",SUMIF($F$17:$F$359,M29,$H$17:$H$14759)) -> 
B30: =IF(ROWS(B$16:B29)<=SUMPRODUCT((الحركة!$E$6:$E$26648=$F$8)*(الحركة!$A$6:$A$26648>=$F$6)*(الحركة!$A$6:$A$26648<=$H$6)),INDEX(الحركة!$A$6:$A$26648,SMALL(IF((الحركة!$E$6:$E$26648=$F$8)*(الحركة!$A$6:$A$26648>=$F$6)*(الحركة!$A$6:$A$26648<=$H$6),ROW(الحركة!$A$6:$A$26648)-ROW(الحركة!$A$6)+1),ROWS(B$16:B29))),"") ->  | D30: =IF(ROWS(B$16:B29)<=SUMPRODUCT((الحركة!$E$6:$E$26648=$F$8)*(الحركة!$A$6:$A$26648>=$F$6)*(الحركة!$A$6:$A$26648<=$H$6)),INDEX(الحركة!$E$6:$E$26648,SMALL(IF((الحركة!$E$6:$E$26648=$F$8)*(الحركة!$A$6:$A$26648>=$F$6)*(الحركة!$A$6:$A$26648<=$H$6),ROW(الحركة!$A$6:$A$26648)-ROW(الحركة!$A$6)+1),ROWS(B$16:B29))),"") ->  | E30: =IF(ROWS(C$16:C29)<=SUMPRODUCT((الحركة!$E$6:$E$26648=$F$8)*(الحركة!$A$6:$A$26648>=$F$6)*(الحركة!$A$6:$A$26648<=$H$6)),INDEX(الحركة!$F$6:$F$26648,SMALL(IF((الحركة!$E$6:$E$26648=$F$8)*(الحركة!$A$6:$A$26648>=$F$6)*(الحركة!$A$6:$A$26648<=$H$6),ROW(الحركة!$A$6:$A$26648)-ROW(الحركة!$A$6)+1),ROWS(C$16:C29))),"") ->  | F30: =IF(ROWS(C$16:C29)<=SUMPRODUCT((الحركة!$E$6:$E$26648=$F$8)*(الحركة!$A$6:$A$26648>=$F$6)*(الحركة!$A$6:$A$26648<=$H$6)),INDEX(الحركة!$H$6:$H$26648,SMALL(IF((الحركة!$E$6:$E$26648=$F$8)*(الحركة!$A$6:$A$26648>=$F$6)*(الحركة!$A$6:$A$26648<=$H$6),ROW(الحركة!$A$6:$A$26648)-ROW(الحركة!$A$6)+1),ROWS(C$16:C29))),"") ->  | G30: =IF(ROWS(B$16:B29)<=SUMPRODUCT((الحركة!$E$6:$E$26648=$F$8)*(الحركة!$A$6:$A$26648>=$F$6)*(الحركة!$A$6:$A$26648<=$H$6)),INDEX(الحركة!$I$6:$I$26648,SMALL(IF((الحركة!$E$6:$E$26648=$F$8)*(الحركة!$A$6:$A$26648>=$F$6)*(الحركة!$A$6:$A$26648<=$H$6),ROW(الحركة!$A$6:$A$26648)-ROW(الحركة!$A$6)+1),ROWS(B$16:B29))),"") ->  | H30: =IF(ROWS(C$16:C29)<=SUMPRODUCT((الحركة!$E$6:$E$26648=$F$8)*(الحركة!$A$6:$A$26648>=$F$6)*(الحركة!$A$6:$A$26648<=$H$6)),INDEX(الحركة!$J$6:$J$26648,SMALL(IF((الحركة!$E$6:$E$26648=$F$8)*(الحركة!$A$6:$A$26648>=$F$6)*(الحركة!$A$6:$A$26648<=$H$6),ROW(الحركة!$A$6:$A$26648)-ROW(الحركة!$A$6)+1),ROWS(C$16:C29))),"") ->  | L30: =IF(COUNTIF($F$17:F29,F29)=1,COUNT($L$18:L29)+1,"") ->  | M30: =IF(COUNT($L$18:$L$14759)<ROW()-17,"",LOOKUP(ROW()-17,$L$18:$L$14759,$F$17:$F$14759)) ->  | N30: =IF(M30="","",COUNTIF($F$17:$F$359,M30)) ->  | O30: =IF(M30="","",SUMIF($F$17:$F$359,M30,$G$17:$G$14759)) ->  | P30: =IF(M30="","",SUMIF($F$17:$F$359,M30,$H$17:$H$14759)) -> 
B31: =IF(ROWS(B$16:B30)<=SUMPRODUCT((الحركة!$E$6:$E$26648=$F$8)*(الحركة!$A$6:$A$26648>=$F$6)*(الحركة!$A$6:$A$26648<=$H$6)),INDEX(الحركة!$A$6:$A$26648,SMALL(IF((الحركة!$E$6:$E$26648=$F$8)*(الحركة!$A$6:$A$26648>=$F$6)*(الحركة!$A$6:$A$26648<=$H$6),ROW(الحركة!$A$6:$A$26648)-ROW(الحركة!$A$6)+1),ROWS(B$16:B30))),"") ->  | D31: =IF(ROWS(B$16:B30)<=SUMPRODUCT((الحركة!$E$6:$E$26648=$F$8)*(الحركة!$A$6:$A$26648>=$F$6)*(الحركة!$A$6:$A$26648<=$H$6)),INDEX(الحركة!$E$6:$E$26648,SMALL(IF((الحركة!$E$6:$E$26648=$F$8)*(الحركة!$A$6:$A$26648>=$F$6)*(الحركة!$A$6:$A$26648<=$H$6),ROW(الحركة!$A$6:$A$26648)-ROW(الحركة!$A$6)+1),ROWS(B$16:B30))),"") ->  | E31: =IF(ROWS(C$16:C30)<=SUMPRODUCT((الحركة!$E$6:$E$26648=$F$8)*(الحركة!$A$6:$A$26648>=$F$6)*(الحركة!$A$6:$A$26648<=$H$6)),INDEX(الحركة!$F$6:$F$26648,SMALL(IF((الحركة!$E$6:$E$26648=$F$8)*(الحركة!$A$6:$A$26648>=$F$6)*(الحركة!$A$6:$A$26648<=$H$6),ROW(الحركة!$A$6:$A$26648)-ROW(الحركة!$A$6)+1),ROWS(C$16:C30))),"") ->  | F31: =IF(ROWS(C$16:C30)<=SUMPRODUCT((الحركة!$E$6:$E$26648=$F$8)*(الحركة!$A$6:$A$26648>=$F$6)*(الحركة!$A$6:$A$26648<=$H$6)),INDEX(الحركة!$H$6:$H$26648,SMALL(IF((الحركة!$E$6:$E$26648=$F$8)*(الحركة!$A$6:$A$26648>=$F$6)*(الحركة!$A$6:$A$26648<=$H$6),ROW(الحركة!$A$6:$A$26648)-ROW(الحركة!$A$6)+1),ROWS(C$16:C30))),"") ->  | G31: =IF(ROWS(B$16:B30)<=SUMPRODUCT((الحركة!$E$6:$E$26648=$F$8)*(الحركة!$A$6:$A$26648>=$F$6)*(الحركة!$A$6:$A$26648<=$H$6)),INDEX(الحركة!$I$6:$I$26648,SMALL(IF((الحركة!$E$6:$E$26648=$F$8)*(الحركة!$A$6:$A$26648>=$F$6)*(الحركة!$A$6:$A$26648<=$H$6),ROW(الحركة!$A$6:$A$26648)-ROW(الحركة!$A$6)+1),ROWS(B$16:B30))),"") ->  | H31: =IF(ROWS(C$16:C30)<=SUMPRODUCT((الحركة!$E$6:$E$26648=$F$8)*(الحركة!$A$6:$A$26648>=$F$6)*(الحركة!$A$6:$A$26648<=$H$6)),INDEX(الحركة!$J$6:$J$26648,SMALL(IF((الحركة!$E$6:$E$26648=$F$8)*(الحركة!$A$6:$A$26648>=$F$6)*(الحركة!$A$6:$A$26648<=$H$6),ROW(الحركة!$A$6:$A$26648)-ROW(الحركة!$A$6)+1),ROWS(C$16:C30))),"") ->  | L31: =IF(COUNTIF($F$17:F30,F30)=1,COUNT($L$18:L30)+1,"") ->  | M31: =IF(COUNT($L$18:$L$14759)<ROW()-17,"",LOOKUP(ROW()-17,$L$18:$L$14759,$F$17:$F$14759)) ->  | N31: =IF(M31="","",COUNTIF($F$17:$F$359,M31)) ->  | O31: =IF(M31="","",SUMIF($F$17:$F$359,M31,$G$17:$G$14759)) ->  | P31: =IF(M31="","",SUMIF($F$17:$F$359,M31,$H$17:$H$14759)) -> 
B32: =IF(ROWS(B$16:B31)<=SUMPRODUCT((الحركة!$E$6:$E$26648=$F$8)*(الحركة!$A$6:$A$26648>=$F$6)*(الحركة!$A$6:$A$26648<=$H$6)),INDEX(الحركة!$A$6:$A$26648,SMALL(IF((الحركة!$E$6:$E$26648=$F$8)*(الحركة!$A$6:$A$26648>=$F$6)*(الحركة!$A$6:$A$26648<=$H$6),ROW(الحركة!$A$6:$A$26648)-ROW(الحركة!$A$6)+1),ROWS(B$16:B31))),"") ->  | D32: =IF(ROWS(B$16:B31)<=SUMPRODUCT((الحركة!$E$6:$E$26648=$F$8)*(الحركة!$A$6:$A$26648>=$F$6)*(الحركة!$A$6:$A$26648<=$H$6)),INDEX(الحركة!$E$6:$E$26648,SMALL(IF((الحركة!$E$6:$E$26648=$F$8)*(الحركة!$A$6:$A$26648>=$F$6)*(الحركة!$A$6:$A$26648<=$H$6),ROW(الحركة!$A$6:$A$26648)-ROW(الحركة!$A$6)+1),ROWS(B$16:B31))),"") ->  | E32: =IF(ROWS(C$16:C31)<=SUMPRODUCT((الحركة!$E$6:$E$26648=$F$8)*(الحركة!$A$6:$A$26648>=$F$6)*(الحركة!$A$6:$A$26648<=$H$6)),INDEX(الحركة!$F$6:$F$26648,SMALL(IF((الحركة!$E$6:$E$26648=$F$8)*(الحركة!$A$6:$A$26648>=$F$6)*(الحركة!$A$6:$A$26648<=$H$6),ROW(الحركة!$A$6:$A$26648)-ROW(الحركة!$A$6)+1),ROWS(C$16:C31))),"") ->  | F32: =IF(ROWS(C$16:C31)<=SUMPRODUCT((الحركة!$E$6:$E$26648=$F$8)*(الحركة!$A$6:$A$26648>=$F$6)*(الحركة!$A$6:$A$26648<=$H$6)),INDEX(الحركة!$H$6:$H$26648,SMALL(IF((الحركة!$E$6:$E$26648=$F$8)*(الحركة!$A$6:$A$26648>=$F$6)*(الحركة!$A$6:$A$26648<=$H$6),ROW(الحركة!$A$6:$A$26648)-ROW(الحركة!$A$6)+1),ROWS(C$16:C31))),"") ->  | G32: =IF(ROWS(B$16:B31)<=SUMPRODUCT((الحركة!$E$6:$E$26648=$F$8)*(الحركة!$A$6:$A$26648>=$F$6)*(الحركة!$A$6:$A$26648<=$H$6)),INDEX(الحركة!$I$6:$I$26648,SMALL(IF((الحركة!$E$6:$E$26648=$F$8)*(الحركة!$A$6:$A$26648>=$F$6)*(الحركة!$A$6:$A$26648<=$H$6),ROW(الحركة!$A$6:$A$26648)-ROW(الحركة!$A$6)+1),ROWS(B$16:B31))),"") ->  | H32: =IF(ROWS(C$16:C31)<=SUMPRODUCT((الحركة!$E$6:$E$26648=$F$8)*(الحركة!$A$6:$A$26648>=$F$6)*(الحركة!$A$6:$A$26648<=$H$6)),INDEX(الحركة!$J$6:$J$26648,SMALL(IF((الحركة!$E$6:$E$26648=$F$8)*(الحركة!$A$6:$A$26648>=$F$6)*(الحركة!$A$6:$A$26648<=$H$6),ROW(الحركة!$A$6:$A$26648)-ROW(الحركة!$A$6)+1),ROWS(C$16:C31))),"") ->  | L32: =IF(COUNTIF($F$17:F31,F31)=1,COUNT($L$18:L31)+1,"") ->  | M32: =IF(COUNT($L$18:$L$14759)<ROW()-17,"",LOOKUP(ROW()-17,$L$18:$L$14759,$F$17:$F$14759)) ->  | N32: =IF(M32="","",COUNTIF($F$17:$F$359,M32)) ->  | O32: =IF(M32="","",SUMIF($F$17:$F$359,M32,$G$17:$G$14759)) ->  | P32: =IF(M32="","",SUMIF($F$17:$F$359,M32,$H$17:$H$14759)) -> 
B33: =IF(ROWS(B$16:B32)<=SUMPRODUCT((الحركة!$E$6:$E$26648=$F$8)*(الحركة!$A$6:$A$26648>=$F$6)*(الحركة!$A$6:$A$26648<=$H$6)),INDEX(الحركة!$A$6:$A$26648,SMALL(IF((الحركة!$E$6:$E$26648=$F$8)*(الحركة!$A$6:$A$26648>=$F$6)*(الحركة!$A$6:$A$26648<=$H$6),ROW(الحركة!$A$6:$A$26648)-ROW(الحركة!$A$6)+1),ROWS(B$16:B32))),"") ->  | D33: =IF(ROWS(B$16:B32)<=SUMPRODUCT((الحركة!$E$6:$E$26648=$F$8)*(الحركة!$A$6:$A$26648>=$F$6)*(الحركة!$A$6:$A$26648<=$H$6)),INDEX(الحركة!$E$6:$E$26648,SMALL(IF((الحركة!$E$6:$E$26648=$F$8)*(الحركة!$A$6:$A$26648>=$F$6)*(الحركة!$A$6:$A$26648<=$H$6),ROW(الحركة!$A$6:$A$26648)-ROW(الحركة!$A$6)+1),ROWS(B$16:B32))),"") ->  | E33: =IF(ROWS(C$16:C32)<=SUMPRODUCT((الحركة!$E$6:$E$26648=$F$8)*(الحركة!$A$6:$A$26648>=$F$6)*(الحركة!$A$6:$A$26648<=$H$6)),INDEX(الحركة!$F$6:$F$26648,SMALL(IF((الحركة!$E$6:$E$26648=$F$8)*(الحركة!$A$6:$A$26648>=$F$6)*(الحركة!$A$6:$A$26648<=$H$6),ROW(الحركة!$A$6:$A$26648)-ROW(الحركة!$A$6)+1),ROWS(C$16:C32))),"") ->  | F33: =IF(ROWS(C$16:C32)<=SUMPRODUCT((الحركة!$E$6:$E$26648=$F$8)*(الحركة!$A$6:$A$26648>=$F$6)*(الحركة!$A$6:$A$26648<=$H$6)),INDEX(الحركة!$H$6:$H$26648,SMALL(IF((الحركة!$E$6:$E$26648=$F$8)*(الحركة!$A$6:$A$26648>=$F$6)*(الحركة!$A$6:$A$26648<=$H$6),ROW(الحركة!$A$6:$A$26648)-ROW(الحركة!$A$6)+1),ROWS(C$16:C32))),"") ->  | G33: =IF(ROWS(B$16:B32)<=SUMPRODUCT((الحركة!$E$6:$E$26648=$F$8)*(الحركة!$A$6:$A$26648>=$F$6)*(الحركة!$A$6:$A$26648<=$H$6)),INDEX(الحركة!$I$6:$I$26648,SMALL(IF((الحركة!$E$6:$E$26648=$F$8)*(الحركة!$A$6:$A$26648>=$F$6)*(الحركة!$A$6:$A$26648<=$H$6),ROW(الحركة!$A$6:$A$26648)-ROW(الحركة!$A$6)+1),ROWS(B$16:B32))),"") ->  | H33: =IF(ROWS(C$16:C32)<=SUMPRODUCT((الحركة!$E$6:$E$26648=$F$8)*(الحركة!$A$6:$A$26648>=$F$6)*(الحركة!$A$6:$A$26648<=$H$6)),INDEX(الحركة!$J$6:$J$26648,SMALL(IF((الحركة!$E$6:$E$26648=$F$8)*(الحركة!$A$6:$A$26648>=$F$6)*(الحركة!$A$6:$A$26648<=$H$6),ROW(الحركة!$A$6:$A$26648)-ROW(الحركة!$A$6)+1),ROWS(C$16:C32))),"") ->  | L33: =IF(COUNTIF($F$17:F32,F32)=1,COUNT($L$18:L32)+1,"") ->  | M33: =IF(COUNT($L$18:$L$14759)<ROW()-17,"",LOOKUP(ROW()-17,$L$18:$L$14759,$F$17:$F$14759)) ->  | N33: =IF(M33="","",COUNTIF($F$17:$F$359,M33)) ->  | O33: =IF(M33="","",SUMIF($F$17:$F$359,M33,$G$17:$G$14759)) ->  | P33: =IF(M33="","",SUMIF($F$17:$F$359,M33,$H$17:$H$14759)) -> 
B34: =IF(ROWS(B$16:B33)<=SUMPRODUCT((الحركة!$E$6:$E$26648=$F$8)*(الحركة!$A$6:$A$26648>=$F$6)*(الحركة!$A$6:$A$26648<=$H$6)),INDEX(الحركة!$A$6:$A$26648,SMALL(IF((الحركة!$E$6:$E$26648=$F$8)*(الحركة!$A$6:$A$26648>=$F$6)*(الحركة!$A$6:$A$26648<=$H$6),ROW(الحركة!$A$6:$A$26648)-ROW(الحركة!$A$6)+1),ROWS(B$16:B33))),"") ->  | D34: =IF(ROWS(B$16:B33)<=SUMPRODUCT((الحركة!$E$6:$E$26648=$F$8)*(الحركة!$A$6:$A$26648>=$F$6)*(الحركة!$A$6:$A$26648<=$H$6)),INDEX(الحركة!$E$6:$E$26648,SMALL(IF((الحركة!$E$6:$E$26648=$F$8)*(الحركة!$A$6:$A$26648>=$F$6)*(الحركة!$A$6:$A$26648<=$H$6),ROW(الحركة!$A$6:$A$26648)-ROW(الحركة!$A$6)+1),ROWS(B$16:B33))),"") ->  | E34: =IF(ROWS(C$16:C33)<=SUMPRODUCT((الحركة!$E$6:$E$26648=$F$8)*(الحركة!$A$6:$A$26648>=$F$6)*(الحركة!$A$6:$A$26648<=$H$6)),INDEX(الحركة!$F$6:$F$26648,SMALL(IF((الحركة!$E$6:$E$26648=$F$8)*(الحركة!$A$6:$A$26648>=$F$6)*(الحركة!$A$6:$A$26648<=$H$6),ROW(الحركة!$A$6:$A$26648)-ROW(الحركة!$A$6)+1),ROWS(C$16:C33))),"") ->  | F34: =IF(ROWS(C$16:C33)<=SUMPRODUCT((الحركة!$E$6:$E$26648=$F$8)*(الحركة!$A$6:$A$26648>=$F$6)*(الحركة!$A$6:$A$26648<=$H$6)),INDEX(الحركة!$H$6:$H$26648,SMALL(IF((الحركة!$E$6:$E$26648=$F$8)*(الحركة!$A$6:$A$26648>=$F$6)*(الحركة!$A$6:$A$26648<=$H$6),ROW(الحركة!$A$6:$A$26648)-ROW(الحركة!$A$6)+1),ROWS(C$16:C33))),"") ->  | G34: =IF(ROWS(B$16:B33)<=SUMPRODUCT((الحركة!$E$6:$E$26648=$F$8)*(الحركة!$A$6:$A$26648>=$F$6)*(الحركة!$A$6:$A$26648<=$H$6)),INDEX(الحركة!$I$6:$I$26648,SMALL(IF((الحركة!$E$6:$E$26648=$F$8)*(الحركة!$A$6:$A$26648>=$F$6)*(الحركة!$A$6:$A$26648<=$H$6),ROW(الحركة!$A$6:$A$26648)-ROW(الحركة!$A$6)+1),ROWS(B$16:B33))),"") ->  | H34: =IF(ROWS(C$16:C33)<=SUMPRODUCT((الحركة!$E$6:$E$26648=$F$8)*(الحركة!$A$6:$A$26648>=$F$6)*(الحركة!$A$6:$A$26648<=$H$6)),INDEX(الحركة!$J$6:$J$26648,SMALL(IF((الحركة!$E$6:$E$26648=$F$8)*(الحركة!$A$6:$A$26648>=$F$6)*(الحركة!$A$6:$A$26648<=$H$6),ROW(الحركة!$A$6:$A$26648)-ROW(الحركة!$A$6)+1),ROWS(C$16:C33))),"") ->  | L34: =IF(COUNTIF($F$17:F33,F33)=1,COUNT($L$18:L33)+1,"") ->  | M34: =IF(COUNT($L$18:$L$14759)<ROW()-17,"",LOOKUP(ROW()-17,$L$18:$L$14759,$F$17:$F$14759)) ->  | N34: =IF(M34="","",COUNTIF($F$17:$F$359,M34)) ->  | O34: =IF(M34="","",SUMIF($F$17:$F$359,M34,$G$17:$G$14759)) ->  | P34: =IF(M34="","",SUMIF($F$17:$F$359,M34,$H$17:$H$14759)) -> 
B35: =IF(ROWS(B$16:B34)<=SUMPRODUCT((الحركة!$E$6:$E$26648=$F$8)*(الحركة!$A$6:$A$26648>=$F$6)*(الحركة!$A$6:$A$26648<=$H$6)),INDEX(الحركة!$A$6:$A$26648,SMALL(IF((الحركة!$E$6:$E$26648=$F$8)*(الحركة!$A$6:$A$26648>=$F$6)*(الحركة!$A$6:$A$26648<=$H$6),ROW(الحركة!$A$6:$A$26648)-ROW(الحركة!$A$6)+1),ROWS(B$16:B34))),"") ->  | D35: =IF(ROWS(B$16:B34)<=SUMPRODUCT((الحركة!$E$6:$E$26648=$F$8)*(الحركة!$A$6:$A$26648>=$F$6)*(الحركة!$A$6:$A$26648<=$H$6)),INDEX(الحركة!$E$6:$E$26648,SMALL(IF((الحركة!$E$6:$E$26648=$F$8)*(الحركة!$A$6:$A$26648>=$F$6)*(الحركة!$A$6:$A$26648<=$H$6),ROW(الحركة!$A$6:$A$26648)-ROW(الحركة!$A$6)+1),ROWS(B$16:B34))),"") ->  | E35: =IF(ROWS(C$16:C34)<=SUMPRODUCT((الحركة!$E$6:$E$26648=$F$8)*(الحركة!$A$6:$A$26648>=$F$6)*(الحركة!$A$6:$A$26648<=$H$6)),INDEX(الحركة!$F$6:$F$26648,SMALL(IF((الحركة!$E$6:$E$26648=$F$8)*(الحركة!$A$6:$A$26648>=$F$6)*(الحركة!$A$6:$A$26648<=$H$6),ROW(الحركة!$A$6:$A$26648)-ROW(الحركة!$A$6)+1),ROWS(C$16:C34))),"") ->  | F35: =IF(ROWS(C$16:C34)<=SUMPRODUCT((الحركة!$E$6:$E$26648=$F$8)*(الحركة!$A$6:$A$26648>=$F$6)*(الحركة!$A$6:$A$26648<=$H$6)),INDEX(الحركة!$H$6:$H$26648,SMALL(IF((الحركة!$E$6:$E$26648=$F$8)*(الحركة!$A$6:$A$26648>=$F$6)*(الحركة!$A$6:$A$26648<=$H$6),ROW(الحركة!$A$6:$A$26648)-ROW(الحركة!$A$6)+1),ROWS(C$16:C34))),"") ->  | G35: =IF(ROWS(B$16:B34)<=SUMPRODUCT((الحركة!$E$6:$E$26648=$F$8)*(الحركة!$A$6:$A$26648>=$F$6)*(الحركة!$A$6:$A$26648<=$H$6)),INDEX(الحركة!$I$6:$I$26648,SMALL(IF((الحركة!$E$6:$E$26648=$F$8)*(الحركة!$A$6:$A$26648>=$F$6)*(الحركة!$A$6:$A$26648<=$H$6),ROW(الحركة!$A$6:$A$26648)-ROW(الحركة!$A$6)+1),ROWS(B$16:B34))),"") ->  | H35: =IF(ROWS(C$16:C34)<=SUMPRODUCT((الحركة!$E$6:$E$26648=$F$8)*(الحركة!$A$6:$A$26648>=$F$6)*(الحركة!$A$6:$A$26648<=$H$6)),INDEX(الحركة!$J$6:$J$26648,SMALL(IF((الحركة!$E$6:$E$26648=$F$8)*(الحركة!$A$6:$A$26648>=$F$6)*(الحركة!$A$6:$A$26648<=$H$6),ROW(الحركة!$A$6:$A$26648)-ROW(الحركة!$A$6)+1),ROWS(C$16:C34))),"") ->  | L35: =IF(COUNTIF($F$17:F34,F34)=1,COUNT($L$18:L34)+1,"") ->  | M35: =IF(COUNT($L$18:$L$14759)<ROW()-17,"",LOOKUP(ROW()-17,$L$18:$L$14759,$F$17:$F$14759)) ->  | N35: =IF(M35="","",COUNTIF($F$17:$F$359,M35)) ->  | O35: =IF(M35="","",SUMIF($F$17:$F$359,M35,$G$17:$G$14759)) ->  | P35: =IF(M35="","",SUMIF($F$17:$F$359,M35,$H$17:$H$14759)) -> 
B36: =IF(ROWS(B$16:B35)<=SUMPRODUCT((الحركة!$E$6:$E$26648=$F$8)*(الحركة!$A$6:$A$26648>=$F$6)*(الحركة!$A$6:$A$26648<=$H$6)),INDEX(الحركة!$A$6:$A$26648,SMALL(IF((الحركة!$E$6:$E$26648=$F$8)*(الحركة!$A$6:$A$26648>=$F$6)*(الحركة!$A$6:$A$26648<=$H$6),ROW(الحركة!$A$6:$A$26648)-ROW(الحركة!$A$6)+1),ROWS(B$16:B35))),"") ->  | D36: =IF(ROWS(B$16:B35)<=SUMPRODUCT((الحركة!$E$6:$E$26648=$F$8)*(الحركة!$A$6:$A$26648>=$F$6)*(الحركة!$A$6:$A$26648<=$H$6)),INDEX(الحركة!$E$6:$E$26648,SMALL(IF((الحركة!$E$6:$E$26648=$F$8)*(الحركة!$A$6:$A$26648>=$F$6)*(الحركة!$A$6:$A$26648<=$H$6),ROW(الحركة!$A$6:$A$26648)-ROW(الحركة!$A$6)+1),ROWS(B$16:B35))),"") ->  | E36: =IF(ROWS(C$16:C35)<=SUMPRODUCT((الحركة!$E$6:$E$26648=$F$8)*(الحركة!$A$6:$A$26648>=$F$6)*(الحركة!$A$6:$A$26648<=$H$6)),INDEX(الحركة!$F$6:$F$26648,SMALL(IF((الحركة!$E$6:$E$26648=$F$8)*(الحركة!$A$6:$A$26648>=$F$6)*(الحركة!$A$6:$A$26648<=$H$6),ROW(الحركة!$A$6:$A$26648)-ROW(الحركة!$A$6)+1),ROWS(C$16:C35))),"") ->  | F36: =IF(ROWS(C$16:C35)<=SUMPRODUCT((الحركة!$E$6:$E$26648=$F$8)*(الحركة!$A$6:$A$26648>=$F$6)*(الحركة!$A$6:$A$26648<=$H$6)),INDEX(الحركة!$H$6:$H$26648,SMALL(IF((الحركة!$E$6:$E$26648=$F$8)*(الحركة!$A$6:$A$26648>=$F$6)*(الحركة!$A$6:$A$26648<=$H$6),ROW(الحركة!$A$6:$A$26648)-ROW(الحركة!$A$6)+1),ROWS(C$16:C35))),"") ->  | G36: =IF(ROWS(B$16:B35)<=SUMPRODUCT((الحركة!$E$6:$E$26648=$F$8)*(الحركة!$A$6:$A$26648>=$F$6)*(الحركة!$A$6:$A$26648<=$H$6)),INDEX(الحركة!$I$6:$I$26648,SMALL(IF((الحركة!$E$6:$E$26648=$F$8)*(الحركة!$A$6:$A$26648>=$F$6)*(الحركة!$A$6:$A$26648<=$H$6),ROW(الحركة!$A$6:$A$26648)-ROW(الحركة!$A$6)+1),ROWS(B$16:B35))),"") ->  | H36: =IF(ROWS(C$16:C35)<=SUMPRODUCT((الحركة!$E$6:$E$26648=$F$8)*(الحركة!$A$6:$A$26648>=$F$6)*(الحركة!$A$6:$A$26648<=$H$6)),INDEX(الحركة!$J$6:$J$26648,SMALL(IF((الحركة!$E$6:$E$26648=$F$8)*(الحركة!$A$6:$A$26648>=$F$6)*(الحركة!$A$6:$A$26648<=$H$6),ROW(الحركة!$A$6:$A$26648)-ROW(الحركة!$A$6)+1),ROWS(C$16:C35))),"") ->  | L36: =IF(COUNTIF($F$17:F35,F35)=1,COUNT($L$18:L35)+1,"") ->  | M36: =IF(COUNT($L$18:$L$14759)<ROW()-17,"",LOOKUP(ROW()-17,$L$18:$L$14759,$F$17:$F$14759)) ->  | N36: =IF(M36="","",COUNTIF($F$17:$F$359,M36)) ->  | O36: =IF(M36="","",SUMIF($F$17:$F$359,M36,$G$17:$G$14759)) ->  | P36: =IF(M36="","",SUMIF($F$17:$F$359,M36,$H$17:$H$14759)) -> 
B37: =IF(ROWS(B$16:B36)<=SUMPRODUCT((الحركة!$E$6:$E$26648=$F$8)*(الحركة!$A$6:$A$26648>=$F$6)*(الحركة!$A$6:$A$26648<=$H$6)),INDEX(الحركة!$A$6:$A$26648,SMALL(IF((الحركة!$E$6:$E$26648=$F$8)*(الحركة!$A$6:$A$26648>=$F$6)*(الحركة!$A$6:$A$26648<=$H$6),ROW(الحركة!$A$6:$A$26648)-ROW(الحركة!$A$6)+1),ROWS(B$16:B36))),"") ->  | D37: =IF(ROWS(B$16:B36)<=SUMPRODUCT((الحركة!$E$6:$E$26648=$F$8)*(الحركة!$A$6:$A$26648>=$F$6)*(الحركة!$A$6:$A$26648<=$H$6)),INDEX(الحركة!$E$6:$E$26648,SMALL(IF((الحركة!$E$6:$E$26648=$F$8)*(الحركة!$A$6:$A$26648>=$F$6)*(الحركة!$A$6:$A$26648<=$H$6),ROW(الحركة!$A$6:$A$26648)-ROW(الحركة!$A$6)+1),ROWS(B$16:B36))),"") ->  | E37: =IF(ROWS(C$16:C36)<=SUMPRODUCT((الحركة!$E$6:$E$26648=$F$8)*(الحركة!$A$6:$A$26648>=$F$6)*(الحركة!$A$6:$A$26648<=$H$6)),INDEX(الحركة!$F$6:$F$26648,SMALL(IF((الحركة!$E$6:$E$26648=$F$8)*(الحركة!$A$6:$A$26648>=$F$6)*(الحركة!$A$6:$A$26648<=$H$6),ROW(الحركة!$A$6:$A$26648)-ROW(الحركة!$A$6)+1),ROWS(C$16:C36))),"") ->  | F37: =IF(ROWS(C$16:C36)<=SUMPRODUCT((الحركة!$E$6:$E$26648=$F$8)*(الحركة!$A$6:$A$26648>=$F$6)*(الحركة!$A$6:$A$26648<=$H$6)),INDEX(الحركة!$H$6:$H$26648,SMALL(IF((الحركة!$E$6:$E$26648=$F$8)*(الحركة!$A$6:$A$26648>=$F$6)*(الحركة!$A$6:$A$26648<=$H$6),ROW(الحركة!$A$6:$A$26648)-ROW(الحركة!$A$6)+1),ROWS(C$16:C36))),"") ->  | G37: =IF(ROWS(B$16:B36)<=SUMPRODUCT((الحركة!$E$6:$E$26648=$F$8)*(الحركة!$A$6:$A$26648>=$F$6)*(الحركة!$A$6:$A$26648<=$H$6)),INDEX(الحركة!$I$6:$I$26648,SMALL(IF((الحركة!$E$6:$E$26648=$F$8)*(الحركة!$A$6:$A$26648>=$F$6)*(الحركة!$A$6:$A$26648<=$H$6),ROW(الحركة!$A$6:$A$26648)-ROW(الحركة!$A$6)+1),ROWS(B$16:B36))),"") ->  | H37: =IF(ROWS(C$16:C36)<=SUMPRODUCT((الحركة!$E$6:$E$26648=$F$8)*(الحركة!$A$6:$A$26648>=$F$6)*(الحركة!$A$6:$A$26648<=$H$6)),INDEX(الحركة!$J$6:$J$26648,SMALL(IF((الحركة!$E$6:$E$26648=$F$8)*(الحركة!$A$6:$A$26648>=$F$6)*(الحركة!$A$6:$A$26648<=$H$6),ROW(الحركة!$A$6:$A$26648)-ROW(الحركة!$A$6)+1),ROWS(C$16:C36))),"") ->  | L37: =IF(COUNTIF($F$17:F36,F36)=1,COUNT($L$18:L36)+1,"") ->  | M37: =IF(COUNT($L$18:$L$14759)<ROW()-17,"",LOOKUP(ROW()-17,$L$18:$L$14759,$F$17:$F$14759)) ->  | N37: =IF(M37="","",COUNTIF($F$17:$F$359,M37)) ->  | O37: =IF(M37="","",SUMIF($F$17:$F$359,M37,$G$17:$G$14759)) ->  | P37: =IF(M37="","",SUMIF($F$17:$F$359,M37,$H$17:$H$14759)) -> 
B38: =IF(ROWS(B$16:B37)<=SUMPRODUCT((الحركة!$E$6:$E$26648=$F$8)*(الحركة!$A$6:$A$26648>=$F$6)*(الحركة!$A$6:$A$26648<=$H$6)),INDEX(الحركة!$A$6:$A$26648,SMALL(IF((الحركة!$E$6:$E$26648=$F$8)*(الحركة!$A$6:$A$26648>=$F$6)*(الحركة!$A$6:$A$26648<=$H$6),ROW(الحركة!$A$6:$A$26648)-ROW(الحركة!$A$6)+1),ROWS(B$16:B37))),"") ->  | D38: =IF(ROWS(B$16:B37)<=SUMPRODUCT((الحركة!$E$6:$E$26648=$F$8)*(الحركة!$A$6:$A$26648>=$F$6)*(الحركة!$A$6:$A$26648<=$H$6)),INDEX(الحركة!$E$6:$E$26648,SMALL(IF((الحركة!$E$6:$E$26648=$F$8)*(الحركة!$A$6:$A$26648>=$F$6)*(الحركة!$A$6:$A$26648<=$H$6),ROW(الحركة!$A$6:$A$26648)-ROW(الحركة!$A$6)+1),ROWS(B$16:B37))),"") ->  | E38: =IF(ROWS(C$16:C37)<=SUMPRODUCT((الحركة!$E$6:$E$26648=$F$8)*(الحركة!$A$6:$A$26648>=$F$6)*(الحركة!$A$6:$A$26648<=$H$6)),INDEX(الحركة!$F$6:$F$26648,SMALL(IF((الحركة!$E$6:$E$26648=$F$8)*(الحركة!$A$6:$A$26648>=$F$6)*(الحركة!$A$6:$A$26648<=$H$6),ROW(الحركة!$A$6:$A$26648)-ROW(الحركة!$A$6)+1),ROWS(C$16:C37))),"") ->  | F38: =IF(ROWS(C$16:C37)<=SUMPRODUCT((الحركة!$E$6:$E$26648=$F$8)*(الحركة!$A$6:$A$26648>=$F$6)*(الحركة!$A$6:$A$26648<=$H$6)),INDEX(الحركة!$H$6:$H$26648,SMALL(IF((الحركة!$E$6:$E$26648=$F$8)*(الحركة!$A$6:$A$26648>=$F$6)*(الحركة!$A$6:$A$26648<=$H$6),ROW(الحركة!$A$6:$A$26648)-ROW(الحركة!$A$6)+1),ROWS(C$16:C37))),"") ->  | G38: =IF(ROWS(B$16:B37)<=SUMPRODUCT((الحركة!$E$6:$E$26648=$F$8)*(الحركة!$A$6:$A$26648>=$F$6)*(الحركة!$A$6:$A$26648<=$H$6)),INDEX(الحركة!$I$6:$I$26648,SMALL(IF((الحركة!$E$6:$E$26648=$F$8)*(الحركة!$A$6:$A$26648>=$F$6)*(الحركة!$A$6:$A$26648<=$H$6),ROW(الحركة!$A$6:$A$26648)-ROW(الحركة!$A$6)+1),ROWS(B$16:B37))),"") ->  | H38: =IF(ROWS(C$16:C37)<=SUMPRODUCT((الحركة!$E$6:$E$26648=$F$8)*(الحركة!$A$6:$A$26648>=$F$6)*(الحركة!$A$6:$A$26648<=$H$6)),INDEX(الحركة!$J$6:$J$26648,SMALL(IF((الحركة!$E$6:$E$26648=$F$8)*(الحركة!$A$6:$A$26648>=$F$6)*(الحركة!$A$6:$A$26648<=$H$6),ROW(الحركة!$A$6:$A$26648)-ROW(الحركة!$A$6)+1),ROWS(C$16:C37))),"") ->  | L38: =IF(COUNTIF($F$17:F37,F37)=1,COUNT($L$18:L37)+1,"") ->  | M38: =IF(COUNT($L$18:$L$14759)<ROW()-17,"",LOOKUP(ROW()-17,$L$18:$L$14759,$F$17:$F$14759)) ->  | N38: =IF(M38="","",COUNTIF($F$17:$F$359,M38)) ->  | O38: =IF(M38="","",SUMIF($F$17:$F$359,M38,$G$17:$G$14759)) ->  | P38: =IF(M38="","",SUMIF($F$17:$F$359,M38,$H$17:$H$14759)) -> 
B39: =IF(ROWS(B$16:B38)<=SUMPRODUCT((الحركة!$E$6:$E$26648=$F$8)*(الحركة!$A$6:$A$26648>=$F$6)*(الحركة!$A$6:$A$26648<=$H$6)),INDEX(الحركة!$A$6:$A$26648,SMALL(IF((الحركة!$E$6:$E$26648=$F$8)*(الحركة!$A$6:$A$26648>=$F$6)*(الحركة!$A$6:$A$26648<=$H$6),ROW(الحركة!$A$6:$A$26648)-ROW(الحركة!$A$6)+1),ROWS(B$16:B38))),"") ->  | D39: =IF(ROWS(B$16:B38)<=SUMPRODUCT((الحركة!$E$6:$E$26648=$F$8)*(الحركة!$A$6:$A$26648>=$F$6)*(الحركة!$A$6:$A$26648<=$H$6)),INDEX(الحركة!$E$6:$E$26648,SMALL(IF((الحركة!$E$6:$E$26648=$F$8)*(الحركة!$A$6:$A$26648>=$F$6)*(الحركة!$A$6:$A$26648<=$H$6),ROW(الحركة!$A$6:$A$26648)-ROW(الحركة!$A$6)+1),ROWS(B$16:B38))),"") ->  | E39: =IF(ROWS(C$16:C38)<=SUMPRODUCT((الحركة!$E$6:$E$26648=$F$8)*(الحركة!$A$6:$A$26648>=$F$6)*(الحركة!$A$6:$A$26648<=$H$6)),INDEX(الحركة!$F$6:$F$26648,SMALL(IF((الحركة!$E$6:$E$26648=$F$8)*(الحركة!$A$6:$A$26648>=$F$6)*(الحركة!$A$6:$A$26648<=$H$6),ROW(الحركة!$A$6:$A$26648)-ROW(الحركة!$A$6)+1),ROWS(C$16:C38))),"") ->  | F39: =IF(ROWS(C$16:C38)<=SUMPRODUCT((الحركة!$E$6:$E$26648=$F$8)*(الحركة!$A$6:$A$26648>=$F$6)*(الحركة!$A$6:$A$26648<=$H$6)),INDEX(الحركة!$H$6:$H$26648,SMALL(IF((الحركة!$E$6:$E$26648=$F$8)*(الحركة!$A$6:$A$26648>=$F$6)*(الحركة!$A$6:$A$26648<=$H$6),ROW(الحركة!$A$6:$A$26648)-ROW(الحركة!$A$6)+1),ROWS(C$16:C38))),"") ->  | G39: =IF(ROWS(B$16:B38)<=SUMPRODUCT((الحركة!$E$6:$E$26648=$F$8)*(الحركة!$A$6:$A$26648>=$F$6)*(الحركة!$A$6:$A$26648<=$H$6)),INDEX(الحركة!$I$6:$I$26648,SMALL(IF((الحركة!$E$6:$E$26648=$F$8)*(الحركة!$A$6:$A$26648>=$F$6)*(الحركة!$A$6:$A$26648<=$H$6),ROW(الحركة!$A$6:$A$26648)-ROW(الحركة!$A$6)+1),ROWS(B$16:B38))),"") ->  | H39: =IF(ROWS(C$16:C38)<=SUMPRODUCT((الحركة!$E$6:$E$26648=$F$8)*(الحركة!$A$6:$A$26648>=$F$6)*(الحركة!$A$6:$A$26648<=$H$6)),INDEX(الحركة!$J$6:$J$26648,SMALL(IF((الحركة!$E$6:$E$26648=$F$8)*(الحركة!$A$6:$A$26648>=$F$6)*(الحركة!$A$6:$A$26648<=$H$6),ROW(الحركة!$A$6:$A$26648)-ROW(الحركة!$A$6)+1),ROWS(C$16:C38))),"") ->  | L39: =IF(COUNTIF($F$17:F38,F38)=1,COUNT($L$18:L38)+1,"") ->  | M39: =IF(COUNT($L$18:$L$14759)<ROW()-17,"",LOOKUP(ROW()-17,$L$18:$L$14759,$F$17:$F$14759)) ->  | N39: =IF(M39="","",COUNTIF($F$17:$F$359,M39)) ->  | O39: =IF(M39="","",SUMIF($F$17:$F$359,M39,$G$17:$G$14759)) ->  | P39: =IF(M39="","",SUMIF($F$17:$F$359,M39,$H$17:$H$14759)) -> 
B40: =IF(ROWS(B$16:B39)<=SUMPRODUCT((الحركة!$E$6:$E$26648=$F$8)*(الحركة!$A$6:$A$26648>=$F$6)*(الحركة!$A$6:$A$26648<=$H$6)),INDEX(الحركة!$A$6:$A$26648,SMALL(IF((الحركة!$E$6:$E$26648=$F$8)*(الحركة!$A$6:$A$26648>=$F$6)*(الحركة!$A$6:$A$26648<=$H$6),ROW(الحركة!$A$6:$A$26648)-ROW(الحركة!$A$6)+1),ROWS(B$16:B39))),"") ->  | D40: =IF(ROWS(B$16:B39)<=SUMPRODUCT((الحركة!$E$6:$E$26648=$F$8)*(الحركة!$A$6:$A$26648>=$F$6)*(الحركة!$A$6:$A$26648<=$H$6)),INDEX(الحركة!$E$6:$E$26648,SMALL(IF((الحركة!$E$6:$E$26648=$F$8)*(الحركة!$A$6:$A$26648>=$F$6)*(الحركة!$A$6:$A$26648<=$H$6),ROW(الحركة!$A$6:$A$26648)-ROW(الحركة!$A$6)+1),ROWS(B$16:B39))),"") ->  | E40: =IF(ROWS(C$16:C39)<=SUMPRODUCT((الحركة!$E$6:$E$26648=$F$8)*(الحركة!$A$6:$A$26648>=$F$6)*(الحركة!$A$6:$A$26648<=$H$6)),INDEX(الحركة!$F$6:$F$26648,SMALL(IF((الحركة!$E$6:$E$26648=$F$8)*(الحركة!$A$6:$A$26648>=$F$6)*(الحركة!$A$6:$A$26648<=$H$6),ROW(الحركة!$A$6:$A$26648)-ROW(الحركة!$A$6)+1),ROWS(C$16:C39))),"") ->  | F40: =IF(ROWS(C$16:C39)<=SUMPRODUCT((الحركة!$E$6:$E$26648=$F$8)*(الحركة!$A$6:$A$26648>=$F$6)*(الحركة!$A$6:$A$26648<=$H$6)),INDEX(الحركة!$H$6:$H$26648,SMALL(IF((الحركة!$E$6:$E$26648=$F$8)*(الحركة!$A$6:$A$26648>=$F$6)*(الحركة!$A$6:$A$26648<=$H$6),ROW(الحركة!$A$6:$A$26648)-ROW(الحركة!$A$6)+1),ROWS(C$16:C39))),"") ->  | G40: =IF(ROWS(B$16:B39)<=SUMPRODUCT((الحركة!$E$6:$E$26648=$F$8)*(الحركة!$A$6:$A$26648>=$F$6)*(الحركة!$A$6:$A$26648<=$H$6)),INDEX(الحركة!$I$6:$I$26648,SMALL(IF((الحركة!$E$6:$E$26648=$F$8)*(الحركة!$A$6:$A$26648>=$F$6)*(الحركة!$A$6:$A$26648<=$H$6),ROW(الحركة!$A$6:$A$26648)-ROW(الحركة!$A$6)+1),ROWS(B$16:B39))),"") ->  | H40: =IF(ROWS(C$16:C39)<=SUMPRODUCT((الحركة!$E$6:$E$26648=$F$8)*(الحركة!$A$6:$A$26648>=$F$6)*(الحركة!$A$6:$A$26648<=$H$6)),INDEX(الحركة!$J$6:$J$26648,SMALL(IF((الحركة!$E$6:$E$26648=$F$8)*(الحركة!$A$6:$A$26648>=$F$6)*(الحركة!$A$6:$A$26648<=$H$6),ROW(الحركة!$A$6:$A$26648)-ROW(الحركة!$A$6)+1),ROWS(C$16:C39))),"") ->  | L40: =IF(COUNTIF($F$17:F39,F39)=1,COUNT($L$18:L39)+1,"") ->  | M40: =IF(COUNT($L$18:$L$14759)<ROW()-17,"",LOOKUP(ROW()-17,$L$18:$L$14759,$F$17:$F$14759)) ->  | N40: =IF(M40="","",COUNTIF($F$17:$F$359,M40)) ->  | O40: =IF(M40="","",SUMIF($F$17:$F$359,M40,$G$17:$G$14759)) ->  | P40: =IF(M40="","",SUMIF($F$17:$F$359,M40,$H$17:$H$14759)) -> 
B41: =IF(ROWS(B$16:B40)<=SUMPRODUCT((الحركة!$E$6:$E$26648=$F$8)*(الحركة!$A$6:$A$26648>=$F$6)*(الحركة!$A$6:$A$26648<=$H$6)),INDEX(الحركة!$A$6:$A$26648,SMALL(IF((الحركة!$E$6:$E$26648=$F$8)*(الحركة!$A$6:$A$26648>=$F$6)*(الحركة!$A$6:$A$26648<=$H$6),ROW(الحركة!$A$6:$A$26648)-ROW(الحركة!$A$6)+1),ROWS(B$16:B40))),"") ->  | D41: =IF(ROWS(B$16:B40)<=SUMPRODUCT((الحركة!$E$6:$E$26648=$F$8)*(الحركة!$A$6:$A$26648>=$F$6)*(الحركة!$A$6:$A$26648<=$H$6)),INDEX(الحركة!$E$6:$E$26648,SMALL(IF((الحركة!$E$6:$E$26648=$F$8)*(الحركة!$A$6:$A$26648>=$F$6)*(الحركة!$A$6:$A$26648<=$H$6),ROW(الحركة!$A$6:$A$26648)-ROW(الحركة!$A$6)+1),ROWS(B$16:B40))),"") ->  | E41: =IF(ROWS(C$16:C40)<=SUMPRODUCT((الحركة!$E$6:$E$26648=$F$8)*(الحركة!$A$6:$A$26648>=$F$6)*(الحركة!$A$6:$A$26648<=$H$6)),INDEX(الحركة!$F$6:$F$26648,SMALL(IF((الحركة!$E$6:$E$26648=$F$8)*(الحركة!$A$6:$A$26648>=$F$6)*(الحركة!$A$6:$A$26648<=$H$6),ROW(الحركة!$A$6:$A$26648)-ROW(الحركة!$A$6)+1),ROWS(C$16:C40))),"") ->  | F41: =IF(ROWS(C$16:C40)<=SUMPRODUCT((الحركة!$E$6:$E$26648=$F$8)*(الحركة!$A$6:$A$26648>=$F$6)*(الحركة!$A$6:$A$26648<=$H$6)),INDEX(الحركة!$H$6:$H$26648,SMALL(IF((الحركة!$E$6:$E$26648=$F$8)*(الحركة!$A$6:$A$26648>=$F$6)*(الحركة!$A$6:$A$26648<=$H$6),ROW(الحركة!$A$6:$A$26648)-ROW(الحركة!$A$6)+1),ROWS(C$16:C40))),"") ->  | G41: =IF(ROWS(B$16:B40)<=SUMPRODUCT((الحركة!$E$6:$E$26648=$F$8)*(الحركة!$A$6:$A$26648>=$F$6)*(الحركة!$A$6:$A$26648<=$H$6)),INDEX(الحركة!$I$6:$I$26648,SMALL(IF((الحركة!$E$6:$E$26648=$F$8)*(الحركة!$A$6:$A$26648>=$F$6)*(الحركة!$A$6:$A$26648<=$H$6),ROW(الحركة!$A$6:$A$26648)-ROW(الحركة!$A$6)+1),ROWS(B$16:B40))),"") ->  | H41: =IF(ROWS(C$16:C40)<=SUMPRODUCT((الحركة!$E$6:$E$26648=$F$8)*(الحركة!$A$6:$A$26648>=$F$6)*(الحركة!$A$6:$A$26648<=$H$6)),INDEX(الحركة!$J$6:$J$26648,SMALL(IF((الحركة!$E$6:$E$26648=$F$8)*(الحركة!$A$6:$A$26648>=$F$6)*(الحركة!$A$6:$A$26648<=$H$6),ROW(الحركة!$A$6:$A$26648)-ROW(الحركة!$A$6)+1),ROWS(C$16:C40))),"") ->  | L41: =IF(COUNTIF($F$17:F40,F40)=1,COUNT($L$18:L40)+1,"") ->  | M41: =IF(COUNT($L$18:$L$14759)<ROW()-17,"",LOOKUP(ROW()-17,$L$18:$L$14759,$F$17:$F$14759)) ->  | N41: =IF(M41="","",COUNTIF($F$17:$F$359,M41)) ->  | O41: =IF(M41="","",SUMIF($F$17:$F$359,M41,$G$17:$G$14759)) ->  | P41: =IF(M41="","",SUMIF($F$17:$F$359,M41,$H$17:$H$14759)) -> 
B42: =IF(ROWS(B$16:B41)<=SUMPRODUCT((الحركة!$E$6:$E$26648=$F$8)*(الحركة!$A$6:$A$26648>=$F$6)*(الحركة!$A$6:$A$26648<=$H$6)),INDEX(الحركة!$A$6:$A$26648,SMALL(IF((الحركة!$E$6:$E$26648=$F$8)*(الحركة!$A$6:$A$26648>=$F$6)*(الحركة!$A$6:$A$26648<=$H$6),ROW(الحركة!$A$6:$A$26648)-ROW(الحركة!$A$6)+1),ROWS(B$16:B41))),"") ->  | D42: =IF(ROWS(B$16:B41)<=SUMPRODUCT((الحركة!$E$6:$E$26648=$F$8)*(الحركة!$A$6:$A$26648>=$F$6)*(الحركة!$A$6:$A$26648<=$H$6)),INDEX(الحركة!$E$6:$E$26648,SMALL(IF((الحركة!$E$6:$E$26648=$F$8)*(الحركة!$A$6:$A$26648>=$F$6)*(الحركة!$A$6:$A$26648<=$H$6),ROW(الحركة!$A$6:$A$26648)-ROW(الحركة!$A$6)+1),ROWS(B$16:B41))),"") ->  | E42: =IF(ROWS(C$16:C41)<=SUMPRODUCT((الحركة!$E$6:$E$26648=$F$8)*(الحركة!$A$6:$A$26648>=$F$6)*(الحركة!$A$6:$A$26648<=$H$6)),INDEX(الحركة!$F$6:$F$26648,SMALL(IF((الحركة!$E$6:$E$26648=$F$8)*(الحركة!$A$6:$A$26648>=$F$6)*(الحركة!$A$6:$A$26648<=$H$6),ROW(الحركة!$A$6:$A$26648)-ROW(الحركة!$A$6)+1),ROWS(C$16:C41))),"") ->  | F42: =IF(ROWS(C$16:C41)<=SUMPRODUCT((الحركة!$E$6:$E$26648=$F$8)*(الحركة!$A$6:$A$26648>=$F$6)*(الحركة!$A$6:$A$26648<=$H$6)),INDEX(الحركة!$H$6:$H$26648,SMALL(IF((الحركة!$E$6:$E$26648=$F$8)*(الحركة!$A$6:$A$26648>=$F$6)*(الحركة!$A$6:$A$26648<=$H$6),ROW(الحركة!$A$6:$A$26648)-ROW(الحركة!$A$6)+1),ROWS(C$16:C41))),"") ->  | G42: =IF(ROWS(B$16:B41)<=SUMPRODUCT((الحركة!$E$6:$E$26648=$F$8)*(الحركة!$A$6:$A$26648>=$F$6)*(الحركة!$A$6:$A$26648<=$H$6)),INDEX(الحركة!$I$6:$I$26648,SMALL(IF((الحركة!$E$6:$E$26648=$F$8)*(الحركة!$A$6:$A$26648>=$F$6)*(الحركة!$A$6:$A$26648<=$H$6),ROW(الحركة!$A$6:$A$26648)-ROW(الحركة!$A$6)+1),ROWS(B$16:B41))),"") ->  | H42: =IF(ROWS(C$16:C41)<=SUMPRODUCT((الحركة!$E$6:$E$26648=$F$8)*(الحركة!$A$6:$A$26648>=$F$6)*(الحركة!$A$6:$A$26648<=$H$6)),INDEX(الحركة!$J$6:$J$26648,SMALL(IF((الحركة!$E$6:$E$26648=$F$8)*(الحركة!$A$6:$A$26648>=$F$6)*(الحركة!$A$6:$A$26648<=$H$6),ROW(الحركة!$A$6:$A$26648)-ROW(الحركة!$A$6)+1),ROWS(C$16:C41))),"") ->  | L42: =IF(COUNTIF($F$17:F41,F41)=1,COUNT($L$18:L41)+1,"") ->  | M42: =IF(COUNT($L$18:$L$14759)<ROW()-17,"",LOOKUP(ROW()-17,$L$18:$L$14759,$F$17:$F$14759)) ->  | N42: =IF(M42="","",COUNTIF($F$17:$F$359,M42)) ->  | O42: =IF(M42="","",SUMIF($F$17:$F$359,M42,$G$17:$G$14759)) ->  | P42: =IF(M42="","",SUMIF($F$17:$F$359,M42,$H$17:$H$14759)) -> 
B43: =IF(ROWS(B$16:B42)<=SUMPRODUCT((الحركة!$E$6:$E$26648=$F$8)*(الحركة!$A$6:$A$26648>=$F$6)*(الحركة!$A$6:$A$26648<=$H$6)),INDEX(الحركة!$A$6:$A$26648,SMALL(IF((الحركة!$E$6:$E$26648=$F$8)*(الحركة!$A$6:$A$26648>=$F$6)*(الحركة!$A$6:$A$26648<=$H$6),ROW(الحركة!$A$6:$A$26648)-ROW(الحركة!$A$6)+1),ROWS(B$16:B42))),"") ->  | D43: =IF(ROWS(B$16:B42)<=SUMPRODUCT((الحركة!$E$6:$E$26648=$F$8)*(الحركة!$A$6:$A$26648>=$F$6)*(الحركة!$A$6:$A$26648<=$H$6)),INDEX(الحركة!$E$6:$E$26648,SMALL(IF((الحركة!$E$6:$E$26648=$F$8)*(الحركة!$A$6:$A$26648>=$F$6)*(الحركة!$A$6:$A$26648<=$H$6),ROW(الحركة!$A$6:$A$26648)-ROW(الحركة!$A$6)+1),ROWS(B$16:B42))),"") ->  | E43: =IF(ROWS(C$16:C42)<=SUMPRODUCT((الحركة!$E$6:$E$26648=$F$8)*(الحركة!$A$6:$A$26648>=$F$6)*(الحركة!$A$6:$A$26648<=$H$6)),INDEX(الحركة!$F$6:$F$26648,SMALL(IF((الحركة!$E$6:$E$26648=$F$8)*(الحركة!$A$6:$A$26648>=$F$6)*(الحركة!$A$6:$A$26648<=$H$6),ROW(الحركة!$A$6:$A$26648)-ROW(الحركة!$A$6)+1),ROWS(C$16:C42))),"") ->  | F43: =IF(ROWS(C$16:C42)<=SUMPRODUCT((الحركة!$E$6:$E$26648=$F$8)*(الحركة!$A$6:$A$26648>=$F$6)*(الحركة!$A$6:$A$26648<=$H$6)),INDEX(الحركة!$H$6:$H$26648,SMALL(IF((الحركة!$E$6:$E$26648=$F$8)*(الحركة!$A$6:$A$26648>=$F$6)*(الحركة!$A$6:$A$26648<=$H$6),ROW(الحركة!$A$6:$A$26648)-ROW(الحركة!$A$6)+1),ROWS(C$16:C42))),"") ->  | G43: =IF(ROWS(B$16:B42)<=SUMPRODUCT((الحركة!$E$6:$E$26648=$F$8)*(الحركة!$A$6:$A$26648>=$F$6)*(الحركة!$A$6:$A$26648<=$H$6)),INDEX(الحركة!$I$6:$I$26648,SMALL(IF((الحركة!$E$6:$E$26648=$F$8)*(الحركة!$A$6:$A$26648>=$F$6)*(الحركة!$A$6:$A$26648<=$H$6),ROW(الحركة!$A$6:$A$26648)-ROW(الحركة!$A$6)+1),ROWS(B$16:B42))),"") ->  | H43: =IF(ROWS(C$16:C42)<=SUMPRODUCT((الحركة!$E$6:$E$26648=$F$8)*(الحركة!$A$6:$A$26648>=$F$6)*(الحركة!$A$6:$A$26648<=$H$6)),INDEX(الحركة!$J$6:$J$26648,SMALL(IF((الحركة!$E$6:$E$26648=$F$8)*(الحركة!$A$6:$A$26648>=$F$6)*(الحركة!$A$6:$A$26648<=$H$6),ROW(الحركة!$A$6:$A$26648)-ROW(الحركة!$A$6)+1),ROWS(C$16:C42))),"") ->  | L43: =IF(COUNTIF($F$17:F42,F42)=1,COUNT($L$18:L42)+1,"") ->  | M43: =IF(COUNT($L$18:$L$14759)<ROW()-17,"",LOOKUP(ROW()-17,$L$18:$L$14759,$F$17:$F$14759)) ->  | N43: =IF(M43="","",COUNTIF($F$17:$F$359,M43)) ->  | O43: =IF(M43="","",SUMIF($F$17:$F$359,M43,$G$17:$G$14759)) ->  | P43: =IF(M43="","",SUMIF($F$17:$F$359,M43,$H$17:$H$14759)) -> 
B44: =IF(ROWS(B$16:B43)<=SUMPRODUCT((الحركة!$E$6:$E$26648=$F$8)*(الحركة!$A$6:$A$26648>=$F$6)*(الحركة!$A$6:$A$26648<=$H$6)),INDEX(الحركة!$A$6:$A$26648,SMALL(IF((الحركة!$E$6:$E$26648=$F$8)*(الحركة!$A$6:$A$26648>=$F$6)*(الحركة!$A$6:$A$26648<=$H$6),ROW(الحركة!$A$6:$A$26648)-ROW(الحركة!$A$6)+1),ROWS(B$16:B43))),"") ->  | D44: =IF(ROWS(B$16:B43)<=SUMPRODUCT((الحركة!$E$6:$E$26648=$F$8)*(الحركة!$A$6:$A$26648>=$F$6)*(الحركة!$A$6:$A$26648<=$H$6)),INDEX(الحركة!$E$6:$E$26648,SMALL(IF((الحركة!$E$6:$E$26648=$F$8)*(الحركة!$A$6:$A$26648>=$F$6)*(الحركة!$A$6:$A$26648<=$H$6),ROW(الحركة!$A$6:$A$26648)-ROW(الحركة!$A$6)+1),ROWS(B$16:B43))),"") ->  | E44: =IF(ROWS(C$16:C43)<=SUMPRODUCT((الحركة!$E$6:$E$26648=$F$8)*(الحركة!$A$6:$A$26648>=$F$6)*(الحركة!$A$6:$A$26648<=$H$6)),INDEX(الحركة!$F$6:$F$26648,SMALL(IF((الحركة!$E$6:$E$26648=$F$8)*(الحركة!$A$6:$A$26648>=$F$6)*(الحركة!$A$6:$A$26648<=$H$6),ROW(الحركة!$A$6:$A$26648)-ROW(الحركة!$A$6)+1),ROWS(C$16:C43))),"") ->  | F44: =IF(ROWS(C$16:C43)<=SUMPRODUCT((الحركة!$E$6:$E$26648=$F$8)*(الحركة!$A$6:$A$26648>=$F$6)*(الحركة!$A$6:$A$26648<=$H$6)),INDEX(الحركة!$H$6:$H$26648,SMALL(IF((الحركة!$E$6:$E$26648=$F$8)*(الحركة!$A$6:$A$26648>=$F$6)*(الحركة!$A$6:$A$26648<=$H$6),ROW(الحركة!$A$6:$A$26648)-ROW(الحركة!$A$6)+1),ROWS(C$16:C43))),"") ->  | G44: =IF(ROWS(B$16:B43)<=SUMPRODUCT((الحركة!$E$6:$E$26648=$F$8)*(الحركة!$A$6:$A$26648>=$F$6)*(الحركة!$A$6:$A$26648<=$H$6)),INDEX(الحركة!$I$6:$I$26648,SMALL(IF((الحركة!$E$6:$E$26648=$F$8)*(الحركة!$A$6:$A$26648>=$F$6)*(الحركة!$A$6:$A$26648<=$H$6),ROW(الحركة!$A$6:$A$26648)-ROW(الحركة!$A$6)+1),ROWS(B$16:B43))),"") ->  | H44: =IF(ROWS(C$16:C43)<=SUMPRODUCT((الحركة!$E$6:$E$26648=$F$8)*(الحركة!$A$6:$A$26648>=$F$6)*(الحركة!$A$6:$A$26648<=$H$6)),INDEX(الحركة!$J$6:$J$26648,SMALL(IF((الحركة!$E$6:$E$26648=$F$8)*(الحركة!$A$6:$A$26648>=$F$6)*(الحركة!$A$6:$A$26648<=$H$6),ROW(الحركة!$A$6:$A$26648)-ROW(الحركة!$A$6)+1),ROWS(C$16:C43))),"") ->  | L44: =IF(COUNTIF($F$17:F43,F43)=1,COUNT($L$18:L43)+1,"") ->  | M44: =IF(COUNT($L$18:$L$14759)<ROW()-17,"",LOOKUP(ROW()-17,$L$18:$L$14759,$F$17:$F$14759)) ->  | N44: =IF(M44="","",COUNTIF($F$17:$F$359,M44)) ->  | O44: =IF(M44="","",SUMIF($F$17:$F$359,M44,$G$17:$G$14759)) ->  | P44: =IF(M44="","",SUMIF($F$17:$F$359,M44,$H$17:$H$14759)) -> 
B45: =IF(ROWS(B$16:B44)<=SUMPRODUCT((الحركة!$E$6:$E$26648=$F$8)*(الحركة!$A$6:$A$26648>=$F$6)*(الحركة!$A$6:$A$26648<=$H$6)),INDEX(الحركة!$A$6:$A$26648,SMALL(IF((الحركة!$E$6:$E$26648=$F$8)*(الحركة!$A$6:$A$26648>=$F$6)*(الحركة!$A$6:$A$26648<=$H$6),ROW(الحركة!$A$6:$A$26648)-ROW(الحركة!$A$6)+1),ROWS(B$16:B44))),"") ->  | D45: =IF(ROWS(B$16:B44)<=SUMPRODUCT((الحركة!$E$6:$E$26648=$F$8)*(الحركة!$A$6:$A$26648>=$F$6)*(الحركة!$A$6:$A$26648<=$H$6)),INDEX(الحركة!$E$6:$E$26648,SMALL(IF((الحركة!$E$6:$E$26648=$F$8)*(الحركة!$A$6:$A$26648>=$F$6)*(الحركة!$A$6:$A$26648<=$H$6),ROW(الحركة!$A$6:$A$26648)-ROW(الحركة!$A$6)+1),ROWS(B$16:B44))),"") ->  | E45: =IF(ROWS(C$16:C44)<=SUMPRODUCT((الحركة!$E$6:$E$26648=$F$8)*(الحركة!$A$6:$A$26648>=$F$6)*(الحركة!$A$6:$A$26648<=$H$6)),INDEX(الحركة!$F$6:$F$26648,SMALL(IF((الحركة!$E$6:$E$26648=$F$8)*(الحركة!$A$6:$A$26648>=$F$6)*(الحركة!$A$6:$A$26648<=$H$6),ROW(الحركة!$A$6:$A$26648)-ROW(الحركة!$A$6)+1),ROWS(C$16:C44))),"") ->  | F45: =IF(ROWS(C$16:C44)<=SUMPRODUCT((الحركة!$E$6:$E$26648=$F$8)*(الحركة!$A$6:$A$26648>=$F$6)*(الحركة!$A$6:$A$26648<=$H$6)),INDEX(الحركة!$H$6:$H$26648,SMALL(IF((الحركة!$E$6:$E$26648=$F$8)*(الحركة!$A$6:$A$26648>=$F$6)*(الحركة!$A$6:$A$26648<=$H$6),ROW(الحركة!$A$6:$A$26648)-ROW(الحركة!$A$6)+1),ROWS(C$16:C44))),"") ->  | G45: =IF(ROWS(B$16:B44)<=SUMPRODUCT((الحركة!$E$6:$E$26648=$F$8)*(الحركة!$A$6:$A$26648>=$F$6)*(الحركة!$A$6:$A$26648<=$H$6)),INDEX(الحركة!$I$6:$I$26648,SMALL(IF((الحركة!$E$6:$E$26648=$F$8)*(الحركة!$A$6:$A$26648>=$F$6)*(الحركة!$A$6:$A$26648<=$H$6),ROW(الحركة!$A$6:$A$26648)-ROW(الحركة!$A$6)+1),ROWS(B$16:B44))),"") ->  | H45: =IF(ROWS(C$16:C44)<=SUMPRODUCT((الحركة!$E$6:$E$26648=$F$8)*(الحركة!$A$6:$A$26648>=$F$6)*(الحركة!$A$6:$A$26648<=$H$6)),INDEX(الحركة!$J$6:$J$26648,SMALL(IF((الحركة!$E$6:$E$26648=$F$8)*(الحركة!$A$6:$A$26648>=$F$6)*(الحركة!$A$6:$A$26648<=$H$6),ROW(الحركة!$A$6:$A$26648)-ROW(الحركة!$A$6)+1),ROWS(C$16:C44))),"") ->  | L45: =IF(COUNTIF($F$17:F44,F44)=1,COUNT($L$18:L44)+1,"") ->  | M45: =IF(COUNT($L$18:$L$14759)<ROW()-17,"",LOOKUP(ROW()-17,$L$18:$L$14759,$F$17:$F$14759)) ->  | N45: =IF(M45="","",COUNTIF($F$17:$F$359,M45)) ->  | O45: =IF(M45="","",SUMIF($F$17:$F$359,M45,$G$17:$G$14759)) ->  | P45: =IF(M45="","",SUMIF($F$17:$F$359,M45,$H$17:$H$14759)) -> 
B46: =IF(ROWS(B$16:B45)<=SUMPRODUCT((الحركة!$E$6:$E$26648=$F$8)*(الحركة!$A$6:$A$26648>=$F$6)*(الحركة!$A$6:$A$26648<=$H$6)),INDEX(الحركة!$A$6:$A$26648,SMALL(IF((الحركة!$E$6:$E$26648=$F$8)*(الحركة!$A$6:$A$26648>=$F$6)*(الحركة!$A$6:$A$26648<=$H$6),ROW(الحركة!$A$6:$A$26648)-ROW(الحركة!$A$6)+1),ROWS(B$16:B45))),"") ->  | D46: =IF(ROWS(B$16:B45)<=SUMPRODUCT((الحركة!$E$6:$E$26648=$F$8)*(الحركة!$A$6:$A$26648>=$F$6)*(الحركة!$A$6:$A$26648<=$H$6)),INDEX(الحركة!$E$6:$E$26648,SMALL(IF((الحركة!$E$6:$E$26648=$F$8)*(الحركة!$A$6:$A$26648>=$F$6)*(الحركة!$A$6:$A$26648<=$H$6),ROW(الحركة!$A$6:$A$26648)-ROW(الحركة!$A$6)+1),ROWS(B$16:B45))),"") ->  | E46: =IF(ROWS(C$16:C45)<=SUMPRODUCT((الحركة!$E$6:$E$26648=$F$8)*(الحركة!$A$6:$A$26648>=$F$6)*(الحركة!$A$6:$A$26648<=$H$6)),INDEX(الحركة!$F$6:$F$26648,SMALL(IF((الحركة!$E$6:$E$26648=$F$8)*(الحركة!$A$6:$A$26648>=$F$6)*(الحركة!$A$6:$A$26648<=$H$6),ROW(الحركة!$A$6:$A$26648)-ROW(الحركة!$A$6)+1),ROWS(C$16:C45))),"") ->  | F46: =IF(ROWS(C$16:C45)<=SUMPRODUCT((الحركة!$E$6:$E$26648=$F$8)*(الحركة!$A$6:$A$26648>=$F$6)*(الحركة!$A$6:$A$26648<=$H$6)),INDEX(الحركة!$H$6:$H$26648,SMALL(IF((الحركة!$E$6:$E$26648=$F$8)*(الحركة!$A$6:$A$26648>=$F$6)*(الحركة!$A$6:$A$26648<=$H$6),ROW(الحركة!$A$6:$A$26648)-ROW(الحركة!$A$6)+1),ROWS(C$16:C45))),"") ->  | G46: =IF(ROWS(B$16:B45)<=SUMPRODUCT((الحركة!$E$6:$E$26648=$F$8)*(الحركة!$A$6:$A$26648>=$F$6)*(الحركة!$A$6:$A$26648<=$H$6)),INDEX(الحركة!$I$6:$I$26648,SMALL(IF((الحركة!$E$6:$E$26648=$F$8)*(الحركة!$A$6:$A$26648>=$F$6)*(الحركة!$A$6:$A$26648<=$H$6),ROW(الحركة!$A$6:$A$26648)-ROW(الحركة!$A$6)+1),ROWS(B$16:B45))),"") ->  | H46: =IF(ROWS(C$16:C45)<=SUMPRODUCT((الحركة!$E$6:$E$26648=$F$8)*(الحركة!$A$6:$A$26648>=$F$6)*(الحركة!$A$6:$A$26648<=$H$6)),INDEX(الحركة!$J$6:$J$26648,SMALL(IF((الحركة!$E$6:$E$26648=$F$8)*(الحركة!$A$6:$A$26648>=$F$6)*(الحركة!$A$6:$A$26648<=$H$6),ROW(الحركة!$A$6:$A$26648)-ROW(الحركة!$A$6)+1),ROWS(C$16:C45))),"") ->  | L46: =IF(COUNTIF($F$17:F45,F45)=1,COUNT($L$18:L45)+1,"") ->  | M46: =IF(COUNT($L$18:$L$14759)<ROW()-17,"",LOOKUP(ROW()-17,$L$18:$L$14759,$F$17:$F$14759)) ->  | N46: =IF(M46="","",COUNTIF($F$17:$F$359,M46)) ->  | O46: =IF(M46="","",SUMIF($F$17:$F$359,M46,$G$17:$G$14759)) ->  | P46: =IF(M46="","",SUMIF($F$17:$F$359,M46,$H$17:$H$14759)) -> 
B47: =IF(ROWS(B$16:B46)<=SUMPRODUCT((الحركة!$E$6:$E$26648=$F$8)*(الحركة!$A$6:$A$26648>=$F$6)*(الحركة!$A$6:$A$26648<=$H$6)),INDEX(الحركة!$A$6:$A$26648,SMALL(IF((الحركة!$E$6:$E$26648=$F$8)*(الحركة!$A$6:$A$26648>=$F$6)*(الحركة!$A$6:$A$26648<=$H$6),ROW(الحركة!$A$6:$A$26648)-ROW(الحركة!$A$6)+1),ROWS(B$16:B46))),"") ->  | D47: =IF(ROWS(B$16:B46)<=SUMPRODUCT((الحركة!$E$6:$E$26648=$F$8)*(الحركة!$A$6:$A$26648>=$F$6)*(الحركة!$A$6:$A$26648<=$H$6)),INDEX(الحركة!$E$6:$E$26648,SMALL(IF((الحركة!$E$6:$E$26648=$F$8)*(الحركة!$A$6:$A$26648>=$F$6)*(الحركة!$A$6:$A$26648<=$H$6),ROW(الحركة!$A$6:$A$26648)-ROW(الحركة!$A$6)+1),ROWS(B$16:B46))),"") ->  | E47: =IF(ROWS(C$16:C46)<=SUMPRODUCT((الحركة!$E$6:$E$26648=$F$8)*(الحركة!$A$6:$A$26648>=$F$6)*(الحركة!$A$6:$A$26648<=$H$6)),INDEX(الحركة!$F$6:$F$26648,SMALL(IF((الحركة!$E$6:$E$26648=$F$8)*(الحركة!$A$6:$A$26648>=$F$6)*(الحركة!$A$6:$A$26648<=$H$6),ROW(الحركة!$A$6:$A$26648)-ROW(الحركة!$A$6)+1),ROWS(C$16:C46))),"") ->  | F47: =IF(ROWS(C$16:C46)<=SUMPRODUCT((الحركة!$E$6:$E$26648=$F$8)*(الحركة!$A$6:$A$26648>=$F$6)*(الحركة!$A$6:$A$26648<=$H$6)),INDEX(الحركة!$H$6:$H$26648,SMALL(IF((الحركة!$E$6:$E$26648=$F$8)*(الحركة!$A$6:$A$26648>=$F$6)*(الحركة!$A$6:$A$26648<=$H$6),ROW(الحركة!$A$6:$A$26648)-ROW(الحركة!$A$6)+1),ROWS(C$16:C46))),"") ->  | G47: =IF(ROWS(B$16:B46)<=SUMPRODUCT((الحركة!$E$6:$E$26648=$F$8)*(الحركة!$A$6:$A$26648>=$F$6)*(الحركة!$A$6:$A$26648<=$H$6)),INDEX(الحركة!$I$6:$I$26648,SMALL(IF((الحركة!$E$6:$E$26648=$F$8)*(الحركة!$A$6:$A$26648>=$F$6)*(الحركة!$A$6:$A$26648<=$H$6),ROW(الحركة!$A$6:$A$26648)-ROW(الحركة!$A$6)+1),ROWS(B$16:B46))),"") ->  | H47: =IF(ROWS(C$16:C46)<=SUMPRODUCT((الحركة!$E$6:$E$26648=$F$8)*(الحركة!$A$6:$A$26648>=$F$6)*(الحركة!$A$6:$A$26648<=$H$6)),INDEX(الحركة!$J$6:$J$26648,SMALL(IF((الحركة!$E$6:$E$26648=$F$8)*(الحركة!$A$6:$A$26648>=$F$6)*(الحركة!$A$6:$A$26648<=$H$6),ROW(الحركة!$A$6:$A$26648)-ROW(الحركة!$A$6)+1),ROWS(C$16:C46))),"") ->  | L47: =IF(COUNTIF($F$17:F46,F46)=1,COUNT($L$18:L46)+1,"") ->  | M47: =IF(COUNT($L$18:$L$14759)<ROW()-17,"",LOOKUP(ROW()-17,$L$18:$L$14759,$F$17:$F$14759)) ->  | N47: =IF(M47="","",COUNTIF($F$17:$F$359,M47)) ->  | O47: =IF(M47="","",SUMIF($F$17:$F$359,M47,$G$17:$G$14759)) ->  | P47: =IF(M47="","",SUMIF($F$17:$F$359,M47,$H$17:$H$14759)) -> 
B48: =IF(ROWS(B$16:B47)<=SUMPRODUCT((الحركة!$E$6:$E$26648=$F$8)*(الحركة!$A$6:$A$26648>=$F$6)*(الحركة!$A$6:$A$26648<=$H$6)),INDEX(الحركة!$A$6:$A$26648,SMALL(IF((الحركة!$E$6:$E$26648=$F$8)*(الحركة!$A$6:$A$26648>=$F$6)*(الحركة!$A$6:$A$26648<=$H$6),ROW(الحركة!$A$6:$A$26648)-ROW(الحركة!$A$6)+1),ROWS(B$16:B47))),"") ->  | D48: =IF(ROWS(B$16:B47)<=SUMPRODUCT((الحركة!$E$6:$E$26648=$F$8)*(الحركة!$A$6:$A$26648>=$F$6)*(الحركة!$A$6:$A$26648<=$H$6)),INDEX(الحركة!$E$6:$E$26648,SMALL(IF((الحركة!$E$6:$E$26648=$F$8)*(الحركة!$A$6:$A$26648>=$F$6)*(الحركة!$A$6:$A$26648<=$H$6),ROW(الحركة!$A$6:$A$26648)-ROW(الحركة!$A$6)+1),ROWS(B$16:B47))),"") ->  | E48: =IF(ROWS(C$16:C47)<=SUMPRODUCT((الحركة!$E$6:$E$26648=$F$8)*(الحركة!$A$6:$A$26648>=$F$6)*(الحركة!$A$6:$A$26648<=$H$6)),INDEX(الحركة!$F$6:$F$26648,SMALL(IF((الحركة!$E$6:$E$26648=$F$8)*(الحركة!$A$6:$A$26648>=$F$6)*(الحركة!$A$6:$A$26648<=$H$6),ROW(الحركة!$A$6:$A$26648)-ROW(الحركة!$A$6)+1),ROWS(C$16:C47))),"") ->  | F48: =IF(ROWS(C$16:C47)<=SUMPRODUCT((الحركة!$E$6:$E$26648=$F$8)*(الحركة!$A$6:$A$26648>=$F$6)*(الحركة!$A$6:$A$26648<=$H$6)),INDEX(الحركة!$H$6:$H$26648,SMALL(IF((الحركة!$E$6:$E$26648=$F$8)*(الحركة!$A$6:$A$26648>=$F$6)*(الحركة!$A$6:$A$26648<=$H$6),ROW(الحركة!$A$6:$A$26648)-ROW(الحركة!$A$6)+1),ROWS(C$16:C47))),"") ->  | G48: =IF(ROWS(B$16:B47)<=SUMPRODUCT((الحركة!$E$6:$E$26648=$F$8)*(الحركة!$A$6:$A$26648>=$F$6)*(الحركة!$A$6:$A$26648<=$H$6)),INDEX(الحركة!$I$6:$I$26648,SMALL(IF((الحركة!$E$6:$E$26648=$F$8)*(الحركة!$A$6:$A$26648>=$F$6)*(الحركة!$A$6:$A$26648<=$H$6),ROW(الحركة!$A$6:$A$26648)-ROW(الحركة!$A$6)+1),ROWS(B$16:B47))),"") ->  | H48: =IF(ROWS(C$16:C47)<=SUMPRODUCT((الحركة!$E$6:$E$26648=$F$8)*(الحركة!$A$6:$A$26648>=$F$6)*(الحركة!$A$6:$A$26648<=$H$6)),INDEX(الحركة!$J$6:$J$26648,SMALL(IF((الحركة!$E$6:$E$26648=$F$8)*(الحركة!$A$6:$A$26648>=$F$6)*(الحركة!$A$6:$A$26648<=$H$6),ROW(الحركة!$A$6:$A$26648)-ROW(الحركة!$A$6)+1),ROWS(C$16:C47))),"") ->  | L48: =IF(COUNTIF($F$17:F47,F47)=1,COUNT($L$18:L47)+1,"") ->  | M48: =IF(COUNT($L$18:$L$14759)<ROW()-17,"",LOOKUP(ROW()-17,$L$18:$L$14759,$F$17:$F$14759)) ->  | N48: =IF(M48="","",COUNTIF($F$17:$F$359,M48)) ->  | O48: =IF(M48="","",SUMIF($F$17:$F$359,M48,$G$17:$G$14759)) ->  | P48: =IF(M48="","",SUMIF($F$17:$F$359,M48,$H$17:$H$14759)) -> 
B49: =IF(ROWS(B$16:B48)<=SUMPRODUCT((الحركة!$E$6:$E$26648=$F$8)*(الحركة!$A$6:$A$26648>=$F$6)*(الحركة!$A$6:$A$26648<=$H$6)),INDEX(الحركة!$A$6:$A$26648,SMALL(IF((الحركة!$E$6:$E$26648=$F$8)*(الحركة!$A$6:$A$26648>=$F$6)*(الحركة!$A$6:$A$26648<=$H$6),ROW(الحركة!$A$6:$A$26648)-ROW(الحركة!$A$6)+1),ROWS(B$16:B48))),"") ->  | D49: =IF(ROWS(B$16:B48)<=SUMPRODUCT((الحركة!$E$6:$E$26648=$F$8)*(الحركة!$A$6:$A$26648>=$F$6)*(الحركة!$A$6:$A$26648<=$H$6)),INDEX(الحركة!$E$6:$E$26648,SMALL(IF((الحركة!$E$6:$E$26648=$F$8)*(الحركة!$A$6:$A$26648>=$F$6)*(الحركة!$A$6:$A$26648<=$H$6),ROW(الحركة!$A$6:$A$26648)-ROW(الحركة!$A$6)+1),ROWS(B$16:B48))),"") ->  | E49: =IF(ROWS(C$16:C48)<=SUMPRODUCT((الحركة!$E$6:$E$26648=$F$8)*(الحركة!$A$6:$A$26648>=$F$6)*(الحركة!$A$6:$A$26648<=$H$6)),INDEX(الحركة!$F$6:$F$26648,SMALL(IF((الحركة!$E$6:$E$26648=$F$8)*(الحركة!$A$6:$A$26648>=$F$6)*(الحركة!$A$6:$A$26648<=$H$6),ROW(الحركة!$A$6:$A$26648)-ROW(الحركة!$A$6)+1),ROWS(C$16:C48))),"") ->  | F49: =IF(ROWS(C$16:C48)<=SUMPRODUCT((الحركة!$E$6:$E$26648=$F$8)*(الحركة!$A$6:$A$26648>=$F$6)*(الحركة!$A$6:$A$26648<=$H$6)),INDEX(الحركة!$H$6:$H$26648,SMALL(IF((الحركة!$E$6:$E$26648=$F$8)*(الحركة!$A$6:$A$26648>=$F$6)*(الحركة!$A$6:$A$26648<=$H$6),ROW(الحركة!$A$6:$A$26648)-ROW(الحركة!$A$6)+1),ROWS(C$16:C48))),"") ->  | G49: =IF(ROWS(B$16:B48)<=SUMPRODUCT((الحركة!$E$6:$E$26648=$F$8)*(الحركة!$A$6:$A$26648>=$F$6)*(الحركة!$A$6:$A$26648<=$H$6)),INDEX(الحركة!$I$6:$I$26648,SMALL(IF((الحركة!$E$6:$E$26648=$F$8)*(الحركة!$A$6:$A$26648>=$F$6)*(الحركة!$A$6:$A$26648<=$H$6),ROW(الحركة!$A$6:$A$26648)-ROW(الحركة!$A$6)+1),ROWS(B$16:B48))),"") ->  | H49: =IF(ROWS(C$16:C48)<=SUMPRODUCT((الحركة!$E$6:$E$26648=$F$8)*(الحركة!$A$6:$A$26648>=$F$6)*(الحركة!$A$6:$A$26648<=$H$6)),INDEX(الحركة!$J$6:$J$26648,SMALL(IF((الحركة!$E$6:$E$26648=$F$8)*(الحركة!$A$6:$A$26648>=$F$6)*(الحركة!$A$6:$A$26648<=$H$6),ROW(الحركة!$A$6:$A$26648)-ROW(الحركة!$A$6)+1),ROWS(C$16:C48))),"") ->  | L49: =IF(COUNTIF($F$17:F48,F48)=1,COUNT($L$18:L48)+1,"") ->  | M49: =IF(COUNT($L$18:$L$14759)<ROW()-17,"",LOOKUP(ROW()-17,$L$18:$L$14759,$F$17:$F$14759)) ->  | N49: =IF(M49="","",COUNTIF($F$17:$F$359,M49)) ->  | O49: =IF(M49="","",SUMIF($F$17:$F$359,M49,$G$17:$G$14759)) ->  | P49: =IF(M49="","",SUMIF($F$17:$F$359,M49,$H$17:$H$14759)) -> 
B50: =IF(ROWS(B$16:B49)<=SUMPRODUCT((الحركة!$E$6:$E$26648=$F$8)*(الحركة!$A$6:$A$26648>=$F$6)*(الحركة!$A$6:$A$26648<=$H$6)),INDEX(الحركة!$A$6:$A$26648,SMALL(IF((الحركة!$E$6:$E$26648=$F$8)*(الحركة!$A$6:$A$26648>=$F$6)*(الحركة!$A$6:$A$26648<=$H$6),ROW(الحركة!$A$6:$A$26648)-ROW(الحركة!$A$6)+1),ROWS(B$16:B49))),"") ->  | D50: =IF(ROWS(B$16:B49)<=SUMPRODUCT((الحركة!$E$6:$E$26648=$F$8)*(الحركة!$A$6:$A$26648>=$F$6)*(الحركة!$A$6:$A$26648<=$H$6)),INDEX(الحركة!$E$6:$E$26648,SMALL(IF((الحركة!$E$6:$E$26648=$F$8)*(الحركة!$A$6:$A$26648>=$F$6)*(الحركة!$A$6:$A$26648<=$H$6),ROW(الحركة!$A$6:$A$26648)-ROW(الحركة!$A$6)+1),ROWS(B$16:B49))),"") ->  | E50: =IF(ROWS(C$16:C49)<=SUMPRODUCT((الحركة!$E$6:$E$26648=$F$8)*(الحركة!$A$6:$A$26648>=$F$6)*(الحركة!$A$6:$A$26648<=$H$6)),INDEX(الحركة!$F$6:$F$26648,SMALL(IF((الحركة!$E$6:$E$26648=$F$8)*(الحركة!$A$6:$A$26648>=$F$6)*(الحركة!$A$6:$A$26648<=$H$6),ROW(الحركة!$A$6:$A$26648)-ROW(الحركة!$A$6)+1),ROWS(C$16:C49))),"") ->  | F50: =IF(ROWS(C$16:C49)<=SUMPRODUCT((الحركة!$E$6:$E$26648=$F$8)*(الحركة!$A$6:$A$26648>=$F$6)*(الحركة!$A$6:$A$26648<=$H$6)),INDEX(الحركة!$H$6:$H$26648,SMALL(IF((الحركة!$E$6:$E$26648=$F$8)*(الحركة!$A$6:$A$26648>=$F$6)*(الحركة!$A$6:$A$26648<=$H$6),ROW(الحركة!$A$6:$A$26648)-ROW(الحركة!$A$6)+1),ROWS(C$16:C49))),"") ->  | G50: =IF(ROWS(B$16:B49)<=SUMPRODUCT((الحركة!$E$6:$E$26648=$F$8)*(الحركة!$A$6:$A$26648>=$F$6)*(الحركة!$A$6:$A$26648<=$H$6)),INDEX(الحركة!$I$6:$I$26648,SMALL(IF((الحركة!$E$6:$E$26648=$F$8)*(الحركة!$A$6:$A$26648>=$F$6)*(الحركة!$A$6:$A$26648<=$H$6),ROW(الحركة!$A$6:$A$26648)-ROW(الحركة!$A$6)+1),ROWS(B$16:B49))),"") ->  | H50: =IF(ROWS(C$16:C49)<=SUMPRODUCT((الحركة!$E$6:$E$26648=$F$8)*(الحركة!$A$6:$A$26648>=$F$6)*(الحركة!$A$6:$A$26648<=$H$6)),INDEX(الحركة!$J$6:$J$26648,SMALL(IF((الحركة!$E$6:$E$26648=$F$8)*(الحركة!$A$6:$A$26648>=$F$6)*(الحركة!$A$6:$A$26648<=$H$6),ROW(الحركة!$A$6:$A$26648)-ROW(الحركة!$A$6)+1),ROWS(C$16:C49))),"") ->  | L50: =IF(COUNTIF($F$17:F49,F49)=1,COUNT($L$18:L49)+1,"") ->  | M50: =IF(COUNT($L$18:$L$14759)<ROW()-17,"",LOOKUP(ROW()-17,$L$18:$L$14759,$F$17:$F$14759)) ->  | N50: =IF(M50="","",COUNTIF($F$17:$F$359,M50)) ->  | O50: =IF(M50="","",SUMIF($F$17:$F$359,M50,$G$17:$G$14759)) ->  | P50: =IF(M50="","",SUMIF($F$17:$F$359,M50,$H$17:$H$14759)) -> 
B51: =IF(ROWS(B$16:B50)<=SUMPRODUCT((الحركة!$E$6:$E$26648=$F$8)*(الحركة!$A$6:$A$26648>=$F$6)*(الحركة!$A$6:$A$26648<=$H$6)),INDEX(الحركة!$A$6:$A$26648,SMALL(IF((الحركة!$E$6:$E$26648=$F$8)*(الحركة!$A$6:$A$26648>=$F$6)*(الحركة!$A$6:$A$26648<=$H$6),ROW(الحركة!$A$6:$A$26648)-ROW(الحركة!$A$6)+1),ROWS(B$16:B50))),"") ->  | D51: =IF(ROWS(B$16:B50)<=SUMPRODUCT((الحركة!$E$6:$E$26648=$F$8)*(الحركة!$A$6:$A$26648>=$F$6)*(الحركة!$A$6:$A$26648<=$H$6)),INDEX(الحركة!$E$6:$E$26648,SMALL(IF((الحركة!$E$6:$E$26648=$F$8)*(الحركة!$A$6:$A$26648>=$F$6)*(الحركة!$A$6:$A$26648<=$H$6),ROW(الحركة!$A$6:$A$26648)-ROW(الحركة!$A$6)+1),ROWS(B$16:B50))),"") ->  | E51: =IF(ROWS(C$16:C50)<=SUMPRODUCT((الحركة!$E$6:$E$26648=$F$8)*(الحركة!$A$6:$A$26648>=$F$6)*(الحركة!$A$6:$A$26648<=$H$6)),INDEX(الحركة!$F$6:$F$26648,SMALL(IF((الحركة!$E$6:$E$26648=$F$8)*(الحركة!$A$6:$A$26648>=$F$6)*(الحركة!$A$6:$A$26648<=$H$6),ROW(الحركة!$A$6:$A$26648)-ROW(الحركة!$A$6)+1),ROWS(C$16:C50))),"") ->  | F51: =IF(ROWS(C$16:C50)<=SUMPRODUCT((الحركة!$E$6:$E$26648=$F$8)*(الحركة!$A$6:$A$26648>=$F$6)*(الحركة!$A$6:$A$26648<=$H$6)),INDEX(الحركة!$H$6:$H$26648,SMALL(IF((الحركة!$E$6:$E$26648=$F$8)*(الحركة!$A$6:$A$26648>=$F$6)*(الحركة!$A$6:$A$26648<=$H$6),ROW(الحركة!$A$6:$A$26648)-ROW(الحركة!$A$6)+1),ROWS(C$16:C50))),"") ->  | G51: =IF(ROWS(B$16:B50)<=SUMPRODUCT((الحركة!$E$6:$E$26648=$F$8)*(الحركة!$A$6:$A$26648>=$F$6)*(الحركة!$A$6:$A$26648<=$H$6)),INDEX(الحركة!$I$6:$I$26648,SMALL(IF((الحركة!$E$6:$E$26648=$F$8)*(الحركة!$A$6:$A$26648>=$F$6)*(الحركة!$A$6:$A$26648<=$H$6),ROW(الحركة!$A$6:$A$26648)-ROW(الحركة!$A$6)+1),ROWS(B$16:B50))),"") ->  | H51: =IF(ROWS(C$16:C50)<=SUMPRODUCT((الحركة!$E$6:$E$26648=$F$8)*(الحركة!$A$6:$A$26648>=$F$6)*(الحركة!$A$6:$A$26648<=$H$6)),INDEX(الحركة!$J$6:$J$26648,SMALL(IF((الحركة!$E$6:$E$26648=$F$8)*(الحركة!$A$6:$A$26648>=$F$6)*(الحركة!$A$6:$A$26648<=$H$6),ROW(الحركة!$A$6:$A$26648)-ROW(الحركة!$A$6)+1),ROWS(C$16:C50))),"") ->  | L51: =IF(COUNTIF($F$17:F50,F50)=1,COUNT($L$18:L50)+1,"") ->  | M51: =IF(COUNT($L$18:$L$14759)<ROW()-17,"",LOOKUP(ROW()-17,$L$18:$L$14759,$F$17:$F$14759)) ->  | N51: =IF(M51="","",COUNTIF($F$17:$F$359,M51)) ->  | O51: =IF(M51="","",SUMIF($F$17:$F$359,M51,$G$17:$G$14759)) ->  | P51: =IF(M51="","",SUMIF($F$17:$F$359,M51,$H$17:$H$14759)) -> 
B52: =IF(ROWS(B$16:B51)<=SUMPRODUCT((الحركة!$E$6:$E$26648=$F$8)*(الحركة!$A$6:$A$26648>=$F$6)*(الحركة!$A$6:$A$26648<=$H$6)),INDEX(الحركة!$A$6:$A$26648,SMALL(IF((الحركة!$E$6:$E$26648=$F$8)*(الحركة!$A$6:$A$26648>=$F$6)*(الحركة!$A$6:$A$26648<=$H$6),ROW(الحركة!$A$6:$A$26648)-ROW(الحركة!$A$6)+1),ROWS(B$16:B51))),"") ->  | D52: =IF(ROWS(B$16:B51)<=SUMPRODUCT((الحركة!$E$6:$E$26648=$F$8)*(الحركة!$A$6:$A$26648>=$F$6)*(الحركة!$A$6:$A$26648<=$H$6)),INDEX(الحركة!$E$6:$E$26648,SMALL(IF((الحركة!$E$6:$E$26648=$F$8)*(الحركة!$A$6:$A$26648>=$F$6)*(الحركة!$A$6:$A$26648<=$H$6),ROW(الحركة!$A$6:$A$26648)-ROW(الحركة!$A$6)+1),ROWS(B$16:B51))),"") ->  | E52: =IF(ROWS(C$16:C51)<=SUMPRODUCT((الحركة!$E$6:$E$26648=$F$8)*(الحركة!$A$6:$A$26648>=$F$6)*(الحركة!$A$6:$A$26648<=$H$6)),INDEX(الحركة!$F$6:$F$26648,SMALL(IF((الحركة!$E$6:$E$26648=$F$8)*(الحركة!$A$6:$A$26648>=$F$6)*(الحركة!$A$6:$A$26648<=$H$6),ROW(الحركة!$A$6:$A$26648)-ROW(الحركة!$A$6)+1),ROWS(C$16:C51))),"") ->  | F52: =IF(ROWS(C$16:C51)<=SUMPRODUCT((الحركة!$E$6:$E$26648=$F$8)*(الحركة!$A$6:$A$26648>=$F$6)*(الحركة!$A$6:$A$26648<=$H$6)),INDEX(الحركة!$H$6:$H$26648,SMALL(IF((الحركة!$E$6:$E$26648=$F$8)*(الحركة!$A$6:$A$26648>=$F$6)*(الحركة!$A$6:$A$26648<=$H$6),ROW(الحركة!$A$6:$A$26648)-ROW(الحركة!$A$6)+1),ROWS(C$16:C51))),"") ->  | G52: =IF(ROWS(B$16:B51)<=SUMPRODUCT((الحركة!$E$6:$E$26648=$F$8)*(الحركة!$A$6:$A$26648>=$F$6)*(الحركة!$A$6:$A$26648<=$H$6)),INDEX(الحركة!$I$6:$I$26648,SMALL(IF((الحركة!$E$6:$E$26648=$F$8)*(الحركة!$A$6:$A$26648>=$F$6)*(الحركة!$A$6:$A$26648<=$H$6),ROW(الحركة!$A$6:$A$26648)-ROW(الحركة!$A$6)+1),ROWS(B$16:B51))),"") ->  | H52: =IF(ROWS(C$16:C51)<=SUMPRODUCT((الحركة!$E$6:$E$26648=$F$8)*(الحركة!$A$6:$A$26648>=$F$6)*(الحركة!$A$6:$A$26648<=$H$6)),INDEX(الحركة!$J$6:$J$26648,SMALL(IF((الحركة!$E$6:$E$26648=$F$8)*(الحركة!$A$6:$A$26648>=$F$6)*(الحركة!$A$6:$A$26648<=$H$6),ROW(الحركة!$A$6:$A$26648)-ROW(الحركة!$A$6)+1),ROWS(C$16:C51))),"") ->  | L52: =IF(COUNTIF($F$17:F51,F51)=1,COUNT($L$18:L51)+1,"") ->  | M52: =IF(COUNT($L$18:$L$14759)<ROW()-17,"",LOOKUP(ROW()-17,$L$18:$L$14759,$F$17:$F$14759)) ->  | N52: =IF(M52="","",COUNTIF($F$17:$F$359,M52)) ->  | O52: =IF(M52="","",SUMIF($F$17:$F$359,M52,$G$17:$G$14759)) ->  | P52: =IF(M52="","",SUMIF($F$17:$F$359,M52,$H$17:$H$14759)) -> 
B53: =IF(ROWS(B$16:B52)<=SUMPRODUCT((الحركة!$E$6:$E$26648=$F$8)*(الحركة!$A$6:$A$26648>=$F$6)*(الحركة!$A$6:$A$26648<=$H$6)),INDEX(الحركة!$A$6:$A$26648,SMALL(IF((الحركة!$E$6:$E$26648=$F$8)*(الحركة!$A$6:$A$26648>=$F$6)*(الحركة!$A$6:$A$26648<=$H$6),ROW(الحركة!$A$6:$A$26648)-ROW(الحركة!$A$6)+1),ROWS(B$16:B52))),"") ->  | D53: =IF(ROWS(B$16:B52)<=SUMPRODUCT((الحركة!$E$6:$E$26648=$F$8)*(الحركة!$A$6:$A$26648>=$F$6)*(الحركة!$A$6:$A$26648<=$H$6)),INDEX(الحركة!$E$6:$E$26648,SMALL(IF((الحركة!$E$6:$E$26648=$F$8)*(الحركة!$A$6:$A$26648>=$F$6)*(الحركة!$A$6:$A$26648<=$H$6),ROW(الحركة!$A$6:$A$26648)-ROW(الحركة!$A$6)+1),ROWS(B$16:B52))),"") ->  | E53: =IF(ROWS(C$16:C52)<=SUMPRODUCT((الحركة!$E$6:$E$26648=$F$8)*(الحركة!$A$6:$A$26648>=$F$6)*(الحركة!$A$6:$A$26648<=$H$6)),INDEX(الحركة!$F$6:$F$26648,SMALL(IF((الحركة!$E$6:$E$26648=$F$8)*(الحركة!$A$6:$A$26648>=$F$6)*(الحركة!$A$6:$A$26648<=$H$6),ROW(الحركة!$A$6:$A$26648)-ROW(الحركة!$A$6)+1),ROWS(C$16:C52))),"") ->  | F53: =IF(ROWS(C$16:C52)<=SUMPRODUCT((الحركة!$E$6:$E$26648=$F$8)*(الحركة!$A$6:$A$26648>=$F$6)*(الحركة!$A$6:$A$26648<=$H$6)),INDEX(الحركة!$H$6:$H$26648,SMALL(IF((الحركة!$E$6:$E$26648=$F$8)*(الحركة!$A$6:$A$26648>=$F$6)*(الحركة!$A$6:$A$26648<=$H$6),ROW(الحركة!$A$6:$A$26648)-ROW(الحركة!$A$6)+1),ROWS(C$16:C52))),"") ->  | G53: =IF(ROWS(B$16:B52)<=SUMPRODUCT((الحركة!$E$6:$E$26648=$F$8)*(الحركة!$A$6:$A$26648>=$F$6)*(الحركة!$A$6:$A$26648<=$H$6)),INDEX(الحركة!$I$6:$I$26648,SMALL(IF((الحركة!$E$6:$E$26648=$F$8)*(الحركة!$A$6:$A$26648>=$F$6)*(الحركة!$A$6:$A$26648<=$H$6),ROW(الحركة!$A$6:$A$26648)-ROW(الحركة!$A$6)+1),ROWS(B$16:B52))),"") ->  | H53: =IF(ROWS(C$16:C52)<=SUMPRODUCT((الحركة!$E$6:$E$26648=$F$8)*(الحركة!$A$6:$A$26648>=$F$6)*(الحركة!$A$6:$A$26648<=$H$6)),INDEX(الحركة!$J$6:$J$26648,SMALL(IF((الحركة!$E$6:$E$26648=$F$8)*(الحركة!$A$6:$A$26648>=$F$6)*(الحركة!$A$6:$A$26648<=$H$6),ROW(الحركة!$A$6:$A$26648)-ROW(الحركة!$A$6)+1),ROWS(C$16:C52))),"") ->  | L53: =IF(COUNTIF($F$17:F52,F52)=1,COUNT($L$18:L52)+1,"") ->  | M53: =IF(COUNT($L$18:$L$14759)<ROW()-17,"",LOOKUP(ROW()-17,$L$18:$L$14759,$F$17:$F$14759)) ->  | N53: =IF(M53="","",COUNTIF($F$17:$F$359,M53)) ->  | O53: =IF(M53="","",SUMIF($F$17:$F$359,M53,$G$17:$G$14759)) ->  | P53: =IF(M53="","",SUMIF($F$17:$F$359,M53,$H$17:$H$14759)) -> 
B54: =IF(ROWS(B$16:B53)<=SUMPRODUCT((الحركة!$E$6:$E$26648=$F$8)*(الحركة!$A$6:$A$26648>=$F$6)*(الحركة!$A$6:$A$26648<=$H$6)),INDEX(الحركة!$A$6:$A$26648,SMALL(IF((الحركة!$E$6:$E$26648=$F$8)*(الحركة!$A$6:$A$26648>=$F$6)*(الحركة!$A$6:$A$26648<=$H$6),ROW(الحركة!$A$6:$A$26648)-ROW(الحركة!$A$6)+1),ROWS(B$16:B53))),"") ->  | D54: =IF(ROWS(B$16:B53)<=SUMPRODUCT((الحركة!$E$6:$E$26648=$F$8)*(الحركة!$A$6:$A$26648>=$F$6)*(الحركة!$A$6:$A$26648<=$H$6)),INDEX(الحركة!$E$6:$E$26648,SMALL(IF((الحركة!$E$6:$E$26648=$F$8)*(الحركة!$A$6:$A$26648>=$F$6)*(الحركة!$A$6:$A$26648<=$H$6),ROW(الحركة!$A$6:$A$26648)-ROW(الحركة!$A$6)+1),ROWS(B$16:B53))),"") ->  | E54: =IF(ROWS(C$16:C53)<=SUMPRODUCT((الحركة!$E$6:$E$26648=$F$8)*(الحركة!$A$6:$A$26648>=$F$6)*(الحركة!$A$6:$A$26648<=$H$6)),INDEX(الحركة!$F$6:$F$26648,SMALL(IF((الحركة!$E$6:$E$26648=$F$8)*(الحركة!$A$6:$A$26648>=$F$6)*(الحركة!$A$6:$A$26648<=$H$6),ROW(الحركة!$A$6:$A$26648)-ROW(الحركة!$A$6)+1),ROWS(C$16:C53))),"") ->  | F54: =IF(ROWS(C$16:C53)<=SUMPRODUCT((الحركة!$E$6:$E$26648=$F$8)*(الحركة!$A$6:$A$26648>=$F$6)*(الحركة!$A$6:$A$26648<=$H$6)),INDEX(الحركة!$H$6:$H$26648,SMALL(IF((الحركة!$E$6:$E$26648=$F$8)*(الحركة!$A$6:$A$26648>=$F$6)*(الحركة!$A$6:$A$26648<=$H$6),ROW(الحركة!$A$6:$A$26648)-ROW(الحركة!$A$6)+1),ROWS(C$16:C53))),"") ->  | G54: =IF(ROWS(B$16:B53)<=SUMPRODUCT((الحركة!$E$6:$E$26648=$F$8)*(الحركة!$A$6:$A$26648>=$F$6)*(الحركة!$A$6:$A$26648<=$H$6)),INDEX(الحركة!$I$6:$I$26648,SMALL(IF((الحركة!$E$6:$E$26648=$F$8)*(الحركة!$A$6:$A$26648>=$F$6)*(الحركة!$A$6:$A$26648<=$H$6),ROW(الحركة!$A$6:$A$26648)-ROW(الحركة!$A$6)+1),ROWS(B$16:B53))),"") ->  | H54: =IF(ROWS(C$16:C53)<=SUMPRODUCT((الحركة!$E$6:$E$26648=$F$8)*(الحركة!$A$6:$A$26648>=$F$6)*(الحركة!$A$6:$A$26648<=$H$6)),INDEX(الحركة!$J$6:$J$26648,SMALL(IF((الحركة!$E$6:$E$26648=$F$8)*(الحركة!$A$6:$A$26648>=$F$6)*(الحركة!$A$6:$A$26648<=$H$6),ROW(الحركة!$A$6:$A$26648)-ROW(الحركة!$A$6)+1),ROWS(C$16:C53))),"") ->  | L54: =IF(COUNTIF($F$17:F53,F53)=1,COUNT($L$18:L53)+1,"") ->  | M54: =IF(COUNT($L$18:$L$14759)<ROW()-17,"",LOOKUP(ROW()-17,$L$18:$L$14759,$F$17:$F$14759)) ->  | N54: =IF(M54="","",COUNTIF($F$17:$F$359,M54)) ->  | O54: =IF(M54="","",SUMIF($F$17:$F$359,M54,$G$17:$G$14759)) ->  | P54: =IF(M54="","",SUMIF($F$17:$F$359,M54,$H$17:$H$14759)) -> 
B55: =IF(ROWS(B$16:B54)<=SUMPRODUCT((الحركة!$E$6:$E$26648=$F$8)*(الحركة!$A$6:$A$26648>=$F$6)*(الحركة!$A$6:$A$26648<=$H$6)),INDEX(الحركة!$A$6:$A$26648,SMALL(IF((الحركة!$E$6:$E$26648=$F$8)*(الحركة!$A$6:$A$26648>=$F$6)*(الحركة!$A$6:$A$26648<=$H$6),ROW(الحركة!$A$6:$A$26648)-ROW(الحركة!$A$6)+1),ROWS(B$16:B54))),"") ->  | D55: =IF(ROWS(B$16:B54)<=SUMPRODUCT((الحركة!$E$6:$E$26648=$F$8)*(الحركة!$A$6:$A$26648>=$F$6)*(الحركة!$A$6:$A$26648<=$H$6)),INDEX(الحركة!$E$6:$E$26648,SMALL(IF((الحركة!$E$6:$E$26648=$F$8)*(الحركة!$A$6:$A$26648>=$F$6)*(الحركة!$A$6:$A$26648<=$H$6),ROW(الحركة!$A$6:$A$26648)-ROW(الحركة!$A$6)+1),ROWS(B$16:B54))),"") ->  | E55: =IF(ROWS(C$16:C54)<=SUMPRODUCT((الحركة!$E$6:$E$26648=$F$8)*(الحركة!$A$6:$A$26648>=$F$6)*(الحركة!$A$6:$A$26648<=$H$6)),INDEX(الحركة!$F$6:$F$26648,SMALL(IF((الحركة!$E$6:$E$26648=$F$8)*(الحركة!$A$6:$A$26648>=$F$6)*(الحركة!$A$6:$A$26648<=$H$6),ROW(الحركة!$A$6:$A$26648)-ROW(الحركة!$A$6)+1),ROWS(C$16:C54))),"") ->  | F55: =IF(ROWS(C$16:C54)<=SUMPRODUCT((الحركة!$E$6:$E$26648=$F$8)*(الحركة!$A$6:$A$26648>=$F$6)*(الحركة!$A$6:$A$26648<=$H$6)),INDEX(الحركة!$H$6:$H$26648,SMALL(IF((الحركة!$E$6:$E$26648=$F$8)*(الحركة!$A$6:$A$26648>=$F$6)*(الحركة!$A$6:$A$26648<=$H$6),ROW(الحركة!$A$6:$A$26648)-ROW(الحركة!$A$6)+1),ROWS(C$16:C54))),"") ->  | G55: =IF(ROWS(B$16:B54)<=SUMPRODUCT((الحركة!$E$6:$E$26648=$F$8)*(الحركة!$A$6:$A$26648>=$F$6)*(الحركة!$A$6:$A$26648<=$H$6)),INDEX(الحركة!$I$6:$I$26648,SMALL(IF((الحركة!$E$6:$E$26648=$F$8)*(الحركة!$A$6:$A$26648>=$F$6)*(الحركة!$A$6:$A$26648<=$H$6),ROW(الحركة!$A$6:$A$26648)-ROW(الحركة!$A$6)+1),ROWS(B$16:B54))),"") ->  | H55: =IF(ROWS(C$16:C54)<=SUMPRODUCT((الحركة!$E$6:$E$26648=$F$8)*(الحركة!$A$6:$A$26648>=$F$6)*(الحركة!$A$6:$A$26648<=$H$6)),INDEX(الحركة!$J$6:$J$26648,SMALL(IF((الحركة!$E$6:$E$26648=$F$8)*(الحركة!$A$6:$A$26648>=$F$6)*(الحركة!$A$6:$A$26648<=$H$6),ROW(الحركة!$A$6:$A$26648)-ROW(الحركة!$A$6)+1),ROWS(C$16:C54))),"") ->  | L55: =IF(COUNTIF($F$17:F54,F54)=1,COUNT($L$18:L54)+1,"") ->  | M55: =IF(COUNT($L$18:$L$14759)<ROW()-17,"",LOOKUP(ROW()-17,$L$18:$L$14759,$F$17:$F$14759)) ->  | N55: =IF(M55="","",COUNTIF($F$17:$F$359,M55)) ->  | O55: =IF(M55="","",SUMIF($F$17:$F$359,M55,$G$17:$G$14759)) ->  | P55: =IF(M55="","",SUMIF($F$17:$F$359,M55,$H$17:$H$14759)) -> 
B56: =IF(ROWS(B$16:B55)<=SUMPRODUCT((الحركة!$E$6:$E$26648=$F$8)*(الحركة!$A$6:$A$26648>=$F$6)*(الحركة!$A$6:$A$26648<=$H$6)),INDEX(الحركة!$A$6:$A$26648,SMALL(IF((الحركة!$E$6:$E$26648=$F$8)*(الحركة!$A$6:$A$26648>=$F$6)*(الحركة!$A$6:$A$26648<=$H$6),ROW(الحركة!$A$6:$A$26648)-ROW(الحركة!$A$6)+1),ROWS(B$16:B55))),"") ->  | D56: =IF(ROWS(B$16:B55)<=SUMPRODUCT((الحركة!$E$6:$E$26648=$F$8)*(الحركة!$A$6:$A$26648>=$F$6)*(الحركة!$A$6:$A$26648<=$H$6)),INDEX(الحركة!$E$6:$E$26648,SMALL(IF((الحركة!$E$6:$E$26648=$F$8)*(الحركة!$A$6:$A$26648>=$F$6)*(الحركة!$A$6:$A$26648<=$H$6),ROW(الحركة!$A$6:$A$26648)-ROW(الحركة!$A$6)+1),ROWS(B$16:B55))),"") ->  | E56: =IF(ROWS(C$16:C55)<=SUMPRODUCT((الحركة!$E$6:$E$26648=$F$8)*(الحركة!$A$6:$A$26648>=$F$6)*(الحركة!$A$6:$A$26648<=$H$6)),INDEX(الحركة!$F$6:$F$26648,SMALL(IF((الحركة!$E$6:$E$26648=$F$8)*(الحركة!$A$6:$A$26648>=$F$6)*(الحركة!$A$6:$A$26648<=$H$6),ROW(الحركة!$A$6:$A$26648)-ROW(الحركة!$A$6)+1),ROWS(C$16:C55))),"") ->  | F56: =IF(ROWS(C$16:C55)<=SUMPRODUCT((الحركة!$E$6:$E$26648=$F$8)*(الحركة!$A$6:$A$26648>=$F$6)*(الحركة!$A$6:$A$26648<=$H$6)),INDEX(الحركة!$H$6:$H$26648,SMALL(IF((الحركة!$E$6:$E$26648=$F$8)*(الحركة!$A$6:$A$26648>=$F$6)*(الحركة!$A$6:$A$26648<=$H$6),ROW(الحركة!$A$6:$A$26648)-ROW(الحركة!$A$6)+1),ROWS(C$16:C55))),"") ->  | G56: =IF(ROWS(B$16:B55)<=SUMPRODUCT((الحركة!$E$6:$E$26648=$F$8)*(الحركة!$A$6:$A$26648>=$F$6)*(الحركة!$A$6:$A$26648<=$H$6)),INDEX(الحركة!$I$6:$I$26648,SMALL(IF((الحركة!$E$6:$E$26648=$F$8)*(الحركة!$A$6:$A$26648>=$F$6)*(الحركة!$A$6:$A$26648<=$H$6),ROW(الحركة!$A$6:$A$26648)-ROW(الحركة!$A$6)+1),ROWS(B$16:B55))),"") ->  | H56: =IF(ROWS(C$16:C55)<=SUMPRODUCT((الحركة!$E$6:$E$26648=$F$8)*(الحركة!$A$6:$A$26648>=$F$6)*(الحركة!$A$6:$A$26648<=$H$6)),INDEX(الحركة!$J$6:$J$26648,SMALL(IF((الحركة!$E$6:$E$26648=$F$8)*(الحركة!$A$6:$A$26648>=$F$6)*(الحركة!$A$6:$A$26648<=$H$6),ROW(الحركة!$A$6:$A$26648)-ROW(الحركة!$A$6)+1),ROWS(C$16:C55))),"") ->  | L56: =IF(COUNTIF($F$17:F55,F55)=1,COUNT($L$18:L55)+1,"") ->  | M56: =IF(COUNT($L$18:$L$14759)<ROW()-17,"",LOOKUP(ROW()-17,$L$18:$L$14759,$F$17:$F$14759)) ->  | N56: =IF(M56="","",COUNTIF($F$17:$F$359,M56)) ->  | O56: =IF(M56="","",SUMIF($F$17:$F$359,M56,$G$17:$G$14759)) ->  | P56: =IF(M56="","",SUMIF($F$17:$F$359,M56,$H$17:$H$14759)) -> 
B57: =IF(ROWS(B$16:B56)<=SUMPRODUCT((الحركة!$E$6:$E$26648=$F$8)*(الحركة!$A$6:$A$26648>=$F$6)*(الحركة!$A$6:$A$26648<=$H$6)),INDEX(الحركة!$A$6:$A$26648,SMALL(IF((الحركة!$E$6:$E$26648=$F$8)*(الحركة!$A$6:$A$26648>=$F$6)*(الحركة!$A$6:$A$26648<=$H$6),ROW(الحركة!$A$6:$A$26648)-ROW(الحركة!$A$6)+1),ROWS(B$16:B56))),"") ->  | D57: =IF(ROWS(B$16:B56)<=SUMPRODUCT((الحركة!$E$6:$E$26648=$F$8)*(الحركة!$A$6:$A$26648>=$F$6)*(الحركة!$A$6:$A$26648<=$H$6)),INDEX(الحركة!$E$6:$E$26648,SMALL(IF((الحركة!$E$6:$E$26648=$F$8)*(الحركة!$A$6:$A$26648>=$F$6)*(الحركة!$A$6:$A$26648<=$H$6),ROW(الحركة!$A$6:$A$26648)-ROW(الحركة!$A$6)+1),ROWS(B$16:B56))),"") ->  | E57: =IF(ROWS(C$16:C56)<=SUMPRODUCT((الحركة!$E$6:$E$26648=$F$8)*(الحركة!$A$6:$A$26648>=$F$6)*(الحركة!$A$6:$A$26648<=$H$6)),INDEX(الحركة!$F$6:$F$26648,SMALL(IF((الحركة!$E$6:$E$26648=$F$8)*(الحركة!$A$6:$A$26648>=$F$6)*(الحركة!$A$6:$A$26648<=$H$6),ROW(الحركة!$A$6:$A$26648)-ROW(الحركة!$A$6)+1),ROWS(C$16:C56))),"") ->  | F57: =IF(ROWS(C$16:C56)<=SUMPRODUCT((الحركة!$E$6:$E$26648=$F$8)*(الحركة!$A$6:$A$26648>=$F$6)*(الحركة!$A$6:$A$26648<=$H$6)),INDEX(الحركة!$H$6:$H$26648,SMALL(IF((الحركة!$E$6:$E$26648=$F$8)*(الحركة!$A$6:$A$26648>=$F$6)*(الحركة!$A$6:$A$26648<=$H$6),ROW(الحركة!$A$6:$A$26648)-ROW(الحركة!$A$6)+1),ROWS(C$16:C56))),"") ->  | G57: =IF(ROWS(B$16:B56)<=SUMPRODUCT((الحركة!$E$6:$E$26648=$F$8)*(الحركة!$A$6:$A$26648>=$F$6)*(الحركة!$A$6:$A$26648<=$H$6)),INDEX(الحركة!$I$6:$I$26648,SMALL(IF((الحركة!$E$6:$E$26648=$F$8)*(الحركة!$A$6:$A$26648>=$F$6)*(الحركة!$A$6:$A$26648<=$H$6),ROW(الحركة!$A$6:$A$26648)-ROW(الحركة!$A$6)+1),ROWS(B$16:B56))),"") ->  | H57: =IF(ROWS(C$16:C56)<=SUMPRODUCT((الحركة!$E$6:$E$26648=$F$8)*(الحركة!$A$6:$A$26648>=$F$6)*(الحركة!$A$6:$A$26648<=$H$6)),INDEX(الحركة!$J$6:$J$26648,SMALL(IF((الحركة!$E$6:$E$26648=$F$8)*(الحركة!$A$6:$A$26648>=$F$6)*(الحركة!$A$6:$A$26648<=$H$6),ROW(الحركة!$A$6:$A$26648)-ROW(الحركة!$A$6)+1),ROWS(C$16:C56))),"") ->  | L57: =IF(COUNTIF($F$17:F56,F56)=1,COUNT($L$18:L56)+1,"") ->  | M57: =IF(COUNT($L$18:$L$14759)<ROW()-17,"",LOOKUP(ROW()-17,$L$18:$L$14759,$F$17:$F$14759)) ->  | N57: =IF(M57="","",COUNTIF($F$17:$F$359,M57)) ->  | O57: =IF(M57="","",SUMIF($F$17:$F$359,M57,$G$17:$G$14759)) ->  | P57: =IF(M57="","",SUMIF($F$17:$F$359,M57,$H$17:$H$14759)) -> 
B58: =IF(ROWS(B$16:B57)<=SUMPRODUCT((الحركة!$E$6:$E$26648=$F$8)*(الحركة!$A$6:$A$26648>=$F$6)*(الحركة!$A$6:$A$26648<=$H$6)),INDEX(الحركة!$A$6:$A$26648,SMALL(IF((الحركة!$E$6:$E$26648=$F$8)*(الحركة!$A$6:$A$26648>=$F$6)*(الحركة!$A$6:$A$26648<=$H$6),ROW(الحركة!$A$6:$A$26648)-ROW(الحركة!$A$6)+1),ROWS(B$16:B57))),"") ->  | D58: =IF(ROWS(B$16:B57)<=SUMPRODUCT((الحركة!$E$6:$E$26648=$F$8)*(الحركة!$A$6:$A$26648>=$F$6)*(الحركة!$A$6:$A$26648<=$H$6)),INDEX(الحركة!$E$6:$E$26648,SMALL(IF((الحركة!$E$6:$E$26648=$F$8)*(الحركة!$A$6:$A$26648>=$F$6)*(الحركة!$A$6:$A$26648<=$H$6),ROW(الحركة!$A$6:$A$26648)-ROW(الحركة!$A$6)+1),ROWS(B$16:B57))),"") ->  | E58: =IF(ROWS(C$16:C57)<=SUMPRODUCT((الحركة!$E$6:$E$26648=$F$8)*(الحركة!$A$6:$A$26648>=$F$6)*(الحركة!$A$6:$A$26648<=$H$6)),INDEX(الحركة!$F$6:$F$26648,SMALL(IF((الحركة!$E$6:$E$26648=$F$8)*(الحركة!$A$6:$A$26648>=$F$6)*(الحركة!$A$6:$A$26648<=$H$6),ROW(الحركة!$A$6:$A$26648)-ROW(الحركة!$A$6)+1),ROWS(C$16:C57))),"") ->  | F58: =IF(ROWS(C$16:C57)<=SUMPRODUCT((الحركة!$E$6:$E$26648=$F$8)*(الحركة!$A$6:$A$26648>=$F$6)*(الحركة!$A$6:$A$26648<=$H$6)),INDEX(الحركة!$H$6:$H$26648,SMALL(IF((الحركة!$E$6:$E$26648=$F$8)*(الحركة!$A$6:$A$26648>=$F$6)*(الحركة!$A$6:$A$26648<=$H$6),ROW(الحركة!$A$6:$A$26648)-ROW(الحركة!$A$6)+1),ROWS(C$16:C57))),"") ->  | G58: =IF(ROWS(B$16:B57)<=SUMPRODUCT((الحركة!$E$6:$E$26648=$F$8)*(الحركة!$A$6:$A$26648>=$F$6)*(الحركة!$A$6:$A$26648<=$H$6)),INDEX(الحركة!$I$6:$I$26648,SMALL(IF((الحركة!$E$6:$E$26648=$F$8)*(الحركة!$A$6:$A$26648>=$F$6)*(الحركة!$A$6:$A$26648<=$H$6),ROW(الحركة!$A$6:$A$26648)-ROW(الحركة!$A$6)+1),ROWS(B$16:B57))),"") ->  | H58: =IF(ROWS(C$16:C57)<=SUMPRODUCT((الحركة!$E$6:$E$26648=$F$8)*(الحركة!$A$6:$A$26648>=$F$6)*(الحركة!$A$6:$A$26648<=$H$6)),INDEX(الحركة!$J$6:$J$26648,SMALL(IF((الحركة!$E$6:$E$26648=$F$8)*(الحركة!$A$6:$A$26648>=$F$6)*(الحركة!$A$6:$A$26648<=$H$6),ROW(الحركة!$A$6:$A$26648)-ROW(الحركة!$A$6)+1),ROWS(C$16:C57))),"") ->  | L58: =IF(COUNTIF($F$17:F57,F57)=1,COUNT($L$18:L57)+1,"") ->  | M58: =IF(COUNT($L$18:$L$14759)<ROW()-17,"",LOOKUP(ROW()-17,$L$18:$L$14759,$F$17:$F$14759)) ->  | N58: =IF(M58="","",COUNTIF($F$17:$F$359,M58)) ->  | O58: =IF(M58="","",SUMIF($F$17:$F$359,M58,$G$17:$G$14759)) ->  | P58: =IF(M58="","",SUMIF($F$17:$F$359,M58,$H$17:$H$14759)) -> 
B59: =IF(ROWS(B$16:B58)<=SUMPRODUCT((الحركة!$E$6:$E$26648=$F$8)*(الحركة!$A$6:$A$26648>=$F$6)*(الحركة!$A$6:$A$26648<=$H$6)),INDEX(الحركة!$A$6:$A$26648,SMALL(IF((الحركة!$E$6:$E$26648=$F$8)*(الحركة!$A$6:$A$26648>=$F$6)*(الحركة!$A$6:$A$26648<=$H$6),ROW(الحركة!$A$6:$A$26648)-ROW(الحركة!$A$6)+1),ROWS(B$16:B58))),"") ->  | D59: =IF(ROWS(B$16:B58)<=SUMPRODUCT((الحركة!$E$6:$E$26648=$F$8)*(الحركة!$A$6:$A$26648>=$F$6)*(الحركة!$A$6:$A$26648<=$H$6)),INDEX(الحركة!$E$6:$E$26648,SMALL(IF((الحركة!$E$6:$E$26648=$F$8)*(الحركة!$A$6:$A$26648>=$F$6)*(الحركة!$A$6:$A$26648<=$H$6),ROW(الحركة!$A$6:$A$26648)-ROW(الحركة!$A$6)+1),ROWS(B$16:B58))),"") ->  | E59: =IF(ROWS(C$16:C58)<=SUMPRODUCT((الحركة!$E$6:$E$26648=$F$8)*(الحركة!$A$6:$A$26648>=$F$6)*(الحركة!$A$6:$A$26648<=$H$6)),INDEX(الحركة!$F$6:$F$26648,SMALL(IF((الحركة!$E$6:$E$26648=$F$8)*(الحركة!$A$6:$A$26648>=$F$6)*(الحركة!$A$6:$A$26648<=$H$6),ROW(الحركة!$A$6:$A$26648)-ROW(الحركة!$A$6)+1),ROWS(C$16:C58))),"") ->  | F59: =IF(ROWS(C$16:C58)<=SUMPRODUCT((الحركة!$E$6:$E$26648=$F$8)*(الحركة!$A$6:$A$26648>=$F$6)*(الحركة!$A$6:$A$26648<=$H$6)),INDEX(الحركة!$H$6:$H$26648,SMALL(IF((الحركة!$E$6:$E$26648=$F$8)*(الحركة!$A$6:$A$26648>=$F$6)*(الحركة!$A$6:$A$26648<=$H$6),ROW(الحركة!$A$6:$A$26648)-ROW(الحركة!$A$6)+1),ROWS(C$16:C58))),"") ->  | G59: =IF(ROWS(B$16:B58)<=SUMPRODUCT((الحركة!$E$6:$E$26648=$F$8)*(الحركة!$A$6:$A$26648>=$F$6)*(الحركة!$A$6:$A$26648<=$H$6)),INDEX(الحركة!$I$6:$I$26648,SMALL(IF((الحركة!$E$6:$E$26648=$F$8)*(الحركة!$A$6:$A$26648>=$F$6)*(الحركة!$A$6:$A$26648<=$H$6),ROW(الحركة!$A$6:$A$26648)-ROW(الحركة!$A$6)+1),ROWS(B$16:B58))),"") ->  | H59: =IF(ROWS(C$16:C58)<=SUMPRODUCT((الحركة!$E$6:$E$26648=$F$8)*(الحركة!$A$6:$A$26648>=$F$6)*(الحركة!$A$6:$A$26648<=$H$6)),INDEX(الحركة!$J$6:$J$26648,SMALL(IF((الحركة!$E$6:$E$26648=$F$8)*(الحركة!$A$6:$A$26648>=$F$6)*(الحركة!$A$6:$A$26648<=$H$6),ROW(الحركة!$A$6:$A$26648)-ROW(الحركة!$A$6)+1),ROWS(C$16:C58))),"") ->  | L59: =IF(COUNTIF($F$17:F58,F58)=1,COUNT($L$18:L58)+1,"") ->  | M59: =IF(COUNT($L$18:$L$14759)<ROW()-17,"",LOOKUP(ROW()-17,$L$18:$L$14759,$F$17:$F$14759)) ->  | N59: =IF(M59="","",COUNTIF($F$17:$F$359,M59)) ->  | O59: =IF(M59="","",SUMIF($F$17:$F$359,M59,$G$17:$G$14759)) ->  | P59: =IF(M59="","",SUMIF($F$17:$F$359,M59,$H$17:$H$14759)) -> 
B60: =IF(ROWS(B$16:B59)<=SUMPRODUCT((الحركة!$E$6:$E$26648=$F$8)*(الحركة!$A$6:$A$26648>=$F$6)*(الحركة!$A$6:$A$26648<=$H$6)),INDEX(الحركة!$A$6:$A$26648,SMALL(IF((الحركة!$E$6:$E$26648=$F$8)*(الحركة!$A$6:$A$26648>=$F$6)*(الحركة!$A$6:$A$26648<=$H$6),ROW(الحركة!$A$6:$A$26648)-ROW(الحركة!$A$6)+1),ROWS(B$16:B59))),"") ->  | D60: =IF(ROWS(B$16:B59)<=SUMPRODUCT((الحركة!$E$6:$E$26648=$F$8)*(الحركة!$A$6:$A$26648>=$F$6)*(الحركة!$A$6:$A$26648<=$H$6)),INDEX(الحركة!$E$6:$E$26648,SMALL(IF((الحركة!$E$6:$E$26648=$F$8)*(الحركة!$A$6:$A$26648>=$F$6)*(الحركة!$A$6:$A$26648<=$H$6),ROW(الحركة!$A$6:$A$26648)-ROW(الحركة!$A$6)+1),ROWS(B$16:B59))),"") ->  | E60: =IF(ROWS(C$16:C59)<=SUMPRODUCT((الحركة!$E$6:$E$26648=$F$8)*(الحركة!$A$6:$A$26648>=$F$6)*(الحركة!$A$6:$A$26648<=$H$6)),INDEX(الحركة!$F$6:$F$26648,SMALL(IF((الحركة!$E$6:$E$26648=$F$8)*(الحركة!$A$6:$A$26648>=$F$6)*(الحركة!$A$6:$A$26648<=$H$6),ROW(الحركة!$A$6:$A$26648)-ROW(الحركة!$A$6)+1),ROWS(C$16:C59))),"") ->  | F60: =IF(ROWS(C$16:C59)<=SUMPRODUCT((الحركة!$E$6:$E$26648=$F$8)*(الحركة!$A$6:$A$26648>=$F$6)*(الحركة!$A$6:$A$26648<=$H$6)),INDEX(الحركة!$H$6:$H$26648,SMALL(IF((الحركة!$E$6:$E$26648=$F$8)*(الحركة!$A$6:$A$26648>=$F$6)*(الحركة!$A$6:$A$26648<=$H$6),ROW(الحركة!$A$6:$A$26648)-ROW(الحركة!$A$6)+1),ROWS(C$16:C59))),"") ->  | G60: =IF(ROWS(B$16:B59)<=SUMPRODUCT((الحركة!$E$6:$E$26648=$F$8)*(الحركة!$A$6:$A$26648>=$F$6)*(الحركة!$A$6:$A$26648<=$H$6)),INDEX(الحركة!$I$6:$I$26648,SMALL(IF((الحركة!$E$6:$E$26648=$F$8)*(الحركة!$A$6:$A$26648>=$F$6)*(الحركة!$A$6:$A$26648<=$H$6),ROW(الحركة!$A$6:$A$26648)-ROW(الحركة!$A$6)+1),ROWS(B$16:B59))),"") ->  | H60: =IF(ROWS(C$16:C59)<=SUMPRODUCT((الحركة!$E$6:$E$26648=$F$8)*(الحركة!$A$6:$A$26648>=$F$6)*(الحركة!$A$6:$A$26648<=$H$6)),INDEX(الحركة!$J$6:$J$26648,SMALL(IF((الحركة!$E$6:$E$26648=$F$8)*(الحركة!$A$6:$A$26648>=$F$6)*(الحركة!$A$6:$A$26648<=$H$6),ROW(الحركة!$A$6:$A$26648)-ROW(الحركة!$A$6)+1),ROWS(C$16:C59))),"") ->  | L60: =IF(COUNTIF($F$17:F59,F59)=1,COUNT($L$18:L59)+1,"") ->  | M60: =IF(COUNT($L$18:$L$14759)<ROW()-17,"",LOOKUP(ROW()-17,$L$18:$L$14759,$F$17:$F$14759)) ->  | N60: =IF(M60="","",COUNTIF($F$17:$F$359,M60)) ->  | O60: =IF(M60="","",SUMIF($F$17:$F$359,M60,$G$17:$G$14759)) ->  | P60: =IF(M60="","",SUMIF($F$17:$F$359,M60,$H$17:$H$14759)) -> 
B61: =IF(ROWS(B$16:B60)<=SUMPRODUCT((الحركة!$E$6:$E$26648=$F$8)*(الحركة!$A$6:$A$26648>=$F$6)*(الحركة!$A$6:$A$26648<=$H$6)),INDEX(الحركة!$A$6:$A$26648,SMALL(IF((الحركة!$E$6:$E$26648=$F$8)*(الحركة!$A$6:$A$26648>=$F$6)*(الحركة!$A$6:$A$26648<=$H$6),ROW(الحركة!$A$6:$A$26648)-ROW(الحركة!$A$6)+1),ROWS(B$16:B60))),"") ->  | D61: =IF(ROWS(B$16:B60)<=SUMPRODUCT((الحركة!$E$6:$E$26648=$F$8)*(الحركة!$A$6:$A$26648>=$F$6)*(الحركة!$A$6:$A$26648<=$H$6)),INDEX(الحركة!$E$6:$E$26648,SMALL(IF((الحركة!$E$6:$E$26648=$F$8)*(الحركة!$A$6:$A$26648>=$F$6)*(الحركة!$A$6:$A$26648<=$H$6),ROW(الحركة!$A$6:$A$26648)-ROW(الحركة!$A$6)+1),ROWS(B$16:B60))),"") ->  | E61: =IF(ROWS(C$16:C60)<=SUMPRODUCT((الحركة!$E$6:$E$26648=$F$8)*(الحركة!$A$6:$A$26648>=$F$6)*(الحركة!$A$6:$A$26648<=$H$6)),INDEX(الحركة!$F$6:$F$26648,SMALL(IF((الحركة!$E$6:$E$26648=$F$8)*(الحركة!$A$6:$A$26648>=$F$6)*(الحركة!$A$6:$A$26648<=$H$6),ROW(الحركة!$A$6:$A$26648)-ROW(الحركة!$A$6)+1),ROWS(C$16:C60))),"") ->  | F61: =IF(ROWS(C$16:C60)<=SUMPRODUCT((الحركة!$E$6:$E$26648=$F$8)*(الحركة!$A$6:$A$26648>=$F$6)*(الحركة!$A$6:$A$26648<=$H$6)),INDEX(الحركة!$H$6:$H$26648,SMALL(IF((الحركة!$E$6:$E$26648=$F$8)*(الحركة!$A$6:$A$26648>=$F$6)*(الحركة!$A$6:$A$26648<=$H$6),ROW(الحركة!$A$6:$A$26648)-ROW(الحركة!$A$6)+1),ROWS(C$16:C60))),"") ->  | G61: =IF(ROWS(B$16:B60)<=SUMPRODUCT((الحركة!$E$6:$E$26648=$F$8)*(الحركة!$A$6:$A$26648>=$F$6)*(الحركة!$A$6:$A$26648<=$H$6)),INDEX(الحركة!$I$6:$I$26648,SMALL(IF((الحركة!$E$6:$E$26648=$F$8)*(الحركة!$A$6:$A$26648>=$F$6)*(الحركة!$A$6:$A$26648<=$H$6),ROW(الحركة!$A$6:$A$26648)-ROW(الحركة!$A$6)+1),ROWS(B$16:B60))),"") ->  | H61: =IF(ROWS(C$16:C60)<=SUMPRODUCT((الحركة!$E$6:$E$26648=$F$8)*(الحركة!$A$6:$A$26648>=$F$6)*(الحركة!$A$6:$A$26648<=$H$6)),INDEX(الحركة!$J$6:$J$26648,SMALL(IF((الحركة!$E$6:$E$26648=$F$8)*(الحركة!$A$6:$A$26648>=$F$6)*(الحركة!$A$6:$A$26648<=$H$6),ROW(الحركة!$A$6:$A$26648)-ROW(الحركة!$A$6)+1),ROWS(C$16:C60))),"") ->  | L61: =IF(COUNTIF($F$17:F60,F60)=1,COUNT($L$18:L60)+1,"") ->  | M61: =IF(COUNT($L$18:$L$14759)<ROW()-17,"",LOOKUP(ROW()-17,$L$18:$L$14759,$F$17:$F$14759)) ->  | N61: =IF(M61="","",COUNTIF($F$17:$F$359,M61)) ->  | O61: =IF(M61="","",SUMIF($F$17:$F$359,M61,$G$17:$G$14759)) ->  | P61: =IF(M61="","",SUMIF($F$17:$F$359,M61,$H$17:$H$14759)) -> 
B62: =IF(ROWS(B$16:B61)<=SUMPRODUCT((الحركة!$E$6:$E$26648=$F$8)*(الحركة!$A$6:$A$26648>=$F$6)*(الحركة!$A$6:$A$26648<=$H$6)),INDEX(الحركة!$A$6:$A$26648,SMALL(IF((الحركة!$E$6:$E$26648=$F$8)*(الحركة!$A$6:$A$26648>=$F$6)*(الحركة!$A$6:$A$26648<=$H$6),ROW(الحركة!$A$6:$A$26648)-ROW(الحركة!$A$6)+1),ROWS(B$16:B61))),"") ->  | D62: =IF(ROWS(B$16:B61)<=SUMPRODUCT((الحركة!$E$6:$E$26648=$F$8)*(الحركة!$A$6:$A$26648>=$F$6)*(الحركة!$A$6:$A$26648<=$H$6)),INDEX(الحركة!$E$6:$E$26648,SMALL(IF((الحركة!$E$6:$E$26648=$F$8)*(الحركة!$A$6:$A$26648>=$F$6)*(الحركة!$A$6:$A$26648<=$H$6),ROW(الحركة!$A$6:$A$26648)-ROW(الحركة!$A$6)+1),ROWS(B$16:B61))),"") ->  | E62: =IF(ROWS(C$16:C61)<=SUMPRODUCT((الحركة!$E$6:$E$26648=$F$8)*(الحركة!$A$6:$A$26648>=$F$6)*(الحركة!$A$6:$A$26648<=$H$6)),INDEX(الحركة!$F$6:$F$26648,SMALL(IF((الحركة!$E$6:$E$26648=$F$8)*(الحركة!$A$6:$A$26648>=$F$6)*(الحركة!$A$6:$A$26648<=$H$6),ROW(الحركة!$A$6:$A$26648)-ROW(الحركة!$A$6)+1),ROWS(C$16:C61))),"") ->  | F62: =IF(ROWS(C$16:C61)<=SUMPRODUCT((الحركة!$E$6:$E$26648=$F$8)*(الحركة!$A$6:$A$26648>=$F$6)*(الحركة!$A$6:$A$26648<=$H$6)),INDEX(الحركة!$H$6:$H$26648,SMALL(IF((الحركة!$E$6:$E$26648=$F$8)*(الحركة!$A$6:$A$26648>=$F$6)*(الحركة!$A$6:$A$26648<=$H$6),ROW(الحركة!$A$6:$A$26648)-ROW(الحركة!$A$6)+1),ROWS(C$16:C61))),"") ->  | G62: =IF(ROWS(B$16:B61)<=SUMPRODUCT((الحركة!$E$6:$E$26648=$F$8)*(الحركة!$A$6:$A$26648>=$F$6)*(الحركة!$A$6:$A$26648<=$H$6)),INDEX(الحركة!$I$6:$I$26648,SMALL(IF((الحركة!$E$6:$E$26648=$F$8)*(الحركة!$A$6:$A$26648>=$F$6)*(الحركة!$A$6:$A$26648<=$H$6),ROW(الحركة!$A$6:$A$26648)-ROW(الحركة!$A$6)+1),ROWS(B$16:B61))),"") ->  | H62: =IF(ROWS(C$16:C61)<=SUMPRODUCT((الحركة!$E$6:$E$26648=$F$8)*(الحركة!$A$6:$A$26648>=$F$6)*(الحركة!$A$6:$A$26648<=$H$6)),INDEX(الحركة!$J$6:$J$26648,SMALL(IF((الحركة!$E$6:$E$26648=$F$8)*(الحركة!$A$6:$A$26648>=$F$6)*(الحركة!$A$6:$A$26648<=$H$6),ROW(الحركة!$A$6:$A$26648)-ROW(الحركة!$A$6)+1),ROWS(C$16:C61))),"") ->  | L62: =IF(COUNTIF($F$17:F61,F61)=1,COUNT($L$18:L61)+1,"") ->  | M62: =IF(COUNT($L$18:$L$14759)<ROW()-17,"",LOOKUP(ROW()-17,$L$18:$L$14759,$F$17:$F$14759)) ->  | N62: =IF(M62="","",COUNTIF($F$17:$F$359,M62)) ->  | O62: =IF(M62="","",SUMIF($F$17:$F$359,M62,$G$17:$G$14759)) ->  | P62: =IF(M62="","",SUMIF($F$17:$F$359,M62,$H$17:$H$14759)) -> 
B63: =IF(ROWS(B$16:B62)<=SUMPRODUCT((الحركة!$E$6:$E$26648=$F$8)*(الحركة!$A$6:$A$26648>=$F$6)*(الحركة!$A$6:$A$26648<=$H$6)),INDEX(الحركة!$A$6:$A$26648,SMALL(IF((الحركة!$E$6:$E$26648=$F$8)*(الحركة!$A$6:$A$26648>=$F$6)*(الحركة!$A$6:$A$26648<=$H$6),ROW(الحركة!$A$6:$A$26648)-ROW(الحركة!$A$6)+1),ROWS(B$16:B62))),"") ->  | D63: =IF(ROWS(B$16:B62)<=SUMPRODUCT((الحركة!$E$6:$E$26648=$F$8)*(الحركة!$A$6:$A$26648>=$F$6)*(الحركة!$A$6:$A$26648<=$H$6)),INDEX(الحركة!$E$6:$E$26648,SMALL(IF((الحركة!$E$6:$E$26648=$F$8)*(الحركة!$A$6:$A$26648>=$F$6)*(الحركة!$A$6:$A$26648<=$H$6),ROW(الحركة!$A$6:$A$26648)-ROW(الحركة!$A$6)+1),ROWS(B$16:B62))),"") ->  | E63: =IF(ROWS(C$16:C62)<=SUMPRODUCT((الحركة!$E$6:$E$26648=$F$8)*(الحركة!$A$6:$A$26648>=$F$6)*(الحركة!$A$6:$A$26648<=$H$6)),INDEX(الحركة!$F$6:$F$26648,SMALL(IF((الحركة!$E$6:$E$26648=$F$8)*(الحركة!$A$6:$A$26648>=$F$6)*(الحركة!$A$6:$A$26648<=$H$6),ROW(الحركة!$A$6:$A$26648)-ROW(الحركة!$A$6)+1),ROWS(C$16:C62))),"") ->  | F63: =IF(ROWS(C$16:C62)<=SUMPRODUCT((الحركة!$E$6:$E$26648=$F$8)*(الحركة!$A$6:$A$26648>=$F$6)*(الحركة!$A$6:$A$26648<=$H$6)),INDEX(الحركة!$H$6:$H$26648,SMALL(IF((الحركة!$E$6:$E$26648=$F$8)*(الحركة!$A$6:$A$26648>=$F$6)*(الحركة!$A$6:$A$26648<=$H$6),ROW(الحركة!$A$6:$A$26648)-ROW(الحركة!$A$6)+1),ROWS(C$16:C62))),"") ->  | G63: =IF(ROWS(B$16:B62)<=SUMPRODUCT((الحركة!$E$6:$E$26648=$F$8)*(الحركة!$A$6:$A$26648>=$F$6)*(الحركة!$A$6:$A$26648<=$H$6)),INDEX(الحركة!$I$6:$I$26648,SMALL(IF((الحركة!$E$6:$E$26648=$F$8)*(الحركة!$A$6:$A$26648>=$F$6)*(الحركة!$A$6:$A$26648<=$H$6),ROW(الحركة!$A$6:$A$26648)-ROW(الحركة!$A$6)+1),ROWS(B$16:B62))),"") ->  | H63: =IF(ROWS(C$16:C62)<=SUMPRODUCT((الحركة!$E$6:$E$26648=$F$8)*(الحركة!$A$6:$A$26648>=$F$6)*(الحركة!$A$6:$A$26648<=$H$6)),INDEX(الحركة!$J$6:$J$26648,SMALL(IF((الحركة!$E$6:$E$26648=$F$8)*(الحركة!$A$6:$A$26648>=$F$6)*(الحركة!$A$6:$A$26648<=$H$6),ROW(الحركة!$A$6:$A$26648)-ROW(الحركة!$A$6)+1),ROWS(C$16:C62))),"") ->  | L63: =IF(COUNTIF($F$17:F62,F62)=1,COUNT($L$18:L62)+1,"") ->  | M63: =IF(COUNT($L$18:$L$14759)<ROW()-17,"",LOOKUP(ROW()-17,$L$18:$L$14759,$F$17:$F$14759)) ->  | N63: =IF(M63="","",COUNTIF($F$17:$F$359,M63)) ->  | O63: =IF(M63="","",SUMIF($F$17:$F$359,M63,$G$17:$G$14759)) ->  | P63: =IF(M63="","",SUMIF($F$17:$F$359,M63,$H$17:$H$14759)) -> 
B64: =IF(ROWS(B$16:B63)<=SUMPRODUCT((الحركة!$E$6:$E$26648=$F$8)*(الحركة!$A$6:$A$26648>=$F$6)*(الحركة!$A$6:$A$26648<=$H$6)),INDEX(الحركة!$A$6:$A$26648,SMALL(IF((الحركة!$E$6:$E$26648=$F$8)*(الحركة!$A$6:$A$26648>=$F$6)*(الحركة!$A$6:$A$26648<=$H$6),ROW(الحركة!$A$6:$A$26648)-ROW(الحركة!$A$6)+1),ROWS(B$16:B63))),"") ->  | D64: =IF(ROWS(B$16:B63)<=SUMPRODUCT((الحركة!$E$6:$E$26648=$F$8)*(الحركة!$A$6:$A$26648>=$F$6)*(الحركة!$A$6:$A$26648<=$H$6)),INDEX(الحركة!$E$6:$E$26648,SMALL(IF((الحركة!$E$6:$E$26648=$F$8)*(الحركة!$A$6:$A$26648>=$F$6)*(الحركة!$A$6:$A$26648<=$H$6),ROW(الحركة!$A$6:$A$26648)-ROW(الحركة!$A$6)+1),ROWS(B$16:B63))),"") ->  | E64: =IF(ROWS(C$16:C63)<=SUMPRODUCT((الحركة!$E$6:$E$26648=$F$8)*(الحركة!$A$6:$A$26648>=$F$6)*(الحركة!$A$6:$A$26648<=$H$6)),INDEX(الحركة!$F$6:$F$26648,SMALL(IF((الحركة!$E$6:$E$26648=$F$8)*(الحركة!$A$6:$A$26648>=$F$6)*(الحركة!$A$6:$A$26648<=$H$6),ROW(الحركة!$A$6:$A$26648)-ROW(الحركة!$A$6)+1),ROWS(C$16:C63))),"") ->  | F64: =IF(ROWS(C$16:C63)<=SUMPRODUCT((الحركة!$E$6:$E$26648=$F$8)*(الحركة!$A$6:$A$26648>=$F$6)*(الحركة!$A$6:$A$26648<=$H$6)),INDEX(الحركة!$H$6:$H$26648,SMALL(IF((الحركة!$E$6:$E$26648=$F$8)*(الحركة!$A$6:$A$26648>=$F$6)*(الحركة!$A$6:$A$26648<=$H$6),ROW(الحركة!$A$6:$A$26648)-ROW(الحركة!$A$6)+1),ROWS(C$16:C63))),"") ->  | G64: =IF(ROWS(B$16:B63)<=SUMPRODUCT((الحركة!$E$6:$E$26648=$F$8)*(الحركة!$A$6:$A$26648>=$F$6)*(الحركة!$A$6:$A$26648<=$H$6)),INDEX(الحركة!$I$6:$I$26648,SMALL(IF((الحركة!$E$6:$E$26648=$F$8)*(الحركة!$A$6:$A$26648>=$F$6)*(الحركة!$A$6:$A$26648<=$H$6),ROW(الحركة!$A$6:$A$26648)-ROW(الحركة!$A$6)+1),ROWS(B$16:B63))),"") ->  | H64: =IF(ROWS(C$16:C63)<=SUMPRODUCT((الحركة!$E$6:$E$26648=$F$8)*(الحركة!$A$6:$A$26648>=$F$6)*(الحركة!$A$6:$A$26648<=$H$6)),INDEX(الحركة!$J$6:$J$26648,SMALL(IF((الحركة!$E$6:$E$26648=$F$8)*(الحركة!$A$6:$A$26648>=$F$6)*(الحركة!$A$6:$A$26648<=$H$6),ROW(الحركة!$A$6:$A$26648)-ROW(الحركة!$A$6)+1),ROWS(C$16:C63))),"") ->  | L64: =IF(COUNTIF($F$17:F63,F63)=1,COUNT($L$18:L63)+1,"") ->  | M64: =IF(COUNT($L$18:$L$14759)<ROW()-17,"",LOOKUP(ROW()-17,$L$18:$L$14759,$F$17:$F$14759)) ->  | N64: =IF(M64="","",COUNTIF($F$17:$F$359,M64)) ->  | O64: =IF(M64="","",SUMIF($F$17:$F$359,M64,$G$17:$G$14759)) ->  | P64: =IF(M64="","",SUMIF($F$17:$F$359,M64,$H$17:$H$14759)) -> 
B65: =IF(ROWS(B$16:B64)<=SUMPRODUCT((الحركة!$E$6:$E$26648=$F$8)*(الحركة!$A$6:$A$26648>=$F$6)*(الحركة!$A$6:$A$26648<=$H$6)),INDEX(الحركة!$A$6:$A$26648,SMALL(IF((الحركة!$E$6:$E$26648=$F$8)*(الحركة!$A$6:$A$26648>=$F$6)*(الحركة!$A$6:$A$26648<=$H$6),ROW(الحركة!$A$6:$A$26648)-ROW(الحركة!$A$6)+1),ROWS(B$16:B64))),"") ->  | D65: =IF(ROWS(B$16:B64)<=SUMPRODUCT((الحركة!$E$6:$E$26648=$F$8)*(الحركة!$A$6:$A$26648>=$F$6)*(الحركة!$A$6:$A$26648<=$H$6)),INDEX(الحركة!$E$6:$E$26648,SMALL(IF((الحركة!$E$6:$E$26648=$F$8)*(الحركة!$A$6:$A$26648>=$F$6)*(الحركة!$A$6:$A$26648<=$H$6),ROW(الحركة!$A$6:$A$26648)-ROW(الحركة!$A$6)+1),ROWS(B$16:B64))),"") ->  | E65: =IF(ROWS(C$16:C64)<=SUMPRODUCT((الحركة!$E$6:$E$26648=$F$8)*(الحركة!$A$6:$A$26648>=$F$6)*(الحركة!$A$6:$A$26648<=$H$6)),INDEX(الحركة!$F$6:$F$26648,SMALL(IF((الحركة!$E$6:$E$26648=$F$8)*(الحركة!$A$6:$A$26648>=$F$6)*(الحركة!$A$6:$A$26648<=$H$6),ROW(الحركة!$A$6:$A$26648)-ROW(الحركة!$A$6)+1),ROWS(C$16:C64))),"") ->  | F65: =IF(ROWS(C$16:C64)<=SUMPRODUCT((الحركة!$E$6:$E$26648=$F$8)*(الحركة!$A$6:$A$26648>=$F$6)*(الحركة!$A$6:$A$26648<=$H$6)),INDEX(الحركة!$H$6:$H$26648,SMALL(IF((الحركة!$E$6:$E$26648=$F$8)*(الحركة!$A$6:$A$26648>=$F$6)*(الحركة!$A$6:$A$26648<=$H$6),ROW(الحركة!$A$6:$A$26648)-ROW(الحركة!$A$6)+1),ROWS(C$16:C64))),"") ->  | G65: =IF(ROWS(B$16:B64)<=SUMPRODUCT((الحركة!$E$6:$E$26648=$F$8)*(الحركة!$A$6:$A$26648>=$F$6)*(الحركة!$A$6:$A$26648<=$H$6)),INDEX(الحركة!$I$6:$I$26648,SMALL(IF((الحركة!$E$6:$E$26648=$F$8)*(الحركة!$A$6:$A$26648>=$F$6)*(الحركة!$A$6:$A$26648<=$H$6),ROW(الحركة!$A$6:$A$26648)-ROW(الحركة!$A$6)+1),ROWS(B$16:B64))),"") ->  | H65: =IF(ROWS(C$16:C64)<=SUMPRODUCT((الحركة!$E$6:$E$26648=$F$8)*(الحركة!$A$6:$A$26648>=$F$6)*(الحركة!$A$6:$A$26648<=$H$6)),INDEX(الحركة!$J$6:$J$26648,SMALL(IF((الحركة!$E$6:$E$26648=$F$8)*(الحركة!$A$6:$A$26648>=$F$6)*(الحركة!$A$6:$A$26648<=$H$6),ROW(الحركة!$A$6:$A$26648)-ROW(الحركة!$A$6)+1),ROWS(C$16:C64))),"") ->  | L65: =IF(COUNTIF($F$17:F64,F64)=1,COUNT($L$18:L64)+1,"") ->  | M65: =IF(COUNT($L$18:$L$14759)<ROW()-17,"",LOOKUP(ROW()-17,$L$18:$L$14759,$F$17:$F$14759)) ->  | N65: =IF(M65="","",COUNTIF($F$17:$F$359,M65)) ->  | O65: =IF(M65="","",SUMIF($F$17:$F$359,M65,$G$17:$G$14759)) ->  | P65: =IF(M65="","",SUMIF($F$17:$F$359,M65,$H$17:$H$14759)) -> 
B66: =IF(ROWS(B$16:B65)<=SUMPRODUCT((الحركة!$E$6:$E$26648=$F$8)*(الحركة!$A$6:$A$26648>=$F$6)*(الحركة!$A$6:$A$26648<=$H$6)),INDEX(الحركة!$A$6:$A$26648,SMALL(IF((الحركة!$E$6:$E$26648=$F$8)*(الحركة!$A$6:$A$26648>=$F$6)*(الحركة!$A$6:$A$26648<=$H$6),ROW(الحركة!$A$6:$A$26648)-ROW(الحركة!$A$6)+1),ROWS(B$16:B65))),"") ->  | D66: =IF(ROWS(B$16:B65)<=SUMPRODUCT((الحركة!$E$6:$E$26648=$F$8)*(الحركة!$A$6:$A$26648>=$F$6)*(الحركة!$A$6:$A$26648<=$H$6)),INDEX(الحركة!$E$6:$E$26648,SMALL(IF((الحركة!$E$6:$E$26648=$F$8)*(الحركة!$A$6:$A$26648>=$F$6)*(الحركة!$A$6:$A$26648<=$H$6),ROW(الحركة!$A$6:$A$26648)-ROW(الحركة!$A$6)+1),ROWS(B$16:B65))),"") ->  | E66: =IF(ROWS(C$16:C65)<=SUMPRODUCT((الحركة!$E$6:$E$26648=$F$8)*(الحركة!$A$6:$A$26648>=$F$6)*(الحركة!$A$6:$A$26648<=$H$6)),INDEX(الحركة!$F$6:$F$26648,SMALL(IF((الحركة!$E$6:$E$26648=$F$8)*(الحركة!$A$6:$A$26648>=$F$6)*(الحركة!$A$6:$A$26648<=$H$6),ROW(الحركة!$A$6:$A$26648)-ROW(الحركة!$A$6)+1),ROWS(C$16:C65))),"") ->  | F66: =IF(ROWS(C$16:C65)<=SUMPRODUCT((الحركة!$E$6:$E$26648=$F$8)*(الحركة!$A$6:$A$26648>=$F$6)*(الحركة!$A$6:$A$26648<=$H$6)),INDEX(الحركة!$H$6:$H$26648,SMALL(IF((الحركة!$E$6:$E$26648=$F$8)*(الحركة!$A$6:$A$26648>=$F$6)*(الحركة!$A$6:$A$26648<=$H$6),ROW(الحركة!$A$6:$A$26648)-ROW(الحركة!$A$6)+1),ROWS(C$16:C65))),"") ->  | G66: =IF(ROWS(B$16:B65)<=SUMPRODUCT((الحركة!$E$6:$E$26648=$F$8)*(الحركة!$A$6:$A$26648>=$F$6)*(الحركة!$A$6:$A$26648<=$H$6)),INDEX(الحركة!$I$6:$I$26648,SMALL(IF((الحركة!$E$6:$E$26648=$F$8)*(الحركة!$A$6:$A$26648>=$F$6)*(الحركة!$A$6:$A$26648<=$H$6),ROW(الحركة!$A$6:$A$26648)-ROW(الحركة!$A$6)+1),ROWS(B$16:B65))),"") ->  | H66: =IF(ROWS(C$16:C65)<=SUMPRODUCT((الحركة!$E$6:$E$26648=$F$8)*(الحركة!$A$6:$A$26648>=$F$6)*(الحركة!$A$6:$A$26648<=$H$6)),INDEX(الحركة!$J$6:$J$26648,SMALL(IF((الحركة!$E$6:$E$26648=$F$8)*(الحركة!$A$6:$A$26648>=$F$6)*(الحركة!$A$6:$A$26648<=$H$6),ROW(الحركة!$A$6:$A$26648)-ROW(الحركة!$A$6)+1),ROWS(C$16:C65))),"") ->  | L66: =IF(COUNTIF($F$17:F65,F65)=1,COUNT($L$18:L65)+1,"") ->  | M66: =IF(COUNT($L$18:$L$14759)<ROW()-17,"",LOOKUP(ROW()-17,$L$18:$L$14759,$F$17:$F$14759)) ->  | N66: =IF(M66="","",COUNTIF($F$17:$F$359,M66)) ->  | O66: =IF(M66="","",SUMIF($F$17:$F$359,M66,$G$17:$G$14759)) ->  | P66: =IF(M66="","",SUMIF($F$17:$F$359,M66,$H$17:$H$14759)) -> 
B67: =IF(ROWS(B$16:B66)<=SUMPRODUCT((الحركة!$E$6:$E$26648=$F$8)*(الحركة!$A$6:$A$26648>=$F$6)*(الحركة!$A$6:$A$26648<=$H$6)),INDEX(الحركة!$A$6:$A$26648,SMALL(IF((الحركة!$E$6:$E$26648=$F$8)*(الحركة!$A$6:$A$26648>=$F$6)*(الحركة!$A$6:$A$26648<=$H$6),ROW(الحركة!$A$6:$A$26648)-ROW(الحركة!$A$6)+1),ROWS(B$16:B66))),"") ->  | D67: =IF(ROWS(B$16:B66)<=SUMPRODUCT((الحركة!$E$6:$E$26648=$F$8)*(الحركة!$A$6:$A$26648>=$F$6)*(الحركة!$A$6:$A$26648<=$H$6)),INDEX(الحركة!$E$6:$E$26648,SMALL(IF((الحركة!$E$6:$E$26648=$F$8)*(الحركة!$A$6:$A$26648>=$F$6)*(الحركة!$A$6:$A$26648<=$H$6),ROW(الحركة!$A$6:$A$26648)-ROW(الحركة!$A$6)+1),ROWS(B$16:B66))),"") ->  | E67: =IF(ROWS(C$16:C66)<=SUMPRODUCT((الحركة!$E$6:$E$26648=$F$8)*(الحركة!$A$6:$A$26648>=$F$6)*(الحركة!$A$6:$A$26648<=$H$6)),INDEX(الحركة!$F$6:$F$26648,SMALL(IF((الحركة!$E$6:$E$26648=$F$8)*(الحركة!$A$6:$A$26648>=$F$6)*(الحركة!$A$6:$A$26648<=$H$6),ROW(الحركة!$A$6:$A$26648)-ROW(الحركة!$A$6)+1),ROWS(C$16:C66))),"") ->  | F67: =IF(ROWS(C$16:C66)<=SUMPRODUCT((الحركة!$E$6:$E$26648=$F$8)*(الحركة!$A$6:$A$26648>=$F$6)*(الحركة!$A$6:$A$26648<=$H$6)),INDEX(الحركة!$H$6:$H$26648,SMALL(IF((الحركة!$E$6:$E$26648=$F$8)*(الحركة!$A$6:$A$26648>=$F$6)*(الحركة!$A$6:$A$26648<=$H$6),ROW(الحركة!$A$6:$A$26648)-ROW(الحركة!$A$6)+1),ROWS(C$16:C66))),"") ->  | G67: =IF(ROWS(B$16:B66)<=SUMPRODUCT((الحركة!$E$6:$E$26648=$F$8)*(الحركة!$A$6:$A$26648>=$F$6)*(الحركة!$A$6:$A$26648<=$H$6)),INDEX(الحركة!$I$6:$I$26648,SMALL(IF((الحركة!$E$6:$E$26648=$F$8)*(الحركة!$A$6:$A$26648>=$F$6)*(الحركة!$A$6:$A$26648<=$H$6),ROW(الحركة!$A$6:$A$26648)-ROW(الحركة!$A$6)+1),ROWS(B$16:B66))),"") ->  | H67: =IF(ROWS(C$16:C66)<=SUMPRODUCT((الحركة!$E$6:$E$26648=$F$8)*(الحركة!$A$6:$A$26648>=$F$6)*(الحركة!$A$6:$A$26648<=$H$6)),INDEX(الحركة!$J$6:$J$26648,SMALL(IF((الحركة!$E$6:$E$26648=$F$8)*(الحركة!$A$6:$A$26648>=$F$6)*(الحركة!$A$6:$A$26648<=$H$6),ROW(الحركة!$A$6:$A$26648)-ROW(الحركة!$A$6)+1),ROWS(C$16:C66))),"") ->  | L67: =IF(COUNTIF($F$17:F66,F66)=1,COUNT($L$18:L66)+1,"") ->  | M67: =IF(COUNT($L$18:$L$14759)<ROW()-17,"",LOOKUP(ROW()-17,$L$18:$L$14759,$F$17:$F$14759)) ->  | N67: =IF(M67="","",COUNTIF($F$17:$F$359,M67)) ->  | O67: =IF(M67="","",SUMIF($F$17:$F$359,M67,$G$17:$G$14759)) ->  | P67: =IF(M67="","",SUMIF($F$17:$F$359,M67,$H$17:$H$14759)) -> 
B68: =IF(ROWS(B$16:B67)<=SUMPRODUCT((الحركة!$E$6:$E$26648=$F$8)*(الحركة!$A$6:$A$26648>=$F$6)*(الحركة!$A$6:$A$26648<=$H$6)),INDEX(الحركة!$A$6:$A$26648,SMALL(IF((الحركة!$E$6:$E$26648=$F$8)*(الحركة!$A$6:$A$26648>=$F$6)*(الحركة!$A$6:$A$26648<=$H$6),ROW(الحركة!$A$6:$A$26648)-ROW(الحركة!$A$6)+1),ROWS(B$16:B67))),"") ->  | D68: =IF(ROWS(B$16:B67)<=SUMPRODUCT((الحركة!$E$6:$E$26648=$F$8)*(الحركة!$A$6:$A$26648>=$F$6)*(الحركة!$A$6:$A$26648<=$H$6)),INDEX(الحركة!$E$6:$E$26648,SMALL(IF((الحركة!$E$6:$E$26648=$F$8)*(الحركة!$A$6:$A$26648>=$F$6)*(الحركة!$A$6:$A$26648<=$H$6),ROW(الحركة!$A$6:$A$26648)-ROW(الحركة!$A$6)+1),ROWS(B$16:B67))),"") ->  | E68: =IF(ROWS(C$16:C67)<=SUMPRODUCT((الحركة!$E$6:$E$26648=$F$8)*(الحركة!$A$6:$A$26648>=$F$6)*(الحركة!$A$6:$A$26648<=$H$6)),INDEX(الحركة!$F$6:$F$26648,SMALL(IF((الحركة!$E$6:$E$26648=$F$8)*(الحركة!$A$6:$A$26648>=$F$6)*(الحركة!$A$6:$A$26648<=$H$6),ROW(الحركة!$A$6:$A$26648)-ROW(الحركة!$A$6)+1),ROWS(C$16:C67))),"") ->  | F68: =IF(ROWS(C$16:C67)<=SUMPRODUCT((الحركة!$E$6:$E$26648=$F$8)*(الحركة!$A$6:$A$26648>=$F$6)*(الحركة!$A$6:$A$26648<=$H$6)),INDEX(الحركة!$H$6:$H$26648,SMALL(IF((الحركة!$E$6:$E$26648=$F$8)*(الحركة!$A$6:$A$26648>=$F$6)*(الحركة!$A$6:$A$26648<=$H$6),ROW(الحركة!$A$6:$A$26648)-ROW(الحركة!$A$6)+1),ROWS(C$16:C67))),"") ->  | G68: =IF(ROWS(B$16:B67)<=SUMPRODUCT((الحركة!$E$6:$E$26648=$F$8)*(الحركة!$A$6:$A$26648>=$F$6)*(الحركة!$A$6:$A$26648<=$H$6)),INDEX(الحركة!$I$6:$I$26648,SMALL(IF((الحركة!$E$6:$E$26648=$F$8)*(الحركة!$A$6:$A$26648>=$F$6)*(الحركة!$A$6:$A$26648<=$H$6),ROW(الحركة!$A$6:$A$26648)-ROW(الحركة!$A$6)+1),ROWS(B$16:B67))),"") ->  | H68: =IF(ROWS(C$16:C67)<=SUMPRODUCT((الحركة!$E$6:$E$26648=$F$8)*(الحركة!$A$6:$A$26648>=$F$6)*(الحركة!$A$6:$A$26648<=$H$6)),INDEX(الحركة!$J$6:$J$26648,SMALL(IF((الحركة!$E$6:$E$26648=$F$8)*(الحركة!$A$6:$A$26648>=$F$6)*(الحركة!$A$6:$A$26648<=$H$6),ROW(الحركة!$A$6:$A$26648)-ROW(الحركة!$A$6)+1),ROWS(C$16:C67))),"") ->  | L68: =IF(COUNTIF($F$17:F67,F67)=1,COUNT($L$18:L67)+1,"") ->  | M68: =IF(COUNT($L$18:$L$14759)<ROW()-17,"",LOOKUP(ROW()-17,$L$18:$L$14759,$F$17:$F$14759)) ->  | N68: =IF(M68="","",COUNTIF($F$17:$F$359,M68)) ->  | O68: =IF(M68="","",SUMIF($F$17:$F$359,M68,$G$17:$G$14759)) ->  | P68: =IF(M68="","",SUMIF($F$17:$F$359,M68,$H$17:$H$14759)) -> 
B69: =IF(ROWS(B$16:B68)<=SUMPRODUCT((الحركة!$E$6:$E$26648=$F$8)*(الحركة!$A$6:$A$26648>=$F$6)*(الحركة!$A$6:$A$26648<=$H$6)),INDEX(الحركة!$A$6:$A$26648,SMALL(IF((الحركة!$E$6:$E$26648=$F$8)*(الحركة!$A$6:$A$26648>=$F$6)*(الحركة!$A$6:$A$26648<=$H$6),ROW(الحركة!$A$6:$A$26648)-ROW(الحركة!$A$6)+1),ROWS(B$16:B68))),"") ->  | D69: =IF(ROWS(B$16:B68)<=SUMPRODUCT((الحركة!$E$6:$E$26648=$F$8)*(الحركة!$A$6:$A$26648>=$F$6)*(الحركة!$A$6:$A$26648<=$H$6)),INDEX(الحركة!$E$6:$E$26648,SMALL(IF((الحركة!$E$6:$E$26648=$F$8)*(الحركة!$A$6:$A$26648>=$F$6)*(الحركة!$A$6:$A$26648<=$H$6),ROW(الحركة!$A$6:$A$26648)-ROW(الحركة!$A$6)+1),ROWS(B$16:B68))),"") ->  | E69: =IF(ROWS(C$16:C68)<=SUMPRODUCT((الحركة!$E$6:$E$26648=$F$8)*(الحركة!$A$6:$A$26648>=$F$6)*(الحركة!$A$6:$A$26648<=$H$6)),INDEX(الحركة!$F$6:$F$26648,SMALL(IF((الحركة!$E$6:$E$26648=$F$8)*(الحركة!$A$6:$A$26648>=$F$6)*(الحركة!$A$6:$A$26648<=$H$6),ROW(الحركة!$A$6:$A$26648)-ROW(الحركة!$A$6)+1),ROWS(C$16:C68))),"") ->  | F69: =IF(ROWS(C$16:C68)<=SUMPRODUCT((الحركة!$E$6:$E$26648=$F$8)*(الحركة!$A$6:$A$26648>=$F$6)*(الحركة!$A$6:$A$26648<=$H$6)),INDEX(الحركة!$H$6:$H$26648,SMALL(IF((الحركة!$E$6:$E$26648=$F$8)*(الحركة!$A$6:$A$26648>=$F$6)*(الحركة!$A$6:$A$26648<=$H$6),ROW(الحركة!$A$6:$A$26648)-ROW(الحركة!$A$6)+1),ROWS(C$16:C68))),"") ->  | G69: =IF(ROWS(B$16:B68)<=SUMPRODUCT((الحركة!$E$6:$E$26648=$F$8)*(الحركة!$A$6:$A$26648>=$F$6)*(الحركة!$A$6:$A$26648<=$H$6)),INDEX(الحركة!$I$6:$I$26648,SMALL(IF((الحركة!$E$6:$E$26648=$F$8)*(الحركة!$A$6:$A$26648>=$F$6)*(الحركة!$A$6:$A$26648<=$H$6),ROW(الحركة!$A$6:$A$26648)-ROW(الحركة!$A$6)+1),ROWS(B$16:B68))),"") ->  | H69: =IF(ROWS(C$16:C68)<=SUMPRODUCT((الحركة!$E$6:$E$26648=$F$8)*(الحركة!$A$6:$A$26648>=$F$6)*(الحركة!$A$6:$A$26648<=$H$6)),INDEX(الحركة!$J$6:$J$26648,SMALL(IF((الحركة!$E$6:$E$26648=$F$8)*(الحركة!$A$6:$A$26648>=$F$6)*(الحركة!$A$6:$A$26648<=$H$6),ROW(الحركة!$A$6:$A$26648)-ROW(الحركة!$A$6)+1),ROWS(C$16:C68))),"") ->  | L69: =IF(COUNTIF($F$17:F68,F68)=1,COUNT($L$18:L68)+1,"") ->  | M69: =IF(COUNT($L$18:$L$14759)<ROW()-17,"",LOOKUP(ROW()-17,$L$18:$L$14759,$F$17:$F$14759)) ->  | N69: =IF(M69="","",COUNTIF($F$17:$F$359,M69)) ->  | O69: =IF(M69="","",SUMIF($F$17:$F$359,M69,$G$17:$G$14759)) ->  | P69: =IF(M69="","",SUMIF($F$17:$F$359,M69,$H$17:$H$14759)) -> 
B70: =IF(ROWS(B$16:B69)<=SUMPRODUCT((الحركة!$E$6:$E$26648=$F$8)*(الحركة!$A$6:$A$26648>=$F$6)*(الحركة!$A$6:$A$26648<=$H$6)),INDEX(الحركة!$A$6:$A$26648,SMALL(IF((الحركة!$E$6:$E$26648=$F$8)*(الحركة!$A$6:$A$26648>=$F$6)*(الحركة!$A$6:$A$26648<=$H$6),ROW(الحركة!$A$6:$A$26648)-ROW(الحركة!$A$6)+1),ROWS(B$16:B69))),"") ->  | D70: =IF(ROWS(B$16:B69)<=SUMPRODUCT((الحركة!$E$6:$E$26648=$F$8)*(الحركة!$A$6:$A$26648>=$F$6)*(الحركة!$A$6:$A$26648<=$H$6)),INDEX(الحركة!$E$6:$E$26648,SMALL(IF((الحركة!$E$6:$E$26648=$F$8)*(الحركة!$A$6:$A$26648>=$F$6)*(الحركة!$A$6:$A$26648<=$H$6),ROW(الحركة!$A$6:$A$26648)-ROW(الحركة!$A$6)+1),ROWS(B$16:B69))),"") ->  | E70: =IF(ROWS(C$16:C69)<=SUMPRODUCT((الحركة!$E$6:$E$26648=$F$8)*(الحركة!$A$6:$A$26648>=$F$6)*(الحركة!$A$6:$A$26648<=$H$6)),INDEX(الحركة!$F$6:$F$26648,SMALL(IF((الحركة!$E$6:$E$26648=$F$8)*(الحركة!$A$6:$A$26648>=$F$6)*(الحركة!$A$6:$A$26648<=$H$6),ROW(الحركة!$A$6:$A$26648)-ROW(الحركة!$A$6)+1),ROWS(C$16:C69))),"") ->  | F70: =IF(ROWS(C$16:C69)<=SUMPRODUCT((الحركة!$E$6:$E$26648=$F$8)*(الحركة!$A$6:$A$26648>=$F$6)*(الحركة!$A$6:$A$26648<=$H$6)),INDEX(الحركة!$H$6:$H$26648,SMALL(IF((الحركة!$E$6:$E$26648=$F$8)*(الحركة!$A$6:$A$26648>=$F$6)*(الحركة!$A$6:$A$26648<=$H$6),ROW(الحركة!$A$6:$A$26648)-ROW(الحركة!$A$6)+1),ROWS(C$16:C69))),"") ->  | G70: =IF(ROWS(B$16:B69)<=SUMPRODUCT((الحركة!$E$6:$E$26648=$F$8)*(الحركة!$A$6:$A$26648>=$F$6)*(الحركة!$A$6:$A$26648<=$H$6)),INDEX(الحركة!$I$6:$I$26648,SMALL(IF((الحركة!$E$6:$E$26648=$F$8)*(الحركة!$A$6:$A$26648>=$F$6)*(الحركة!$A$6:$A$26648<=$H$6),ROW(الحركة!$A$6:$A$26648)-ROW(الحركة!$A$6)+1),ROWS(B$16:B69))),"") ->  | H70: =IF(ROWS(C$16:C69)<=SUMPRODUCT((الحركة!$E$6:$E$26648=$F$8)*(الحركة!$A$6:$A$26648>=$F$6)*(الحركة!$A$6:$A$26648<=$H$6)),INDEX(الحركة!$J$6:$J$26648,SMALL(IF((الحركة!$E$6:$E$26648=$F$8)*(الحركة!$A$6:$A$26648>=$F$6)*(الحركة!$A$6:$A$26648<=$H$6),ROW(الحركة!$A$6:$A$26648)-ROW(الحركة!$A$6)+1),ROWS(C$16:C69))),"") ->  | L70: =IF(COUNTIF($F$17:F69,F69)=1,COUNT($L$18:L69)+1,"") ->  | M70: =IF(COUNT($L$18:$L$14759)<ROW()-17,"",LOOKUP(ROW()-17,$L$18:$L$14759,$F$17:$F$14759)) ->  | N70: =IF(M70="","",COUNTIF($F$17:$F$359,M70)) ->  | O70: =IF(M70="","",SUMIF($F$17:$F$359,M70,$G$17:$G$14759)) ->  | P70: =IF(M70="","",SUMIF($F$17:$F$359,M70,$H$17:$H$14759)) -> 
